Workbook

Sheet Function (hidden)
E1: =H114 -> UTAH | F1: =+H114 -> UTAH | G1: =C109 -> 2020 PROTOCOL | R1: UNADJUSTED RESULTS OF OPERATIONS
R2: =Variables!AE27 -> 2020 PROTOCOL
E3: Function | F3: Description | I3: Production | J3: Transmission | K3: Distribution | L3: Poles & Wires | M3: Customer | N3: Misc | O3: Total | R3: =Variables!AE28 ->  | AN3: JAMLINKjars
E4: ACCMDIT | F4: Deferred Income Tax - Balance | I4: =T61 -> 0.9649419921 | J4: -0.1161702784 | K4: 0.1512282862 | L4: 0.1454617428 | M4: 0.005766543429 | N4: 0 | O4: =SUM(I4:K4) -> 1 | P4: =K4-L4-M4-N4 -> 8.67361738e-19 | AN4: =+I4 -> 0.9649419921 | AO4: -0.1161702784 | AP4: 0.1512282862 | AQ4: 0.1454617428 | AR4: 0.005766543429 | AS4: 0 | AT4: =Report!P192 -> 860915571.9
E5: BOOKDEPR | F5: Book Depreciation | I5: 0.5333088308 | J5: 0.1666185282 | K5: =L5+M5+N5 -> 0.300072641 | L5: 0.296637073 | M5: 0.003435567996 | N5: 0 | O5: 1 | P5: -1.734723476e-17 | U5: PACIFICORP | V5: PACIFICORP | AN5: 0.5333088308 | AO5: 0.1666185282 | AP5: 0.300072641 | AQ5: 0.296637073 | AR5: 0.003435567996 | AS5: 0 | AT5: =Report!P193 -> 0
C6: N/A | E6: COM_EQ | F6: Communication Equipment Acct 397 | I6: 0 | J6: 0 | K6: =L6+M6+N6 -> 0 | L6: 0 | M6: 0 | N6: 0 | O6: 0 | P6: 0 | R6: FERC | S6: DESCRIPTION | U6: LABOR | V6: O&M | AN6: 0 | AO6: 0 | AP6: 0 | AQ6: 0 | AR6: 0 | AS6: 0 | AT6: =Report!P194 -> 860915571.9
E7: CUST | F7: Distribution Retail | I7: 0 | J7: 0 | K7: =L7+M7+N7 -> 1 | L7: 0 | M7: 1 | N7: 0 | O7: 1 | P7: 0 | R7: ACCT | U7: ONLY | V7: TOTAL | W7: =Variables!X24 -> UTAH | AN7: 0 | AO7: 0 | AP7: 1 | AQ7: 0 | AR7: 1 | AS7: 0 | AT7: =Report!P195 -> 0
E8: CWC | F8: Cash Working Capital | I8: =T58/$S58 ->  | J8: =U58/$S58 ->  | K8: =SUM(L8:N8) ->  | L8: =W58/$S58 ->  | M8: =X58/$S58 ->  | N8: =Y58/$S58 ->  | AT8: =Report!P196 -> 0
E9: DDS2 | F9: Deferred Debits - Situs | I9: 0.8654170763 | J9: 0.01134440937 | K9: =L9+M9+N9 -> 0.1232385143 | L9: 0.007189450857 | M9: 0.1453915654 | N9: -0.02934250188 | O9: 1 | P9: 0 | AN9: 0.8654170763 | AO9: 0.01134440937 | AP9: 0.1232385143 | AQ9: 0.007189450857 | AR9: 0.1453915654 | AS9: -0.02934250188 | AT9: =Report!P197 -> 1304804191
E10: DDS6 | F10: Deferred Debits - Situs | I10: 0 | J10: 0 | K10: =L10+M10+N10 -> 0 | L10: 0 | M10: 0 | N10: 0 | O10: 0 | P10: 0 | R10: NET PRODUCTION EXPENSE | U10: 90698845 | V10: =URO!I657 -> 2148255528 | W10: =IF(Variables!AO3=12,URO!N657+URO!Q657,CHOOSE(Variables!AO3,URO!J657,URO!K657,URO!L657,URO!M657,URO!N657,URO!O657,URO!P657,URO!Q657,URO!R657,URO!S657,URO!T657)) -> 940361583.7 | AN10: 0 | AO10: 0 | AP10: 0 | AQ10: 0 | AR10: 0 | AS10: 0 | AT10: =Report!P198 -> 0
E11: DDSO2 | F11: Deferred Debits - System Overhead | I11: 0.1117746861 | J11: 0.03725822871 | K11: =L11+M11+N11 -> 0.8509670852 | L11: 0.2235493722 | M11: 0 | N11: 0.6274177129 | O11: 1 | P11: 0 | R11: NET TRANSMISSION EXPENSE | U11: 10748429 | V11: =URO!I756 -> 212065030.4 | W11: =IF(Variables!AO3=12,URO!N756+URO!Q756,CHOOSE(Variables!AO3,URO!J756,URO!K756,URO!L756,URO!M756,URO!N756,URO!O756,URO!P756,URO!Q756,URO!R756,URO!S756,URO!T756)) -> 92647063.53 | AN11: 0.1117746861 | AO11: 0.03725822871 | AP11: 0.8509670852 | AQ11: 0.2235493722 | AR11: 0 | AS11: 0.6274177129 | AT11: =Report!P199 -> 0
E12: DDSO6 | F12: Deferred Debits - System Overhead | I12: 0 | J12: 0 | K12: =L12+M12+N12 -> 0 | L12: 0 | M12: 0 | N12: 0 | O12: 0 | P12: 0 | R12: TOTAL DISTRIBUTION EXPENSE | U12: =U18 -> 82047328 | V12: =V18 -> 401755280.6 | W12: =W18 -> 121984166.3 | AN12: 0 | AO12: 0 | AP12: 0 | AQ12: 0 | AR12: 0 | AS12: 0 | AT12: =Report!P200 -> 0
E13: DEFSG | F13: Deferred Debit - System Generation | I13: 0.6346481617 | J13: 0.3653518383 | K13: =L13+M13+N13 -> 0 | L13: 0 | M13: 0 | N13: 0 | O13: 1 | P13: 0 | R13: TOTAL | U13: =SUM(U10:U12) -> 183494602 | V13: =SUM(V10:V12) -> 2762075839 | W13: =SUM(W10:W12) -> 1154992814 | AN13: 0.6346481617 | AO13: 0.3653518383 | AP13: 0 | AQ13: 0 | AR13: 0 | AS13: 0 | AT13: =Report!P201 -> 0
C14: N/A | E14: DITEXP | F14: Deferred Income Tax - Expense | I14: 0 | J14: 0 | K14: 0 | L14: 0 | M14: 0 | N14: 0 | O14: 0 | P14: 0 | AN14: 0 | AO14: 0 | AP14: 0 | AQ14: 0 | AR14: 0 | AS14: 0 | AT14: =Report!P202 -> 1304804191
E15: DMSC | F15: Distribution Miscellaneous | I15: 0 | J15: 0 | K15: =L15+M15+N15 -> 1 | L15: 0 | M15: 0 | N15: 1 | O15: =SUM(I15:K15) -> 1 | P15: 0 | R15: POLES & WIRES | U15: 45597212 | V15: =URO!I857 -> 215230639.3 | W15: =IF(Variables!AO3=12,URO!N857+URO!Q857,CHOOSE(Variables!AO3,URO!J857,URO!K857,URO!L857,URO!M857,URO!N857,URO!O857,URO!P857,URO!Q857,URO!R857,URO!S857,URO!T857)) -> 82286354.69 | AN15: 0 | AO15: 0 | AP15: 1 | AQ15: 0 | AR15: 0 | AS15: 1 | AT15: =Report!P203 -> 0
E16: DPW | F16: Distribution Poles & Wires | I16: 0 | J16: 0 | K16: =L16+M16+N16 -> 1 | L16: 1 | M16: 0 | N16: 0 | O16: 1 | P16: 0 | R16: Customers | U16: 36450116 | V16: =URO!I892+URO!I961 -> 186524641.3 | W16: =IF(Variables!AO3=12,URO!N892+URO!N961+URO!Q892+URO!Q961,CHOOSE(Variables!AO3,URO!J892+URO!J961,URO!K892+URO!K961,URO!L892+URO!L961,URO!M892+URO!M961,URO!N892+URO!N961,URO!O892+URO!O961,URO!P892+URO!P961,URO!Q892+URO!Q961,URO!R892+URO!R961,URO!S892+URO!S961,URO!T892+URO!T961)) -> 39697811.61 | AN16: 0 | AO16: 0 | AP16: 1 | AQ16: 1 | AR16: 0 | AS16: 0 | AT16: =Report!P204 -> 0
E17: ESD | F17: Environmental Services Department | I17: 0.3 | J17: 0.1 | K17: =L17+M17+N17 -> 0.6 | L17: 0.6 | M17: 0 | N17: 0 | O17: 1 | P17: 0 | R17: MISC | U17: 0 | V17: 0 | W17: 0 | AN17: 0.3 | AO17: 0.1 | AP17: 0.6 | AQ17: 0.6 | AR17: 0 | AS17: 0 | AT17: =Report!P205 -> 8103971.25
E18: FERC | F18: FERC Fees | I18: 0.5372886628 | J18: 0.4627113372 | K18: =L18+M18+N18 -> 0 | L18: 0 | M18: 0 | N18: 0 | O18: 1 | P18: 0 | R18: TOTAL DISTRIBUTION | U18: =SUM(U15:U17) -> 82047328 | V18: =SUM(V15:V17) -> 401755280.6 | W18: =SUM(W15:W17) -> 121984166.3 | AN18: 0.5372886628 | AO18: 0.4627113372 | AP18: 0 | AQ18: 0 | AR18: 0 | AS18: 0 | AT18: =Report!P206 -> 0
E19: FIT | F19: Federal Income Taxes | I19: =I1445/$H1445 ->  | J19: =J1445/$H1445 ->  | K19: =SUM(L19:N19) ->  | L19: =L1445/$H1445 ->  | M19: =M1445/$H1445 ->  | N19: =N1445/$H1445 ->  | AT19: =Report!P207 -> 8103971.25
E20: G | F20: General Plant | I20: 0.2328424472 | J20: 0.2990202444 | K20: =L20+M20+N20 -> 0.4681373084 | L20: 0.4419311617 | M20: 0.02620614672 | N20: 0 | O20: 1 | P20: 3.469446952e-18 | AN20: =+I20 -> 0.2328424472 | AO20: 0.2990202444 | AP20: 0.4681373084 | AQ20: 0.4419311617 | AR20: 0.02620614672 | AS20: 0 | AT20: =Report!P208 -> 0
E21: G-DGP | F21: General Plant - DGP Factor | I21: 0.6855986064 | J21: 0.3144013936 | K21: =L21+M21+N21 -> 0 | L21: 0 | M21: 0 | N21: 0 | O21: 1 | P21: 0 | R21: LABOR/O&M | AN21: 0.6855986064 | AO21: 0.3144013936 | AP21: 0 | AQ21: 0 | AR21: 0 | AS21: 0 | AT21: =Report!P209 -> 0
E22: G-DGU | F22: General Plant - DGU Factor | I22: 0.6855986064 | J22: 0.3144013936 | K22: =L22+M22+N22 -> 0 | L22: 0 | M22: 0 | N22: 0 | O22: 1 | P22: 0 | R22: NET PRODUCTION EXPENSE | U22: =U10/U$13 -> 0.4942861752 | V22: 0.7777684804 | W22: =W10/W$13 -> 0.8141709391 | AN22: 0.6855986064 | AO22: 0.3144013936 | AP22: 0 | AQ22: 0 | AR22: 0 | AS22: 0 | AT22: =Report!P210 -> 0
E23: GP | F23: Total Plant | I23: 0.5092664563 | J23: 0.2157600698 | K23: 0.2749734739 | L23: 0.268675091 | M23: 0.006298382938 | N23: 0 | O23: 1 | P23: 2.255140519e-17 | R23: NET TRANSMISSION EXPENSE | U23: 0.05857626809 | V23: 0.07677741046 | W23: =W11/W$13 -> 0.08021440691 | AN23: 0.5092664563 | AO23: 0.2157600698 | AP23: 0.2749734739 | AQ23: 0.268675091 | AR23: 0.006298382938 | AS23: 0 | AT23: =Report!P211 -> 0
E24: G-SG | F24: General Plant - SG Factor | I24: 0.4715666024 | J24: 0.5284333976 | K24: 0 | L24: 0 | M24: 0 | N24: 0 | O24: =SUM(I24:K24) -> 1 | P24: 0 | R24: TOTAL DISTRIBUTION EXPENSE | U24: 0.4471375567 | V24: 0.1454541092 | W24: =W12/W$13 -> 0.1056146539 | AN24: 0.4715666024 | AO24: 0.5284333976 | AP24: 0 | AQ24: 0 | AR24: 0 | AS24: 0 | AT24: =Report!P212 -> 0
E25: G-SITUS | F25: General Plant - SITUS Factor | I25: 0 | J25: 0.2571292981 | K25: 0.7428707019 | L25: 0.7428707019 | M25: 0 | N25: 0 | O25: 1 | P25: 0 | R25: TOTAL | U25: 1 | V25: 1 | W25: =W13/W$13 -> 1 | AN25: 0 | AO25: 0.2571292981 | AP25: 0.7428707019 | AQ25: 0.7428707019 | AR25: 0 | AS25: 0 | AT25: =Report!P213 -> 0
E26: I | F26: Intangible Plant | I26: 0.5565693786 | J26: 0.1476908877 | K26: 0.2957397337 | L26: 0.1412390394 | M26: 0.1545006943 | N26: 0 | O26: 1 | P26: 0 | AN26: 0.5565693786 | AO26: 0.1476908877 | AP26: 0.2957397337 | AQ26: 0.1412390394 | AR26: 0.1545006943 | AS26: 0 | AT26: =Report!P214 -> 0
E27: IBT | F27: Income Before Taxes | I27: =I1430/$H1430 ->  | J27: =J1430/$H1430 ->  | K27: =SUM(L27:N27) ->  | L27: =L1430/$H1430 ->  | M27: =M1430/$H1430 ->  | N27: =N1430/$H1430 ->  | R27: POLES & WIRES | U27: =U15/U$13 -> 0.2484934788 | V27: 0.07792350822 | W27: =W15/W$13 -> 0.07124404042 | AT27: =Report!P215 -> 0
E28: I-DGP | F28: Intangible Plant - DGP Factor | I28: 1 | J28: 0 | K28: =L28+M28+N28 -> 0 | L28: 0 | M28: 0 | N28: 0 | O28: 1 | P28: 0 | R28: RETAIL | U28: 0.1986440778 | V28: 0.06753060094 | W28: =W16/W$13 -> 0.03437061352 | AN28: 1 | AO28: 0 | AP28: 0 | AQ28: 0 | AR28: 0 | AS28: 0 | AT28: =Report!P216 -> 0
E29: I-DGU | F29: Intangible Plant - DGU Factor | I29: 1 | J29: 0 | K29: 0 | L29: 0 | M29: 0 | N29: 0 | O29: 1 | P29: 0 | R29: MISC | U29: 0 | V29: 0 | W29: =W17/W$13 -> 0 | AN29: 1 | AO29: 0 | AP29: 0 | AQ29: 0 | AR29: 0 | AS29: 0 | AT29: =Report!P217 -> 0
E30: I-SG | F30: Intangible Plant - SG Factor | I30: 0.8545976251 | J30: 0.1454023749 | K30: 0 | L30: 0 | M30: 0 | N30: 0 | O30: 1 | P30: 0 | R30: TOTAL DISTRIBUTION | U30: =U18/U13 -> 0.4471375567 | V30: =V18/V13 -> 0.1454541092 | W30: =W18/W13 -> 0.1056146539 | AN30: 0.8545976251 | AO30: 0.1454023749 | AP30: 0 | AQ30: 0 | AR30: 0 | AS30: 0 | AT30: =Report!P218 -> 0
E31: I-SITUS | F31: Intangible Plant - SITUS Factor | I31: 0.0276342919 | J31: 0.4679663045 | K31: 0.5043994036 | L31: 0.5043994036 | M31: 0 | N31: 0 | O31: 1 | P31: 0 | AN31: 0.0276342919 | AO31: 0.4679663045 | AP31: 0.5043994036 | AQ31: 0.5043994036 | AR31: 0 | AS31: 0 | AT31: =Report!P219 -> 2173823735
E32: LABOR | F32: Direct Labor Expense | I32: 0.4271290455 | J32: 0.06855059318 | K32: 0.5043203613 | L32: 0.3553382213 | M32: 0.14898214 | N32: 0 | O32: 1 | P32: 5.551115123e-17 | AN32: 0.4271290455 | AO32: 0.06855059318 | AP32: 0.5043203613 | AQ32: 0.3553382213 | AR32: 0.14898214 | AS32: 0 | AT32: =Report!P220 -> 0
E33: MSS | F33: Materials & Supplies | I33: 0.8430955205 | J33: 0.00648440484 | K33: 0.1504200747 | L33: 0.1504200747 | M33: 0 | N33: 0 | O33: 1 | P33: 0 | R33: TOTAL PRODUCTION PLANT | V33: =URO!I1705 -> 1.236946971e+10 | W33: =IF(Variables!AO3=12,URO!N1705+URO!Q1705,CHOOSE(Variables!AO3,URO!J1705,URO!K1705,URO!L1705,URO!M1705,URO!N1705,URO!O1705,URO!P1705,URO!Q1705,URO!R1705,URO!S1705,URO!T1705)) -> 5400674491 | AN33: 0.8430955205 | AO33: 0.00648440484 | AP33: 0.1504200747 | AQ33: 0.1504200747 | AR33: 0 | AS33: 0 | AT33: =Report!P221 -> 0
E34: NONE | F34: Not Functionalized | I34: 0 | J34: 0 | K34: =L34+M34+N34 -> 0 | L34: 0 | M34: 0 | N34: 0 | O34: 0 | P34: 0 | R34: TOTAL TRANSMISSION PLANT | V34: =URO!I1769 -> 6707316240 | W34: =IF(Variables!AO3=12,URO!N1769+URO!Q1769,CHOOSE(Variables!AO3,URO!J1769,URO!K1769,URO!L1769,URO!M1769,URO!N1769,URO!O1769,URO!P1769,URO!Q1769,URO!R1769,URO!S1769,URO!T1769)) -> 2928520961 | AN34: 0 | AO34: 0 | AP34: 0 | AQ34: 0 | AR34: 0 | AS34: 0 | AT34: =Report!P222 -> 0
E35: NUTIL | F35: Non-Regulated | I35: 0 | J35: 0 | K35: =L35+M35+N35 -> 0 | L35: 0 | M35: 0 | N35: 0 | O35: 0 | P35: 0 | R35: TOTAL DISTRIBUTION PLANT | V35: =URO!I1843 -> 7435339493 | W35: =IF(Variables!AO3=12,URO!N1843+URO!Q1843,CHOOSE(Variables!AO3,URO!J1843,URO!K1843,URO!L1843,URO!M1843,URO!N1843,URO!O1843,URO!P1843,URO!Q1843,URO!R1843,URO!S1843,URO!T1843)) -> 3176591929 | AN35: 0 | AO35: 0 | AP35: 0 | AQ35: 0 | AR35: 0 | AS35: 0 | AT35: =Report!P223 -> 0
E36: OTHDGP | F36: Other Revenues - DGP Factor | I36: 0.6577867594 | J36: 0.3422132406 | K36: =L36+M36+N36 -> 0 | L36: 0 | M36: 0 | N36: 0 | O36: 1 | P36: 0 | R36: TOTAL | V36: =SUM(V33:V35) -> 2.651212544e+10 | W36: =SUM(W33:W35) -> 1.150578738e+10 | AN36: 0.6577867594 | AO36: 0.3422132406 | AP36: 0 | AQ36: 0 | AR36: 0 | AS36: 0 | AT36: =Report!P224 -> 12135362.02
E37: OTHDGU | F37: Other Revenues - DGU Factor | I37: 0.6577867594 | J37: 0.3422132406 | K37: 0 | L37: 0 | M37: 0 | N37: 0 | O37: 1 | P37: 0 | AN37: 0.6577867594 | AO37: 0.3422132406 | AP37: 0 | AQ37: 0 | AR37: 0 | AS37: 0 | AT37: =Report!P225 -> 12135362.02
E38: OTHSE | F38: Other Revenues - SE Factor | I38: 0 | J38: 1 | K38: 0 | L38: 0 | M38: 0 | N38: 0 | O38: 1 | P38: 0 | R38: PTD | AN38: 0 | AO38: 1 | AP38: 0 | AQ38: 0 | AR38: 0 | AS38: 0 | AT38: =Report!P226 -> 0
E39: OTHSG | F39: Other Revenues - SG Factor | I39: 0.6577867594 | J39: 0.3422132406 | K39: 0 | L39: 0 | M39: 0 | N39: 0 | O39: 1 | P39: 0 | R39: TOTAL PRODUCTION PLANT | V39: =V33/V$36 -> 0.4665589613 | W39: 0.4693876492 | AN39: 0.6577867594 | AO39: 0.3422132406 | AP39: 0 | AQ39: 0 | AR39: 0 | AS39: 0 | AT39: =Report!P227 -> 0
E40: OTHSGR | F40: Other Revenues - Rolled-In SG Factor | I40: 0.6577867594 | J40: 0.3422132406 | K40: 0 | L40: 0 | M40: 0 | N40: 0 | O40: 1 | P40: 0 | R40: TOTAL TRANSMISSION PLANT | V40: 0.2529905139 | W40: 0.2545259063 | AN40: 0.6577867594 | AO40: 0.3422132406 | AP40: 0 | AQ40: 0 | AR40: 0 | AS40: 0 | AT40: =Report!P228 -> 78173770.7
E41: OTHSITUS | F41: Other Revenues - Situs | I41: 0 | J41: 0 | K41: 1 | L41: 0 | M41: 0 | N41: 1 | O41: 1 | P41: 0 | R41: TOTAL DISTRIBUTION PLANT | V41: 0.2804505248 | W41: 0.2760864445 | AN41: 0 | AO41: 0 | AP41: 1 | AQ41: 0 | AR41: 0 | AS41: 1 | AT41: =Report!P229 -> -1175346.577
E42: OTHSO | F42: Other Revenues - SO Factor | I42: 0 | J42: 0 | K42: 1 | L42: 0 | M42: 0 | N42: 1 | O42: 1 | P42: 0 | R42: TOTAL | V42: =SUM(V39:V41) -> 1 | W42: =W36/W$36 -> 1 | AN42: 0 | AO42: 0 | AP42: 1 | AQ42: 0 | AR42: 0 | AS42: 1 | AT42: =Report!P230 -> 0
E43: P | F43: Production | I43: 1 | J43: 0 | K43: 0 | L43: 0 | M43: 0 | N43: 0 | O43: 1 | P43: 0 | AN43: 1 | AO43: 0 | AP43: 0 | AQ43: 0 | AR43: 0 | AS43: 0 | AT43: =Report!P231 -> 76998424.12
E44: PT | F44: Production / Transmission | I44: =IF(Variables!Y23=1,Function!V45,Function!W45) -> 0.6484029006 | J44: =IF(Variables!Y23=1,Function!V46,Function!W46) -> 0.3515970994 | K44: =SUM(L44:N44) -> 0 | L44: 0 | M44: 0 | N44: 0 | O44: 1 | P44: 0 | R44: PT | AN44: 0.6484029006 | AO44: 0.3515970994 | AP44: 0 | AQ44: 0 | AR44: 0 | AS44: 0 | AT44: =Report!P232 -> 0
E45: PTD | F45: Prod, Trans, Dist Plant | I45: =IF(Variables!Y23=1,Function!V39,Function!W39) -> 0.4693876492 | J45: =IF(Variables!Y23=1,Function!V40,Function!W40) -> 0.2545259063 | K45: =SUM(L45:N45) -> 0.2760864445 | L45: =IF(Variables!Y23=1,Function!V41,Function!W41) -> 0.2760864445 | M45: 0 | N45: 0 | O45: 1 | P45: 0 | R45: TOTAL PRODUCTION PLANT | V45: =V33/(V$33+V$34) -> 0.6484042827 | W45: =W33/(W$33+W$34) -> 0.6484029006 | AN45: 0.4693876492 | AO45: 0.2545259063 | AP45: 0.2760864445 | AQ45: 0.2760864445 | AR45: 0 | AS45: 0 | AT45: =Report!P233 -> 89133786.14
E46: REVREQ | F46: Revenue Requirement | I46: =+I122/$H$122 ->  | J46: =+J122/$H$122 ->  | K46: =SUM(L46:N46) ->  | L46: =+L122/$H$122 ->  | M46: =+M122/$H$122 ->  | N46: =+N122/$H$122 ->  | R46: TOTAL TRANSMISSION PLANT | V46: =V34/(V$33+V$34) -> 0.3515957173 | W46: =W34/(W$33+W$34) -> 0.3515970994 | AT46: =Report!P234 -> 0
E47: SCHMA | F47: Schedule M Additions | I47: 0.5259273579 | J47: 0.1774923045 | K47: =L47+M47+N47 -> 0.2965803376 | L47: 0.2797551698 | M47: 0.01209048408 | N47: 0.004734683748 | O47: 1 | P47: 1.387778781e-17 | R47: TOTAL | V47: =SUM(V45:V46) -> 1 | W47: =SUM(W45:W46) -> 1 | AN47: 0.5259273579 | AO47: 0.1774923045 | AP47: 0.2965803376 | AQ47: 0.2797551698 | AR47: 0.01209048408 | AS47: 0.004734683748 | AT47: =Report!P235 -> 0
E48: SCHMAF | F48: Schedule M Additions - Flow Through | I48: 1 | J48: 0 | K48: 0 | L48: 0 | M48: 0 | N48: 0 | O48: 1 | P48: 0 | AN48: 1 | AO48: 0 | AP48: 0 | AQ48: 0 | AR48: 0 | AS48: 0 | AT48: =Report!P236 -> 0
E49: SCHMAP | F49: Schedule M Additions - Permanent | I49: 0.4395609841 | J49: 0.07868996996 | K49: 0.4817490459 | L49: 0.345274554 | M49: 0.136474492 | N49: 0 | O49: 1 | P49: 0 | R49: TD | AN49: 0.4395609841 | AO49: 0.07868996996 | AP49: 0.4817490459 | AQ49: 0.345274554 | AR49: 0.136474492 | AS49: 0 | AT49: =Report!P237 -> -1414599.735
E50: SCHMAP-SO | F50: Schedule M Additions - Permanent-SO | I50: 0.4328192325 | J50: 0.0791881397 | K50: 0.4879926278 | L50: 0.3495187311 | M50: 0.1384738967 | N50: 0 | O50: 1 | P50: 0 | R50: TOTAL TRANSMISSION PLANT | V50: =V34/(V$34+V$35) -> 0.4742614376 | W50: =W34/(W$34+W$35) -> 0.4796833431 | AN50: 0.4328192325 | AO50: 0.0791881397 | AP50: 0.4879926278 | AQ50: 0.3495187311 | AR50: 0.1384738967 | AS50: 0 | AT50: =Report!P238 -> 0
E51: SCHMAT | F51: Schedule M Additions - Temporary | I51: 0.5274051795 | J51: 0.1791829187 | K51: 0.2934119019 | L51: 0.2786340627 | M51: 0.009962139945 | N51: 0.004815699279 | O51: 1 | P51: -3.816391647e-17 | R51: TOTAL DISTRIBUTION PLANT | V51: =V35/(V$34+V$35) -> 0.5257385624 | W51: =W35/(W$34+W$35) -> 0.5203166569 | AN51: 0.5274051795 | AO51: 0.1791829187 | AP51: 0.2934119019 | AQ51: 0.2786340627 | AR51: 0.009962139945 | AS51: 0.004815699279 | AT51: =Report!P239 -> 0
E52: SCHMAT-GPS | F52: Schedule M Additions - Temporary-GPS | I52: 0 | J52: 0 | K52: 0 | L52: 0 | M52: 0 | N52: 0 | O52: 0 | P52: 0 | R52: TOTAL | V52: =SUM(V50:V51) -> 1 | W52: =SUM(W50:W51) -> 1 | AN52: 0 | AO52: 0 | AP52: 0 | AQ52: 0 | AR52: 0 | AS52: 0 | AT52: =Report!P240 -> -1414599.735
E53: SCHMAT-SE | F53: Schedule M Additions - Temporary-SE | I53: 0.9997027317 | J53: 3.557156631e-05 | K53: 0.0002616967169 | L53: 0.0001843884424 | M53: 7.730827448e-05 | N53: 0 | O53: 1 | P53: 2.710505431e-20 | AN53: 0.9997027317 | AO53: 3.557156631e-05 | AP53: 0.0002616967169 | AQ53: 0.0001843884424 | AR53: 7.730827448e-05 | AS53: 0 | AT53: =Report!P241 -> 0
E54: SCHMAT-SITUS | F54: Schedule M Additions - Temporary-SITUS | I54: 0.5617108356 | J54: 0.04522194091 | K54: 0.3930672234 | L54: 0.2292405844 | M54: 0.03586322665 | N54: 0.1279634124 | O54: 1 | P54: 0 | AN54: 0.5617108356 | AO54: 0.04522194091 | AP54: 0.3930672234 | AQ54: 0.2292405844 | AR54: 0.03586322665 | AS54: 0.1279634124 | AT54: =Report!P242 -> 2261542921
E55: SCHMAT-SNP | F55: Schedule M Additions - Temporary-SNP | I55: 0.5078698338 | J55: 0.219200088 | K55: 0.2729300782 | L55: 0.2726403702 | M55: 0.0002897079667 | N55: 0 | O55: 1 | P55: 1.864827737e-17 | T55: Prod | U55: Trans | V55: Dist | W55: DPW | X55: CUST | Y55: DMSC | AN55: 0.5078698338 | AO55: 0.219200088 | AP55: 0.2729300782 | AQ55: 0.2726403702 | AR55: 0.0002897079667 | AS55: 0 | AT55: =Report!P243 -> 0
E56: SCHMAT-SO | F56: Schedule M Additions - Temporary-SO | I56: 0.4795353426 | J56: 0.166521788 | K56: 0.3539428695 | L56: 0.301741049 | M56: 0.05220182049 | N56: 0 | O56: =SUM(I56:K56) -> 1 | P56: -2.775557562e-17 | R56: (O&M + Taxes) / 365 | T56: =((I1048+I1236+I1412+I1445)/365) ->  | AN56: 0.4795353426 | AO56: 0.166521788 | AP56: 0.3539428695 | AQ56: 0.301741049 | AR56: 0.05220182049 | AS56: 0 | AT56: =Report!P244 -> 4488185.39
E57: SCHMD | F57: Schedule M Deductions | I57: 0.588862778 | J57: 0.1828931507 | K57: 0.2282440713 | L57: 0.2068982353 | M57: 0.005299510458 | N57: 0.01604632562 | O57: 1 | P57: 0 | R57: Net LAG Days | T57: =IF(Variables!$AO$3=12,Variables!$J20,IF(Variables!$Y23=2,CHOOSE(Variables!$AO3,Variables!$F20,Variables!$G20,Variables!$H20,Variables!$I20,Variables!$J20,Variables!$K20,Variables!$L20,Variables!$M20,Variables!$N20),Variables!$O20)) -> 4.068381533 | U57: =IF(Variables!$AO$3=12,Variables!$J20,IF(Variables!$Y23=2,CHOOSE(Variables!$AO3,Variables!$F20,Variables!$G20,Variables!$H20,Variables!$I20,Variables!$J20,Variables!$K20,Variables!$L20,Variables!$M20,Variables!$N20),Variables!$O20)) -> 4.068381533 | V57: =IF(Variables!$AO$3=12,Variables!$J20,IF(Variables!$Y23=2,CHOOSE(Variables!$AO3,Variables!$F20,Variables!$G20,Variables!$H20,Variables!$I20,Variables!$J20,Variables!$K20,Variables!$L20,Variables!$M20,Variables!$N20),Variables!$O20)) -> 4.068381533 | W57: =IF(Variables!$AO$3=12,Variables!$J20,IF(Variables!$Y23=2,CHOOSE(Variables!$AO3,Variables!$F20,Variables!$G20,Variables!$H20,Variables!$I20,Variables!$J20,Variables!$K20,Variables!$L20,Variables!$M20,Variables!$N20),Variables!$O20)) -> 4.068381533 | X57: =IF(Variables!$AO$3=12,Variables!$J20,IF(Variables!$Y23=2,CHOOSE(Variables!$AO3,Variables!$F20,Variables!$G20,Variables!$H20,Variables!$I20,Variables!$J20,Variables!$K20,Variables!$L20,Variables!$M20,Variables!$N20),Variables!$O20)) -> 4.068381533 | Y57: =IF(Variables!$AO$3=12,Variables!$J20,IF(Variables!$Y23=2,CHOOSE(Variables!$AO3,Variables!$F20,Variables!$G20,Variables!$H20,Variables!$I20,Variables!$J20,Variables!$K20,Variables!$L20,Variables!$M20,Variables!$N20),Variables!$O20)) -> 4.068381533 | AN57: 0.588862778 | AO57: 0.1828931507 | AP57: 0.2282440713 | AQ57: 0.2068982353 | AR57: 0.005299510458 | AS57: 0.01604632562 | AT57: =Report!P245 -> 0
E58: SCHMDF | F58: Schedule M Deductions - Flow Through | I58: 1 | J58: 0 | K58: 0 | L58: 0 | M58: 0 | N58: 0 | O58: 1 | P58: 0 | R58: CWC | S58: =SUM(T58:V58) ->  | T58: =T56*T57 ->  | AN58: 1 | AO58: 0 | AP58: 0 | AQ58: 0 | AR58: 0 | AS58: 0 | AT58: =Report!P246 -> 4488185.39
E59: SCHMDP | F59: Schedule M Deductions - Permanent | I59: 0.443506747 | J59: 0.06924130981 | K59: 0.4872519432 | L59: 0.3446432613 | M59: 0.1426086819 | N59: 0 | O59: 1 | P59: 0 | AN59: 0.443506747 | AO59: 0.06924130981 | AP59: 0.4872519432 | AQ59: 0.3446432613 | AR59: 0.1426086819 | AS59: 0 | AT59: =Report!P247 -> 0
E60: SCHMDP-SO | F60: Schedule M Deductions - Permanent- SO | I60: 0.4271290455 | J60: 0.06855059318 | K60: 0.5043203613 | L60: 0.3553382213 | M60: 0.14898214 | N60: 0 | O60: 1 | P60: 5.551115123e-17 | AN60: 0.4271290455 | AO60: 0.06855059318 | AP60: 0.5043203613 | AQ60: 0.3553382213 | AR60: 0.14898214 | AS60: 0 | AT60: =Report!P248 -> 0
E61: SCHMDT | F61: Schedule M Deductions - Temporary | I61: 0.5898361662 | J61: 0.1836542292 | K61: 0.2265096046 | L61: 0.2059758148 | M61: 0.004380008739 | N61: 0.0161537811 | O61: 1 | P61: 0 | R61: ACCUMDIT | S61: =Variables!AE27 -> 2020 PROTOCOL | T61: =IF(Variables!$AD$24=2,Function!V98,Function!AG98) -> 0.9649419921 | U61: =IF(Variables!$AD$24=2,Function!W98,Function!AH98) -> -0.1161702784 | V61: =IF(Variables!$AD$24=2,Function!X98,Function!AI98) -> 0.1512282862 | W61: =IF(Variables!$AD$24=2,Function!Y98,Function!AJ98) -> 0.1454617428 | X61: =IF(Variables!$AD$24=2,Function!Z98,Function!AK98) -> 0.005766543429 | Y61: =IF(Variables!$AD$24=2,Function!AA98,Function!AL98) -> 0 | AN61: 0.5898361662 | AO61: 0.1836542292 | AP61: 0.2265096046 | AQ61: 0.2059758148 | AR61: 0.004380008739 | AS61: 0.0161537811 | AT61: =Report!P249 -> 4366771.48
E62: SCHMDT-GPS | F62: Schedule M Deductions - Temporary-GPS | I62: 0.5079072977 | J62: 0.2191078108 | K62: 0.2729848916 | L62: 0.2725340031 | M62: 0.0004508884824 | N62: 0 | O62: 1 | P62: 2.32561366e-17 | R62: DITEXP | S62: =Variables!AE27 -> 2020 PROTOCOL | T62: =IF(Variables!$AD$24=2,Function!V133,Function!AG133) ->  | U62: =IF(Variables!$AD$24=2,Function!W133,Function!AH133) ->  | V62: =IF(Variables!$AD$24=2,Function!X133,Function!AI133) ->  | W62: =IF(Variables!$AD$24=2,Function!Y133,Function!AJ133) ->  | X62: =IF(Variables!$AD$24=2,Function!Z133,Function!AK133) ->  | Y62: =IF(Variables!$AD$24=2,Function!AA133,Function!AL133) ->  | AN62: 0.5079072977 | AO62: 0.2191078108 | AP62: 0.2729848916 | AQ62: =+L62 -> 0.2725340031 | AR62: 0.0004508884824 | AS62: 0 | AT62: =Report!P250 -> 0
E63: SCHMDT-SG | F63: Schedule M Deductions - Temporary-SG | I63: 1 | J63: 0 | K63: 0 | L63: 0 | M63: 0 | N63: 0 | O63: 1 | P63: 0 | AN63: =+I63 -> 1 | AO63: 0 | AP63: 0 | AQ63: 0 | AR63: 0 | AS63: 0 | AT63: =Report!P251 -> 18462.92755
E64: SCHMDT-SITUS | F64: Schedule M Deductions - Temporary-SITUS | I64: 0.8344666423 | J64: 0.01183861175 | K64: 0.1536947459 | L64: 0.06331607949 | M64: 0.02943826634 | N64: 0.06094040008 | O64: 1 | P64: 0 | AN64: 0.8344666423 | AO64: 0.01183861175 | AP64: 0.1536947459 | AQ64: 0.06331607949 | AR64: 0.02943826634 | AS64: 0.06094040008 | AT64: =Report!P252 -> 4385234.408
E65: SCHMDT-SNP | F65: Schedule M Deductions - Temporary-SNP | I65: 0.5078024957 | J65: 0.2193659483 | K65: 0.272831556 | L65: 0.272831556 | M65: 0 | N65: 0 | O65: 1 | P65: 0 | R65: DITBALRL | AC65: DITBALMA | AN65: 0.5078024957 | AO65: 0.2193659483 | AP65: 0.272831556 | AQ65: 0.272831556 | AR65: 0 | AS65: 0 | AT65: =Report!P253 -> 0
E66: SCHMDT-SO | F66: Schedule M Deductions - Temporary-SO | I66: 0.4477732506 | J66: 0.1816132325 | K66: 0.3706135169 | L66: 0.365968925 | M66: 0.004644591842 | N66: 0 | O66: 1 | P66: -2.341876693e-17 | R66: Pacific Division | T66: Total | U66: =Variables!X24 -> UTAH | V66: Production | W66: Transmission | X66: Distribution | Y66: DPW | Z66: CUST | AA66: DMSC | AC66: Pacific Division | AE66: Total | AF66: =Variables!X24 -> UTAH | AG66: Production | AH66: Transmission | AI66: Distribution | AJ66: DPW | AK66: CUST | AL66: DMSC | AN66: =+I66 -> 0.4477732506 | AO66: 0.1816132325 | AP66: 0.3706135169 | AQ66: 0.365968925 | AR66: 0.004644591842 | AS66: 0 | AT66: =Report!P254 -> 0
E67: SIT | F67: State Income Tax | I67: =+I1412/$H$1412 ->  | J67: =+J1412/$H$1412 ->  | L67: =+L1412/$H$1412 ->  | M67: =+M1412/$H$1412 ->  | N67: =+N1412/$H$1412 ->  | R67: Pacific Division | AC67: Pacific Division | AT67: =Report!P255 -> 3209.126914
E68: T | F68: Transmission | I68: 0 | J68: 1 | K68: 0 | L68: 0 | M68: 0 | N68: 0 | O68: 1 | P68: =K68-L68-M68-N68 -> 0 | R68: Production | S68: P | T68: =Factors!C440 -> 10083490.33 | U68: =IF(Variables!$AO$3=12,Factors!H440+Factors!K440,CHOOSE(Variables!AO$3,Factors!D440,Factors!E440,Factors!F440,Factors!G440,Factors!H440,Factors!I440,Factors!J440,Factors!K440,Factors!L440,Factors!M440,Factors!N440)) -> -3488376.29 | V68: =VLOOKUP($S68,$E$4:$O$71,5,FALSE)*IF(Variables!$Y$23=1,$T68,$U68) -> -3488376.29 | W68: =VLOOKUP($S68,$E$4:$O$71,6,FALSE)*IF(Variables!$Y$23=1,$T68,$U68) -> 0 | X68: =VLOOKUP($S68,$E$4:$O$71,7,FALSE)*IF(Variables!$Y$23=1,$T68,$U68) -> 0 | Y68: =VLOOKUP($S68,$E$4:$O$71,8,FALSE)*IF(Variables!$Y$23=1,$T68,$U68) -> 0 | Z68: =VLOOKUP($S68,$E$4:$O$71,9,FALSE)*IF(Variables!$Y$23=1,$T68,$U68) -> 0 | AA68: =VLOOKUP($S68,$E$4:$O$71,10,FALSE)*IF(Variables!$Y$23=1,$T68,$U68) -> 0 | AC68: Production | AD68: P | AE68: =T68 -> 10083490.33 | AF68: -3488376.29 | AG68: =VLOOKUP($AD68,$E$4:$O$71,5,FALSE)*IF(Variables!$Y$23=1,$AE68,$AF68) -> -3488376.29 | AH68: =VLOOKUP($AD68,$E$4:$O$71,6,FALSE)*IF(Variables!$Y$23=1,$AE68,$AF68) -> 0 | AI68: =VLOOKUP($AD68,$E$4:$O$71,7,FALSE)*IF(Variables!$Y$23=1,$AE68,$AF68) -> 0 | AJ68: =VLOOKUP($AD68,$E$4:$O$71,8,FALSE)*IF(Variables!$Y$23=1,$AE68,$AF68) -> 0 | AK68: =VLOOKUP($AD68,$E$4:$O$71,9,FALSE)*IF(Variables!$Y$23=1,$AE68,$AF68) -> 0 | AL68: =VLOOKUP($AD68,$E$4:$O$71,10,FALSE)*IF(Variables!$Y$23=1,$AE68,$AF68) -> 0 | AN68: 0 | AO68: 1 | AP68: 0 | AQ68: 0 | AR68: 0 | AS68: 0 | AT68: =Report!P256 -> 3209.126914
E69: TAXDEPR | F69: Tax Depreciation | I69: 0.5835074932 | J69: 0.19492994 | K69: =L69+M69+N69 -> 0.2215625668 | L69: 0.2170587656 | M69: 0.00450380126 | N69: 0 | O69: =SUM(I69:K69) -> 1 | P69: =K69-L69-M69-N69 -> 1.127570259e-17 | R69: Transmission | S69: T | T69: =Factors!C441 -> 9546703.41 | U69: =IF(Variables!$AO$3=12,Factors!H441+Factors!K441,CHOOSE(Variables!AO$3,Factors!D441,Factors!E441,Factors!F441,Factors!G441,Factors!H441,Factors!I441,Factors!J441,Factors!K441,Factors!L441,Factors!M441,Factors!N441)) -> 511448.58 | V69: =VLOOKUP($S69,$E$4:$O$71,5,FALSE)*IF(Variables!$Y$23=1,$T69,$U69) -> 0 | W69: =VLOOKUP($S69,$E$4:$O$71,6,FALSE)*IF(Variables!$Y$23=1,$T69,$U69) -> 511448.58 | X69: =VLOOKUP($S69,$E$4:$O$71,7,FALSE)*IF(Variables!$Y$23=1,$T69,$U69) -> 0 | Y69: =VLOOKUP($S69,$E$4:$O$71,8,FALSE)*IF(Variables!$Y$23=1,$T69,$U69) -> 0 | Z69: =VLOOKUP($S69,$E$4:$O$71,9,FALSE)*IF(Variables!$Y$23=1,$T69,$U69) -> 0 | AA69: =VLOOKUP($S69,$E$4:$O$71,10,FALSE)*IF(Variables!$Y$23=1,$T69,$U69) -> 0 | AC69: Transmission | AD69: T | AE69: 9546703.41 | AF69: 511448.58 | AG69: =VLOOKUP($AD69,$E$4:$O$71,5,FALSE)*IF(Variables!$Y$23=1,$AE69,$AF69) -> 0 | AH69: =VLOOKUP($AD69,$E$4:$O$71,6,FALSE)*IF(Variables!$Y$23=1,$AE69,$AF69) -> 511448.58 | AI69: =VLOOKUP($AD69,$E$4:$O$71,7,FALSE)*IF(Variables!$Y$23=1,$AE69,$AF69) -> 0 | AJ69: =VLOOKUP($AD69,$E$4:$O$71,8,FALSE)*IF(Variables!$Y$23=1,$AE69,$AF69) -> 0 | AK69: =VLOOKUP($AD69,$E$4:$O$71,9,FALSE)*IF(Variables!$Y$23=1,$AE69,$AF69) -> 0 | AL69: =VLOOKUP($AD69,$E$4:$O$71,10,FALSE)*IF(Variables!$Y$23=1,$AE69,$AF69) -> 0 | AN69: 0.5835074932 | AO69: 0.19492994 | AP69: 0.2215625668 | AQ69: 0.2170587656 | AR69: 0.00450380126 | AS69: 0 | AT69: =Report!P257 -> 0
E70: TD | F70: Transmission / Distribution | I70: 0 | J70: 0.4456868359 | K70: =SUM(L70:N70) -> 0.5543131641 | L70: 0.5543131641 | M70: 0 | N70: 0 | O70: =SUM(I70:K70) -> 1 | P70: =K69-L69-M69-N69 -> 1.127570259e-17 | R70: Distribution | S70: DPW | T70: =Factors!C442 -> 2823945.03 | U70: =IF(Variables!$AO$3=12,Factors!H442+Factors!K442,CHOOSE(Variables!AO$3,Factors!D442,Factors!E442,Factors!F442,Factors!G442,Factors!H442,Factors!I442,Factors!J442,Factors!K442,Factors!L442,Factors!M442,Factors!N442)) -> -1734997.17 | V70: =VLOOKUP($S70,$E$4:$O$71,5,FALSE)*IF(Variables!$Y$23=1,$T70,$U70) -> 0 | W70: =VLOOKUP($S70,$E$4:$O$71,6,FALSE)*IF(Variables!$Y$23=1,$T70,$U70) -> 0 | X70: =VLOOKUP($S70,$E$4:$O$71,7,FALSE)*IF(Variables!$Y$23=1,$T70,$U70) -> -1734997.17 | Y70: =VLOOKUP($S70,$E$4:$O$71,8,FALSE)*IF(Variables!$Y$23=1,$T70,$U70) -> -1734997.17 | Z70: =VLOOKUP($S70,$E$4:$O$71,9,FALSE)*IF(Variables!$Y$23=1,$T70,$U70) -> 0 | AA70: =VLOOKUP($S70,$E$4:$O$71,10,FALSE)*IF(Variables!$Y$23=1,$T70,$U70) -> 0 | AC70: Distribution | AD70: DPW | AE70: 2823945.03 | AF70: -1734997.17 | AG70: =VLOOKUP($AD70,$E$4:$O$71,5,FALSE)*IF(Variables!$Y$23=1,$AE70,$AF70) -> 0 | AH70: =VLOOKUP($AD70,$E$4:$O$71,6,FALSE)*IF(Variables!$Y$23=1,$AE70,$AF70) -> 0 | AI70: =VLOOKUP($AD70,$E$4:$O$71,7,FALSE)*IF(Variables!$Y$23=1,$AE70,$AF70) -> -1734997.17 | AJ70: =VLOOKUP($AD70,$E$4:$O$71,8,FALSE)*IF(Variables!$Y$23=1,$AE70,$AF70) -> -1734997.17 | AK70: =VLOOKUP($AD70,$E$4:$O$71,9,FALSE)*IF(Variables!$Y$23=1,$AE70,$AF70) -> 0 | AL70: =VLOOKUP($AD70,$E$4:$O$71,10,FALSE)*IF(Variables!$Y$23=1,$AE70,$AF70) -> 0 | AN70: 0 | AO70: 0.4456868359 | AP70: 0.5543131641 | AQ70: 0.5543131641 | AR70: 0 | AS70: 0 | AT70: =Report!P258 -> 0
P71: =K70-L70-M70-N70 -> 0 | R71: General | S71: G | T71: =Factors!C443 -> -647092.83 | U71: =IF(Variables!$AO$3=12,Factors!H443+Factors!K443,CHOOSE(Variables!AO$3,Factors!D443,Factors!E443,Factors!F443,Factors!G443,Factors!H443,Factors!I443,Factors!J443,Factors!K443,Factors!L443,Factors!M443,Factors!N443)) -> -255138.54 | V71: =VLOOKUP($S71,$E$4:$O$71,5,FALSE)*IF(Variables!$Y$23=1,$T71,$U71) -> -59407.08204 | W71: =VLOOKUP($S71,$E$4:$O$71,6,FALSE)*IF(Variables!$Y$23=1,$T71,$U71) -> -76291.58858 | X71: =VLOOKUP($S71,$E$4:$O$71,7,FALSE)*IF(Variables!$Y$23=1,$T71,$U71) -> -119439.8694 | Y71: =VLOOKUP($S71,$E$4:$O$71,8,FALSE)*IF(Variables!$Y$23=1,$T71,$U71) -> -112753.6714 | Z71: =VLOOKUP($S71,$E$4:$O$71,9,FALSE)*IF(Variables!$Y$23=1,$T71,$U71) -> -6686.198012 | AA71: =VLOOKUP($S71,$E$4:$O$71,10,FALSE)*IF(Variables!$Y$23=1,$T71,$U71) -> 0 | AC71: General | AD71: G | AE71: -647092.83 | AF71: -255138.54 | AG71: =VLOOKUP($AD71,$E$4:$O$71,5,FALSE)*IF(Variables!$Y$23=1,$AE71,$AF71) -> -59407.08204 | AH71: =VLOOKUP($AD71,$E$4:$O$71,6,FALSE)*IF(Variables!$Y$23=1,$AE71,$AF71) -> -76291.58858 | AI71: =VLOOKUP($AD71,$E$4:$O$71,7,FALSE)*IF(Variables!$Y$23=1,$AE71,$AF71) -> -119439.8694 | AJ71: =VLOOKUP($AD71,$E$4:$O$71,8,FALSE)*IF(Variables!$Y$23=1,$AE71,$AF71) -> -112753.6714 | AK71: =VLOOKUP($AD71,$E$4:$O$71,9,FALSE)*IF(Variables!$Y$23=1,$AE71,$AF71) -> -6686.198012 | AL71: =VLOOKUP($AD71,$E$4:$O$71,10,FALSE)*IF(Variables!$Y$23=1,$AE71,$AF71) -> 0 | AN71: 0 | AO71: 0 | AP71: 0 | AQ71: 0 | AR71: 0 | AS71: 0 | AT71: =Report!P259 -> 3576392.13
P72: =K71-L71-M71-N71 -> 0 | R72: Mining Plant | S72: P | T72: =Factors!C444 -> 5219.02 | U72: =IF(Variables!$AO$3=12,Factors!H444+Factors!K444,CHOOSE(Variables!AO$3,Factors!D444,Factors!E444,Factors!F444,Factors!G444,Factors!H444,Factors!I444,Factors!J444,Factors!K444,Factors!L444,Factors!M444,Factors!N444)) -> 2220.55 | V72: =VLOOKUP($S72,$E$4:$O$71,5,FALSE)*IF(Variables!$Y$23=1,$T72,$U72) -> 2220.55 | W72: =VLOOKUP($S72,$E$4:$O$71,6,FALSE)*IF(Variables!$Y$23=1,$T72,$U72) -> 0 | X72: =VLOOKUP($S72,$E$4:$O$71,7,FALSE)*IF(Variables!$Y$23=1,$T72,$U72) -> 0 | Y72: =VLOOKUP($S72,$E$4:$O$71,8,FALSE)*IF(Variables!$Y$23=1,$T72,$U72) -> 0 | Z72: =VLOOKUP($S72,$E$4:$O$71,9,FALSE)*IF(Variables!$Y$23=1,$T72,$U72) -> 0 | AA72: =VLOOKUP($S72,$E$4:$O$71,10,FALSE)*IF(Variables!$Y$23=1,$T72,$U72) -> 0 | AC72: Mining Plant | AD72: P | AE72: 5219.02 | AF72: 2220.55 | AG72: =VLOOKUP($AD72,$E$4:$O$71,5,FALSE)*IF(Variables!$Y$23=1,$AE72,$AF72) -> 2220.55 | AH72: =VLOOKUP($AD72,$E$4:$O$71,6,FALSE)*IF(Variables!$Y$23=1,$AE72,$AF72) -> 0 | AI72: =VLOOKUP($AD72,$E$4:$O$71,7,FALSE)*IF(Variables!$Y$23=1,$AE72,$AF72) -> 0 | AJ72: =VLOOKUP($AD72,$E$4:$O$71,8,FALSE)*IF(Variables!$Y$23=1,$AE72,$AF72) -> 0 | AK72: =VLOOKUP($AD72,$E$4:$O$71,9,FALSE)*IF(Variables!$Y$23=1,$AE72,$AF72) -> 0 | AL72: =VLOOKUP($AD72,$E$4:$O$71,10,FALSE)*IF(Variables!$Y$23=1,$AE72,$AF72) -> 0 | AT72: =Report!P260 -> 2134228.426
AT73: =Report!P262 -> 1490330.579
R74: Total Pacific Division | T74: =SUM(T68:T73) -> 21812264.96 | U74: -4964842.87 | V74: -3545562.822 | W74: 435156.9914 | X74: -1854437.039 | Y74: -1847750.841 | Z74: -6686.198012 | AA74: 0 | AC74: Total Pacific Division | AE74: =SUM(AE68:AE73) -> 21812264.96 | AF74: -4964842.87 | AG74: -3545562.822 | AH74: 435156.9914 | AI74: -1854437.039 | AJ74: -1847750.841 | AK74: -6686.198012 | AL74: 0 | AT74: =Report!P263 -> 7200951.136
AT75: =Report!P264 -> 0
R76: Utah Division | AC76: Utah Division | AT76: =Report!P265 -> 0
R77: Production | S77: P | T77: =Factors!C450 -> 21122978.74 | U77: =IF(Variables!$AO$3=12,Factors!H450+Factors!K450,CHOOSE(Variables!AO$3,Factors!D450,Factors!E450,Factors!F450,Factors!G450,Factors!H450,Factors!I450,Factors!J450,Factors!K450,Factors!L450,Factors!M450,Factors!N450)) -> 19383081.86 | V77: =VLOOKUP($S77,$E$4:$O$71,5,FALSE)*IF(Variables!$Y$23=1,$T77,$U77) -> 19383081.86 | W77: =VLOOKUP($S77,$E$4:$O$71,6,FALSE)*IF(Variables!$Y$23=1,$T77,$U77) -> 0 | X77: =VLOOKUP($S77,$E$4:$O$71,7,FALSE)*IF(Variables!$Y$23=1,$T77,$U77) -> 0 | Y77: =VLOOKUP($S77,$E$4:$O$71,8,FALSE)*IF(Variables!$Y$23=1,$T77,$U77) -> 0 | Z77: =VLOOKUP($S77,$E$4:$O$71,9,FALSE)*IF(Variables!$Y$23=1,$T77,$U77) -> 0 | AA77: =VLOOKUP($S77,$E$4:$O$71,10,FALSE)*IF(Variables!$Y$23=1,$T77,$U77) -> 0 | AC77: Production | AD77: P | AE77: =T77 -> 21122978.74 | AF77: 19383081.86 | AG77: =VLOOKUP($AD77,$E$4:$O$71,5,FALSE)*IF(Variables!$Y$23=1,$AE77,$AF77) -> 19383081.86 | AH77: =VLOOKUP($AD77,$E$4:$O$71,6,FALSE)*IF(Variables!$Y$23=1,$AE77,$AF77) -> 0 | AI77: =VLOOKUP($AD77,$E$4:$O$71,7,FALSE)*IF(Variables!$Y$23=1,$AE77,$AF77) -> 0 | AJ77: =VLOOKUP($AD77,$E$4:$O$71,8,FALSE)*IF(Variables!$Y$23=1,$AE77,$AF77) -> 0 | AK77: =VLOOKUP($AD77,$E$4:$O$71,9,FALSE)*IF(Variables!$Y$23=1,$AE77,$AF77) -> 0 | AL77: =VLOOKUP($AD77,$E$4:$O$71,10,FALSE)*IF(Variables!$Y$23=1,$AE77,$AF77) -> 0 | AT77: =Report!P266 -> 0
R78: Transmission | S78: T | T78: =Factors!C451 -> 20702562.37 | U78: =IF(Variables!$AO$3=12,Factors!H451+Factors!K451,CHOOSE(Variables!AO$3,Factors!D451,Factors!E451,Factors!F451,Factors!G451,Factors!H451,Factors!I451,Factors!J451,Factors!K451,Factors!L451,Factors!M451,Factors!N451)) -> 17837387.65 | V78: =VLOOKUP($S78,$E$4:$O$71,5,FALSE)*IF(Variables!$Y$23=1,$T78,$U78) -> 0 | W78: =VLOOKUP($S78,$E$4:$O$71,6,FALSE)*IF(Variables!$Y$23=1,$T78,$U78) -> 17837387.65 | X78: =VLOOKUP($S78,$E$4:$O$71,7,FALSE)*IF(Variables!$Y$23=1,$T78,$U78) -> 0 | Y78: =VLOOKUP($S78,$E$4:$O$71,8,FALSE)*IF(Variables!$Y$23=1,$T78,$U78) -> 0 | Z78: =VLOOKUP($S78,$E$4:$O$71,9,FALSE)*IF(Variables!$Y$23=1,$T78,$U78) -> 0 | AA78: =VLOOKUP($S78,$E$4:$O$71,10,FALSE)*IF(Variables!$Y$23=1,$T78,$U78) -> 0 | AC78: Transmission | AD78: T | AE78: 20702562.37 | AF78: 17837387.65 | AG78: =VLOOKUP($AD78,$E$4:$O$71,5,FALSE)*IF(Variables!$Y$23=1,$AE78,$AF78) -> 0 | AH78: =VLOOKUP($AD78,$E$4:$O$71,6,FALSE)*IF(Variables!$Y$23=1,$AE78,$AF78) -> 17837387.65 | AI78: =VLOOKUP($AD78,$E$4:$O$71,7,FALSE)*IF(Variables!$Y$23=1,$AE78,$AF78) -> 0 | AJ78: =VLOOKUP($AD78,$E$4:$O$71,8,FALSE)*IF(Variables!$Y$23=1,$AE78,$AF78) -> 0 | AK78: =VLOOKUP($AD78,$E$4:$O$71,9,FALSE)*IF(Variables!$Y$23=1,$AE78,$AF78) -> 0 | AL78: =VLOOKUP($AD78,$E$4:$O$71,10,FALSE)*IF(Variables!$Y$23=1,$AE78,$AF78) -> 0 | AN78: JAM Factors | AT78: =Report!P267 -> 0
R79: Distribution | S79: DPW | T79: =Factors!C452 -> 18586103.96 | U79: =IF(Variables!$AO$3=12,Factors!H452+Factors!K452,CHOOSE(Variables!AO$3,Factors!D452,Factors!E452,Factors!F452,Factors!G452,Factors!H452,Factors!I452,Factors!J452,Factors!K452,Factors!L452,Factors!M452,Factors!N452)) -> 13076098.71 | V79: =VLOOKUP($S79,$E$4:$O$71,5,FALSE)*IF(Variables!$Y$23=1,$T79,$U79) -> 0 | W79: =VLOOKUP($S79,$E$4:$O$71,6,FALSE)*IF(Variables!$Y$23=1,$T79,$U79) -> 0 | X79: =VLOOKUP($S79,$E$4:$O$71,7,FALSE)*IF(Variables!$Y$23=1,$T79,$U79) -> 13076098.71 | Y79: =VLOOKUP($S79,$E$4:$O$71,8,FALSE)*IF(Variables!$Y$23=1,$T79,$U79) -> 13076098.71 | Z79: =VLOOKUP($S79,$E$4:$O$71,9,FALSE)*IF(Variables!$Y$23=1,$T79,$U79) -> 0 | AA79: =VLOOKUP($S79,$E$4:$O$71,10,FALSE)*IF(Variables!$Y$23=1,$T79,$U79) -> 0 | AC79: Distribution | AD79: DPW | AE79: 18586103.96 | AF79: 13076098.71 | AG79: =VLOOKUP($AD79,$E$4:$O$71,5,FALSE)*IF(Variables!$Y$23=1,$AE79,$AF79) -> 0 | AH79: =VLOOKUP($AD79,$E$4:$O$71,6,FALSE)*IF(Variables!$Y$23=1,$AE79,$AF79) -> 0 | AI79: =VLOOKUP($AD79,$E$4:$O$71,7,FALSE)*IF(Variables!$Y$23=1,$AE79,$AF79) -> 13076098.71 | AJ79: =VLOOKUP($AD79,$E$4:$O$71,8,FALSE)*IF(Variables!$Y$23=1,$AE79,$AF79) -> 13076098.71 | AK79: =VLOOKUP($AD79,$E$4:$O$71,9,FALSE)*IF(Variables!$Y$23=1,$AE79,$AF79) -> 0 | AL79: =VLOOKUP($AD79,$E$4:$O$71,10,FALSE)*IF(Variables!$Y$23=1,$AE79,$AF79) -> 0 | AN79: SG | AO79: =+Factors!H4 -> 0.4366159066 | AT79: =Report!P268 -> 1310848.891
R80: General | S80: G | T80: =Factors!C453 -> -1231052.72 | U80: =IF(Variables!$AO$3=12,Factors!H453+Factors!K453,CHOOSE(Variables!AO$3,Factors!D453,Factors!E453,Factors!F453,Factors!G453,Factors!H453,Factors!I453,Factors!J453,Factors!K453,Factors!L453,Factors!M453,Factors!N453)) -> -521661.26 | V80: =VLOOKUP($S80,$E$4:$O$71,5,FALSE)*IF(Variables!$Y$23=1,$T80,$U80) -> -121464.8844 | W80: =VLOOKUP($S80,$E$4:$O$71,6,FALSE)*IF(Variables!$Y$23=1,$T80,$U80) -> -155987.2774 | X80: =VLOOKUP($S80,$E$4:$O$71,7,FALSE)*IF(Variables!$Y$23=1,$T80,$U80) -> -244209.0982 | Y80: =VLOOKUP($S80,$E$4:$O$71,8,FALSE)*IF(Variables!$Y$23=1,$T80,$U80) -> -230538.3666 | Z80: =VLOOKUP($S80,$E$4:$O$71,9,FALSE)*IF(Variables!$Y$23=1,$T80,$U80) -> -13670.73152 | AA80: =VLOOKUP($S80,$E$4:$O$71,10,FALSE)*IF(Variables!$Y$23=1,$T80,$U80) -> 0 | AC80: General | AD80: G | AE80: -1231052.72 | AF80: -521661.26 | AG80: =VLOOKUP($AD80,$E$4:$O$71,5,FALSE)*IF(Variables!$Y$23=1,$AE80,$AF80) -> -121464.8844 | AH80: =VLOOKUP($AD80,$E$4:$O$71,6,FALSE)*IF(Variables!$Y$23=1,$AE80,$AF80) -> -155987.2774 | AI80: =VLOOKUP($AD80,$E$4:$O$71,7,FALSE)*IF(Variables!$Y$23=1,$AE80,$AF80) -> -244209.0982 | AJ80: =VLOOKUP($AD80,$E$4:$O$71,8,FALSE)*IF(Variables!$Y$23=1,$AE80,$AF80) -> -230538.3666 | AK80: =VLOOKUP($AD80,$E$4:$O$71,9,FALSE)*IF(Variables!$Y$23=1,$AE80,$AF80) -> -13670.73152 | AL80: =VLOOKUP($AD80,$E$4:$O$71,10,FALSE)*IF(Variables!$Y$23=1,$AE80,$AF80) -> 0 | AN80: SE | AO80: =+Factors!H10 -> 0.4414405058 | AT80: =Report!P269 -> 0
R81: Mining Plant | S81: P | T81: =Factors!C454 -> -7467.38 | U81: =IF(Variables!$AO$3=12,Factors!H454+Factors!K454,CHOOSE(Variables!AO$3,Factors!D454,Factors!E454,Factors!F454,Factors!G454,Factors!H454,Factors!I454,Factors!J454,Factors!K454,Factors!L454,Factors!M454,Factors!N454)) -> -3334.81 | V81: =VLOOKUP($S81,$E$4:$O$71,5,FALSE)*IF(Variables!$Y$23=1,$T81,$U81) -> -3334.81 | W81: =VLOOKUP($S81,$E$4:$O$71,6,FALSE)*IF(Variables!$Y$23=1,$T81,$U81) -> 0 | X81: =VLOOKUP($S81,$E$4:$O$71,7,FALSE)*IF(Variables!$Y$23=1,$T81,$U81) -> 0 | Y81: =VLOOKUP($S81,$E$4:$O$71,8,FALSE)*IF(Variables!$Y$23=1,$T81,$U81) -> 0 | Z81: =VLOOKUP($S81,$E$4:$O$71,9,FALSE)*IF(Variables!$Y$23=1,$T81,$U81) -> 0 | AA81: =VLOOKUP($S81,$E$4:$O$71,10,FALSE)*IF(Variables!$Y$23=1,$T81,$U81) -> 0 | AC81: Mining Plant | AD81: P | AE81: -7467.38 | AF81: -3334.81 | AG81: =VLOOKUP($AD81,$E$4:$O$71,5,FALSE)*IF(Variables!$Y$23=1,$AE81,$AF81) -> -3334.81 | AH81: =VLOOKUP($AD81,$E$4:$O$71,6,FALSE)*IF(Variables!$Y$23=1,$AE81,$AF81) -> 0 | AI81: =VLOOKUP($AD81,$E$4:$O$71,7,FALSE)*IF(Variables!$Y$23=1,$AE81,$AF81) -> 0 | AJ81: =VLOOKUP($AD81,$E$4:$O$71,8,FALSE)*IF(Variables!$Y$23=1,$AE81,$AF81) -> 0 | AK81: =VLOOKUP($AD81,$E$4:$O$71,9,FALSE)*IF(Variables!$Y$23=1,$AE81,$AF81) -> 0 | AL81: =VLOOKUP($AD81,$E$4:$O$71,10,FALSE)*IF(Variables!$Y$23=1,$AE81,$AF81) -> 0 | AN81: SSGC | AO81: =+Factors!H31 -> 0 | AT81: =Report!P270 -> 8022359.738
AN82: SSECH | AO82: =+Factors!H27 -> 0 | AT82: =Report!P271 -> 0
R83: Total Utah Division | T83: =SUM(T77:T82) -> 59173124.97 | U83: 49771572.15 | V83: 19258282.17 | W83: 17681400.37 | X83: 12831889.61 | Y83: 12845560.34 | Z83: -13670.73152 | AA83: 0 | AC83: Total Utah Division | AE83: =SUM(AE77:AE82) -> 59173124.97 | AF83: 49771572.15 | AG83: 19258282.17 | AH83: 17681400.37 | AI83: 12831889.61 | AJ83: 12845560.34 | AK83: -13670.73152 | AL83: 0 | AN83: SSECT | AO83: =+Factors!H25 -> 0 | AT83: =Report!P272 -> 53127931.88
AT84: =Report!P273 -> 0
R85: PACIFICORP | AC85: PACIFICORP | AT85: =Report!P274 -> 0
R86: Production | S86: P | T86: =Factors!C460 -> 367793639.1 | U86: =IF(Variables!$AO$3=12,Factors!H460+Factors!K460,CHOOSE(Variables!AO$3,Factors!D460,Factors!E460,Factors!F460,Factors!G460,Factors!H460,Factors!I460,Factors!J460,Factors!K460,Factors!L460,Factors!M460,Factors!N460)) -> 149879330.3 | V86: =VLOOKUP($S86,$E$4:$O$71,5,FALSE)*IF(Variables!$Y$23=1,$T86,$U86) -> 149879330.3 | W86: =VLOOKUP($S86,$E$4:$O$71,6,FALSE)*IF(Variables!$Y$23=1,$T86,$U86) -> 0 | X86: =VLOOKUP($S86,$E$4:$O$71,7,FALSE)*IF(Variables!$Y$23=1,$T86,$U86) -> 0 | Y86: =VLOOKUP($S86,$E$4:$O$71,8,FALSE)*IF(Variables!$Y$23=1,$T86,$U86) -> 0 | Z86: =VLOOKUP($S86,$E$4:$O$71,9,FALSE)*IF(Variables!$Y$23=1,$T86,$U86) -> 0 | AA86: =VLOOKUP($S86,$E$4:$O$71,10,FALSE)*IF(Variables!$Y$23=1,$T86,$U86) -> 0 | AC86: Production | AD86: P | AE86: =T86 -> 367793639.1 | AF86: =U86 -> 149879330.3 | AG86: =VLOOKUP($AD86,$E$4:$O$71,5,FALSE)*IF(Variables!$Y$23=1,$AE86,$AF86) -> 149879330.3 | AH86: =VLOOKUP($AD86,$E$4:$O$71,6,FALSE)*IF(Variables!$Y$23=1,$AE86,$AF86) -> 0 | AI86: =VLOOKUP($AD86,$E$4:$O$71,7,FALSE)*IF(Variables!$Y$23=1,$AE86,$AF86) -> 0 | AJ86: =VLOOKUP($AD86,$E$4:$O$71,8,FALSE)*IF(Variables!$Y$23=1,$AE86,$AF86) -> 0 | AK86: =VLOOKUP($AD86,$E$4:$O$71,9,FALSE)*IF(Variables!$Y$23=1,$AE86,$AF86) -> 0 | AL86: =VLOOKUP($AD86,$E$4:$O$71,10,FALSE)*IF(Variables!$Y$23=1,$AE86,$AF86) -> 0 | AT86: =Report!P275 -> 62461140.51
R87: Hydro - P | S87: P | T87: =Factors!C461 -> -1888915.63 | U87: =IF(Variables!$AO$3=12,Factors!H461+Factors!K461,CHOOSE(Variables!AO$3,Factors!D461,Factors!E461,Factors!F461,Factors!G461,Factors!H461,Factors!I461,Factors!J461,Factors!K461,Factors!L461,Factors!M461,Factors!N461)) -> -821539.44 | V87: =VLOOKUP($S87,$E$4:$O$71,5,FALSE)*IF(Variables!$Y$23=1,$T87,$U87) -> -821539.44 | W87: =VLOOKUP($S87,$E$4:$O$71,6,FALSE)*IF(Variables!$Y$23=1,$T87,$U87) -> 0 | X87: =VLOOKUP($S87,$E$4:$O$71,7,FALSE)*IF(Variables!$Y$23=1,$T87,$U87) -> 0 | Y87: =VLOOKUP($S87,$E$4:$O$71,8,FALSE)*IF(Variables!$Y$23=1,$T87,$U87) -> 0 | Z87: =VLOOKUP($S87,$E$4:$O$71,9,FALSE)*IF(Variables!$Y$23=1,$T87,$U87) -> 0 | AA87: =VLOOKUP($S87,$E$4:$O$71,10,FALSE)*IF(Variables!$Y$23=1,$T87,$U87) -> 0 | AC87: Hydro - P | AD87: P | AE87: -1888915.63 | AF87: -821539.44 | AG87: =VLOOKUP($AD87,$E$4:$O$71,5,FALSE)*IF(Variables!$Y$23=1,$AE87,$AF87) -> -821539.44 | AH87: =VLOOKUP($AD87,$E$4:$O$71,6,FALSE)*IF(Variables!$Y$23=1,$AE87,$AF87) -> 0 | AI87: =VLOOKUP($AD87,$E$4:$O$71,7,FALSE)*IF(Variables!$Y$23=1,$AE87,$AF87) -> 0 | AJ87: =VLOOKUP($AD87,$E$4:$O$71,8,FALSE)*IF(Variables!$Y$23=1,$AE87,$AF87) -> 0 | AK87: =VLOOKUP($AD87,$E$4:$O$71,9,FALSE)*IF(Variables!$Y$23=1,$AE87,$AF87) -> 0 | AL87: =VLOOKUP($AD87,$E$4:$O$71,10,FALSE)*IF(Variables!$Y$23=1,$AE87,$AF87) -> 0 | AT87: =Report!P276 -> 0
R88: Hydro - U | S88: P | T88: =Factors!C462 -> 4704160.16 | U88: =IF(Variables!$AO$3=12,Factors!H462+Factors!K462,CHOOSE(Variables!AO$3,Factors!D462,Factors!E462,Factors!F462,Factors!G462,Factors!H462,Factors!I462,Factors!J462,Factors!K462,Factors!L462,Factors!M462,Factors!N462)) -> 2042409.05 | V88: =VLOOKUP($S88,$E$4:$O$71,5,FALSE)*IF(Variables!$Y$23=1,$T88,$U88) -> 2042409.05 | W88: =VLOOKUP($S88,$E$4:$O$71,6,FALSE)*IF(Variables!$Y$23=1,$T88,$U88) -> 0 | X88: =VLOOKUP($S88,$E$4:$O$71,7,FALSE)*IF(Variables!$Y$23=1,$T88,$U88) -> 0 | Y88: =VLOOKUP($S88,$E$4:$O$71,8,FALSE)*IF(Variables!$Y$23=1,$T88,$U88) -> 0 | Z88: =VLOOKUP($S88,$E$4:$O$71,9,FALSE)*IF(Variables!$Y$23=1,$T88,$U88) -> 0 | AA88: =VLOOKUP($S88,$E$4:$O$71,10,FALSE)*IF(Variables!$Y$23=1,$T88,$U88) -> 0 | AC88: Hydro - U | AD88: P | AE88: 4704160.16 | AF88: 2042409.05 | AG88: =VLOOKUP($AD88,$E$4:$O$71,5,FALSE)*IF(Variables!$Y$23=1,$AE88,$AF88) -> 2042409.05 | AH88: =VLOOKUP($AD88,$E$4:$O$71,6,FALSE)*IF(Variables!$Y$23=1,$AE88,$AF88) -> 0 | AI88: =VLOOKUP($AD88,$E$4:$O$71,7,FALSE)*IF(Variables!$Y$23=1,$AE88,$AF88) -> 0 | AJ88: =VLOOKUP($AD88,$E$4:$O$71,8,FALSE)*IF(Variables!$Y$23=1,$AE88,$AF88) -> 0 | AK88: =VLOOKUP($AD88,$E$4:$O$71,9,FALSE)*IF(Variables!$Y$23=1,$AE88,$AF88) -> 0 | AL88: =VLOOKUP($AD88,$E$4:$O$71,10,FALSE)*IF(Variables!$Y$23=1,$AE88,$AF88) -> 0 | AT88: =Report!P277 -> 78538720.57
R89: Transmission | S89: T | T89: =Factors!C472 -> -61149711.26 | U89: =IF(Variables!$AO$3=12,Factors!H472+Factors!K472,CHOOSE(Variables!AO$3,Factors!D472,Factors!E472,Factors!F472,Factors!G472,Factors!H472,Factors!I472,Factors!J472,Factors!K472,Factors!L472,Factors!M472,Factors!N472)) -> -61149711.26 | V89: =VLOOKUP($S89,$E$4:$O$71,5,FALSE)*IF(Variables!$Y$23=1,$T89,$U89) -> 0 | W89: =VLOOKUP($S89,$E$4:$O$71,6,FALSE)*IF(Variables!$Y$23=1,$T89,$U89) -> -61149711.26 | X89: =VLOOKUP($S89,$E$4:$O$71,7,FALSE)*IF(Variables!$Y$23=1,$T89,$U89) -> 0 | Y89: =VLOOKUP($S89,$E$4:$O$71,8,FALSE)*IF(Variables!$Y$23=1,$T89,$U89) -> 0 | Z89: =VLOOKUP($S89,$E$4:$O$71,9,FALSE)*IF(Variables!$Y$23=1,$T89,$U89) -> 0 | AA89: =VLOOKUP($S89,$E$4:$O$71,10,FALSE)*IF(Variables!$Y$23=1,$T89,$U89) -> 0 | AC89: Transmission | AD89: T | AE89: -61149711.26 | AF89: -61149711.26 | AG89: =VLOOKUP($AD89,$E$4:$O$71,5,FALSE)*IF(Variables!$Y$23=1,$AE89,$AF89) -> 0 | AH89: =VLOOKUP($AD89,$E$4:$O$71,6,FALSE)*IF(Variables!$Y$23=1,$AE89,$AF89) -> -61149711.26 | AI89: =VLOOKUP($AD89,$E$4:$O$71,7,FALSE)*IF(Variables!$Y$23=1,$AE89,$AF89) -> 0 | AJ89: =VLOOKUP($AD89,$E$4:$O$71,8,FALSE)*IF(Variables!$Y$23=1,$AE89,$AF89) -> 0 | AK89: =VLOOKUP($AD89,$E$4:$O$71,9,FALSE)*IF(Variables!$Y$23=1,$AE89,$AF89) -> 0 | AL89: =VLOOKUP($AD89,$E$4:$O$71,10,FALSE)*IF(Variables!$Y$23=1,$AE89,$AF89) -> 0 | AT89: =Report!P278 -> 0
R90: Distribution | S90: DPW | T90: =Factors!C473 -> 0 | U90: =IF(Variables!$AO$3=12,Factors!H473+Factors!K473,CHOOSE(Variables!AO$3,Factors!D473,Factors!E473,Factors!F473,Factors!G473,Factors!H473,Factors!I473,Factors!J473,Factors!K473,Factors!L473,Factors!M473,Factors!N473)) -> 0 | V90: =VLOOKUP($S90,$E$4:$O$71,5,FALSE)*IF(Variables!$Y$23=1,$T90,$U90) -> 0 | W90: =VLOOKUP($S90,$E$4:$O$71,6,FALSE)*IF(Variables!$Y$23=1,$T90,$U90) -> 0 | X90: =VLOOKUP($S90,$E$4:$O$71,7,FALSE)*IF(Variables!$Y$23=1,$T90,$U90) -> 0 | Y90: =VLOOKUP($S90,$E$4:$O$71,8,FALSE)*IF(Variables!$Y$23=1,$T90,$U90) -> 0 | Z90: =VLOOKUP($S90,$E$4:$O$71,9,FALSE)*IF(Variables!$Y$23=1,$T90,$U90) -> 0 | AA90: =VLOOKUP($S90,$E$4:$O$71,10,FALSE)*IF(Variables!$Y$23=1,$T90,$U90) -> 0 | AC90: Distribution | AD90: DPW | AE90: 0 | AF90: 0 | AG90: =VLOOKUP($AD90,$E$4:$O$71,5,FALSE)*IF(Variables!$Y$23=1,$AE90,$AF90) -> 0 | AH90: =VLOOKUP($AD90,$E$4:$O$71,6,FALSE)*IF(Variables!$Y$23=1,$AE90,$AF90) -> 0 | AI90: =VLOOKUP($AD90,$E$4:$O$71,7,FALSE)*IF(Variables!$Y$23=1,$AE90,$AF90) -> 0 | AJ90: =VLOOKUP($AD90,$E$4:$O$71,8,FALSE)*IF(Variables!$Y$23=1,$AE90,$AF90) -> 0 | AK90: =VLOOKUP($AD90,$E$4:$O$71,9,FALSE)*IF(Variables!$Y$23=1,$AE90,$AF90) -> 0 | AL90: =VLOOKUP($AD90,$E$4:$O$71,10,FALSE)*IF(Variables!$Y$23=1,$AE90,$AF90) -> 0 | AT90: =Report!P279 -> 2340081641
R91: General | S91: G | T91: =Factors!C474 -> 123293001.8 | U91: =IF(Variables!$AO$3=12,Factors!H474+Factors!K474,CHOOSE(Variables!AO$3,Factors!D474,Factors!E474,Factors!F474,Factors!G474,Factors!H474,Factors!I474,Factors!J474,Factors!K474,Factors!L474,Factors!M474,Factors!N474)) -> 52533818.59 | V91: =VLOOKUP($S91,$E$4:$O$71,5,FALSE)*IF(Variables!$Y$23=1,$T91,$U91) -> 12232102.88 | W91: =VLOOKUP($S91,$E$4:$O$71,6,FALSE)*IF(Variables!$Y$23=1,$T91,$U91) -> 15708675.27 | X91: =VLOOKUP($S91,$E$4:$O$71,7,FALSE)*IF(Variables!$Y$23=1,$T91,$U91) -> 24593040.43 | Y91: =VLOOKUP($S91,$E$4:$O$71,8,FALSE)*IF(Variables!$Y$23=1,$T91,$U91) -> 23216331.48 | Z91: =VLOOKUP($S91,$E$4:$O$71,9,FALSE)*IF(Variables!$Y$23=1,$T91,$U91) -> 1376708.958 | AA91: =VLOOKUP($S91,$E$4:$O$71,10,FALSE)*IF(Variables!$Y$23=1,$T91,$U91) -> 0 | AC91: General | AD91: G | AE91: 123293001.8 | AF91: 52533818.59 | AG91: =VLOOKUP($AD91,$E$4:$O$71,5,FALSE)*IF(Variables!$Y$23=1,$AE91,$AF91) -> 12232102.88 | AH91: =VLOOKUP($AD91,$E$4:$O$71,6,FALSE)*IF(Variables!$Y$23=1,$AE91,$AF91) -> 15708675.27 | AI91: =VLOOKUP($AD91,$E$4:$O$71,7,FALSE)*IF(Variables!$Y$23=1,$AE91,$AF91) -> 24593040.43 | AJ91: =VLOOKUP($AD91,$E$4:$O$71,8,FALSE)*IF(Variables!$Y$23=1,$AE91,$AF91) -> 23216331.48 | AK91: =VLOOKUP($AD91,$E$4:$O$71,9,FALSE)*IF(Variables!$Y$23=1,$AE91,$AF91) -> 1376708.958 | AL91: =VLOOKUP($AD91,$E$4:$O$71,10,FALSE)*IF(Variables!$Y$23=1,$AE91,$AF91) -> 0 | AT91: =Report!P280 -> 0
R92: Mining Plant | S92: P | T92: =Factors!C475 -> 110917222 | U92: =IF(Variables!$AO$3=12,Factors!H475+Factors!K475,CHOOSE(Variables!AO$3,Factors!D475,Factors!E475,Factors!F475,Factors!G475,Factors!H475,Factors!I475,Factors!J475,Factors!K475,Factors!L475,Factors!M475,Factors!N475)) -> 47919544.08 | V92: =VLOOKUP($S92,$E$4:$O$71,5,FALSE)*IF(Variables!$Y$23=1,$T92,$U92) -> 47919544.08 | W92: =VLOOKUP($S92,$E$4:$O$71,6,FALSE)*IF(Variables!$Y$23=1,$T92,$U92) -> 0 | X92: =VLOOKUP($S92,$E$4:$O$71,7,FALSE)*IF(Variables!$Y$23=1,$T92,$U92) -> 0 | Y92: =VLOOKUP($S92,$E$4:$O$71,8,FALSE)*IF(Variables!$Y$23=1,$T92,$U92) -> 0 | Z92: =VLOOKUP($S92,$E$4:$O$71,9,FALSE)*IF(Variables!$Y$23=1,$T92,$U92) -> 0 | AA92: =VLOOKUP($S92,$E$4:$O$71,10,FALSE)*IF(Variables!$Y$23=1,$T92,$U92) -> 0 | AC92: Mining Plant | AD92: P | AE92: 110917222 | AF92: 47919544.08 | AG92: =VLOOKUP($AD92,$E$4:$O$71,5,FALSE)*IF(Variables!$Y$23=1,$AE92,$AF92) -> 47919544.08 | AH92: =VLOOKUP($AD92,$E$4:$O$71,6,FALSE)*IF(Variables!$Y$23=1,$AE92,$AF92) -> 0 | AI92: =VLOOKUP($AD92,$E$4:$O$71,7,FALSE)*IF(Variables!$Y$23=1,$AE92,$AF92) -> 0 | AJ92: =VLOOKUP($AD92,$E$4:$O$71,8,FALSE)*IF(Variables!$Y$23=1,$AE92,$AF92) -> 0 | AK92: =VLOOKUP($AD92,$E$4:$O$71,9,FALSE)*IF(Variables!$Y$23=1,$AE92,$AF92) -> 0 | AL92: =VLOOKUP($AD92,$E$4:$O$71,10,FALSE)*IF(Variables!$Y$23=1,$AE92,$AF92) -> 0 | AT92: =Report!P281 -> 0
AT93: =Report!P282 -> 2199701294
R94: Total PC (Post Merger) | T94: =SUM(T86:T93) -> 543669396.2 | U94: 190403851.3 | V94: 211251846.9 | W94: -45441035.99 | X94: 24593040.43 | Y94: 23216331.48 | Z94: 1376708.958 | AA94: 0 | AC94: Total PC (Post Merger) | AE94: =SUM(AE86:AE93) -> 543669396.2 | AF94: 190403851.3 | AG94: 211251846.9 | AH94: -45441035.99 | AI94: 24593040.43 | AJ94: 23216331.48 | AK94: 1376708.958 | AL94: 0 | AT94: =Report!P283 -> 0
AT95: =Report!P284 -> 6847013.161
R96: Total Deferred Taxes | T96: =T74+T83+T94 -> 624654786.1 | U96: 235210580.6 | V96: 226964566.2 | W96: -27324478.62 | X96: 35570493.01 | Y96: 34214140.98 | Z96: 1356352.028 | AA96: 0 | AC96: Total Deferred Taxes | AE96: =AE74+AE83+AE94 -> 624654786.1 | AF96: 235210580.6 | AG96: 226964566.2 | AH96: -27324478.62 | AI96: 35570493.01 | AJ96: 34214140.98 | AK96: 1356352.028 | AL96: 0 | AT96: =Report!P285 -> 1508793.507
AT97: =Report!P286 -> 132024540.4
R98: ACCMDITRL FACTOR | T98: =T96/$T96 -> 1 | U98: =U96/$U96 -> 1 | V98: =V96/IF(Variables!$Y$23=2,$U96,$T96) -> 0.9649419921 | W98: =W96/IF(Variables!$Y23=2,$U96,$T96) -> -0.1161702784 | X98: =X96/IF(Variables!$Y23=2,$U96,$T96) -> 0.1512282862 | Y98: =Y96/IF(Variables!$Y23=2,$U96,$T96) -> 0.1454617428 | Z98: =Z96/IF(Variables!$Y23=2,$U96,$T96) -> 0.005766543429 | AA98: =AA96/IF(Variables!$Y23=2,$U96,$T96) -> 0 | AC98: ACCMDITMA FACTOR | AE98: =AE96/$AE96 -> 1 | AF98: =AF96/$AF96 -> 1 | AG98: =AG96/IF(Variables!$Y23=2,$AF96,$AE96) -> 0.9649419921 | AH98: =AH96/IF(Variables!$Y23=2,$AF96,$AE96) -> -0.1161702784 | AI98: =AI96/IF(Variables!$Y23=2,$AF96,$AE96) -> 0.1512282862 | AJ98: =AJ96/IF(Variables!$Y23=2,$AF96,$AE96) -> 0.1454617428 | AK98: =AK96/IF(Variables!$Y23=2,$AF96,$AE96) -> 0.005766543429 | AL98: =AL96/IF(Variables!$Y23=2,$AF96,$AE96) -> 0 | AT98: =Report!P287 -> 0
AT99: =Report!P288 -> 0
AT100: =Report!P289 -> 2340081641
AT101: =Report!P290 -> 0
R102: DITEXPRL | AC102: DITEXPMA | AT102: =Report!P291 -> 0
R103: Pacific Division | T103: Total | U103: =Variables!X24 -> UTAH | V103: Production | W103: Transmission | X103: Distribution | Y103: DPW | Z103: CUST | AA103: DMSC | AC103: Pacific Division | AE103: Total | AF103: =Variables!X24 -> UTAH | AG103: Production | AH103: Transmission | AI103: Distribution | AJ103: DPW | AK103: CUST | AL103: DMSC | AT103: =Report!P292 -> 0
R104: Pacific Division | AC104: Pacific Division | AT104: =Report!P293 -> 0
R105: Production | S105: P | T105: =Factors!C383 -> 0 | U105: =IF(Variables!$AO$3=12,Factors!H383+Factors!K383,CHOOSE(Variables!AO$3,Factors!D383,Factors!E383,Factors!F383,Factors!G383,Factors!H383,Factors!I383,Factors!J383,Factors!K383,Factors!L383,Factors!M383,Factors!N383)) -> 0 | V105: =VLOOKUP($S105,$E$4:$O$71,5,FALSE)*IF(Variables!$Y$23=1,$T105,$U105) -> 0 | W105: =VLOOKUP($S105,$E$4:$O$71,6,FALSE)*IF(Variables!$Y$23=1,$T105,$U105) -> 0 | X105: =VLOOKUP($S105,$E$4:$O$71,7,FALSE)*IF(Variables!$Y$23=1,$T105,$U105) -> 0 | Y105: =VLOOKUP($S105,$E$4:$O$71,8,FALSE)*IF(Variables!$Y$23=1,$T105,$U105) -> 0 | Z105: =VLOOKUP($S105,$E$4:$O$71,9,FALSE)*IF(Variables!$Y$23=1,$T105,$U105) -> 0 | AA105: =VLOOKUP($S105,$E$4:$O$71,10,FALSE)*IF(Variables!$Y$23=1,$T105,$U105) -> 0 | AB105: 0 | AC105: Production | AD105: P | AE105: =T105 -> 0 | AF105: 0 | AG105: =VLOOKUP($AD105,$E$4:$O$71,5,FALSE)*IF(Variables!$Y$23=1,$AE105,$AF105) -> 0 | AH105: =VLOOKUP($AD105,$E$4:$O$71,6,FALSE)*IF(Variables!$Y$23=1,$AE105,$AF105) -> 0 | AI105: =VLOOKUP($AD105,$E$4:$O$71,7,FALSE)*IF(Variables!$Y$23=1,$AE105,$AF105) -> 0 | AJ105: =VLOOKUP($AD105,$E$4:$O$71,8,FALSE)*IF(Variables!$Y$23=1,$AE105,$AF105) -> 0 | AK105: =VLOOKUP($AD105,$E$4:$O$71,9,FALSE)*IF(Variables!$Y$23=1,$AE105,$AF105) -> 0 | AL105: =VLOOKUP($AD105,$E$4:$O$71,10,FALSE)*IF(Variables!$Y$23=1,$AE105,$AF105) -> 0 | AT105: =Report!P294 -> 0
R106: Transmission | S106: T | T106: =Factors!C384 -> 0 | U106: =IF(Variables!$AO$3=12,Factors!H384+Factors!K384,CHOOSE(Variables!AO$3,Factors!D384,Factors!E384,Factors!F384,Factors!G384,Factors!H384,Factors!I384,Factors!J384,Factors!K384,Factors!L384,Factors!M384,Factors!N384)) -> 0 | V106: =VLOOKUP($S106,$E$4:$O$71,5,FALSE)*IF(Variables!$Y$23=1,$T106,$U106) -> 0 | W106: =VLOOKUP($S106,$E$4:$O$71,6,FALSE)*IF(Variables!$Y$23=1,$T106,$U106) -> 0 | X106: =VLOOKUP($S106,$E$4:$O$71,7,FALSE)*IF(Variables!$Y$23=1,$T106,$U106) -> 0 | Y106: =VLOOKUP($S106,$E$4:$O$71,8,FALSE)*IF(Variables!$Y$23=1,$T106,$U106) -> 0 | Z106: =VLOOKUP($S106,$E$4:$O$71,9,FALSE)*IF(Variables!$Y$23=1,$T106,$U106) -> 0 | AA106: =VLOOKUP($S106,$E$4:$O$71,10,FALSE)*IF(Variables!$Y$23=1,$T106,$U106) -> 0 | AC106: Transmission | AD106: T | AE106: 0 | AF106: 0 | AG106: =VLOOKUP($AD106,$E$4:$O$71,5,FALSE)*IF(Variables!$Y$23=1,$AE106,$AF106) -> 0 | AH106: =VLOOKUP($AD106,$E$4:$O$71,6,FALSE)*IF(Variables!$Y$23=1,$AE106,$AF106) -> 0 | AI106: =VLOOKUP($AD106,$E$4:$O$71,7,FALSE)*IF(Variables!$Y$23=1,$AE106,$AF106) -> 0 | AJ106: =VLOOKUP($AD106,$E$4:$O$71,8,FALSE)*IF(Variables!$Y$23=1,$AE106,$AF106) -> 0 | AK106: =VLOOKUP($AD106,$E$4:$O$71,9,FALSE)*IF(Variables!$Y$23=1,$AE106,$AF106) -> 0 | AL106: =VLOOKUP($AD106,$E$4:$O$71,10,FALSE)*IF(Variables!$Y$23=1,$AE106,$AF106) -> 0 | AT106: =Report!P295 -> 0
R107: Distribution | S107: DPW | T107: =Factors!C385 -> 0 | U107: =IF(Variables!$AO$3=12,Factors!H385+Factors!K385,CHOOSE(Variables!AO$3,Factors!D385,Factors!E385,Factors!F385,Factors!G385,Factors!H385,Factors!I385,Factors!J385,Factors!K385,Factors!L385,Factors!M385,Factors!N385)) -> 0 | V107: =VLOOKUP($S107,$E$4:$O$71,5,FALSE)*IF(Variables!$Y$23=1,$T107,$U107) -> 0 | W107: =VLOOKUP($S107,$E$4:$O$71,6,FALSE)*IF(Variables!$Y$23=1,$T107,$U107) -> 0 | X107: =VLOOKUP($S107,$E$4:$O$71,7,FALSE)*IF(Variables!$Y$23=1,$T107,$U107) -> 0 | Y107: =VLOOKUP($S107,$E$4:$O$71,8,FALSE)*IF(Variables!$Y$23=1,$T107,$U107) -> 0 | Z107: =VLOOKUP($S107,$E$4:$O$71,9,FALSE)*IF(Variables!$Y$23=1,$T107,$U107) -> 0 | AA107: =VLOOKUP($S107,$E$4:$O$71,10,FALSE)*IF(Variables!$Y$23=1,$T107,$U107) -> 0 | AC107: Distribution | AD107: DPW | AE107: 0 | AF107: 0 | AG107: =VLOOKUP($AD107,$E$4:$O$71,5,FALSE)*IF(Variables!$Y$23=1,$AE107,$AF107) -> 0 | AH107: =VLOOKUP($AD107,$E$4:$O$71,6,FALSE)*IF(Variables!$Y$23=1,$AE107,$AF107) -> 0 | AI107: =VLOOKUP($AD107,$E$4:$O$71,7,FALSE)*IF(Variables!$Y$23=1,$AE107,$AF107) -> 0 | AJ107: =VLOOKUP($AD107,$E$4:$O$71,8,FALSE)*IF(Variables!$Y$23=1,$AE107,$AF107) -> 0 | AK107: =VLOOKUP($AD107,$E$4:$O$71,9,FALSE)*IF(Variables!$Y$23=1,$AE107,$AF107) -> 0 | AL107: =VLOOKUP($AD107,$E$4:$O$71,10,FALSE)*IF(Variables!$Y$23=1,$AE107,$AF107) -> 0 | AT107: =Report!P296 -> 0
R108: General | S108: G | T108: =Factors!C386 -> 0 | U108: =IF(Variables!$AO$3=12,Factors!H386+Factors!K386,CHOOSE(Variables!AO$3,Factors!D386,Factors!E386,Factors!F386,Factors!G386,Factors!H386,Factors!I386,Factors!J386,Factors!K386,Factors!L386,Factors!M386,Factors!N386)) -> 0 | V108: =VLOOKUP($S108,$E$4:$O$71,5,FALSE)*IF(Variables!$Y$23=1,$T108,$U108) -> 0 | W108: =VLOOKUP($S108,$E$4:$O$71,6,FALSE)*IF(Variables!$Y$23=1,$T108,$U108) -> 0 | X108: =VLOOKUP($S108,$E$4:$O$71,7,FALSE)*IF(Variables!$Y$23=1,$T108,$U108) -> 0 | Y108: =VLOOKUP($S108,$E$4:$O$71,8,FALSE)*IF(Variables!$Y$23=1,$T108,$U108) -> 0 | Z108: =VLOOKUP($S108,$E$4:$O$71,9,FALSE)*IF(Variables!$Y$23=1,$T108,$U108) -> 0 | AA108: =VLOOKUP($S108,$E$4:$O$71,10,FALSE)*IF(Variables!$Y$23=1,$T108,$U108) -> 0 | AC108: General | AD108: G | AE108: 0 | AF108: 0 | AG108: =VLOOKUP($AD108,$E$4:$O$71,5,FALSE)*IF(Variables!$Y$23=1,$AE108,$AF108) -> 0 | AH108: =VLOOKUP($AD108,$E$4:$O$71,6,FALSE)*IF(Variables!$Y$23=1,$AE108,$AF108) -> 0 | AI108: =VLOOKUP($AD108,$E$4:$O$71,7,FALSE)*IF(Variables!$Y$23=1,$AE108,$AF108) -> 0 | AJ108: =VLOOKUP($AD108,$E$4:$O$71,8,FALSE)*IF(Variables!$Y$23=1,$AE108,$AF108) -> 0 | AK108: =VLOOKUP($AD108,$E$4:$O$71,9,FALSE)*IF(Variables!$Y$23=1,$AE108,$AF108) -> 0 | AL108: =VLOOKUP($AD108,$E$4:$O$71,10,FALSE)*IF(Variables!$Y$23=1,$AE108,$AF108) -> 0 | AT108: =Report!P297 -> 0
C109: =Variables!AE29 -> 2020 PROTOCOL | R109: Mining Plant | S109: P | T109: =Factors!C387 -> 0 | U109: =IF(Variables!$AO$3=12,Factors!H387+Factors!K387,CHOOSE(Variables!AO$3,Factors!D387,Factors!E387,Factors!F387,Factors!G387,Factors!H387,Factors!I387,Factors!J387,Factors!K387,Factors!L387,Factors!M387,Factors!N387)) -> 0 | V109: =VLOOKUP($S109,$E$4:$O$71,5,FALSE)*IF(Variables!$Y$23=1,$T109,$U109) -> 0 | W109: =VLOOKUP($S109,$E$4:$O$71,6,FALSE)*IF(Variables!$Y$23=1,$T109,$U109) -> 0 | X109: =VLOOKUP($S109,$E$4:$O$71,7,FALSE)*IF(Variables!$Y$23=1,$T109,$U109) -> 0 | Y109: =VLOOKUP($S109,$E$4:$O$71,8,FALSE)*IF(Variables!$Y$23=1,$T109,$U109) -> 0 | Z109: =VLOOKUP($S109,$E$4:$O$71,9,FALSE)*IF(Variables!$Y$23=1,$T109,$U109) -> 0 | AA109: =VLOOKUP($S109,$E$4:$O$71,10,FALSE)*IF(Variables!$Y$23=1,$T109,$U109) -> 0 | AC109: Mining Plant | AD109: P | AE109: 0 | AF109: 0 | AG109: =VLOOKUP($AD109,$E$4:$O$71,5,FALSE)*IF(Variables!$Y$23=1,$AE109,$AF109) -> 0 | AH109: =VLOOKUP($AD109,$E$4:$O$71,6,FALSE)*IF(Variables!$Y$23=1,$AE109,$AF109) -> 0 | AI109: =VLOOKUP($AD109,$E$4:$O$71,7,FALSE)*IF(Variables!$Y$23=1,$AE109,$AF109) -> 0 | AJ109: =VLOOKUP($AD109,$E$4:$O$71,8,FALSE)*IF(Variables!$Y$23=1,$AE109,$AF109) -> 0 | AK109: =VLOOKUP($AD109,$E$4:$O$71,9,FALSE)*IF(Variables!$Y$23=1,$AE109,$AF109) -> 0 | AL109: =VLOOKUP($AD109,$E$4:$O$71,10,FALSE)*IF(Variables!$Y$23=1,$AE109,$AF109) -> 0 | AT109: =Report!P298 -> 0
C110: =IF(Variables!Y23=1," ",Variables!AO19) -> 13-Month Average | AT110: =Report!P299 -> 0
C111: RESULTS OF OPERATIONS SUMMARY | R111: Total Pacific Division | T111: =SUM(T105:T109) -> 0 | U111: =SUM(U105:U109) -> 0 | V111: =SUM(V105:V109) -> 0 | W111: 0 | X111: 0 | Y111: 0 | Z111: 0 | AA111: 0 | AC111: Total Pacific Division | AE111: =SUM(AE105:AE109) -> 0 | AF111: 0 | AG111: 0 | AH111: 0 | AI111: 0 | AJ111: 0 | AK111: 0 | AL111: 0 | AT111: =Report!P300 -> 0
AT112: =Report!P301 -> 0
R113: Utah Division | AC113: Utah Division | AT113: =Report!P302 -> 0
H114: =IF(Variables!Y23=1,Variables!X23,Report!N115) -> UTAH | R114: Transmission | S114: T | T114: =Factors!C394 -> 0 | U114: =IF(Variables!$AO$3=12,Factors!H394+Factors!K394,CHOOSE(Variables!AO$3,Factors!D394,Factors!E394,Factors!F394,Factors!G394,Factors!H394,Factors!I394,Factors!J394,Factors!K394,Factors!L394,Factors!M394,Factors!N394)) -> 0 | V114: =VLOOKUP($S114,$E$4:$O$71,5,FALSE)*IF(Variables!$Y$23=1,$T114,$U114) -> 0 | W114: =VLOOKUP($S114,$E$4:$O$71,6,FALSE)*IF(Variables!$Y$23=1,$T114,$U114) -> 0 | X114: =VLOOKUP($S114,$E$4:$O$71,7,FALSE)*IF(Variables!$Y$23=1,$T114,$U114) -> 0 | Y114: =VLOOKUP($S114,$E$4:$O$71,8,FALSE)*IF(Variables!$Y$23=1,$T114,$U114) -> 0 | Z114: =VLOOKUP($S114,$E$4:$O$71,9,FALSE)*IF(Variables!$Y$23=1,$T114,$U114) -> 0 | AA114: =VLOOKUP($S114,$E$4:$O$71,10,FALSE)*IF(Variables!$Y$23=1,$T114,$U114) -> 0 | AC114: Transmission | AD114: T | AE114: =T114 -> 0 | AF114: 0 | AG114: =VLOOKUP($AD114,$E$4:$O$71,5,FALSE)*IF(Variables!$Y$23=1,$AE114,$AF114) -> 0 | AH114: =VLOOKUP($AD114,$E$4:$O$71,6,FALSE)*IF(Variables!$Y$23=1,$AE114,$AF114) -> 0 | AI114: =VLOOKUP($AD114,$E$4:$O$71,7,FALSE)*IF(Variables!$Y$23=1,$AE114,$AF114) -> 0 | AJ114: =VLOOKUP($AD114,$E$4:$O$71,8,FALSE)*IF(Variables!$Y$23=1,$AE114,$AF114) -> 0 | AK114: =VLOOKUP($AD114,$E$4:$O$71,9,FALSE)*IF(Variables!$Y$23=1,$AE114,$AF114) -> 0 | AL114: =VLOOKUP($AD114,$E$4:$O$71,10,FALSE)*IF(Variables!$Y$23=1,$AE114,$AF114) -> 0 | AT114: =Report!P303 -> 0
C115: Description of Account Summary: | H115: Normalized | I115: Production | J115: Transmission | K115: Distribution | L115: Distribution | M115: Retail | N115: Misc | R115: Distribution | S115: DPW | T115: =Factors!C395 -> 0 | U115: =IF(Variables!$AO$3=12,Factors!H395+Factors!K395,CHOOSE(Variables!AO$3,Factors!D395,Factors!E395,Factors!F395,Factors!G395,Factors!H395,Factors!I395,Factors!J395,Factors!K395,Factors!L395,Factors!M395,Factors!N395)) -> 0 | V115: =VLOOKUP($S115,$E$4:$O$71,5,FALSE)*IF(Variables!$Y$23=1,$T115,$U115) -> 0 | W115: =VLOOKUP($S115,$E$4:$O$71,6,FALSE)*IF(Variables!$Y$23=1,$T115,$U115) -> 0 | X115: =VLOOKUP($S115,$E$4:$O$71,7,FALSE)*IF(Variables!$Y$23=1,$T115,$U115) -> 0 | Y115: =VLOOKUP($S115,$E$4:$O$71,8,FALSE)*IF(Variables!$Y$23=1,$T115,$U115) -> 0 | Z115: =VLOOKUP($S115,$E$4:$O$71,9,FALSE)*IF(Variables!$Y$23=1,$T115,$U115) -> 0 | AA115: =VLOOKUP($S115,$E$4:$O$71,10,FALSE)*IF(Variables!$Y$23=1,$T115,$U115) -> 0 | AC115: Distribution | AD115: DPW | AE115: 0 | AF115: 0 | AG115: =VLOOKUP($AD115,$E$4:$O$71,5,FALSE)*IF(Variables!$Y$23=1,$AE115,$AF115) -> 0 | AH115: =VLOOKUP($AD115,$E$4:$O$71,6,FALSE)*IF(Variables!$Y$23=1,$AE115,$AF115) -> 0 | AI115: =VLOOKUP($AD115,$E$4:$O$71,7,FALSE)*IF(Variables!$Y$23=1,$AE115,$AF115) -> 0 | AJ115: =VLOOKUP($AD115,$E$4:$O$71,8,FALSE)*IF(Variables!$Y$23=1,$AE115,$AF115) -> 0 | AK115: =VLOOKUP($AD115,$E$4:$O$71,9,FALSE)*IF(Variables!$Y$23=1,$AE115,$AF115) -> 0 | AL115: =VLOOKUP($AD115,$E$4:$O$71,10,FALSE)*IF(Variables!$Y$23=1,$AE115,$AF115) -> 0 | AT115: =Report!P304 -> 0
R116: General | S116: G | T116: =Factors!C396 -> 0 | U116: =IF(Variables!$AO$3=12,Factors!H396+Factors!K396,CHOOSE(Variables!AO$3,Factors!D396,Factors!E396,Factors!F396,Factors!G396,Factors!H396,Factors!I396,Factors!J396,Factors!K396,Factors!L396,Factors!M396,Factors!N396)) -> 0 | V116: =VLOOKUP($S116,$E$4:$O$71,5,FALSE)*IF(Variables!$Y$23=1,$T116,$U116) -> 0 | W116: =VLOOKUP($S116,$E$4:$O$71,6,FALSE)*IF(Variables!$Y$23=1,$T116,$U116) -> 0 | X116: =VLOOKUP($S116,$E$4:$O$71,7,FALSE)*IF(Variables!$Y$23=1,$T116,$U116) -> 0 | Y116: =VLOOKUP($S116,$E$4:$O$71,8,FALSE)*IF(Variables!$Y$23=1,$T116,$U116) -> 0 | Z116: =VLOOKUP($S116,$E$4:$O$71,9,FALSE)*IF(Variables!$Y$23=1,$T116,$U116) -> 0 | AA116: =VLOOKUP($S116,$E$4:$O$71,10,FALSE)*IF(Variables!$Y$23=1,$T116,$U116) -> 0 | AC116: General | AD116: G | AE116: 0 | AF116: 0 | AG116: =VLOOKUP($AD116,$E$4:$O$71,5,FALSE)*IF(Variables!$Y$23=1,$AE116,$AF116) -> 0 | AH116: =VLOOKUP($AD116,$E$4:$O$71,6,FALSE)*IF(Variables!$Y$23=1,$AE116,$AF116) -> 0 | AI116: =VLOOKUP($AD116,$E$4:$O$71,7,FALSE)*IF(Variables!$Y$23=1,$AE116,$AF116) -> 0 | AJ116: =VLOOKUP($AD116,$E$4:$O$71,8,FALSE)*IF(Variables!$Y$23=1,$AE116,$AF116) -> 0 | AK116: =VLOOKUP($AD116,$E$4:$O$71,9,FALSE)*IF(Variables!$Y$23=1,$AE116,$AF116) -> 0 | AL116: =VLOOKUP($AD116,$E$4:$O$71,10,FALSE)*IF(Variables!$Y$23=1,$AE116,$AF116) -> 0 | AT116: =Report!P305 -> 0
A117: 1 | E117: General Business Revenues | H117: =H219-H118-H119 ->  | AT117: =Report!P306 -> -27.16624873
A118: 2 | E118: General Business Revenues | H118: =H198+H199 -> 0 | I118: =I198+I199 -> 0 | J118: 0 | K118: 0 | L118: 0 | M118: 0 | N118: 0 | R118: Total Utah Division | T118: =SUM(T114:T116) -> 0 | U118: 0 | V118: 0 | W118: 0 | X118: 0 | Y118: 0 | Z118: 0 | AA118: 0 | AC118: Total Utah Division | AE118: =SUM(AE114:AE116) -> 0 | AF118: 0 | AG118: 0 | AH118: 0 | AI118: 0 | AJ118: 0 | AK118: 0 | AL118: 0 | AT118: =Report!P307 -> -27.16624873
A119: 3 | E119: Interdepartmental | H119: =H217 ->  | K119: =K217 ->  | N119: =N217 ->  | AT119: =Report!P308 -> 0
A120: 4 | E120: Special Sales | H120: =H233 -> 89133786.14 | I120: 89133786.14 | J120: 0 | K120: =K233 -> 0 | L120: 0 | M120: 0 | N120: =N233 -> 0 | R120: PACIFICORP | AC120: PACIFICORP | AT120: =Report!P309 -> 0
A121: 5 | E121: Other Operating Revenues | H121: =H277+H240 -> 77124120.84 | I121: 34303837.46 | J121: 28663207.29 | K121: 14157076.08 | L121: 3981767.363 | M121: 8864459.829 | N121: 1310848.891 | R121: Production | S121: P | T121: =Factors!C403 -> 0 | U121: =IF(Variables!$AO$3=12,Factors!H403+Factors!K403,CHOOSE(Variables!AO$3,Factors!D403,Factors!E403,Factors!F403,Factors!G403,Factors!H403,Factors!I403,Factors!J403,Factors!K403,Factors!L403,Factors!M403,Factors!N403)) -> 0 | V121: =VLOOKUP($S121,$E$4:$O$71,5,FALSE)*IF(Variables!$Y$23=1,$T121,$U121) -> 0 | W121: =VLOOKUP($S121,$E$4:$O$71,6,FALSE)*IF(Variables!$Y$23=1,$T121,$U121) -> 0 | X121: =VLOOKUP($S121,$E$4:$O$71,7,FALSE)*IF(Variables!$Y$23=1,$T121,$U121) -> 0 | Y121: =VLOOKUP($S121,$E$4:$O$71,8,FALSE)*IF(Variables!$Y$23=1,$T121,$U121) -> 0 | Z121: =VLOOKUP($S121,$E$4:$O$71,9,FALSE)*IF(Variables!$Y$23=1,$T121,$U121) -> 0 | AA121: =VLOOKUP($S121,$E$4:$O$71,10,FALSE)*IF(Variables!$Y$23=1,$T121,$U121) -> 0 | AC121: Production | AD121: P | AE121: =T121 -> 0 | AF121: =U121 -> 0 | AG121: =VLOOKUP($AD121,$E$4:$O$71,5,FALSE)*IF(Variables!$Y$23=1,$AE121,$AF121) -> 0 | AH121: =VLOOKUP($AD121,$E$4:$O$71,6,FALSE)*IF(Variables!$Y$23=1,$AE121,$AF121) -> 0 | AI121: =VLOOKUP($AD121,$E$4:$O$71,7,FALSE)*IF(Variables!$Y$23=1,$AE121,$AF121) -> 0 | AJ121: =VLOOKUP($AD121,$E$4:$O$71,8,FALSE)*IF(Variables!$Y$23=1,$AE121,$AF121) -> 0 | AK121: =VLOOKUP($AD121,$E$4:$O$71,9,FALSE)*IF(Variables!$Y$23=1,$AE121,$AF121) -> 0 | AL121: =VLOOKUP($AD121,$E$4:$O$71,10,FALSE)*IF(Variables!$Y$23=1,$AE121,$AF121) -> 0 | AT121: =Report!P310 -> 0
A122: 6 | E122: Total Operating Revenues | H122: =SUM(H117:H121) ->  | R122: Hydro - P | S122: P | T122: =Factors!C404 -> 0 | U122: =IF(Variables!$AO$3=12,Factors!H404+Factors!K404,CHOOSE(Variables!AO$3,Factors!D404,Factors!E404,Factors!F404,Factors!G404,Factors!H404,Factors!I404,Factors!J404,Factors!K404,Factors!L404,Factors!M404,Factors!N404)) -> 0 | V122: =VLOOKUP($S122,$E$4:$O$71,5,FALSE)*IF(Variables!$Y$23=1,$T122,$U122) -> 0 | W122: =VLOOKUP($S122,$E$4:$O$71,6,FALSE)*IF(Variables!$Y$23=1,$T122,$U122) -> 0 | X122: =VLOOKUP($S122,$E$4:$O$71,7,FALSE)*IF(Variables!$Y$23=1,$T122,$U122) -> 0 | Y122: =VLOOKUP($S122,$E$4:$O$71,8,FALSE)*IF(Variables!$Y$23=1,$T122,$U122) -> 0 | Z122: =VLOOKUP($S122,$E$4:$O$71,9,FALSE)*IF(Variables!$Y$23=1,$T122,$U122) -> 0 | AA122: =VLOOKUP($S122,$E$4:$O$71,10,FALSE)*IF(Variables!$Y$23=1,$T122,$U122) -> 0 | AC122: Hydro - P | AD122: P | AE122: 0 | AF122: 0 | AG122: =VLOOKUP($AD122,$E$4:$O$71,5,FALSE)*IF(Variables!$Y$23=1,$AE122,$AF122) -> 0 | AH122: =VLOOKUP($AD122,$E$4:$O$71,6,FALSE)*IF(Variables!$Y$23=1,$AE122,$AF122) -> 0 | AI122: =VLOOKUP($AD122,$E$4:$O$71,7,FALSE)*IF(Variables!$Y$23=1,$AE122,$AF122) -> 0 | AJ122: =VLOOKUP($AD122,$E$4:$O$71,8,FALSE)*IF(Variables!$Y$23=1,$AE122,$AF122) -> 0 | AK122: =VLOOKUP($AD122,$E$4:$O$71,9,FALSE)*IF(Variables!$Y$23=1,$AE122,$AF122) -> 0 | AL122: =VLOOKUP($AD122,$E$4:$O$71,10,FALSE)*IF(Variables!$Y$23=1,$AE122,$AF122) -> 0 | AT122: =Report!P311 -> 0
A123: 7 | R123: Hydro - U | S123: P | T123: =Factors!C405 -> 0 | U123: =IF(Variables!$AO$3=12,Factors!H405+Factors!K405,CHOOSE(Variables!AO$3,Factors!D405,Factors!E405,Factors!F405,Factors!G405,Factors!H405,Factors!I405,Factors!J405,Factors!K405,Factors!L405,Factors!M405,Factors!N405)) -> 0 | V123: =VLOOKUP($S123,$E$4:$O$71,5,FALSE)*IF(Variables!$Y$23=1,$T123,$U123) -> 0 | W123: =VLOOKUP($S123,$E$4:$O$71,6,FALSE)*IF(Variables!$Y$23=1,$T123,$U123) -> 0 | X123: =VLOOKUP($S123,$E$4:$O$71,7,FALSE)*IF(Variables!$Y$23=1,$T123,$U123) -> 0 | Y123: =VLOOKUP($S123,$E$4:$O$71,8,FALSE)*IF(Variables!$Y$23=1,$T123,$U123) -> 0 | Z123: =VLOOKUP($S123,$E$4:$O$71,9,FALSE)*IF(Variables!$Y$23=1,$T123,$U123) -> 0 | AA123: =VLOOKUP($S123,$E$4:$O$71,10,FALSE)*IF(Variables!$Y$23=1,$T123,$U123) -> 0 | AC123: Hydro - U | AD123: P | AE123: 0 | AF123: 0 | AG123: =VLOOKUP($AD123,$E$4:$O$71,5,FALSE)*IF(Variables!$Y$23=1,$AE123,$AF123) -> 0 | AH123: =VLOOKUP($AD123,$E$4:$O$71,6,FALSE)*IF(Variables!$Y$23=1,$AE123,$AF123) -> 0 | AI123: =VLOOKUP($AD123,$E$4:$O$71,7,FALSE)*IF(Variables!$Y$23=1,$AE123,$AF123) -> 0 | AJ123: =VLOOKUP($AD123,$E$4:$O$71,8,FALSE)*IF(Variables!$Y$23=1,$AE123,$AF123) -> 0 | AK123: =VLOOKUP($AD123,$E$4:$O$71,9,FALSE)*IF(Variables!$Y$23=1,$AE123,$AF123) -> 0 | AL123: =VLOOKUP($AD123,$E$4:$O$71,10,FALSE)*IF(Variables!$Y$23=1,$AE123,$AF123) -> 0 | AT123: =Report!P312 -> 0
A124: 8 | C124: Operating Expenses: | R124: Transmission | S124: T | T124: =Factors!C415 -> 0 | U124: =IF(Variables!$AO$3=12,Factors!H415+Factors!K415,CHOOSE(Variables!AO$3,Factors!D415,Factors!E415,Factors!F415,Factors!G415,Factors!H415,Factors!I415,Factors!J415,Factors!K415,Factors!L415,Factors!M415,Factors!N415)) -> 0 | V124: =VLOOKUP($S124,$E$4:$O$71,5,FALSE)*IF(Variables!$Y$23=1,$T124,$U124) -> 0 | W124: =VLOOKUP($S124,$E$4:$O$71,6,FALSE)*IF(Variables!$Y$23=1,$T124,$U124) -> 0 | X124: =VLOOKUP($S124,$E$4:$O$71,7,FALSE)*IF(Variables!$Y$23=1,$T124,$U124) -> 0 | Y124: =VLOOKUP($S124,$E$4:$O$71,8,FALSE)*IF(Variables!$Y$23=1,$T124,$U124) -> 0 | Z124: =VLOOKUP($S124,$E$4:$O$71,9,FALSE)*IF(Variables!$Y$23=1,$T124,$U124) -> 0 | AA124: =VLOOKUP($S124,$E$4:$O$71,10,FALSE)*IF(Variables!$Y$23=1,$T124,$U124) -> 0 | AC124: Transmission | AD124: T | AE124: 0 | AF124: 0 | AG124: =VLOOKUP($AD124,$E$4:$O$71,5,FALSE)*IF(Variables!$Y$23=1,$AE124,$AF124) -> 0 | AH124: =VLOOKUP($AD124,$E$4:$O$71,6,FALSE)*IF(Variables!$Y$23=1,$AE124,$AF124) -> 0 | AI124: =VLOOKUP($AD124,$E$4:$O$71,7,FALSE)*IF(Variables!$Y$23=1,$AE124,$AF124) -> 0 | AJ124: =VLOOKUP($AD124,$E$4:$O$71,8,FALSE)*IF(Variables!$Y$23=1,$AE124,$AF124) -> 0 | AK124: =VLOOKUP($AD124,$E$4:$O$71,9,FALSE)*IF(Variables!$Y$23=1,$AE124,$AF124) -> 0 | AL124: =VLOOKUP($AD124,$E$4:$O$71,10,FALSE)*IF(Variables!$Y$23=1,$AE124,$AF124) -> 0 | AT124: =Report!P313 -> 0
A125: 9 | D125: Steam Production | H125: =H414 -> 456745109.9 | I125: 456745109.9 | J125: 0 | K125: 0 | L125: 0 | M125: 0 | N125: 0 | R125: Distribution | S125: DPW | T125: =Factors!C416 -> 0 | U125: =IF(Variables!$AO$3=12,Factors!H416+Factors!K416,CHOOSE(Variables!AO$3,Factors!D416,Factors!E416,Factors!F416,Factors!G416,Factors!H416,Factors!I416,Factors!J416,Factors!K416,Factors!L416,Factors!M416,Factors!N416)) -> 0 | V125: =VLOOKUP($S125,$E$4:$O$71,5,FALSE)*IF(Variables!$Y$23=1,$T125,$U125) -> 0 | W125: =VLOOKUP($S125,$E$4:$O$71,6,FALSE)*IF(Variables!$Y$23=1,$T125,$U125) -> 0 | X125: =VLOOKUP($S125,$E$4:$O$71,7,FALSE)*IF(Variables!$Y$23=1,$T125,$U125) -> 0 | Y125: =VLOOKUP($S125,$E$4:$O$71,8,FALSE)*IF(Variables!$Y$23=1,$T125,$U125) -> 0 | Z125: =VLOOKUP($S125,$E$4:$O$71,9,FALSE)*IF(Variables!$Y$23=1,$T125,$U125) -> 0 | AA125: =VLOOKUP($S125,$E$4:$O$71,10,FALSE)*IF(Variables!$Y$23=1,$T125,$U125) -> 0 | AC125: Distribution | AD125: DPW | AE125: 0 | AF125: 0 | AG125: =VLOOKUP($AD125,$E$4:$O$71,5,FALSE)*IF(Variables!$Y$23=1,$AE125,$AF125) -> 0 | AH125: =VLOOKUP($AD125,$E$4:$O$71,6,FALSE)*IF(Variables!$Y$23=1,$AE125,$AF125) -> 0 | AI125: =VLOOKUP($AD125,$E$4:$O$71,7,FALSE)*IF(Variables!$Y$23=1,$AE125,$AF125) -> 0 | AJ125: =VLOOKUP($AD125,$E$4:$O$71,8,FALSE)*IF(Variables!$Y$23=1,$AE125,$AF125) -> 0 | AK125: =VLOOKUP($AD125,$E$4:$O$71,9,FALSE)*IF(Variables!$Y$23=1,$AE125,$AF125) -> 0 | AL125: =VLOOKUP($AD125,$E$4:$O$71,10,FALSE)*IF(Variables!$Y$23=1,$AE125,$AF125) -> 0 | AT125: =Report!P314 -> 0
A126: 10 | D126: Nuclear Production | H126: =H462 -> 0 | I126: 0 | J126: 0 | K126: 0 | L126: 0 | M126: 0 | N126: 0 | R126: General | S126: G | T126: =Factors!C417 -> 0 | U126: =IF(Variables!$AO$3=12,Factors!H417+Factors!K417,CHOOSE(Variables!AO$3,Factors!D417,Factors!E417,Factors!F417,Factors!G417,Factors!H417,Factors!I417,Factors!J417,Factors!K417,Factors!L417,Factors!M417,Factors!N417)) -> 0 | V126: =VLOOKUP($S126,$E$4:$O$71,5,FALSE)*IF(Variables!$Y$23=1,$T126,$U126) -> 0 | W126: =VLOOKUP($S126,$E$4:$O$71,6,FALSE)*IF(Variables!$Y$23=1,$T126,$U126) -> 0 | X126: =VLOOKUP($S126,$E$4:$O$71,7,FALSE)*IF(Variables!$Y$23=1,$T126,$U126) -> 0 | Y126: =VLOOKUP($S126,$E$4:$O$71,8,FALSE)*IF(Variables!$Y$23=1,$T126,$U126) -> 0 | Z126: =VLOOKUP($S126,$E$4:$O$71,9,FALSE)*IF(Variables!$Y$23=1,$T126,$U126) -> 0 | AA126: =VLOOKUP($S126,$E$4:$O$71,10,FALSE)*IF(Variables!$Y$23=1,$T126,$U126) -> 0 | AC126: General | AD126: G | AE126: 0 | AF126: 0 | AG126: =VLOOKUP($AD126,$E$4:$O$71,5,FALSE)*IF(Variables!$Y$23=1,$AE126,$AF126) -> 0 | AH126: =VLOOKUP($AD126,$E$4:$O$71,6,FALSE)*IF(Variables!$Y$23=1,$AE126,$AF126) -> 0 | AI126: =VLOOKUP($AD126,$E$4:$O$71,7,FALSE)*IF(Variables!$Y$23=1,$AE126,$AF126) -> 0 | AJ126: =VLOOKUP($AD126,$E$4:$O$71,8,FALSE)*IF(Variables!$Y$23=1,$AE126,$AF126) -> 0 | AK126: =VLOOKUP($AD126,$E$4:$O$71,9,FALSE)*IF(Variables!$Y$23=1,$AE126,$AF126) -> 0 | AL126: =VLOOKUP($AD126,$E$4:$O$71,10,FALSE)*IF(Variables!$Y$23=1,$AE126,$AF126) -> 0 | AT126: =Report!P315 -> 0
A127: 11 | D127: Hydro Production | H127: =H545 -> 19180512 | I127: 19180512 | J127: 0 | K127: 0 | L127: 0 | M127: 0 | N127: 0 | R127: Mining Plant | S127: P | T127: =Factors!C418 -> 0 | U127: =IF(Variables!$AO$3=12,Factors!H418+Factors!K418,CHOOSE(Variables!AO$3,Factors!D418,Factors!E418,Factors!F418,Factors!G418,Factors!H418,Factors!I418,Factors!J418,Factors!K418,Factors!L418,Factors!M418,Factors!N418)) -> 0 | V127: =VLOOKUP($S127,$E$4:$O$71,5,FALSE)*IF(Variables!$Y$23=1,$T127,$U127) -> 0 | W127: =VLOOKUP($S127,$E$4:$O$71,6,FALSE)*IF(Variables!$Y$23=1,$T127,$U127) -> 0 | X127: =VLOOKUP($S127,$E$4:$O$71,7,FALSE)*IF(Variables!$Y$23=1,$T127,$U127) -> 0 | Y127: =VLOOKUP($S127,$E$4:$O$71,8,FALSE)*IF(Variables!$Y$23=1,$T127,$U127) -> 0 | Z127: =VLOOKUP($S127,$E$4:$O$71,9,FALSE)*IF(Variables!$Y$23=1,$T127,$U127) -> 0 | AA127: =VLOOKUP($S127,$E$4:$O$71,10,FALSE)*IF(Variables!$Y$23=1,$T127,$U127) -> 0 | AC127: Mining Plant | AD127: P | AE127: 0 | AF127: 0 | AG127: =VLOOKUP($AD127,$E$4:$O$71,5,FALSE)*IF(Variables!$Y$23=1,$AE127,$AF127) -> 0 | AH127: =VLOOKUP($AD127,$E$4:$O$71,6,FALSE)*IF(Variables!$Y$23=1,$AE127,$AF127) -> 0 | AI127: =VLOOKUP($AD127,$E$4:$O$71,7,FALSE)*IF(Variables!$Y$23=1,$AE127,$AF127) -> 0 | AJ127: =VLOOKUP($AD127,$E$4:$O$71,8,FALSE)*IF(Variables!$Y$23=1,$AE127,$AF127) -> 0 | AK127: =VLOOKUP($AD127,$E$4:$O$71,9,FALSE)*IF(Variables!$Y$23=1,$AE127,$AF127) -> 0 | AL127: =VLOOKUP($AD127,$E$4:$O$71,10,FALSE)*IF(Variables!$Y$23=1,$AE127,$AF127) -> 0 | AT127: =Report!P316 -> 0
A128: 12 | D128: Other Power Supply | H128: =H603+H655 -> 464435961.8 | I128: 464435961.8 | J128: 0 | K128: 0 | L128: 0 | M128: 0 | N128: 0 | AT128: =Report!P317 -> 0
A129: 13 | D129: Transmission | H129: =H756 -> 92647063.53 | I129: 0 | J129: 92647063.53 | K129: 0 | L129: 0 | M129: 0 | N129: 0 | R129: Total PC (Post Merger) | T129: =SUM(T121:T127) -> 0 | U129: 0 | V129: 0 | W129: 0 | X129: 0 | Y129: 0 | Z129: 0 | AA129: 0 | AC129: Total PC (Post Merger) | AE129: =SUM(AE121:AE127) -> 0 | AF129: 0 | AG129: 0 | AH129: 0 | AI129: 0 | AJ129: 0 | AK129: 0 | AL129: 0 | AT129: =Report!P318 -> -336.5
A130: 14 | D130: Distribution | H130: =H857 -> 82286354.69 | I130: 0 | J130: 0 | K130: 82286354.69 | L130: 82286354.69 | M130: 0 | N130: 0 | AT130: =Report!P319 -> 0
A131: 15 | D131: Customer Accounts | H131: =H892 -> 33682020.74 | I131: 0 | J131: 0 | K131: 33682020.74 | L131: 0 | M131: 33682020.74 | N131: 0 | R131: Total Deferred Taxes | T131: =T111+T118+T129 -> 0 | U131: 0 | V131: 0 | W131: 0 | X131: 0 | Y131: 0 | Z131: 0 | AA131: 0 | AC131: Total Deferred Taxes | AE131: =AE111+AE118+AE129 -> 0 | AF131: 0 | AG131: 0 | AH131: 0 | AI131: 0 | AJ131: 0 | AK131: 0 | AL131: 0 | AT131: =Report!P320 -> 0
A132: 16 | D132: Customer Service | H132: =H923 -> 6015790.871 | I132: 0 | J132: 0 | K132: 6015790.871 | L132: 0 | M132: 6015790.871 | N132: 0 | AT132: =Report!P321 -> 0
A133: 17 | D133: Sales | H133: =H953 -> 0 | I133: 0 | J133: 0 | K133: 0 | L133: 0 | M133: 0 | N133: 0 | R133: DITEXPRL FACTOR | T133: =T131/T131 ->  | U133: =U131/U131 ->  | V133: =V131/IF(Variables!$Y$23=2,$U131,$T131) ->  | W133: =W131/IF(Variables!$Y$23=2,$U131,$T131) ->  | X133: =X131/IF(Variables!$Y$23=2,$U131,$T131) ->  | Y133: =Y131/IF(Variables!$Y$23=2,$U131,$T131) ->  | Z133: =Z131/IF(Variables!$Y$23=2,$U131,$T131) ->  | AA133: =AA131/IF(Variables!$Y$23=2,$U131,$T131) ->  | AC133: DITEXPMA FACTOR | AE133: =AE131/AE131 ->  | AF133: =AF131/AF131 ->  | AG133: =AG131/IF(Variables!$Y$23=2,$AF131,$AE131) ->  | AH133: =AH131/IF(Variables!$Y$23=2,$AF131,$AE131) ->  | AI133: =AI131/IF(Variables!$Y$23=2,$AF131,$AE131) ->  | AJ133: =AJ131/IF(Variables!$Y$23=2,$AF131,$AE131) ->  | AK133: =AK131/IF(Variables!$Y$23=2,$AF131,$AE131) ->  | AL133: =AL131/IF(Variables!$Y$23=2,$AF131,$AE131) ->  | AT133: =Report!P322 -> 698.5930522
A134: 18 | D134: Administrative & General | H134: =H1038 -> 67342255.11 | I134: 25451688.53 | J134: 15580799.5 | K134: 26309767.08 | L134: 17071152.08 | M134: 717106.5185 | N134: 8521508.487 | AT134: =Report!P323 -> -498056.4403
A135: 19 | AT135: =Report!P324 -> -497694.3472
A136: 20 | D136: Total O & M Expenses | H136: =SUM(H125:H134) -> 1222335069 | I136: 965813272.2 | J136: 108227863 | K136: 148293933.4 | L136: 99357506.77 | M136: 40414918.13 | N136: 8521508.487 | AT136: =Report!P325 -> 0
A137: 21 | AT137: =Report!P326 -> -497721.5134
A138: 22 | D138: Depreciation | H138: =H1128 -> 303397660.3 | I138: 181648452.1 | J138: 56048684.74 | K138: 65700523.44 | L138: 65240020.95 | M138: 460502.4979 | N138: 0 | AT138: =Report!P327 -> 0
A139: 23 | D139: Amortization Expense | H139: =H1208 -> 253870969 | I139: 12103289.96 | J139: 4489850.666 | K139: 237277828.4 | L139: 231446511.4 | M139: 5831316.983 | N139: 0 | AT139: =Report!P328 -> 0
A140: 24 | D140: Taxes Other Than Income | H140: =H1236 -> 75476662.05 | I140: 39115248.69 | J140: 15983669.72 | K140: 20377743.64 | L140: 19903654.65 | M140: 466588.9883 | N140: 7500 | AT140: =Report!P329 -> 582896.63
A141: 25 | D141: Income Taxes - Federal | H141: =H1445 ->  | AT141: =Report!P330 -> 582896.63
A142: 26 | D142: Income Taxes - State | H142: =H1412 ->  | AT142: =Report!P331 -> 582896.63
A143: 27 | D143: Income Taxes - Def Net | H143: =H1334 -> -59397551.69 | AT143: =Report!P332 -> 0
A144: 28 | D144: Investment Tax Credit Adj. | H144: =H1249 -> -1915009.093 | I144: -898881.6164 | J144: -487419.425 | K144: -528708.0517 | L144: -528708.0517 | M144: 0 | N144: 0 | AT144: =Report!P333 -> 85175.11655
A145: 29 | D145: Misc Revenue & Expense | H145: =H333 -> 85175.11655 | I145: -497755.6956 | J145: 177.8100298 | K145: 582753.0021 | L145: -143.6279281 | M145: 582896.63 | N145: 0 | AT145: =Report!P334 -> 0
A146: 30 | AT146: =Report!P335 -> 0
A147: 31 | D147: Total Operating Expenses | H147: =SUM(H136:H145) ->  | AT147: =Report!P336 -> 5994453.192
A148: 32 | AT148: =Report!P337 -> 1047848.696
A149: 33 | C149: Operating Revenue for Return | H149: =H122-H147 ->  | AT149: =Report!P338 -> 7042301.887
A150: 34 | AT150: =Report!P339 -> 0
A151: 35 | C151: Rate Base: | AT151: =Report!P340 -> 0
A152: 36 | D152: Electric Plant in Service | H152: =H2073 -> 1.24960757e+10 | I152: 5793654665 | J152: 3162664548 | K152: 3539756484 | L152: 3442018385 | M152: 97738098.56 | N152: 0 | AT152: =Report!P341 -> 42494145
A153: 37 | D153: Plant Held for Future Use | H153: =H2096 -> 7083397.087 | I153: 0 | J153: 1352868.437 | K153: 5730528.65 | L153: 5730528.65 | M153: 0 | N153: 0 | AT153: =Report!P342 -> 8090760.543
A154: 38 | D154: Misc Deferred Debits | H154: =H2204+H2215 -> 153436804.8 | I154: 115444819.6 | J154: 16392912.94 | K154: 21599072.29 | L154: 5684287.027 | M154: 291815.6393 | N154: 15622969.63 | AT154: =Report!P343 -> 0
A155: 39 | D155: Elec Plant Acq Adj | H155: =H2102+H2108 -> 14980451.75 | I155: 14980451.75 | J155: 0 | K155: 0 | L155: 0 | M155: 0 | N155: 0 | AT155: =Report!P344 -> 0
A156: 40 | D156: Nuclear Fuel | H156: =H2112 -> 0 | I156: 0 | J156: 0 | K156: 0 | L156: 0 | M156: 0 | N156: 0 | AT156: =Report!P345 -> 703508.266
A157: 41 | D157: Prepayments | H157: =H2194 -> 18822446.31 | I157: 7793056.617 | J157: 4038911.943 | K157: 6990477.749 | L157: 3623573.307 | M157: 18874.97276 | N157: 3348029.469 | AT157: =Report!P346 -> 51288413.81
A158: 42 | D158: Fuel Stock | H158: =H2159 -> 86286777.62 | I158: 86286777.62 | J158: 0 | K158: 0 | L158: 0 | M158: 0 | N158: 0 | AT158: =Report!P347 -> 0
A159: 43 | D159: Material & Supplies | H159: =H2186 -> 111097795.7 | I159: 93666053.9 | J159: 720403.0842 | K159: 16711338.72 | L159: 16711338.72 | M159: 0 | N159: 0 | AT159: =Report!P348 -> 0
A160: 44 | D160: Working Capital | H160: =H2242 -> 19905476.69 | AT160: =Report!P349 -> 0
A161: 45 | D161: Weatherization Loans | H161: =H2134 -> -3785.41146 | I161: 0 | J161: 0 | K161: -3785.41146 | L161: 0 | M161: 0 | N161: -3785.41146 | AT161: =Report!P350 -> 262278185.3
A162: 46 | D162: Miscellaneous Rate Base | H162: =H2262 -> 0 | I162: 0 | J162: 0 | K162: 0 | L162: 0 | M162: 0 | N162: 0 | AT162: =Report!P351 -> 0
A163: 47 | AT163: =Report!P352 -> 0
A164: 48 | D164: Total Electric Plant | H164: =SUM(H152:H163) -> 1.290768506e+10 | AT164: =Report!P353 -> 18722843.24
A165: 49 | AT165: =Report!P354 -> 281001028.5
A166: 50 | C166: Rate Base Deductions: | AT166: =Report!P355 -> 0
A167: 51 | D167: Accum Prov For Depr | H167: =H2565 -> -3812120067 | I167: -1797412359 | J167: -898671123.1 | K167: -1116036584 | L167: -1112746578 | M167: -3290006.222 | N167: 0 | AT167: =Report!P356 -> 332289442.3
A168: 52 | D168: Accum Prov For Amort | H168: =H2614 -> -266601656 | I168: -115859869.6 | J168: -42632652.78 | K168: -108109133.6 | L168: -36618768.08 | M168: -71490365.51 | N168: 0 | AT168: =Report!P357 -> 0
A169: 53 | D169: Accum Def Income Taxes | H169: =H2362 -> -1092239626 | AT169: =Report!P358 -> 0
A170: 54 | D170: Unamortized ITC | H170: =H2372 -> -1744300.348 | I170: -818753.0399 | J170: -443969.627 | K170: -481577.6813 | L170: -481577.6813 | M170: 0 | N170: 0 | AT170: =Report!P359 -> 30105328.38
A171: 55 | D171: Customer Adv for Const | H171: =H2295 -> -54583372.4 | I171: 0 | J171: -41497248.03 | K171: -13086124.37 | L171: -13086124.37 | M171: 0 | N171: 0 | AT171: =Report!P360 -> 3182390.451
A172: 56 | D172: Customer Service Deposits | H172: =H2268 -> -14791514.62 | I172: =I2268 -> 0 | J172: 0 | K172: -14791514.62 | L172: 0 | M172: -14791514.62 | N172: 0 | AT172: =Report!P361 -> 33287718.83
A173: 57 | D173: Misc. Rate Base Deductions | H173: =H2276+H2281+H2287+H2306+H2299 -> -770644110.5 | I173: =I2276+I2281+I2287+I2306+I2299 -> -742227572.6 | J173: -13630939.88 | K173: -14785597.98 | L173: -14785597.98 | M173: 0 | N173: 0 | AT173: =Report!P362 -> 0
A174: 58 | AT174: =Report!P363 -> 0
A175: 59 | D175: Total Rate Base Deductions | H175: =SUM(H167:H173) -> -6012724646 | AT175: =Report!P364 -> 0
A176: 60 | P176: Functional Retail Revenue Spread | AT176: =Report!P365 -> 0
A177: 61 | C177: Total Rate Base | H177: =H164+H175 -> 6894960414 | Q177: =$I$115 -> Production | R177: =$J$115 -> Transmission | S177: =$K$115 -> Distribution | T177: =$L$115 -> Distribution | U177: Customer | V177: =$N$115 -> Misc | AT177: =Report!P366 -> 0
A178: 62 | P178: California | AT178: =Report!P367 -> 0
A179: 63 | C179: Return on Rate Base | H179: =H149/H177 ->  | P179: Washington | AT179: =Report!P368 -> 2873382.842
A180: 64 | P180: Montana | AT180: =Report!P369 -> 2873382.842
A181: 65 | C181: Return on Equity | H181: =(+H179-Variables!$AT$3-Variables!$AT$4)/Variables!$AT$5 ->  | I181: =(+I179-Variables!$AT$3-Variables!$AT$4)/Variables!$AT$5 ->  | J181: =(+J179-Variables!$AT$3-Variables!$AT$4)/Variables!$AT$5 ->  | K181: =(+K179-Variables!$AT$3-Variables!$AT$4)/Variables!$AT$5 ->  | L181: =(+L179-Variables!$AT$3-Variables!$AT$4)/Variables!$AT$5 ->  | M181: =(+M179-Variables!$AT$3-Variables!$AT$4)/Variables!$AT$5 ->  | N181: =(+N179-Variables!$AT$3-Variables!$AT$4)/Variables!$AT$5 ->  | P181: Wyoming - East | Q181: 127802829 | R181: 31696874 | S181: 50094096.44 | T181: 46928984 | U181: 1555189 | V181: 1610923.44 | AT181: =Report!P370 -> 0
A182: 66 | P182: Utah | Q182: 366003980 | R182: 104207074 | S182: 215005203.7 | T182: 197478510 | U182: 11984031 | V182: 5542662.72 | AT182: =Report!P371 -> 0
A183: 67 | C183: 100 Basis Points in Equity: | H183: =(H177*(Variables!$AT5*(H181+0.01)+Variables!$AT3+Variables!$AT4))-H149 ->  | I183: =(I177*(Variables!AT5*(I181+0.01)+Variables!AT3+Variables!AT4))-I149 ->  | J183: =(J177*(Variables!AU5*(J181+0.01)+Variables!AU3+Variables!AU4))-J149 ->  | K183: =(K177*(Variables!$AV5*(K181+0.01)+Variables!$AV3+Variables!$AV4))-K149 ->  | L183: =(L177*(Variables!$AV5*(L181+0.01)+Variables!$AV3+Variables!$AV4))-L149 ->  | M183: =(M177*(Variables!$AV5*(M181+0.01)+Variables!$AV3+Variables!$AV4))-M149 ->  | N183: =(N177*(Variables!$AV5*(N181+0.01)+Variables!$AV3+Variables!$AV4))-N149 ->  | P183: Idaho | Q183: 55561275 | R183: 14318016 | S183: 30397767.02 | T183: 27273473 | U183: 2038247 | V183: 1086047.02 | AT183: =Report!P372 -> 531986.0632
A184: 68 | D184: Revenue Requirement Impact | H184: =H183*(1/(1-(INDEX(Variables!$F$15:$Q$15,1,Variables!$AO$3)))) ->  | I184: =I183*(1/(1-(INDEX(Variables!$F$15:$Q$15,1,Variables!$AO$3)))) ->  | J184: =J183*(1/(1-(INDEX(Variables!$F$15:$Q$15,1,Variables!$AO$3)))) ->  | K184: =K183*(1/(1-(INDEX(Variables!$F$15:$Q$15,1,Variables!$AO$3)))) ->  | L184: =L183*(1/(1-(INDEX(Variables!$F$15:$Q$15,1,Variables!$AO$3)))) ->  | M184: =M183*(1/(1-(INDEX(Variables!$F$15:$Q$15,1,Variables!$AO$3)))) ->  | N184: =N183*(1/(1-(INDEX(Variables!$F$15:$Q$15,1,Variables!$AO$3)))) ->  | P184: Wyoming - West | Q184: 19756255.66 | R184: 5006765.992 | S184: 9963427.118 | T184: 8733400.13 | U184: 996768.2125 | V184: 233258.5417 | AT184: =Report!P373 -> 139315.2332
A185: 69 | D185: Rate Base Decrease | H185: =(H149/(Variables!$AT5*(H181+0.01)+UTCR!$J7+UTCR!$J12))-H177 ->  | I185: =(I149/(Variables!$AT5*(I181+0.01)+UTCR!$J7+UTCR!$J12))-I177 ->  | J185: =(J149/(Variables!$AU5*(J181+0.01)+UTCR!$J7+UTCR!$J12))-J177 ->  | K185: =(K149/(Variables!$AV5*(K181+0.01)+UTCR!$J7+UTCR!$J12))-K177 ->  | L185: =(L149/(Variables!$AV5*(L181+0.01)+UTCR!$J7+UTCR!$J12))-L177 ->  | M185: =(M149/(Variables!$AV5*(M181+0.01)+UTCR!$J7+UTCR!$J12))-M177 ->  | N185: =(N149/(Variables!$AV5*(N181+0.01)+UTCR!$J7+UTCR!$J12))-N177 ->  | O185: Check | P185: Total Company | Q185: 1110556694 | R185: 308995072.2 | S185: 611877930.3 | T185: 566002564.9 | U185: 14881002.1 | V185: 30994363.59 | AT185: =Report!P374 -> 671301.2964
C186: =$C$109 -> 2020 PROTOCOL | W186: Check Total | AT186: =Report!P375 -> 0
C187: =$C$110 -> 13-Month Average | Q187: =($H179-I179)*I177*(1/(1-Variables!$F$15)) ->  | R187: =($H179-J179)*J177*(1/(1-Variables!$F$15)) ->  | S187: =($H179-K179)*K177*(1/(1-Variables!$F$15)) ->  | T187: =($H179-L179)*L177*(1/(1-Variables!$F$15)) ->  | U187: =($H179-M179)*M177*(1/(1-Variables!$F$15)) ->  | V187: =($H179-N179)*N177*(1/(1-Variables!$F$15)) ->  | W187: =ABS(SUM(Q187:V187)) ->  | AT187: =Report!P376 -> 0
C188: FERC | F188: BUSINESS | G188: PITA | H188: =$H$114 -> UTAH | Q188: =Q187+I192 ->  | W188: =SUM(Q188:V188,-S188) ->  | AT188: =Report!P377 -> 10183405.73
C189: ACCT | E189: DESCRIPTION | F189: FUNCTION | G189: FACTOR | H189: =$H$115 -> Normalized | I189: =$I$115 -> Production | J189: =$J$115 -> Transmission | K189: =$K$115 -> Distribution | L189: =$L$115 -> Distribution | M189: =$M$115 -> Retail | N189: =$N$115 -> Misc | O189: Check | Q189: =$I$115 -> Production | R189: =$J$115 -> Transmission | S189: =$K$115 -> Distribution | T189: =$L$115 -> Distribution | U189: Customer | V189: =$N$115 -> Misc | AT189: =Report!P378 -> 0
A190: 70 | C190: Sales to Ultimate Customers | O190: Figure | AT190: =Report!P379 -> 1216071.268
A191: 71 | C191: 440 | D191: Residential Sales | I191: =($H179-I179)*I177*(1/(1-Variables!$F$15)) ->  | J191: =($H179-J179)*J177*(1/(1-Variables!$F$15)) ->  | K191: =($H179-K179)*K177*(1/(1-Variables!$F$15)) ->  | L191: =($H179-L179)*L177*(1/(1-Variables!$F$15)) ->  | M191: =($H179-M179)*M177*(1/(1-Variables!$F$15)) ->  | N191: =($H179-N179)*N177*(1/(1-Variables!$F$15)) ->  | O191: =H117 ->  | AT191: =Report!P380 -> 11399477
A192: 72 | G192: =UTCR!H192 -> S | H192: =IF(Variables!$Y$23=2,Report!P192,NRO!I192) -> 860915571.9 | I192: 977172367.9 | J192: 216383210.4 | K192: 380682946.1 | L192: 328900482.9 | M192: 98030572.23 | N192: -46248109.03 | O192: =SUM(L192:N192)+J192+I192 -> 1574238524 | P192: =+O192-O191 ->  | Q192: =IF($F192=0,0,INDEX($I192:$N192,1,1)) -> 0 | R192: =IF($F192=0,0,INDEX($I192:$N192,1,2)) -> 0 | S192: =IF($F192=0,0,INDEX($I192:$N192,1,3)) -> 0 | T192: =IF($F192=0,0,INDEX($I192:$N192,1,4)) -> 0 | U192: =IF($F192=0,0,INDEX($I192:$N192,1,5)) -> 0 | V192: =IF($F192=0,0,INDEX($I192:$N192,1,6)) -> 0 | AT192: =Report!P381 -> 0
A193: 73 | Q193: 0 | R193: 0 | S193: 0 | T193: 0 | U193: 0 | V193: 0 | AT193: =Report!P382 -> 0
A194: 74 | H194: =SUBTOTAL(9,H192:H193) -> 860915571.9 | I194: 977172367.9 | J194: 216383210.4 | K194: 380682946.1 | L194: 328900482.9 | M194: 98030572.23 | N194: -46248109.03 | Q194: 0 | R194: 0 | S194: 0 | T194: 0 | U194: 0 | V194: 0 | AT194: =Report!P383 -> 205485.7754
A195: 75 | Q195: 0 | R195: 0 | S195: 0 | T195: 0 | U195: 0 | V195: 0 | AT195: =Report!P384 -> 356.3746353
A196: 76 | C196: 442 | D196: Commercial & Industrial Sales | Q196: 0 | R196: 0 | S196: 0 | T196: 0 | U196: 0 | V196: 0 | AT196: =Report!P385 -> 205842.15
A197: 77 | G197: =UTCR!H197 -> S | H197: =IF(Variables!$Y$23=2,Report!P197,NRO!I197) -> 1304804191 | Q197: 0 | R197: 0 | S197: 0 | T197: 0 | U197: 0 | V197: 0 | AT197: =Report!P386 -> 0
A198: 78 | F198: P | G198: =UTCR!H198 -> SE | H198: =IF(Variables!$Y$23=2,Report!P198,NRO!I198) -> 0 | I198: =IF(F198=(VLOOKUP(F198,$E$4:$N$71,1)),VLOOKUP(F198,$E$4:$N$71,5),"#N/A")*H198 -> 0 | J198: =IF(F198=(VLOOKUP(F198,$E$4:$N$71,1)),VLOOKUP(F198,$E$4:$N$71,6),"#N/A")*H198 -> 0 | K198: =IF(F198=(VLOOKUP(F198,$E$4:$N$71,1)),VLOOKUP(F198,$E$4:$N$71,7),"#N/A")*H198 -> 0 | L198: =IF(F198=(VLOOKUP(F198,$E$4:$N$71,1)),VLOOKUP(F198,$E$4:$N$71,8),"#N/A")*H198 -> 0 | M198: =IF(F198=(VLOOKUP(F198,$E$4:$N$71,1)),VLOOKUP(F198,$E$4:$N$71,9),"#N/A")*H198 -> 0 | N198: =IF(F198=(VLOOKUP(F198,$E$4:$N$71,1)),VLOOKUP(F198,$E$4:$N$71,10),"#N/A")*H198 -> 0 | Q198: 0 | R198: 0 | S198: 0 | T198: 0 | U198: 0 | V198: 0 | AT198: =Report!P387 -> 0
A199: 79 | F199: PT | G199: =UTCR!H199 -> SG | H199: =IF(Variables!$Y$23=2,Report!P199,NRO!I199) -> 0 | I199: =(IF(F199=(VLOOKUP(F199,$E$4:$N$71,1)),VLOOKUP(F199,$E$4:$N$71,5),"#N/A")*H199)+0 -> 0 | J199: =(IF(F199=(VLOOKUP(F199,$E$4:$N$71,1)),VLOOKUP(F199,$E$4:$N$71,6),"#N/A")*H199)+0 -> 0 | K199: =(IF(F199=(VLOOKUP(F199,$E$4:$N$71,1)),VLOOKUP(F199,$E$4:$N$71,7),"#N/A")*H199)+0 -> 0 | L199: =(IF(F199=(VLOOKUP(F199,$E$4:$N$71,1)),VLOOKUP(F199,$E$4:$N$71,8),"#N/A")*H199)+0 -> 0 | M199: =(IF(F199=(VLOOKUP(F199,$E$4:$N$71,1)),VLOOKUP(F199,$E$4:$N$71,9),"#N/A")*H199)+0 -> 0 | N199: =(IF(F199=(VLOOKUP(F199,$E$4:$N$71,1)),VLOOKUP(F199,$E$4:$N$71,10),"#N/A")*H199)+0 -> 0 | Q199: 0 | R199: 0 | S199: 0 | T199: 0 | U199: 0 | V199: 0 | AT199: =Report!P388 -> 7512897.811
A200: 80 | Q200: 0 | R200: 0 | S200: 0 | T200: 0 | U200: 0 | V200: 0 | AT200: =Report!P389 -> 1082312.911
... 2047 more rows

Sheet Function1149 (hidden)
E1: =H114 -> UTAH | F1: =C111 -> RESULTS OF OPERATIONS SUMMARY | T1: UNADJUSTED RESULTS OF OPERATIONS
T2: =Variables!AE27 -> 2020 PROTOCOL
E3: Function | F3: Description | I3: Production | J3: Transmission | K3: Distribution | L3: Ancillary | M3: C_Billing | N3: C_Metering | O3: C_Service | P3: DSM | Q3: Total | T3: =Variables!AE28 -> 
F5: Internal Factors | W5: PACIFICORP | X5: PACIFICORP
E6: ACCMDIT | F6: Deferred Income Tax - Balance | I6: =X73 -> 0.970239901 | J6: -0.1336982817 | K6: 0.1518391367 | L6: 0 | M6: 0.005887519561 | N6: 0.005731724462 | O6: 0 | P6: 0 | Q6: =SUM(I6:P6) -> 1 | T6: FERC | U6: DESCRIPTION | W6: LABOR | X6: O&M
E7: CWC | F7: Cash Working Capital | I7: =IF(ISERROR(X$70/$W$70),1,X$70/$W$70) -> 1 | J7: 1 | K7: 1 | L7: 1 | M7: 1 | N7: 1 | O7: 1 | P7: 1 | Q7: =SUM(I7:P7) -> 8 | T7: ACCT | W7: ONLY | X7: TOTAL | Y7: =Variables!X24 -> UTAH
E8: D_SPLIT | F8: Distribution Slit between Functions | I8: 0 | J8: 0 | K8: =Y62 -> 0.9698338898 | L8: 0 | M8: 0 | N8: =Y63 -> 0.0301661102 | O8: 0 | P8: 0 | Q8: 1
E9: DITEXP | F9: Deferred Income Tax - Expense | I9: =X74 -> 
E10: FIT | F10: Federal Income Taxes | I10: =I$1434/$H$1434 ->  | J10: =IF(ISERROR(J$1434/$H$1434),1,J$1434/$H$1434) -> 1 | K10: 1 | L10: 1 | M10: 1 | N10: 1 | O10: 1 | P10: 1 | T10: Production | W10: 90698845 | X10: =URO!I657 -> 2148255528 | Y10: =IF(Variables!AO3=12,URO!N657+URO!Q657,CHOOSE(Variables!AO3,URO!J657,URO!K657,URO!L657,URO!M657,URO!N657,URO!O657,URO!P657,URO!Q657,URO!R657,URO!S657,URO!T657)) -> 940361583.7 | AA10: Meter O&M Split
E11: GP | F11: Gross Plant | I11: =(I$152)/($H$152) ->  | J11: =(J$152)/($H$152) ->  | T11: Transmission | W11: 10748429 | X11: =URO!I756 -> 212065030.4 | Y11: =IF(Variables!AO3=12,URO!N756+URO!Q756,CHOOSE(Variables!AO3,URO!J756,URO!K756,URO!L756,URO!M756,URO!N756,URO!O756,URO!P756,URO!Q756,URO!R756,URO!S756,URO!T756)) -> 92647063.53 | AB11: 1998 | AC11: 1997 | AD11: Total | AE11: Percent
E12: IBT | F12: Income Before Taxes | I12: =I$1419/$H$1419 ->  | J12: =IF(ISERROR(J$1419/$H$1419),1,J$1419/$H$1419) -> 1 | K12: 1 | L12: 1 | M12: 1 | N12: 1 | O12: 1 | P12: 1 | T12: Distribution | W12: =W17 -> 41944504.6 | X12: 211698731.9 | Y12: 81397459.66 | AA12: Account 586 597 | AB12: =7716052+814586 -> 8530638 | AC12: =5317324+1141217 -> 6458541 | AD12: =AB12+AC12 -> 14989179 | AE12: =AD12/$AD$13 -> 0.0801081302
E13: NP | F13: Net Plant | I13: =(I$152+I$167+I$168)/($H$152+$H$167+$H$168) ->  | J13: =(J$152+J$167+J$168)/($H$152+$H$167+$H$168) ->  | T13: Customer Billing | W13: 35215299.05 | X13: 173573946.9 | Y13: 33911339.47 | AA13: TTL Dist Exp | AB13: 97117213 | AC13: 89994619 | AD13: =AB13+AC13 -> 187111832 | AE13: =AD13/$AD$13 -> 1
E14: PT | F14: Production / Transmission | I14: =IF(Variables!$Y$23=1,Function1149!X$51,Function1149!Y$51) -> 0.6484029006 | J14: =IF(Variables!$Y$23=1,Function1149!X$52,Function1149!Y$52) -> 0.3515970994 | K14: 0 | L14: 0 | M14: 0 | N14: 0 | O14: 0 | P14: 0 | Q14: 1 | T14: Customer Metering | W14: 15369458.98 | X14: 16482601.83 | Y14: 6675367.175
E15: PTD | F15: Prod, Trans, Dist Plant | I15: =IF(Variables!$Y$23=1,Function1149!X$44,Function1149!Y$44) -> 0.4693876492 | J15: =IF(Variables!$Y$23=1,Function1149!X$45,Function1149!Y$45) -> 0.2545259063 | K15: =IF(Variables!$Y$23=1,Function1149!X$46,Function1149!Y$46) -> 0.2677579904 | L15: 0 | M15: 0 | N15: =IF(Variables!$Y$23=1,Function1149!X$47,Function1149!Y$47) -> 0.008328454111 | O15: 0 | P15: 0 | Q15: 1 | T15: TOTAL | W15: =SUM(W10:W14) -> 193976536.6 | X15: =SUM(X10:X14) -> 2762075839 | Y15: =SUM(Y10:Y14) -> 1154992814 | AA15: Meter Reading Labor Split
E16: REVREQ | F16: Revenue Requirement | I16: =IF(ISERROR(I$122/$H$122),1,I$122/$H$122) -> 1 | J16: =IF(ISERROR(J$122/$H$122),1,J$122/$H$122) -> 1 | K16: 1 | L16: 1 | M16: 1 | N16: 1 | O16: 1 | P16: 1 | Q16: =SUM(I16:P16) -> 8 | AB16: 1998 | AC16: 1997 | AD16: Total | AE16: Percent
E17: T_SPLIT | F17: Transmission Split | I17: =I$1752/$H$1752 -> 0.02827255759 | J17: =J$1752/$H$1752 -> 0.9717274424 | K17: 0 | L17: 0 | M17: 0 | N17: 0 | O17: 0 | P17: 0 | Q17: 1 | T17: Poles & Wires | W17: =45597212*(1-AE12) -> 41944504.6 | X17: =URO!I857-URO!I850-URO!I796 -> 211698731.9 | Y17: =INDEX(URO!$J$857:$R$857,,Variables!$AO$3)-INDEX(URO!$J$850:$R$850,,Variables!$AO$3)-INDEX(URO!$J$796:$R$796,,Variables!$AO$3) -> 81397459.66 | AA17: Account 902 | AB17: 17740463 | AC17: 17582340 | AD17: =AB17+AC17 -> 35322803 | AE17: =AD17/$AD$18 -> 0.243929702
E18: TD | F18: Transmission / Distribution | I18: 0 | J18: =IF(Variables!$Y$23=1,Function1149!$X$56,Function1149!$Y$56) -> 0.4796833431 | K18: =IF(Variables!$Y$23=1,Function1149!$X$57,Function1149!$Y$57) -> 0.5046207273 | L18: 0 | M18: 0 | N18: =IF(Variables!$Y$23=1,Function1149!$X$58,Function1149!$Y$58) -> 0.01569592961 | O18: 0 | P18: 0 | Q18: =SUM(I18:P18) -> 1 | T18: Customer Billing | W18: =(38485186+6117793)-(38485186*$AE$17) -> 35215299.05 | X18: =URO!I892+URO!I961-URO!I874 -> 173573946.9 | Y18: =INDEX(URO!$J$892:$R$892,,Variables!$AO$3)+INDEX(URO!$J$961:$R$961,,Variables!$AO$3)-INDEX(URO!$J$874:$R$874,,Variables!$AO$3) -> 33911339.47 | AA18: Ttl Cust Service | AB18: 72030470 | AC18: 72776836 | AD18: =AB18+AC18 -> 144807306 | AE18: =AD18/$AD$18 -> 1
T19: Customer Metering | W19: =38485186*$AE$17+(74671310*AE12) -> 15369458.98 | X19: =URO!I850+URO!I796+URO!I874 -> 16482601.83 | Y19: =INDEX(URO!$J$850:$R$850,,Variables!$AO$3)+INDEX(URO!$J$796:$R$796,,Variables!$AO$3)+INDEX(URO!$J$874:$R$874,,Variables!$AO$3) -> 6675367.175
F20: External Factors | T20: Misc | AA20: Source: FERC FORM 1 Page 322
E21: ANC | F21: Ancillary Function | I21: 0 | J21: 0 | K21: 0 | L21: 1 | M21: 0 | N21: 0 | O21: 0 | P21: 0 | Q21: =SUM(I21:P21) -> 1 | T21: TOTAL DISTRIBUTION | W21: =SUM(W17:W20) -> 92529262.63 | X21: =SUM(X17:X20) -> 401755280.6 | Y21: =SUM(Y17:Y20) -> 121984166.3
E22: B_CENTER | F22: Business Centers | I22: 0 | J22: 0 | K22: 0 | L22: 0 | M22: 0.7453435853 | N22: 0 | O22: 0.2546564147 | P22: 0 | Q22: =SUM(I22:P22) -> 1
E23: BOOKDEPR | F23: Book Depreciation | I23: 0.4845650437 | J23: 0.1558154864 | K23: 0.3420665007 | L23: 0 | M23: 0.00362896348 | N23: 0.01392400566 | O23: 0 | P23: 0 | Q23: 1 | T23: Labor/O&M
E24: C_METER | F24: Customer Metering | I24: 0 | J24: 0 | K24: 0 | L24: 0 | M24: 0 | N24: 1 | O24: 0 | P24: 0 | Q24: 1 | T24: Production | W24: =W10/W$15 -> 0.4675763707 | X24: 0.7777684804 | Y24: 0.8141709391
E25: C_SERVICE | F25: Customer Other | I25: 0 | J25: 0 | K25: 0 | L25: 0 | M25: 0 | N25: 0 | O25: 1 | P25: 0 | Q25: 1 | T25: Transmission | W25: 0.05541097489 | X25: 0.07677741046 | Y25: 0.08021440691
E26: COM_EQ | F26: Communication Equipment Acct 397 | I26: 0.159434 | J26: 0.393847 | K26: 0.432754 | L26: 0 | M26: 0 | N26: 0 | O26: 0.013965 | P26: 0 | Q26: 1 | T26: Distribution | W26: 0.2162349392 | X26: 0.07664479335 | Y26: 0.07047442954
E27: CSS_SYS | F27: CSS System | I27: 0 | J27: 0 | K27: 0 | L27: 0 | M27: 0.55 | N27: 0.18 | O27: 0.27 | P27: 0 | Q27: 1 | T27: Customer Billing | W27: 0.1815441169 | X27: 0.06284184685 | Y27: 0.02936064975
E28: CUST | F28: Customer Billing | I28: 0 | J28: 0 | K28: 0 | L28: 0 | M28: 1 | N28: 0 | O28: 0 | P28: 0 | Q28: 1 | T28: Customer Metering | W28: 0.07923359827 | X28: 0.005967468958 | Y28: 0.005779574641
E29: CUST901 | F29: Supervision | I29: 0 | J29: 0 | K29: 0 | L29: 0 | M29: 0.6345753273 | N29: -0.06989238368 | O29: 0.4353170564 | P29: 0 | Q29: 1 | T29: TOTAL | W29: =SUM(W24:W28) -> 1 | X29: =SUM(X24:X28) -> 1 | Y29: =SUM(Y24:Y28) -> 1
E30: CUST903 | F30: Cust. Records & Coll. Exp. | I30: 0 | J30: 0 | K30: 0 | L30: 0 | M30: 0.5961416623 | N30: 0 | O30: 0.4038583377 | P30: 0 | Q30: 1
E31: CUST905 | F31: Misc. Customer Acct. Exp. | I31: 0 | J31: 0 | K31: 0 | L31: 0 | M31: 0.08871429249 | N31: 0.07696437586 | O31: 0.8343213317 | P31: 0 | Q31: 1 | T31: Distribution | W31: =W17/W$21 -> 0.4533106978 | X31: 0.5269345349 | Y31: 0.6672788947
E32: D | F32: Distribution Only | I32: 0 | J32: 0 | K32: 1 | L32: 0 | M32: 0 | N32: 0 | O32: 0 | P32: 0 | Q32: 1 | T32: Customer Billing | W32: 0.3805855364 | X32: 0.432038993 | Y32: 0.2779978787
E33: DDS2 | F33: Deferred Debits - Situs | I33: 0.5072219508 | J33: 0.1845855021 | K33: 0.2834051309 | L33: 0 | M33: 0.01256905969 | N33: 0.01221835658 | O33: 0 | P33: 0 | Q33: 1 | T33: Customer Metering | W33: 0.1661037659 | X33: 0.04102647215 | Y33: 0.05472322661
E34: DDS6 | F34: Deferred Debits - Situs | I34: 0 | J34: 1 | K34: 0 | L34: 0 | M34: 0 | N34: 0 | O34: 0 | P34: 0 | Q34: 1 | T34: Total Distribution | W34: =SUM(W31:W33) -> 1 | X34: =SUM(X31:X33) -> 1 | Y34: =SUM(Y31:Y33) -> 1
E35: DDSO2 | F35: Deferred Debits - System Overhead | I35: 0.4171842688 | J35: 0.06670748689 | K35: 0.512731016 | L35: 0 | M35: 0 | N35: 0.003377228292 | O35: 0 | P35: 0 | Q35: 1
E36: DDSO6 | F36: Deferred Debits - System Overhead | I36: 0 | J36: 0 | K36: 1 | L36: 0 | M36: 0 | N36: 0 | O36: 0 | P36: 0 | Q36: 1
E37: DEFSG | F37: Deferred Debit - System Generation | I37: 0.2424591015 | J37: 0.7575408985 | K37: 0 | L37: 0 | M37: 0 | N37: 0 | O37: 0 | P37: 0 | Q37: 1 | T37: Total Production Plant | X37: =URO!I1705 -> 1.236946971e+10 | Y37: =IF(Variables!AO3=12,URO!N1705+URO!Q1705,CHOOSE(Variables!AO3,URO!J1705,URO!K1705,URO!L1705,URO!M1705,URO!N1705,URO!O1705,URO!P1705,URO!Q1705,URO!R1705,URO!S1705,URO!T1705)) -> 5400674491
E38: DSM | F38: Demand Side Management | I38: 0 | J38: 0 | K38: 1 | L38: 0 | M38: 0 | N38: 0 | O38: 0 | P38: 0 | Q38: 1 | T38: Total Transmission Plant | X38: =URO!I1769 -> 6707316240 | Y38: =IF(Variables!AO3=12,URO!N1769+URO!Q1769,CHOOSE(Variables!AO3,URO!J1769,URO!K1769,URO!L1769,URO!M1769,URO!N1769,URO!O1769,URO!P1769,URO!Q1769,URO!R1769,URO!S1769,URO!T1769)) -> 2928520961
E39: DPW | F39: Distribution Poles & Wires | I39: 0 | J39: 0 | K39: 0.9608865815 | L39: 0 | M39: 0 | N39: 0.03911341851 | O39: 0 | P39: 0 | Q39: =SUM(I39:P39) -> 1 | T39: Total Distribution Plant | X39: =URO!I1843 -> 7435339493 | Y39: =IF(Variables!AO3=12,URO!N1843+URO!Q1843,CHOOSE(Variables!AO3,URO!J1843,URO!K1843,URO!L1843,URO!M1843,URO!N1843,URO!O1843,URO!P1843,URO!Q1843,URO!R1843,URO!S1843,URO!T1843)) -> 3176591929
E40: ESD | F40: Environmental Services Department | I40: 0.3 | J40: 0.1 | K40: 0.6 | L40: 0 | M40: 0 | N40: 0 | O40: 0 | P40: 0 | Q40: 1 | T40: Total Account 370 | X40: =URO!I1819 -> 248311957.6 | Y40: =H1802 -> 95825422.21
E41: FERC | F41: FERC Fees | I41: 0.514717736 | J41: 0.485282264 | K41: 0 | L41: 0 | M41: 0 | N41: 0 | O41: 0 | P41: 0 | Q41: 1 | T41: TOTAL | X41: =SUM(X37:X40) -> 2.67604374e+10 | Y41: =SUM(Y37:Y40) -> 1.16016128e+10
E42: G | F42: General Plant | I42: 0.2569188767 | J42: 0.2193639593 | K42: 0.4775233865 | L42: 0 | M42: 0.02675592464 | N42: 0.01943785294 | O42: 0 | P42: 0 | Q42: 1
E43: G-DGP | F43: General Plant - DGP Factor | I43: 0.6855986064 | J43: 0.3144013936 | K43: 0 | O43: 0 | P43: 0 | Q43: 1 | T43: PTD
E44: G-DGU | F44: General Plant - DGU Factor | I44: 0.6855986064 | J44: 0.3144013936 | K44: 0 | O44: 0 | P44: 0 | Q44: 1 | T44: Total Production Plant | X44: =X37/SUM(X$37:X$39) -> 0.4665589613 | Y44: =Y37/SUM(Y$37:Y$39) -> 0.4693876492
E45: G-SG | F45: General Plant - SG Factor | I45: 0.6863049829 | J45: 0.3070705956 | K45: 0.006365317742 | L45: 0 | M45: 0 | N45: 0.000259103771 | O45: 0 | P45: 0 | Q45: 1 | T45: Total Transmission Plant | X45: =X38/SUM(X$37:X$39) -> 0.2529905139 | Y45: =Y38/SUM(Y$37:Y$39) -> 0.2545259063
E46: G-SITUS | F46: General Plant - SITUS Factor | I46: 0.0001467575033 | J46: 0.209679849 | K46: 0.7592670109 | L46: 0 | M46: 0 | N46: 0.03090638263 | O46: 0 | P46: 0 | Q46: 1 | T46: Total Distribution Plant | X46: =(X39-X40)/SUM(X$37:X$39) -> 0.2710845478 | Y46: =(Y39-Y40)/SUM(Y$37:Y$39) -> 0.2677579904
E47: I | F47: Intangible Plant | I47: 0.4702230682 | J47: 0.1465189551 | K47: 0.1997512069 | L47: 0 | M47: 0.09641524389 | N47: 0.0397376888 | O47: 0.0473538371 | P47: 0 | Q47: 1 | T47: Total Account 370 | X47: =(X40)/SUM(X$37:X$39) -> 0.009365977019 | Y47: =(Y40)/SUM(Y$37:Y$39) -> 0.008328454111
E48: I-DGP | F48: Intangible Plant - DGP Factor | I48: 1 | J48: 0 | K48: 0 | L48: 0 | M48: 0 | N48: 0 | O48: 0 | P48: 0 | Q48: 1 | T48: TOTAL | X48: =SUM(X44:X47) -> 1 | Y48: =SUM(Y44:Y47) -> 1
E49: I-DGU | F49: Intangible Plant - DGU Factor | I49: 1 | J49: 0 | K49: 0 | L49: 0 | M49: 0 | N49: 0 | O49: 0 | P49: 0 | Q49: 1
E50: I-SG | F50: Intangible Plant - SG Factor | I50: 0.8952466433 | J50: 0.1044295446 | K50: 0.0003111467083 | L50: 0 | M50: 0 | N50: 1.266539845e-05 | O50: 0 | P50: 0 | Q50: 1 | T50: PT
E51: I-SITUS | F51: Intangible Plant - SITUS Factor | I51: 0 | J51: 0.3714231392 | K51: 0.603991071 | L51: 0 | M51: 0 | N51: 0.02458578982 | O51: 0 | P51: 0 | Q51: 1 | T51: Total Production Plant | X51: =X37/(X$37+X$38) -> 0.6484042827 | Y51: =Y37/(Y$37+Y$38) -> 0.6484029006
E52: LABOR | F52: Direct Labor Expense | I52: 0.4042442542 | J52: 0.04812701706 | K52: 0.3400063721 | L52: 0 | M52: 0.05441429262 | N52: 0.09789744243 | O52: 0.05531062156 | P52: 0 | Q52: 1 | T52: Total Transmission Plant | X52: =X38/(X$37+X$38) -> 0.3515957173 | Y52: =Y38/(Y$37+Y$38) -> 0.3515970994
E53: MSS | F53: Materials & Supplies | I53: 0.8033119538 | J53: 0.06755266468 | K53: 0.1247572377 | L53: 0 | M53: 0 | N53: 0.004378143827 | O53: 0 | P53: 0 | Q53: 1 | T53: TOTAL | X53: =SUM(X51:X52) -> 1 | Y53: =SUM(Y51:Y52) -> 1
E54: NONE | F54: Not Functionalized | I54: 0 | J54: 0 | K54: 0 | L54: 0 | M54: 0 | N54: 0 | O54: 0 | P54: 0 | Q54: 0
E55: NUTIL | F55: Non-Utility | I55: 0 | J55: 0 | K55: 0 | L55: 0 | M55: 0 | N55: 0 | O55: 0 | P55: 0 | Q55: 0 | T55: TD
E56: OTHDGP | F56: Other Revenues - DGP Factor | I56: 0.4625870645 | J56: 0.5374129355 | K56: 0 | L56: 0 | M56: 0 | N56: 0 | O56: 0 | P56: 0 | Q56: 1 | T56: Total Transmission Plant | X56: =X38/SUM(X$38:X$39) -> 0.4742614376 | Y56: =Y38/SUM(Y$38:Y$39) -> 0.4796833431
E57: OTHDGU | F57: Other Revenues - DGU Factor | I57: 0.4625870645 | J57: 0.5374129355 | K57: 0 | L57: 0 | M57: 0 | N57: 0 | O57: 0 | P57: 0 | Q57: 1 | T57: Total Distribution Plant | X57: =(X39-X40)/SUM(X$38:X$39) -> 0.5081809012 | Y57: =(Y39-Y40)/SUM(Y$38:Y$39) -> 0.5046207273
E58: OTHSE | F58: Other Revenues - SE Factor | I58: 0.0001727378942 | J58: 0.9998272621 | K58: 0 | L58: 0 | M58: 0 | N58: 0 | O58: 0 | P58: 0 | Q58: 1 | T58: Total Account 370 | X58: =X40/SUM(X$38:X$39) -> 0.01755766118 | Y58: =Y40/SUM(Y$38:Y$39) -> 0.01569592961
E59: OTHSG | F59: Other Revenues - SG Factor | I59: 0.4625870645 | J59: 0.5374129355 | K59: 0 | L59: 0 | M59: 0 | N59: 0 | O59: 0 | P59: 0 | Q59: 1 | T59: TOTAL | X59: =SUM(X56:X58) -> 1 | Y59: =SUM(Y56:Y58) -> 1
E60: OTHSGR | F60: Other Revenues - Rolled-In SG Factor | I60: 0.4625870645 | J60: 0.5374129355 | K60: 0 | L60: 0 | M60: 0 | N60: 0 | O60: 0 | P60: 0 | Q60: 1
E61: OTHSITUS | F61: Other Revenues - SITUS | I61: 0 | J61: 0 | K61: 1 | L61: 0 | M61: 0 | N61: 0 | O61: 0 | P61: 0 | Q61: 1 | T61: D_Split
E62: OTHSO | F62: Other Revenues - SO Factor | I62: 4.679293728e-05 | J62: 2.06904628e-05 | K62: 0.999931147 | L62: 0 | M62: 0 | N62: 0 | O62: 0 | P62: 0 | Q62: 0.9999986304 | T62: Total Distribution Plant | X62: =(X39-X40)/(X$39) -> 0.9666038171 | Y62: =(Y39-Y40)/(Y$39) -> 0.9698338898
E63: P | F63: Production | I63: 1 | J63: 0 | K63: 0 | L63: 0 | M63: 0 | N63: 0 | O63: 0 | P63: 0 | Q63: 1 | T63: Total Account 370 | X63: =X40/(X$39) -> 0.0333961829 | Y63: =Y40/(Y$39) -> 0.0301661102
E64: RETAIL | F64: Retail Function | I64: 0 | J64: 0 | K64: 0 | L64: 0 | M64: 0 | N64: 0 | O64: 0 | P64: 0 | Q64: 0 | T64: Total | X64: =SUM(X62:X63) -> 1 | Y64: =SUM(Y62:Y63) -> 1
E65: SCHMA | F65: Schedule M Additions | I65: 0.4190865141 | J65: 0.1641232291 | K65: 0.3761491918 | L65: 0 | M65: 0.005477940566 | N65: 0.01951171973 | O65: 0.0156514046 | P65: 0 | Q65: 1
E66: SCHMAF | F66: Schedule M Additions - Flow Through | I66: 1 | J66: 0 | K66: 0 | L66: 0 | M66: 0 | N66: 0 | O66: 0 | P66: 0 | Q66: 1
E67: SCHMAP | F67: Schedule M Additions - Permanent | I67: 0.4160970458 | J67: 0.06253452748 | K67: 0.3350010237 | L67: 0 | M67: 0.04850308641 | N67: 0.08856227243 | O67: 0.04930204415 | P67: 0 | Q67: 1 | X67: =I$3 -> Production | Y67: Transmission | Z67: Distribution | AA67: Ancillary | AB67: C_Billing | AC67: C_Metering | AD67: C_Service | AE67: DSM
E68: SCHMAP-SO | F68: Schedule M Additions - Permanent-SO | I68: 0.4059309643 | J68: 0.05308717123 | K68: 0.3396272537 | L68: 0 | M68: 0.05265863495 | N68: 0.09516993166 | O68: 0.05352604416 | P68: 0 | Q68: 1 | T68: (O&M + Taxes) / 365 | W68: =SUM(X68:AE68) ->  | X68: =((I1037+I1225+I1401+I1434)/365) -> 
E69: SCHMAT | F69: Schedule M Additions - Temporary | I69: 0.4191435536 | J69: 0.1660615541 | K69: 0.376934304 | L69: 0 | M69: 0.004657015452 | N69: 0.01819422663 | O69: 0.01500934623 | P69: 0 | Q69: 1 | T69: Net LAG Days | X69: =IF(Variables!$AO$3=12,Variables!$J20,IF(Variables!$Y23=2,CHOOSE(Variables!$AO3,Variables!$F20,Variables!$G20,Variables!$H20,Variables!$I20,Variables!$J20,Variables!$K20,Variables!$L20,Variables!$M20,Variables!$N20),Variables!$O20)) -> 4.068381533 | Y69: =IF(Variables!$AO$3=12,Variables!$J20,IF(Variables!$Y23=2,CHOOSE(Variables!$AO3,Variables!$F20,Variables!$G20,Variables!$H20,Variables!$I20,Variables!$J20,Variables!$K20,Variables!$L20,Variables!$M20,Variables!$N20),Variables!$O20)) -> 4.068381533 | Z69: =IF(Variables!$AO$3=12,Variables!$J20,IF(Variables!$Y23=2,CHOOSE(Variables!$AO3,Variables!$F20,Variables!$G20,Variables!$H20,Variables!$I20,Variables!$J20,Variables!$K20,Variables!$L20,Variables!$M20,Variables!$N20),Variables!$O20)) -> 4.068381533 | AA69: =IF(Variables!$AO$3=12,Variables!$J20,IF(Variables!$Y23=2,CHOOSE(Variables!$AO3,Variables!$F20,Variables!$G20,Variables!$H20,Variables!$I20,Variables!$J20,Variables!$K20,Variables!$L20,Variables!$M20,Variables!$N20),Variables!$O20)) -> 4.068381533 | AB69: =IF(Variables!$AO$3=12,Variables!$J20,IF(Variables!$Y23=2,CHOOSE(Variables!$AO3,Variables!$F20,Variables!$G20,Variables!$H20,Variables!$I20,Variables!$J20,Variables!$K20,Variables!$L20,Variables!$M20,Variables!$N20),Variables!$O20)) -> 4.068381533 | AC69: =IF(Variables!$AO$3=12,Variables!$J20,IF(Variables!$Y23=2,CHOOSE(Variables!$AO3,Variables!$F20,Variables!$G20,Variables!$H20,Variables!$I20,Variables!$J20,Variables!$K20,Variables!$L20,Variables!$M20,Variables!$N20),Variables!$O20)) -> 4.068381533 | AD69: =IF(Variables!$AO$3=12,Variables!$J20,IF(Variables!$Y23=2,CHOOSE(Variables!$AO3,Variables!$F20,Variables!$G20,Variables!$H20,Variables!$I20,Variables!$J20,Variables!$K20,Variables!$L20,Variables!$M20,Variables!$N20),Variables!$O20)) -> 4.068381533 | AE69: =IF(Variables!$AO$3=12,Variables!$J20,IF(Variables!$Y23=2,CHOOSE(Variables!$AO3,Variables!$F20,Variables!$G20,Variables!$H20,Variables!$I20,Variables!$J20,Variables!$K20,Variables!$L20,Variables!$M20,Variables!$N20),Variables!$O20)) -> 4.068381533
E70: SCHMAT-GPS | F70: Schedule M Additions - Temporary-GPS | I70: 0.4565079555 | J70: 0.2009823396 | K70: 0.3277488096 | L70: 0 | M70: 0.0008314080651 | N70: 0.0135501467 | O70: 0.0003793405869 | P70: 0 | Q70: 1 | T70: CWC | W70: =SUM(X70:AE70) ->  | X70: =X68*X69 -> 
E71: SCHMAT-SE | F71: Schedule M Additions - Temporary-SE | I71: 0.9842508729 | J71: 0.001272263869 | K71: 0.00898825335 | L71: 0 | M71: 0.001438471417 | N71: 0.002587972129 | O71: 0.00146216636 | P71: 0 | Q71: =SUM(I71:P71) -> 1
E72: SCHMAT-SITUS | F72: Schedule M Additions - Temporary-SITUS | I72: 0.5055376977 | J72: 0.05463690133 | K72: 0.2959301989 | L72: 0 | M72: 0.0370623376 | N72: 0.0691600246 | O72: 0.0376728398 | P72: 0 | Q72: 1
E73: SCHMAT-SNP | F73: Schedule M Additions - Temporary-SNP | I73: 0.4565162898 | J73: 0.2015183426 | K73: 0.3280584593 | L73: 0 | M73: 0.0003239124031 | N73: 0.01343520669 | O73: 0.0001477891859 | P73: 0 | Q73: 1 | T73: ACCUMDIT | V73: =Variables!AE27 -> 2020 PROTOCOL | X73: =IF(Variables!$AD$24=2,Function1149!X110,Function1149!AK110) -> 0.970239901 | Y73: =IF(Variables!$AD$24=2,Function1149!Y110,Function1149!AL110) -> -0.1336982817 | Z73: =IF(Variables!$AD$24=2,Function1149!Z110,Function1149!AM110) -> 0.1518391367 | AA73: =IF(Variables!$AD$24=2,Function1149!AA110,Function1149!AN110) -> 0 | AB73: =IF(Variables!$AD$24=2,Function1149!AB110,Function1149!AO110) -> 0.005887519561 | AC73: =IF(Variables!$AD$24=2,Function1149!AC110,Function1149!AP110) -> 0.005731724462 | AD73: =IF(Variables!$AD$24=2,Function1149!AD110,Function1149!AQ110) -> 0 | AE73: =IF(Variables!$AD$24=2,Function1149!AE110,Function1149!AR110) -> 0
E74: SCHMAT-SO | F74: Schedule M Additions - Temporary-SO | I74: 0.4186955507 | J74: 0.154156412 | K74: 0.3574530733 | L74: 0 | M74: 0.01129494904 | N74: 0.02910680568 | O74: 0.02929320916 | P74: 0 | Q74: 1 | T74: DITEXP | V74: =Variables!AE27 -> 2020 PROTOCOL | X74: =IF(Variables!$AD$24=2,Function1149!X143,Function1149!AK143) ->  | Y74: =IF(Variables!$AD$24=2,Function1149!Y143,Function1149!AL143) ->  | Z74: =IF(Variables!$AD$24=2,Function1149!Z143,Function1149!AM143) ->  | AA74: =IF(Variables!$AD$24=2,Function1149!AA143,Function1149!AN143) ->  | AB74: =IF(Variables!$AD$24=2,Function1149!AB143,Function1149!AO143) ->  | AC74: =IF(Variables!$AD$24=2,Function1149!AC143,Function1149!AP143) ->  | AD74: =IF(Variables!$AD$24=2,Function1149!AD143,Function1149!AQ143) ->  | AE74: =IF(Variables!$AD$24=2,Function1149!AE143,Function1149!AR143) -> 
E75: SCHMD | F75: Schedule M Deductions | I75: 0.5227884621 | J75: 0.1552876126 | K75: 0.3019214664 | L75: 0 | M75: 0.003191548108 | N75: 0.008795786426 | O75: 0.008015124335 | P75: 0 | Q75: 1
E76: SCHMDF | F76: Schedule M Deductions - Flow Through | I76: 1 | J76: 0 | K76: 0 | L76: 0 | M76: 0 | N76: 0 | O76: 0 | P76: 0 | Q76: 1
E77: SCHMDP | F77: Schedule M Deductions - Permanent | I77: 0.4990425753 | J77: 0.04223817146 | K77: 0.2861061775 | L77: 0 | M77: 0.04519973017 | N77: 0.08146907158 | O77: 0.045944274 | P77: 0 | Q77: 1 | T77: DITBALRL | AG77: DITBALMA
E78: SCHMDP-SO | F78: Schedule M Deductions - Permanent- SO | I78: 0.4042442012 | J78: 0.04812686127 | K78: 0.340006384 | L78: 0 | M78: 0.05441434776 | N78: 0.0978975281 | O78: 0.05531067761 | P78: 0 | Q78: 1 | T78: Pacific Division | V78: Total | W78: =Variables!X24 -> UTAH | X78: =I$3 -> Production | Y78: Transmission | Z78: Distribution | AA78: Ancillary | AB78: C_Billing | AC78: C_Metering | AD78: C_Service | AE78: DSM | AG78: Pacific Division | AI78: Total | AJ78: =Variables!X24 -> UTAH | AK78: =I$3 -> Production | AL78: Transmission | AM78: Distribution | AN78: Ancillary | AO78: C_Billing | AP78: C_Metering | AQ78: C_Service | AR78: DSM
E79: SCHMDT | F79: Schedule M Deductions - Temporary | I79: 0.5234441071 | J79: 0.1584090078 | K79: 0.3023581405 | L79: 0 | M79: 0.00203166501 | N79: 0.006789212682 | O79: 0.006967866933 | P79: 0 | Q79: 1 | T79: Pacific Division | AG79: Pacific Division
E80: SCHMDT-GPS | F80: Schedule M Deductions - Temporary-GPS | I80: 0.4565216092 | J80: 0.20186045 | K80: 0.3282560953 | L80: 0 | M80: 0 | N80: 0.01336184549 | O80: 0 | P80: 0 | Q80: 1 | T80: Production | U80: P | V80: =Factors!C440 -> 10083490.33 | W80: =IF(Variables!$AO$3=12,Factors!H440+Factors!K440,CHOOSE(Variables!AO$3,Factors!D440,Factors!E440,Factors!F440,Factors!G440,Factors!H440,Factors!I440,Factors!J440,Factors!K440,Factors!L440,Factors!M440,Factors!N440)) -> -3488376.29 | X80: =VLOOKUP($U80,Func_Ftrs,I$90,0)*IF(Variables!$Y$23=1,$V80,$W80) -> -3488376.29 | Y80: =VLOOKUP($U80,Func_Ftrs,J$90,0)*IF(Variables!$Y$23=1,$V80,$W80) -> 0 | Z80: =VLOOKUP($U80,Func_Ftrs,K$90,0)*IF(Variables!$Y$23=1,$V80,$W80) -> 0 | AA80: =VLOOKUP($U80,Func_Ftrs,L$90,0)*IF(Variables!$Y$23=1,$V80,$W80) -> 0 | AB80: =VLOOKUP($U80,Func_Ftrs,M$90,0)*IF(Variables!$Y$23=1,$V80,$W80) -> 0 | AC80: =VLOOKUP($U80,Func_Ftrs,N$90,0)*IF(Variables!$Y$23=1,$V80,$W80) -> 0 | AD80: =VLOOKUP($U80,Func_Ftrs,O$90,0)*IF(Variables!$Y$23=1,$V80,$W80) -> 0 | AE80: =VLOOKUP($U80,Func_Ftrs,P$90,0)*IF(Variables!$Y$23=1,$V80,$W80) -> 0 | AG80: Production | AH80: P | AI80: =V80 -> 10083490.33 | AJ80: -3488376.29 | AK80: =VLOOKUP($AH80,Func_Ftrs,I$90,0)*IF(Variables!$Y$23=1,$AI80,$AJ80) -> -3488376.29 | AL80: =VLOOKUP($AH80,Func_Ftrs,J$90,0)*IF(Variables!$Y$23=1,$AI80,$AJ80) -> 0 | AM80: =VLOOKUP($AH80,Func_Ftrs,K$90,0)*IF(Variables!$Y$23=1,$AI80,$AJ80) -> 0 | AN80: =VLOOKUP($AH80,Func_Ftrs,L$90,0)*IF(Variables!$Y$23=1,$AI80,$AJ80) -> 0 | AO80: =VLOOKUP($AH80,Func_Ftrs,M$90,0)*IF(Variables!$Y$23=1,$AI80,$AJ80) -> 0 | AP80: =VLOOKUP($AH80,Func_Ftrs,N$90,0)*IF(Variables!$Y$23=1,$AI80,$AJ80) -> 0 | AQ80: =VLOOKUP($AH80,Func_Ftrs,O$90,0)*IF(Variables!$Y$23=1,$AI80,$AJ80) -> 0 | AR80: =VLOOKUP($AH80,Func_Ftrs,P$90,0)*IF(Variables!$Y$23=1,$AI80,$AJ80) -> 0
E81: SCHMDT-SG | F81: Schedule M Deductions - Temporary-SG | I81: 0.4608190971 | J81: 0.1948405389 | K81: 0.3224945048 | L81: 0 | M81: 0.005105776225 | N81: 0.01441050707 | O81: 0.00232957585 | P81: 0 | Q81: 1 | T81: Transmission | U81: T | V81: =Factors!C441 -> 9546703.41 | W81: =IF(Variables!$AO$3=12,Factors!H441+Factors!K441,CHOOSE(Variables!AO$3,Factors!D441,Factors!E441,Factors!F441,Factors!G441,Factors!H441,Factors!I441,Factors!J441,Factors!K441,Factors!L441,Factors!M441,Factors!N441)) -> 511448.58 | X81: =VLOOKUP($U81,Func_Ftrs,I$90,0)*IF(Variables!$Y$23=1,$V81,$W81) -> 0 | Y81: =VLOOKUP($U81,Func_Ftrs,J$90,0)*IF(Variables!$Y$23=1,$V81,$W81) -> 511448.58 | Z81: =VLOOKUP($U81,Func_Ftrs,K$90,0)*IF(Variables!$Y$23=1,$V81,$W81) -> 0 | AA81: =VLOOKUP($U81,Func_Ftrs,L$90,0)*IF(Variables!$Y$23=1,$V81,$W81) -> 0 | AB81: =VLOOKUP($U81,Func_Ftrs,M$90,0)*IF(Variables!$Y$23=1,$V81,$W81) -> 0 | AC81: =VLOOKUP($U81,Func_Ftrs,N$90,0)*IF(Variables!$Y$23=1,$V81,$W81) -> 0 | AD81: =VLOOKUP($U81,Func_Ftrs,O$90,0)*IF(Variables!$Y$23=1,$V81,$W81) -> 0 | AE81: =VLOOKUP($U81,Func_Ftrs,P$90,0)*IF(Variables!$Y$23=1,$V81,$W81) -> 0 | AG81: Transmission | AH81: T | AI81: 9546703.41 | AJ81: 511448.58 | AK81: =VLOOKUP($AH81,Func_Ftrs,I$90,0)*IF(Variables!$Y$23=1,$AI81,$AJ81) -> 0 | AL81: =VLOOKUP($AH81,Func_Ftrs,J$90,0)*IF(Variables!$Y$23=1,$AI81,$AJ81) -> 511448.58 | AM81: =VLOOKUP($AH81,Func_Ftrs,K$90,0)*IF(Variables!$Y$23=1,$AI81,$AJ81) -> 0 | AN81: =VLOOKUP($AH81,Func_Ftrs,L$90,0)*IF(Variables!$Y$23=1,$AI81,$AJ81) -> 0 | AO81: =VLOOKUP($AH81,Func_Ftrs,M$90,0)*IF(Variables!$Y$23=1,$AI81,$AJ81) -> 0 | AP81: =VLOOKUP($AH81,Func_Ftrs,N$90,0)*IF(Variables!$Y$23=1,$AI81,$AJ81) -> 0 | AQ81: =VLOOKUP($AH81,Func_Ftrs,O$90,0)*IF(Variables!$Y$23=1,$AI81,$AJ81) -> 0 | AR81: =VLOOKUP($AH81,Func_Ftrs,P$90,0)*IF(Variables!$Y$23=1,$AI81,$AJ81) -> 0
E82: SCHMDT-SITUS | F82: Schedule M Deductions - Temporary-SITUS | I82: 0.3410559312 | J82: 0.1427612088 | K82: 0.4141191546 | L82: 0 | M82: 0.006128821526 | N82: 0.02200440681 | O82: 0.07393047712 | P82: 0 | Q82: 1 | T82: Distribution | U82: D_SPLIT | V82: =Factors!C442 -> 2823945.03 | W82: =IF(Variables!$AO$3=12,Factors!H442+Factors!K442,CHOOSE(Variables!AO$3,Factors!D442,Factors!E442,Factors!F442,Factors!G442,Factors!H442,Factors!I442,Factors!J442,Factors!K442,Factors!L442,Factors!M442,Factors!N442)) -> -1734997.17 | X82: =VLOOKUP($U82,Func_Ftrs,I$90,0)*IF(Variables!$Y$23=1,$V82,$W82) -> 0 | Y82: =VLOOKUP($U82,Func_Ftrs,J$90,0)*IF(Variables!$Y$23=1,$V82,$W82) -> 0 | Z82: =VLOOKUP($U82,Func_Ftrs,K$90,0)*IF(Variables!$Y$23=1,$V82,$W82) -> -1682659.054 | AA82: =VLOOKUP($U82,Func_Ftrs,L$90,0)*IF(Variables!$Y$23=1,$V82,$W82) -> 0 | AB82: =VLOOKUP($U82,Func_Ftrs,M$90,0)*IF(Variables!$Y$23=1,$V82,$W82) -> 0 | AC82: =VLOOKUP($U82,Func_Ftrs,N$90,0)*IF(Variables!$Y$23=1,$V82,$W82) -> -52338.11583 | AD82: =VLOOKUP($U82,Func_Ftrs,O$90,0)*IF(Variables!$Y$23=1,$V82,$W82) -> 0 | AE82: =VLOOKUP($U82,Func_Ftrs,P$90,0)*IF(Variables!$Y$23=1,$V82,$W82) -> 0 | AG82: Distribution | AH82: D_SPLIT | AI82: 2823945.03 | AJ82: -1734997.17 | AK82: =VLOOKUP($AH82,Func_Ftrs,I$90,0)*IF(Variables!$Y$23=1,$AI82,$AJ82) -> 0 | AL82: =VLOOKUP($AH82,Func_Ftrs,J$90,0)*IF(Variables!$Y$23=1,$AI82,$AJ82) -> 0 | AM82: =VLOOKUP($AH82,Func_Ftrs,K$90,0)*IF(Variables!$Y$23=1,$AI82,$AJ82) -> -1682659.054 | AN82: =VLOOKUP($AH82,Func_Ftrs,L$90,0)*IF(Variables!$Y$23=1,$AI82,$AJ82) -> 0 | AO82: =VLOOKUP($AH82,Func_Ftrs,M$90,0)*IF(Variables!$Y$23=1,$AI82,$AJ82) -> 0 | AP82: =VLOOKUP($AH82,Func_Ftrs,N$90,0)*IF(Variables!$Y$23=1,$AI82,$AJ82) -> -52338.11583 | AQ82: =VLOOKUP($AH82,Func_Ftrs,O$90,0)*IF(Variables!$Y$23=1,$AI82,$AJ82) -> 0 | AR82: =VLOOKUP($AH82,Func_Ftrs,P$90,0)*IF(Variables!$Y$23=1,$AI82,$AJ82) -> 0
E83: SCHMDT-SNP | F83: Schedule M Deductions - Temporary-SNP | I83: 0.4565216092 | J83: 0.20186045 | K83: 0.3282560953 | L83: 0 | M83: 0 | N83: 0.01336184549 | O83: 0 | P83: 0 | Q83: 1 | T83: General | U83: G | V83: =Factors!C443 -> -647092.83 | W83: =IF(Variables!$AO$3=12,Factors!H443+Factors!K443,CHOOSE(Variables!AO$3,Factors!D443,Factors!E443,Factors!F443,Factors!G443,Factors!H443,Factors!I443,Factors!J443,Factors!K443,Factors!L443,Factors!M443,Factors!N443)) -> -255138.54 | X83: =VLOOKUP($U83,Func_Ftrs,I$90,0)*IF(Variables!$Y$23=1,$V83,$W83) -> -65549.90709 | Y83: =VLOOKUP($U83,Func_Ftrs,J$90,0)*IF(Variables!$Y$23=1,$V83,$W83) -> -55968.2003 | Z83: =VLOOKUP($U83,Func_Ftrs,K$90,0)*IF(Variables!$Y$23=1,$V83,$W83) -> -121834.6196 | AA83: =VLOOKUP($U83,Func_Ftrs,L$90,0)*IF(Variables!$Y$23=1,$V83,$W83) -> 0 | AB83: =VLOOKUP($U83,Func_Ftrs,M$90,0)*IF(Variables!$Y$23=1,$V83,$W83) -> -6826.467548 | AC83: =VLOOKUP($U83,Func_Ftrs,N$90,0)*IF(Variables!$Y$23=1,$V83,$W83) -> -4959.345419 | AD83: =VLOOKUP($U83,Func_Ftrs,O$90,0)*IF(Variables!$Y$23=1,$V83,$W83) -> 0 | AE83: =VLOOKUP($U83,Func_Ftrs,P$90,0)*IF(Variables!$Y$23=1,$V83,$W83) -> 0 | AG83: General | AH83: G | AI83: -647092.83 | AJ83: -255138.54 | AK83: =VLOOKUP($AH83,Func_Ftrs,I$90,0)*IF(Variables!$Y$23=1,$AI83,$AJ83) -> -65549.90709 | AL83: =VLOOKUP($AH83,Func_Ftrs,J$90,0)*IF(Variables!$Y$23=1,$AI83,$AJ83) -> -55968.2003 | AM83: =VLOOKUP($AH83,Func_Ftrs,K$90,0)*IF(Variables!$Y$23=1,$AI83,$AJ83) -> -121834.6196 | AN83: =VLOOKUP($AH83,Func_Ftrs,L$90,0)*IF(Variables!$Y$23=1,$AI83,$AJ83) -> 0 | AO83: =VLOOKUP($AH83,Func_Ftrs,M$90,0)*IF(Variables!$Y$23=1,$AI83,$AJ83) -> -6826.467548 | AP83: =VLOOKUP($AH83,Func_Ftrs,N$90,0)*IF(Variables!$Y$23=1,$AI83,$AJ83) -> -4959.345419 | AQ83: =VLOOKUP($AH83,Func_Ftrs,O$90,0)*IF(Variables!$Y$23=1,$AI83,$AJ83) -> 0 | AR83: =VLOOKUP($AH83,Func_Ftrs,P$90,0)*IF(Variables!$Y$23=1,$AI83,$AJ83) -> 0
E84: SCHMDT-SO | F84: Schedule M Deductions - Temporary-SO | I84: 0.3991307728 | J84: 0.1406406649 | K84: 0.3597395907 | L84: 0 | M84: 0.0138620858 | N84: 0.02934318126 | O84: 0.05728370445 | P84: 0 | Q84: 1 | T84: Mining Plant | U84: P | V84: =Factors!C444 -> 5219.02 | W84: =IF(Variables!$AO$3=12,Factors!H444+Factors!K444,CHOOSE(Variables!AO$3,Factors!D444,Factors!E444,Factors!F444,Factors!G444,Factors!H444,Factors!I444,Factors!J444,Factors!K444,Factors!L444,Factors!M444,Factors!N444)) -> 2220.55 | X84: =VLOOKUP($U84,Func_Ftrs,I$90,0)*IF(Variables!$Y$23=1,$V84,$W84) -> 2220.55 | Y84: =VLOOKUP($U84,Func_Ftrs,J$90,0)*IF(Variables!$Y$23=1,$V84,$W84) -> 0 | Z84: =VLOOKUP($U84,Func_Ftrs,K$90,0)*IF(Variables!$Y$23=1,$V84,$W84) -> 0 | AA84: =VLOOKUP($U84,Func_Ftrs,L$90,0)*IF(Variables!$Y$23=1,$V84,$W84) -> 0 | AB84: =VLOOKUP($U84,Func_Ftrs,M$90,0)*IF(Variables!$Y$23=1,$V84,$W84) -> 0 | AC84: =VLOOKUP($U84,Func_Ftrs,N$90,0)*IF(Variables!$Y$23=1,$V84,$W84) -> 0 | AD84: =VLOOKUP($U84,Func_Ftrs,O$90,0)*IF(Variables!$Y$23=1,$V84,$W84) -> 0 | AE84: =VLOOKUP($U84,Func_Ftrs,P$90,0)*IF(Variables!$Y$23=1,$V84,$W84) -> 0 | AG84: Mining Plant | AH84: P | AI84: 5219.02 | AJ84: 2220.55 | AK84: =VLOOKUP($AH84,Func_Ftrs,I$90,0)*IF(Variables!$Y$23=1,$AI84,$AJ84) -> 2220.55 | AL84: =VLOOKUP($AH84,Func_Ftrs,J$90,0)*IF(Variables!$Y$23=1,$AI84,$AJ84) -> 0 | AM84: =VLOOKUP($AH84,Func_Ftrs,K$90,0)*IF(Variables!$Y$23=1,$AI84,$AJ84) -> 0 | AN84: =VLOOKUP($AH84,Func_Ftrs,L$90,0)*IF(Variables!$Y$23=1,$AI84,$AJ84) -> 0 | AO84: =VLOOKUP($AH84,Func_Ftrs,M$90,0)*IF(Variables!$Y$23=1,$AI84,$AJ84) -> 0 | AP84: =VLOOKUP($AH84,Func_Ftrs,N$90,0)*IF(Variables!$Y$23=1,$AI84,$AJ84) -> 0 | AQ84: =VLOOKUP($AH84,Func_Ftrs,O$90,0)*IF(Variables!$Y$23=1,$AI84,$AJ84) -> 0 | AR84: =VLOOKUP($AH84,Func_Ftrs,P$90,0)*IF(Variables!$Y$23=1,$AI84,$AJ84) -> 0
E85: STEP_UP | F85: Step-up Transformers | I85: 0.08489055306 | J85: 0.9151094469 | K85: 0 | L85: 0 | M85: 0 | N85: 0 | O85: 0 | P85: 0 | Q85: 1
E86: T | F86: Transmission | I86: 0 | J86: 1 | K86: 0 | L86: 0 | M86: 0 | N86: 0 | O86: 0 | P86: 0 | Q86: 1 | T86: Total Pacific Division | V86: =SUM(V80:V85) -> 21812264.96 | W86: -4964842.87 | X86: =SUM(X80:X85) -> -3551705.647 | Y86: =SUM(Y80:Y85) -> 455480.3797 | Z86: =SUM(Z80:Z85) -> -1804493.674 | AA86: 0 | AB86: -6826.467548 | AC86: -57297.46125 | AD86: 0 | AE86: 0 | AG86: Total Pacific Division | AI86: =SUM(AI80:AI85) -> 21812264.96 | AJ86: -4964842.87 | AK86: -3551705.647 | AL86: 455480.3797 | AM86: -1804493.674 | AN86: 0 | AO86: -6826.467548 | AP86: -57297.46125 | AQ86: 0 | AR86: 0
E87: TAXDEPR | F87: Tax Depreciation | I87: 0.538093851 | J87: 0.1599673196 | K87: 0.2956423354 | L87: 0 | M87: 0.001573456926 | N87: 0.003540275144 | O87: 0.001182761924 | P87: 0 | Q87: 1
E88: WSF | F88: Wholesale Sales Firm | I88: 0.795370473 | J88: 0.204629527 | K88: 0 | L88: 0 | M88: 0 | N88: 0 | O88: 0 | P88: 0 | Q88: 1 | T88: Utah Division | AG88: Utah Division
T89: Production | U89: P | V89: =Factors!C450 -> 21122978.74 | W89: =IF(Variables!$AO$3=12,Factors!H450+Factors!K450,CHOOSE(Variables!AO$3,Factors!D450,Factors!E450,Factors!F450,Factors!G450,Factors!H450,Factors!I450,Factors!J450,Factors!K450,Factors!L450,Factors!M450,Factors!N450)) -> 19383081.86 | X89: =VLOOKUP($U89,Func_Ftrs,I$90,0)*IF(Variables!$Y$23=1,$V89,$W89) -> 19383081.86 | Y89: =VLOOKUP($U89,Func_Ftrs,J$90,0)*IF(Variables!$Y$23=1,$V89,$W89) -> 0 | Z89: =VLOOKUP($U89,Func_Ftrs,K$90,0)*IF(Variables!$Y$23=1,$V89,$W89) -> 0 | AA89: =VLOOKUP($U89,Func_Ftrs,L$90,0)*IF(Variables!$Y$23=1,$V89,$W89) -> 0 | AB89: =VLOOKUP($U89,Func_Ftrs,M$90,0)*IF(Variables!$Y$23=1,$V89,$W89) -> 0 | AC89: =VLOOKUP($U89,Func_Ftrs,N$90,0)*IF(Variables!$Y$23=1,$V89,$W89) -> 0 | AD89: =VLOOKUP($U89,Func_Ftrs,O$90,0)*IF(Variables!$Y$23=1,$V89,$W89) -> 0 | AE89: =VLOOKUP($U89,Func_Ftrs,P$90,0)*IF(Variables!$Y$23=1,$V89,$W89) -> 0 | AG89: Production | AH89: P | AI89: =V89 -> 21122978.74 | AJ89: 19383081.86 | AK89: =VLOOKUP($AH89,Func_Ftrs,I$90,0)*IF(Variables!$Y$23=1,$AI89,$AJ89) -> 19383081.86 | AL89: =VLOOKUP($AH89,Func_Ftrs,J$90,0)*IF(Variables!$Y$23=1,$AI89,$AJ89) -> 0 | AM89: =VLOOKUP($AH89,Func_Ftrs,K$90,0)*IF(Variables!$Y$23=1,$AI89,$AJ89) -> 0 | AN89: =VLOOKUP($AH89,Func_Ftrs,L$90,0)*IF(Variables!$Y$23=1,$AI89,$AJ89) -> 0 | AO89: =VLOOKUP($AH89,Func_Ftrs,M$90,0)*IF(Variables!$Y$23=1,$AI89,$AJ89) -> 0 | AP89: =VLOOKUP($AH89,Func_Ftrs,N$90,0)*IF(Variables!$Y$23=1,$AI89,$AJ89) -> 0 | AQ89: =VLOOKUP($AH89,Func_Ftrs,O$90,0)*IF(Variables!$Y$23=1,$AI89,$AJ89) -> 0 | AR89: =VLOOKUP($AH89,Func_Ftrs,P$90,0)*IF(Variables!$Y$23=1,$AI89,$AJ89) -> 0
E90: 1 | F90: =E90+1 -> 2 | G90: 3 | H90: 4 | I90: 5 | J90: 6 | K90: 7 | L90: 8 | M90: 9 | N90: 10 | O90: 11 | P90: 12 | Q90: 13 | T90: Transmission | U90: T | V90: =Factors!C451 -> 20702562.37 | W90: =IF(Variables!$AO$3=12,Factors!H451+Factors!K451,CHOOSE(Variables!AO$3,Factors!D451,Factors!E451,Factors!F451,Factors!G451,Factors!H451,Factors!I451,Factors!J451,Factors!K451,Factors!L451,Factors!M451,Factors!N451)) -> 17837387.65 | X90: =VLOOKUP($U90,Func_Ftrs,I$90,0)*IF(Variables!$Y$23=1,$V90,$W90) -> 0 | Y90: =VLOOKUP($U90,Func_Ftrs,J$90,0)*IF(Variables!$Y$23=1,$V90,$W90) -> 17837387.65 | Z90: =VLOOKUP($U90,Func_Ftrs,K$90,0)*IF(Variables!$Y$23=1,$V90,$W90) -> 0 | AA90: =VLOOKUP($U90,Func_Ftrs,L$90,0)*IF(Variables!$Y$23=1,$V90,$W90) -> 0 | AB90: =VLOOKUP($U90,Func_Ftrs,M$90,0)*IF(Variables!$Y$23=1,$V90,$W90) -> 0 | AC90: =VLOOKUP($U90,Func_Ftrs,N$90,0)*IF(Variables!$Y$23=1,$V90,$W90) -> 0 | AD90: =VLOOKUP($U90,Func_Ftrs,O$90,0)*IF(Variables!$Y$23=1,$V90,$W90) -> 0 | AE90: =VLOOKUP($U90,Func_Ftrs,P$90,0)*IF(Variables!$Y$23=1,$V90,$W90) -> 0 | AG90: Transmission | AH90: T | AI90: 20702562.37 | AJ90: 17837387.65 | AK90: =VLOOKUP($AH90,Func_Ftrs,I$90,0)*IF(Variables!$Y$23=1,$AI90,$AJ90) -> 0 | AL90: =VLOOKUP($AH90,Func_Ftrs,J$90,0)*IF(Variables!$Y$23=1,$AI90,$AJ90) -> 17837387.65 | AM90: =VLOOKUP($AH90,Func_Ftrs,K$90,0)*IF(Variables!$Y$23=1,$AI90,$AJ90) -> 0 | AN90: =VLOOKUP($AH90,Func_Ftrs,L$90,0)*IF(Variables!$Y$23=1,$AI90,$AJ90) -> 0 | AO90: =VLOOKUP($AH90,Func_Ftrs,M$90,0)*IF(Variables!$Y$23=1,$AI90,$AJ90) -> 0 | AP90: =VLOOKUP($AH90,Func_Ftrs,N$90,0)*IF(Variables!$Y$23=1,$AI90,$AJ90) -> 0 | AQ90: =VLOOKUP($AH90,Func_Ftrs,O$90,0)*IF(Variables!$Y$23=1,$AI90,$AJ90) -> 0 | AR90: =VLOOKUP($AH90,Func_Ftrs,P$90,0)*IF(Variables!$Y$23=1,$AI90,$AJ90) -> 0
T91: Distribution | U91: D_SPLIT | V91: =Factors!C452 -> 18586103.96 | W91: =IF(Variables!$AO$3=12,Factors!H452+Factors!K452,CHOOSE(Variables!AO$3,Factors!D452,Factors!E452,Factors!F452,Factors!G452,Factors!H452,Factors!I452,Factors!J452,Factors!K452,Factors!L452,Factors!M452,Factors!N452)) -> 13076098.71 | X91: =VLOOKUP($U91,Func_Ftrs,I$90,0)*IF(Variables!$Y$23=1,$V91,$W91) -> 0 | Y91: =VLOOKUP($U91,Func_Ftrs,J$90,0)*IF(Variables!$Y$23=1,$V91,$W91) -> 0 | Z91: =VLOOKUP($U91,Func_Ftrs,K$90,0)*IF(Variables!$Y$23=1,$V91,$W91) -> 12681643.68 | AA91: =VLOOKUP($U91,Func_Ftrs,L$90,0)*IF(Variables!$Y$23=1,$V91,$W91) -> 0 | AB91: =VLOOKUP($U91,Func_Ftrs,M$90,0)*IF(Variables!$Y$23=1,$V91,$W91) -> 0 | AC91: =VLOOKUP($U91,Func_Ftrs,N$90,0)*IF(Variables!$Y$23=1,$V91,$W91) -> 394455.0347 | AD91: =VLOOKUP($U91,Func_Ftrs,O$90,0)*IF(Variables!$Y$23=1,$V91,$W91) -> 0 | AE91: =VLOOKUP($U91,Func_Ftrs,P$90,0)*IF(Variables!$Y$23=1,$V91,$W91) -> 0 | AG91: Distribution | AH91: D_SPLIT | AI91: 18586103.96 | AJ91: 13076098.71 | AK91: =VLOOKUP($AH91,Func_Ftrs,I$90,0)*IF(Variables!$Y$23=1,$AI91,$AJ91) -> 0 | AL91: =VLOOKUP($AH91,Func_Ftrs,J$90,0)*IF(Variables!$Y$23=1,$AI91,$AJ91) -> 0 | AM91: =VLOOKUP($AH91,Func_Ftrs,K$90,0)*IF(Variables!$Y$23=1,$AI91,$AJ91) -> 12681643.68 | AN91: =VLOOKUP($AH91,Func_Ftrs,L$90,0)*IF(Variables!$Y$23=1,$AI91,$AJ91) -> 0 | AO91: =VLOOKUP($AH91,Func_Ftrs,M$90,0)*IF(Variables!$Y$23=1,$AI91,$AJ91) -> 0 | AP91: =VLOOKUP($AH91,Func_Ftrs,N$90,0)*IF(Variables!$Y$23=1,$AI91,$AJ91) -> 394455.0347 | AQ91: =VLOOKUP($AH91,Func_Ftrs,O$90,0)*IF(Variables!$Y$23=1,$AI91,$AJ91) -> 0 | AR91: =VLOOKUP($AH91,Func_Ftrs,P$90,0)*IF(Variables!$Y$23=1,$AI91,$AJ91) -> 0
T92: General | U92: G | V92: =Factors!C453 -> -1231052.72 | W92: =IF(Variables!$AO$3=12,Factors!H453+Factors!K453,CHOOSE(Variables!AO$3,Factors!D453,Factors!E453,Factors!F453,Factors!G453,Factors!H453,Factors!I453,Factors!J453,Factors!K453,Factors!L453,Factors!M453,Factors!N453)) -> -521661.26 | X92: =VLOOKUP($U92,Func_Ftrs,I$90,0)*IF(Variables!$Y$23=1,$V92,$W92) -> -134024.6249 | Y92: =VLOOKUP($U92,Func_Ftrs,J$90,0)*IF(Variables!$Y$23=1,$V92,$W92) -> -114433.6794 | Z92: =VLOOKUP($U92,Func_Ftrs,K$90,0)*IF(Variables!$Y$23=1,$V92,$W92) -> -249105.4515 | AA92: =VLOOKUP($U92,Func_Ftrs,L$90,0)*IF(Variables!$Y$23=1,$V92,$W92) -> 0 | AB92: =VLOOKUP($U92,Func_Ftrs,M$90,0)*IF(Variables!$Y$23=1,$V92,$W92) -> -13957.52936 | AC92: =VLOOKUP($U92,Func_Ftrs,N$90,0)*IF(Variables!$Y$23=1,$V92,$W92) -> -10139.97486 | AD92: =VLOOKUP($U92,Func_Ftrs,O$90,0)*IF(Variables!$Y$23=1,$V92,$W92) -> 0 | AE92: =VLOOKUP($U92,Func_Ftrs,P$90,0)*IF(Variables!$Y$23=1,$V92,$W92) -> 0 | AG92: General | AH92: G | AI92: -1231052.72 | AJ92: -521661.26 | AK92: =VLOOKUP($AH92,Func_Ftrs,I$90,0)*IF(Variables!$Y$23=1,$AI92,$AJ92) -> -134024.6249 | AL92: =VLOOKUP($AH92,Func_Ftrs,J$90,0)*IF(Variables!$Y$23=1,$AI92,$AJ92) -> -114433.6794 | AM92: =VLOOKUP($AH92,Func_Ftrs,K$90,0)*IF(Variables!$Y$23=1,$AI92,$AJ92) -> -249105.4515 | AN92: =VLOOKUP($AH92,Func_Ftrs,L$90,0)*IF(Variables!$Y$23=1,$AI92,$AJ92) -> 0 | AO92: =VLOOKUP($AH92,Func_Ftrs,M$90,0)*IF(Variables!$Y$23=1,$AI92,$AJ92) -> -13957.52936 | AP92: =VLOOKUP($AH92,Func_Ftrs,N$90,0)*IF(Variables!$Y$23=1,$AI92,$AJ92) -> -10139.97486 | AQ92: =VLOOKUP($AH92,Func_Ftrs,O$90,0)*IF(Variables!$Y$23=1,$AI92,$AJ92) -> 0 | AR92: =VLOOKUP($AH92,Func_Ftrs,P$90,0)*IF(Variables!$Y$23=1,$AI92,$AJ92) -> 0
T93: Mining Plant | U93: P | V93: =Factors!C454 -> -7467.38 | W93: =IF(Variables!$AO$3=12,Factors!H454+Factors!K454,CHOOSE(Variables!AO$3,Factors!D454,Factors!E454,Factors!F454,Factors!G454,Factors!H454,Factors!I454,Factors!J454,Factors!K454,Factors!L454,Factors!M454,Factors!N454)) -> -3334.81 | X93: =VLOOKUP($U93,Func_Ftrs,I$90,0)*IF(Variables!$Y$23=1,$V93,$W93) -> -3334.81 | Y93: =VLOOKUP($U93,Func_Ftrs,J$90,0)*IF(Variables!$Y$23=1,$V93,$W93) -> 0 | Z93: =VLOOKUP($U93,Func_Ftrs,K$90,0)*IF(Variables!$Y$23=1,$V93,$W93) -> 0 | AA93: =VLOOKUP($U93,Func_Ftrs,L$90,0)*IF(Variables!$Y$23=1,$V93,$W93) -> 0 | AB93: =VLOOKUP($U93,Func_Ftrs,M$90,0)*IF(Variables!$Y$23=1,$V93,$W93) -> 0 | AC93: =VLOOKUP($U93,Func_Ftrs,N$90,0)*IF(Variables!$Y$23=1,$V93,$W93) -> 0 | AD93: =VLOOKUP($U93,Func_Ftrs,O$90,0)*IF(Variables!$Y$23=1,$V93,$W93) -> 0 | AE93: =VLOOKUP($U93,Func_Ftrs,P$90,0)*IF(Variables!$Y$23=1,$V93,$W93) -> 0 | AG93: Mining Plant | AH93: P | AI93: -7467.38 | AJ93: -3334.81 | AK93: =VLOOKUP($AH93,Func_Ftrs,I$90,0)*IF(Variables!$Y$23=1,$AI93,$AJ93) -> -3334.81 | AL93: =VLOOKUP($AH93,Func_Ftrs,J$90,0)*IF(Variables!$Y$23=1,$AI93,$AJ93) -> 0 | AM93: =VLOOKUP($AH93,Func_Ftrs,K$90,0)*IF(Variables!$Y$23=1,$AI93,$AJ93) -> 0 | AN93: =VLOOKUP($AH93,Func_Ftrs,L$90,0)*IF(Variables!$Y$23=1,$AI93,$AJ93) -> 0 | AO93: =VLOOKUP($AH93,Func_Ftrs,M$90,0)*IF(Variables!$Y$23=1,$AI93,$AJ93) -> 0 | AP93: =VLOOKUP($AH93,Func_Ftrs,N$90,0)*IF(Variables!$Y$23=1,$AI93,$AJ93) -> 0 | AQ93: =VLOOKUP($AH93,Func_Ftrs,O$90,0)*IF(Variables!$Y$23=1,$AI93,$AJ93) -> 0 | AR93: =VLOOKUP($AH93,Func_Ftrs,P$90,0)*IF(Variables!$Y$23=1,$AI93,$AJ93) -> 0
T95: Total Utah Division | V95: =SUM(V89:V94) -> 59173124.97 | W95: 49771572.15 | X95: =SUM(X89:X94) -> 19245722.43 | Y95: 17722953.97 | Z95: 12432538.22 | AA95: 0 | AB95: -13957.52936 | AC95: 384315.0599 | AD95: 0 | AE95: 0 | AG95: Total Utah Division | AI95: =SUM(AI89:AI94) -> 59173124.97 | AJ95: 49771572.15 | AK95: 19245722.43 | AL95: 17722953.97 | AM95: 12432538.22 | AN95: 0 | AO95: -13957.52936 | AP95: 384315.0599 | AQ95: 0 | AR95: 0
T97: PACIFICORP | AG97: PACIFICORP
T98: Production | U98: P | V98: =Factors!C460 -> 367793639.1 | W98: =IF(Variables!$AO$3=12,Factors!H460+Factors!K460,CHOOSE(Variables!AO$3,Factors!D460,Factors!E460,Factors!F460,Factors!G460,Factors!H460,Factors!I460,Factors!J460,Factors!K460,Factors!L460,Factors!M460,Factors!N460)) -> 149879330.3 | X98: =VLOOKUP($U98,Func_Ftrs,I$90,0)*IF(Variables!$Y$23=1,$V98,$W98) -> 149879330.3 | Y98: =VLOOKUP($U98,Func_Ftrs,J$90,0)*IF(Variables!$Y$23=1,$V98,$W98) -> 0 | Z98: =VLOOKUP($U98,Func_Ftrs,K$90,0)*IF(Variables!$Y$23=1,$V98,$W98) -> 0 | AA98: =VLOOKUP($U98,Func_Ftrs,L$90,0)*IF(Variables!$Y$23=1,$V98,$W98) -> 0 | AB98: =VLOOKUP($U98,Func_Ftrs,M$90,0)*IF(Variables!$Y$23=1,$V98,$W98) -> 0 | AC98: =VLOOKUP($U98,Func_Ftrs,N$90,0)*IF(Variables!$Y$23=1,$V98,$W98) -> 0 | AD98: =VLOOKUP($U98,Func_Ftrs,O$90,0)*IF(Variables!$Y$23=1,$V98,$W98) -> 0 | AE98: =VLOOKUP($U98,Func_Ftrs,P$90,0)*IF(Variables!$Y$23=1,$V98,$W98) -> 0 | AG98: Production | AH98: P | AI98: =V98 -> 367793639.1 | AJ98: =W98 -> 149879330.3 | AK98: =VLOOKUP($AH98,Func_Ftrs,I$90,0)*IF(Variables!$Y$23=1,$AI98,$AJ98) -> 149879330.3 | AL98: =VLOOKUP($AH98,Func_Ftrs,J$90,0)*IF(Variables!$Y$23=1,$AI98,$AJ98) -> 0 | AM98: =VLOOKUP($AH98,Func_Ftrs,K$90,0)*IF(Variables!$Y$23=1,$AI98,$AJ98) -> 0 | AN98: =VLOOKUP($AH98,Func_Ftrs,L$90,0)*IF(Variables!$Y$23=1,$AI98,$AJ98) -> 0 | AO98: =VLOOKUP($AH98,Func_Ftrs,M$90,0)*IF(Variables!$Y$23=1,$AI98,$AJ98) -> 0 | AP98: =VLOOKUP($AH98,Func_Ftrs,N$90,0)*IF(Variables!$Y$23=1,$AI98,$AJ98) -> 0 | AQ98: =VLOOKUP($AH98,Func_Ftrs,O$90,0)*IF(Variables!$Y$23=1,$AI98,$AJ98) -> 0 | AR98: =VLOOKUP($AH98,Func_Ftrs,P$90,0)*IF(Variables!$Y$23=1,$AI98,$AJ98) -> 0
T99: Hydro - P | U99: P | V99: =Factors!C461 -> -1888915.63 | W99: =IF(Variables!$AO$3=12,Factors!H461+Factors!K461,CHOOSE(Variables!AO$3,Factors!D461,Factors!E461,Factors!F461,Factors!G461,Factors!H461,Factors!I461,Factors!J461,Factors!K461,Factors!L461,Factors!M461,Factors!N461)) -> -821539.44 | X99: =VLOOKUP($U99,Func_Ftrs,I$90,0)*IF(Variables!$Y$23=1,$V99,$W99) -> -821539.44 | Y99: =VLOOKUP($U99,Func_Ftrs,J$90,0)*IF(Variables!$Y$23=1,$V99,$W99) -> 0 | Z99: =VLOOKUP($U99,Func_Ftrs,K$90,0)*IF(Variables!$Y$23=1,$V99,$W99) -> 0 | AA99: =VLOOKUP($U99,Func_Ftrs,L$90,0)*IF(Variables!$Y$23=1,$V99,$W99) -> 0 | AB99: =VLOOKUP($U99,Func_Ftrs,M$90,0)*IF(Variables!$Y$23=1,$V99,$W99) -> 0 | AC99: =VLOOKUP($U99,Func_Ftrs,N$90,0)*IF(Variables!$Y$23=1,$V99,$W99) -> 0 | AD99: =VLOOKUP($U99,Func_Ftrs,O$90,0)*IF(Variables!$Y$23=1,$V99,$W99) -> 0 | AE99: =VLOOKUP($U99,Func_Ftrs,P$90,0)*IF(Variables!$Y$23=1,$V99,$W99) -> 0 | AG99: Hydro - P | AH99: P | AI99: -1888915.63 | AJ99: -821539.44 | AK99: =VLOOKUP($AH99,Func_Ftrs,I$90,0)*IF(Variables!$Y$23=1,$AI99,$AJ99) -> -821539.44 | AL99: =VLOOKUP($AH99,Func_Ftrs,J$90,0)*IF(Variables!$Y$23=1,$AI99,$AJ99) -> 0 | AM99: =VLOOKUP($AH99,Func_Ftrs,K$90,0)*IF(Variables!$Y$23=1,$AI99,$AJ99) -> 0 | AN99: =VLOOKUP($AH99,Func_Ftrs,L$90,0)*IF(Variables!$Y$23=1,$AI99,$AJ99) -> 0 | AO99: =VLOOKUP($AH99,Func_Ftrs,M$90,0)*IF(Variables!$Y$23=1,$AI99,$AJ99) -> 0 | AP99: =VLOOKUP($AH99,Func_Ftrs,N$90,0)*IF(Variables!$Y$23=1,$AI99,$AJ99) -> 0 | AQ99: =VLOOKUP($AH99,Func_Ftrs,O$90,0)*IF(Variables!$Y$23=1,$AI99,$AJ99) -> 0 | AR99: =VLOOKUP($AH99,Func_Ftrs,P$90,0)*IF(Variables!$Y$23=1,$AI99,$AJ99) -> 0
T100: Hydro - U | U100: P | V100: =Factors!C462 -> 4704160.16 | W100: =IF(Variables!$AO$3=12,Factors!H462+Factors!K462,CHOOSE(Variables!AO$3,Factors!D462,Factors!E462,Factors!F462,Factors!G462,Factors!H462,Factors!I462,Factors!J462,Factors!K462,Factors!L462,Factors!M462,Factors!N462)) -> 2042409.05 | X100: =VLOOKUP($U100,Func_Ftrs,I$90,0)*IF(Variables!$Y$23=1,$V100,$W100) -> 2042409.05 | Y100: =VLOOKUP($U100,Func_Ftrs,J$90,0)*IF(Variables!$Y$23=1,$V100,$W100) -> 0 | Z100: =VLOOKUP($U100,Func_Ftrs,K$90,0)*IF(Variables!$Y$23=1,$V100,$W100) -> 0 | AA100: =VLOOKUP($U100,Func_Ftrs,L$90,0)*IF(Variables!$Y$23=1,$V100,$W100) -> 0 | AB100: =VLOOKUP($U100,Func_Ftrs,M$90,0)*IF(Variables!$Y$23=1,$V100,$W100) -> 0 | AC100: =VLOOKUP($U100,Func_Ftrs,N$90,0)*IF(Variables!$Y$23=1,$V100,$W100) -> 0 | AD100: =VLOOKUP($U100,Func_Ftrs,O$90,0)*IF(Variables!$Y$23=1,$V100,$W100) -> 0 | AE100: =VLOOKUP($U100,Func_Ftrs,P$90,0)*IF(Variables!$Y$23=1,$V100,$W100) -> 0 | AG100: Hydro - U | AH100: P | AI100: 4704160.16 | AJ100: 2042409.05 | AK100: =VLOOKUP($AH100,Func_Ftrs,I$90,0)*IF(Variables!$Y$23=1,$AI100,$AJ100) -> 2042409.05 | AL100: =VLOOKUP($AH100,Func_Ftrs,J$90,0)*IF(Variables!$Y$23=1,$AI100,$AJ100) -> 0 | AM100: =VLOOKUP($AH100,Func_Ftrs,K$90,0)*IF(Variables!$Y$23=1,$AI100,$AJ100) -> 0 | AN100: =VLOOKUP($AH100,Func_Ftrs,L$90,0)*IF(Variables!$Y$23=1,$AI100,$AJ100) -> 0 | AO100: =VLOOKUP($AH100,Func_Ftrs,M$90,0)*IF(Variables!$Y$23=1,$AI100,$AJ100) -> 0 | AP100: =VLOOKUP($AH100,Func_Ftrs,N$90,0)*IF(Variables!$Y$23=1,$AI100,$AJ100) -> 0 | AQ100: =VLOOKUP($AH100,Func_Ftrs,O$90,0)*IF(Variables!$Y$23=1,$AI100,$AJ100) -> 0 | AR100: =VLOOKUP($AH100,Func_Ftrs,P$90,0)*IF(Variables!$Y$23=1,$AI100,$AJ100) -> 0
T101: Transmission | U101: T | V101: =Factors!C472 -> -61149711.26 | W101: =IF(Variables!$AO$3=12,Factors!H472+Factors!K472,CHOOSE(Variables!AO$3,Factors!D472,Factors!E472,Factors!F472,Factors!G472,Factors!H472,Factors!I472,Factors!J472,Factors!K472,Factors!L472,Factors!M472,Factors!N472)) -> -61149711.26 | X101: =VLOOKUP($U101,Func_Ftrs,I$90,0)*IF(Variables!$Y$23=1,$V101,$W101) -> 0 | Y101: =VLOOKUP($U101,Func_Ftrs,J$90,0)*IF(Variables!$Y$23=1,$V101,$W101) -> -61149711.26 | Z101: =VLOOKUP($U101,Func_Ftrs,K$90,0)*IF(Variables!$Y$23=1,$V101,$W101) -> 0 | AA101: =VLOOKUP($U101,Func_Ftrs,L$90,0)*IF(Variables!$Y$23=1,$V101,$W101) -> 0 | AB101: =VLOOKUP($U101,Func_Ftrs,M$90,0)*IF(Variables!$Y$23=1,$V101,$W101) -> 0 | AC101: =VLOOKUP($U101,Func_Ftrs,N$90,0)*IF(Variables!$Y$23=1,$V101,$W101) -> 0 | AD101: =VLOOKUP($U101,Func_Ftrs,O$90,0)*IF(Variables!$Y$23=1,$V101,$W101) -> 0 | AE101: =VLOOKUP($U101,Func_Ftrs,P$90,0)*IF(Variables!$Y$23=1,$V101,$W101) -> 0 | AG101: Transmission | AH101: T | AI101: -61149711.26 | AJ101: -61149711.26 | AK101: =VLOOKUP($AH101,Func_Ftrs,I$90,0)*IF(Variables!$Y$23=1,$AI101,$AJ101) -> 0 | AL101: =VLOOKUP($AH101,Func_Ftrs,J$90,0)*IF(Variables!$Y$23=1,$AI101,$AJ101) -> -61149711.26 | AM101: =VLOOKUP($AH101,Func_Ftrs,K$90,0)*IF(Variables!$Y$23=1,$AI101,$AJ101) -> 0 | AN101: =VLOOKUP($AH101,Func_Ftrs,L$90,0)*IF(Variables!$Y$23=1,$AI101,$AJ101) -> 0 | AO101: =VLOOKUP($AH101,Func_Ftrs,M$90,0)*IF(Variables!$Y$23=1,$AI101,$AJ101) -> 0 | AP101: =VLOOKUP($AH101,Func_Ftrs,N$90,0)*IF(Variables!$Y$23=1,$AI101,$AJ101) -> 0 | AQ101: =VLOOKUP($AH101,Func_Ftrs,O$90,0)*IF(Variables!$Y$23=1,$AI101,$AJ101) -> 0 | AR101: =VLOOKUP($AH101,Func_Ftrs,P$90,0)*IF(Variables!$Y$23=1,$AI101,$AJ101) -> 0
T102: Distribution | U102: D_SPLIT | V102: =Factors!C473 -> 0 | W102: =IF(Variables!$AO$3=12,Factors!H473+Factors!K473,CHOOSE(Variables!AO$3,Factors!D473,Factors!E473,Factors!F473,Factors!G473,Factors!H473,Factors!I473,Factors!J473,Factors!K473,Factors!L473,Factors!M473,Factors!N473)) -> 0 | X102: =VLOOKUP($U102,Func_Ftrs,I$90,0)*IF(Variables!$Y$23=1,$V102,$W102) -> 0 | Y102: =VLOOKUP($U102,Func_Ftrs,J$90,0)*IF(Variables!$Y$23=1,$V102,$W102) -> 0 | Z102: =VLOOKUP($U102,Func_Ftrs,K$90,0)*IF(Variables!$Y$23=1,$V102,$W102) -> 0 | AA102: =VLOOKUP($U102,Func_Ftrs,L$90,0)*IF(Variables!$Y$23=1,$V102,$W102) -> 0 | AB102: =VLOOKUP($U102,Func_Ftrs,M$90,0)*IF(Variables!$Y$23=1,$V102,$W102) -> 0 | AC102: =VLOOKUP($U102,Func_Ftrs,N$90,0)*IF(Variables!$Y$23=1,$V102,$W102) -> 0 | AD102: =VLOOKUP($U102,Func_Ftrs,O$90,0)*IF(Variables!$Y$23=1,$V102,$W102) -> 0 | AE102: =VLOOKUP($U102,Func_Ftrs,P$90,0)*IF(Variables!$Y$23=1,$V102,$W102) -> 0 | AG102: Distribution | AH102: D_SPLIT | AI102: 0 | AJ102: 0 | AK102: =VLOOKUP($AH102,Func_Ftrs,I$90,0)*IF(Variables!$Y$23=1,$AI102,$AJ102) -> 0 | AL102: =VLOOKUP($AH102,Func_Ftrs,J$90,0)*IF(Variables!$Y$23=1,$AI102,$AJ102) -> 0 | AM102: =VLOOKUP($AH102,Func_Ftrs,K$90,0)*IF(Variables!$Y$23=1,$AI102,$AJ102) -> 0 | AN102: =VLOOKUP($AH102,Func_Ftrs,L$90,0)*IF(Variables!$Y$23=1,$AI102,$AJ102) -> 0 | AO102: =VLOOKUP($AH102,Func_Ftrs,M$90,0)*IF(Variables!$Y$23=1,$AI102,$AJ102) -> 0 | AP102: =VLOOKUP($AH102,Func_Ftrs,N$90,0)*IF(Variables!$Y$23=1,$AI102,$AJ102) -> 0 | AQ102: =VLOOKUP($AH102,Func_Ftrs,O$90,0)*IF(Variables!$Y$23=1,$AI102,$AJ102) -> 0 | AR102: =VLOOKUP($AH102,Func_Ftrs,P$90,0)*IF(Variables!$Y$23=1,$AI102,$AJ102) -> 0
T103: General | U103: G | V103: =Factors!C474 -> 123293001.8 | W103: =IF(Variables!$AO$3=12,Factors!H474+Factors!K474,CHOOSE(Variables!AO$3,Factors!D474,Factors!E474,Factors!F474,Factors!G474,Factors!H474,Factors!I474,Factors!J474,Factors!K474,Factors!L474,Factors!M474,Factors!N474)) -> 52533818.59 | X103: =VLOOKUP($U103,Func_Ftrs,I$90,0)*IF(Variables!$Y$23=1,$V103,$W103) -> 13496929.66 | Y103: =VLOOKUP($U103,Func_Ftrs,J$90,0)*IF(Variables!$Y$23=1,$V103,$W103) -> 11524026.44 | Z103: =VLOOKUP($U103,Func_Ftrs,K$90,0)*IF(Variables!$Y$23=1,$V103,$W103) -> 25086126.96 | AA103: =VLOOKUP($U103,Func_Ftrs,L$90,0)*IF(Variables!$Y$23=1,$V103,$W103) -> 0 | AB103: =VLOOKUP($U103,Func_Ftrs,M$90,0)*IF(Variables!$Y$23=1,$V103,$W103) -> 1405590.891 | AC103: =VLOOKUP($U103,Func_Ftrs,N$90,0)*IF(Variables!$Y$23=1,$V103,$W103) -> 1021144.64 | AD103: =VLOOKUP($U103,Func_Ftrs,O$90,0)*IF(Variables!$Y$23=1,$V103,$W103) -> 0 | AE103: =VLOOKUP($U103,Func_Ftrs,P$90,0)*IF(Variables!$Y$23=1,$V103,$W103) -> 0 | AG103: General | AH103: G | AI103: 123293001.8 | AJ103: 52533818.59 | AK103: =VLOOKUP($AH103,Func_Ftrs,I$90,0)*IF(Variables!$Y$23=1,$AI103,$AJ103) -> 13496929.66 | AL103: =VLOOKUP($AH103,Func_Ftrs,J$90,0)*IF(Variables!$Y$23=1,$AI103,$AJ103) -> 11524026.44 | AM103: =VLOOKUP($AH103,Func_Ftrs,K$90,0)*IF(Variables!$Y$23=1,$AI103,$AJ103) -> 25086126.96 | AN103: =VLOOKUP($AH103,Func_Ftrs,L$90,0)*IF(Variables!$Y$23=1,$AI103,$AJ103) -> 0 | AO103: =VLOOKUP($AH103,Func_Ftrs,M$90,0)*IF(Variables!$Y$23=1,$AI103,$AJ103) -> 1405590.891 | AP103: =VLOOKUP($AH103,Func_Ftrs,N$90,0)*IF(Variables!$Y$23=1,$AI103,$AJ103) -> 1021144.64 | AQ103: =VLOOKUP($AH103,Func_Ftrs,O$90,0)*IF(Variables!$Y$23=1,$AI103,$AJ103) -> 0 | AR103: =VLOOKUP($AH103,Func_Ftrs,P$90,0)*IF(Variables!$Y$23=1,$AI103,$AJ103) -> 0
T104: Mining Plant | U104: P | V104: =Factors!C475 -> 110917222 | W104: =IF(Variables!$AO$3=12,Factors!H475+Factors!K475,CHOOSE(Variables!AO$3,Factors!D475,Factors!E475,Factors!F475,Factors!G475,Factors!H475,Factors!I475,Factors!J475,Factors!K475,Factors!L475,Factors!M475,Factors!N475)) -> 47919544.08 | X104: =VLOOKUP($U104,Func_Ftrs,I$90,0)*IF(Variables!$Y$23=1,$V104,$W104) -> 47919544.08 | Y104: =VLOOKUP($U104,Func_Ftrs,J$90,0)*IF(Variables!$Y$23=1,$V104,$W104) -> 0 | Z104: =VLOOKUP($U104,Func_Ftrs,K$90,0)*IF(Variables!$Y$23=1,$V104,$W104) -> 0 | AA104: =VLOOKUP($U104,Func_Ftrs,L$90,0)*IF(Variables!$Y$23=1,$V104,$W104) -> 0 | AB104: =VLOOKUP($U104,Func_Ftrs,M$90,0)*IF(Variables!$Y$23=1,$V104,$W104) -> 0 | AC104: =VLOOKUP($U104,Func_Ftrs,N$90,0)*IF(Variables!$Y$23=1,$V104,$W104) -> 0 | AD104: =VLOOKUP($U104,Func_Ftrs,O$90,0)*IF(Variables!$Y$23=1,$V104,$W104) -> 0 | AE104: =VLOOKUP($U104,Func_Ftrs,P$90,0)*IF(Variables!$Y$23=1,$V104,$W104) -> 0 | AG104: Mining Plant | AH104: P | AI104: 110917222 | AJ104: 47919544.08 | AK104: =VLOOKUP($AH104,Func_Ftrs,I$90,0)*IF(Variables!$Y$23=1,$AI104,$AJ104) -> 47919544.08 | AL104: =VLOOKUP($AH104,Func_Ftrs,J$90,0)*IF(Variables!$Y$23=1,$AI104,$AJ104) -> 0 | AM104: =VLOOKUP($AH104,Func_Ftrs,K$90,0)*IF(Variables!$Y$23=1,$AI104,$AJ104) -> 0 | AN104: =VLOOKUP($AH104,Func_Ftrs,L$90,0)*IF(Variables!$Y$23=1,$AI104,$AJ104) -> 0 | AO104: =VLOOKUP($AH104,Func_Ftrs,M$90,0)*IF(Variables!$Y$23=1,$AI104,$AJ104) -> 0 | AP104: =VLOOKUP($AH104,Func_Ftrs,N$90,0)*IF(Variables!$Y$23=1,$AI104,$AJ104) -> 0 | AQ104: =VLOOKUP($AH104,Func_Ftrs,O$90,0)*IF(Variables!$Y$23=1,$AI104,$AJ104) -> 0 | AR104: =VLOOKUP($AH104,Func_Ftrs,P$90,0)*IF(Variables!$Y$23=1,$AI104,$AJ104) -> 0
T106: Total PC (Post Merger) | V106: =SUM(V98:V105) -> 543669396.2 | W106: 190403851.3 | X106: 212516673.7 | Y106: -49625684.82 | Z106: 25086126.96 | AA106: 0 | AB106: 1405590.891 | AC106: 1021144.64 | AD106: 0 | AE106: 0 | AG106: Total PC (Post Merger) | AI106: =SUM(AI98:AI105) -> 543669396.2 | AJ106: 190403851.3 | AK106: 212516673.7 | AL106: -49625684.82 | AM106: 25086126.96 | AN106: 0 | AO106: 1405590.891 | AP106: 1021144.64 | AQ106: 0 | AR106: 0
T108: Total Deferred Taxes | V108: =V86+V95+V106 -> 624654786.1 | W108: 235210580.6 | X108: 228210690.4 | Y108: -31447250.47 | Z108: 35714171.51 | AA108: 0 | AB108: 1384806.894 | AC108: 1348162.239 | AD108: 0 | AE108: 0 | AG108: Total Deferred Taxes | AI108: =AI86+AI95+AI106 -> 624654786.1 | AJ108: 235210580.6 | AK108: 228210690.4 | AL108: -31447250.47 | AM108: 35714171.51 | AN108: 0 | AO108: 1384806.894 | AP108: 1348162.239 | AQ108: 0 | AR108: 0
C109: =Variables!AE27 -> 2020 PROTOCOL
C110: =IF(Variables!Y21=1," ",Variables!AO17) -> Year End | T110: ACCMDITRL FACTOR | V110: =V108/$V108 -> 1 | W110: =W108/$W108 -> 1 | X110: =X108/IF(Variables!$Y$23=2,$W108,$V108) -> 0.970239901 | Y110: =Y108/IF(Variables!$Y$23=2,$W108,$V108) -> -0.1336982817 | Z110: =Z108/IF(Variables!$Y$23=2,$W108,$V108) -> 0.1518391367 | AA110: =AA108/IF(Variables!$Y$23=2,$W108,$V108) -> 0 | AB110: =AB108/IF(Variables!$Y$23=2,$W108,$V108) -> 0.005887519561 | AC110: =AC108/IF(Variables!$Y$23=2,$W108,$V108) -> 0.005731724462 | AD110: =AD108/IF(Variables!$Y$23=2,$W108,$V108) -> 0 | AE110: =AE108/IF(Variables!$Y$23=2,$W108,$V108) -> 0 | AG110: ACCMDITMA FACTOR | AI110: =AI108/$AI108 -> 1 | AJ110: =AJ108/$AJ108 -> 1 | AK110: =AK108/IF(Variables!$Y23=2,$AJ108,$AI108) -> 0.970239901 | AL110: =AL108/IF(Variables!$Y23=2,$AJ108,$AI108) -> -0.1336982817 | AM110: =AM108/IF(Variables!$Y23=2,$AJ108,$AI108) -> 0.1518391367 | AN110: =AN108/IF(Variables!$Y23=2,$AJ108,$AI108) -> 0 | AO110: =AO108/IF(Variables!$Y23=2,$AJ108,$AI108) -> 0.005887519561 | AP110: =AP108/IF(Variables!$Y23=2,$AJ108,$AI108) -> 0.005731724462 | AQ110: =AQ108/IF(Variables!$Y23=2,$AJ108,$AI108) -> 0 | AR110: =AR108/IF(Variables!$Y23=2,$AJ108,$AI108) -> 0
C111: RESULTS OF OPERATIONS SUMMARY
T112: DITEXPRL | AG112: DITEXPMA
T113: Pacific Division | V113: Total | W113: =Variables!X24 -> UTAH | X113: =I$3 -> Production | Y113: Transmission | Z113: Distribution | AA113: Ancillary | AB113: C_Billing | AC113: C_Metering | AD113: C_Service | AE113: DSM | AG113: Pacific Division | AI113: Total | AJ113: =Variables!X24 -> UTAH | AK113: =I$3 -> Production | AL113: Transmission | AM113: Distribution | AN113: Ancillary | AO113: C_Billing | AP113: C_Metering | AQ113: C_Service | AR113: DSM
C114: =+Variables!AE29 -> 2020 PROTOCOL | H114: =IF(Variables!Y23=1,Variables!X23,Report!N115) -> UTAH | T114: Production | U114: P | V114: =Factors!C383 -> 0 | W114: =IF(Variables!$AO$3=12,Factors!H383+Factors!K383,CHOOSE(Variables!AO$3,Factors!D383,Factors!E383,Factors!F383,Factors!G383,Factors!H383,Factors!I383,Factors!J383,Factors!K383,Factors!L383,Factors!M383,Factors!N383)) -> 0 | X114: =VLOOKUP($U114,Func_Ftrs,I$90,0)*IF(Variables!$Y$23=1,$V114,$W114) -> 0 | Y114: =VLOOKUP($U114,Func_Ftrs,J$90,0)*IF(Variables!$Y$23=1,$V114,$W114) -> 0 | Z114: =VLOOKUP($U114,Func_Ftrs,K$90,0)*IF(Variables!$Y$23=1,$V114,$W114) -> 0 | AA114: =VLOOKUP($U114,Func_Ftrs,L$90,0)*IF(Variables!$Y$23=1,$V114,$W114) -> 0 | AB114: =VLOOKUP($U114,Func_Ftrs,M$90,0)*IF(Variables!$Y$23=1,$V114,$W114) -> 0 | AC114: =VLOOKUP($U114,Func_Ftrs,N$90,0)*IF(Variables!$Y$23=1,$V114,$W114) -> 0 | AD114: =VLOOKUP($U114,Func_Ftrs,O$90,0)*IF(Variables!$Y$23=1,$V114,$W114) -> 0 | AE114: =VLOOKUP($U114,Func_Ftrs,P$90,0)*IF(Variables!$Y$23=1,$V114,$W114) -> 0 | AG114: Production | AH114: P | AI114: =V114 -> 0 | AJ114: 0 | AK114: =VLOOKUP($AH114,Func_Ftrs,I$90,0)*IF(Variables!$Y$23=1,$AI114,$AJ114) -> 0 | AL114: =VLOOKUP($AH114,Func_Ftrs,J$90,0)*IF(Variables!$Y$23=1,$AI114,$AJ114) -> 0 | AM114: =VLOOKUP($AH114,Func_Ftrs,K$90,0)*IF(Variables!$Y$23=1,$AI114,$AJ114) -> 0 | AN114: =VLOOKUP($AH114,Func_Ftrs,L$90,0)*IF(Variables!$Y$23=1,$AI114,$AJ114) -> 0 | AO114: =VLOOKUP($AH114,Func_Ftrs,M$90,0)*IF(Variables!$Y$23=1,$AI114,$AJ114) -> 0 | AP114: =VLOOKUP($AH114,Func_Ftrs,N$90,0)*IF(Variables!$Y$23=1,$AI114,$AJ114) -> 0 | AQ114: =VLOOKUP($AH114,Func_Ftrs,O$90,0)*IF(Variables!$Y$23=1,$AI114,$AJ114) -> 0 | AR114: =VLOOKUP($AH114,Func_Ftrs,P$90,0)*IF(Variables!$Y$23=1,$AI114,$AJ114) -> 0
C115: Description of Account Summary: | H115: Normalized | I115: =I3 -> Production | J115: Transmission | K115: Distribution | L115: Ancillary | M115: C_Billing | N115: C_Metering | O115: C_Service | P115: DSM | T115: Transmission | U115: T | V115: =Factors!C384 -> 0 | W115: =IF(Variables!$AO$3=12,Factors!H384+Factors!K384,CHOOSE(Variables!AO$3,Factors!D384,Factors!E384,Factors!F384,Factors!G384,Factors!H384,Factors!I384,Factors!J384,Factors!K384,Factors!L384,Factors!M384,Factors!N384)) -> 0 | X115: =VLOOKUP($U115,Func_Ftrs,I$90,0)*IF(Variables!$Y$23=1,$V115,$W115) -> 0 | Y115: =VLOOKUP($U115,Func_Ftrs,J$90,0)*IF(Variables!$Y$23=1,$V115,$W115) -> 0 | Z115: =VLOOKUP($U115,Func_Ftrs,K$90,0)*IF(Variables!$Y$23=1,$V115,$W115) -> 0 | AA115: =VLOOKUP($U115,Func_Ftrs,L$90,0)*IF(Variables!$Y$23=1,$V115,$W115) -> 0 | AB115: =VLOOKUP($U115,Func_Ftrs,M$90,0)*IF(Variables!$Y$23=1,$V115,$W115) -> 0 | AC115: =VLOOKUP($U115,Func_Ftrs,N$90,0)*IF(Variables!$Y$23=1,$V115,$W115) -> 0 | AD115: =VLOOKUP($U115,Func_Ftrs,O$90,0)*IF(Variables!$Y$23=1,$V115,$W115) -> 0 | AE115: =VLOOKUP($U115,Func_Ftrs,P$90,0)*IF(Variables!$Y$23=1,$V115,$W115) -> 0 | AG115: Transmission | AH115: T | AI115: 0 | AJ115: 0 | AK115: =VLOOKUP($AH115,Func_Ftrs,I$90,0)*IF(Variables!$Y$23=1,$AI115,$AJ115) -> 0 | AL115: =VLOOKUP($AH115,Func_Ftrs,J$90,0)*IF(Variables!$Y$23=1,$AI115,$AJ115) -> 0 | AM115: =VLOOKUP($AH115,Func_Ftrs,K$90,0)*IF(Variables!$Y$23=1,$AI115,$AJ115) -> 0 | AN115: =VLOOKUP($AH115,Func_Ftrs,L$90,0)*IF(Variables!$Y$23=1,$AI115,$AJ115) -> 0 | AO115: =VLOOKUP($AH115,Func_Ftrs,M$90,0)*IF(Variables!$Y$23=1,$AI115,$AJ115) -> 0 | AP115: =VLOOKUP($AH115,Func_Ftrs,N$90,0)*IF(Variables!$Y$23=1,$AI115,$AJ115) -> 0 | AQ115: =VLOOKUP($AH115,Func_Ftrs,O$90,0)*IF(Variables!$Y$23=1,$AI115,$AJ115) -> 0 | AR115: =VLOOKUP($AH115,Func_Ftrs,P$90,0)*IF(Variables!$Y$23=1,$AI115,$AJ115) -> 0
T116: Distribution | U116: D_SPLIT | V116: =Factors!C385 -> 0 | W116: =IF(Variables!$AO$3=12,Factors!H385+Factors!K385,CHOOSE(Variables!AO$3,Factors!D385,Factors!E385,Factors!F385,Factors!G385,Factors!H385,Factors!I385,Factors!J385,Factors!K385,Factors!L385,Factors!M385,Factors!N385)) -> 0 | X116: =VLOOKUP($U116,Func_Ftrs,I$90,0)*IF(Variables!$Y$23=1,$V116,$W116) -> 0 | Y116: =VLOOKUP($U116,Func_Ftrs,J$90,0)*IF(Variables!$Y$23=1,$V116,$W116) -> 0 | Z116: =VLOOKUP($U116,Func_Ftrs,K$90,0)*IF(Variables!$Y$23=1,$V116,$W116) -> 0 | AA116: =VLOOKUP($U116,Func_Ftrs,L$90,0)*IF(Variables!$Y$23=1,$V116,$W116) -> 0 | AB116: =VLOOKUP($U116,Func_Ftrs,M$90,0)*IF(Variables!$Y$23=1,$V116,$W116) -> 0 | AC116: =VLOOKUP($U116,Func_Ftrs,N$90,0)*IF(Variables!$Y$23=1,$V116,$W116) -> 0 | AD116: =VLOOKUP($U116,Func_Ftrs,O$90,0)*IF(Variables!$Y$23=1,$V116,$W116) -> 0 | AE116: =VLOOKUP($U116,Func_Ftrs,P$90,0)*IF(Variables!$Y$23=1,$V116,$W116) -> 0 | AG116: Distribution | AH116: D_SPLIT | AI116: 0 | AJ116: 0 | AK116: =VLOOKUP($AH116,Func_Ftrs,I$90,0)*IF(Variables!$Y$23=1,$AI116,$AJ116) -> 0 | AL116: =VLOOKUP($AH116,Func_Ftrs,J$90,0)*IF(Variables!$Y$23=1,$AI116,$AJ116) -> 0 | AM116: =VLOOKUP($AH116,Func_Ftrs,K$90,0)*IF(Variables!$Y$23=1,$AI116,$AJ116) -> 0 | AN116: =VLOOKUP($AH116,Func_Ftrs,L$90,0)*IF(Variables!$Y$23=1,$AI116,$AJ116) -> 0 | AO116: =VLOOKUP($AH116,Func_Ftrs,M$90,0)*IF(Variables!$Y$23=1,$AI116,$AJ116) -> 0 | AP116: =VLOOKUP($AH116,Func_Ftrs,N$90,0)*IF(Variables!$Y$23=1,$AI116,$AJ116) -> 0 | AQ116: =VLOOKUP($AH116,Func_Ftrs,O$90,0)*IF(Variables!$Y$23=1,$AI116,$AJ116) -> 0 | AR116: =VLOOKUP($AH116,Func_Ftrs,P$90,0)*IF(Variables!$Y$23=1,$AI116,$AJ116) -> 0
A117: 1 | E117: General Business Revenues | H117: =H219-H118-H119 ->  | T117: Mining Plant | U117: P | V117: =Factors!C387 -> 0 | W117: =IF(Variables!$AO$3=12,Factors!H387+Factors!K387,CHOOSE(Variables!AO$3,Factors!D387,Factors!E387,Factors!F387,Factors!G387,Factors!H387,Factors!I387,Factors!J387,Factors!K387,Factors!L387,Factors!M387,Factors!N387)) -> 0 | X117: =VLOOKUP($U117,Func_Ftrs,I$90,0)*IF(Variables!$Y$23=1,$V117,$W117) -> 0 | Y117: =VLOOKUP($U117,Func_Ftrs,J$90,0)*IF(Variables!$Y$23=1,$V117,$W117) -> 0 | Z117: =VLOOKUP($U117,Func_Ftrs,K$90,0)*IF(Variables!$Y$23=1,$V117,$W117) -> 0 | AA117: =VLOOKUP($U117,Func_Ftrs,L$90,0)*IF(Variables!$Y$23=1,$V117,$W117) -> 0 | AB117: =VLOOKUP($U117,Func_Ftrs,M$90,0)*IF(Variables!$Y$23=1,$V117,$W117) -> 0 | AC117: =VLOOKUP($U117,Func_Ftrs,N$90,0)*IF(Variables!$Y$23=1,$V117,$W117) -> 0 | AD117: =VLOOKUP($U117,Func_Ftrs,O$90,0)*IF(Variables!$Y$23=1,$V117,$W117) -> 0 | AE117: =VLOOKUP($U117,Func_Ftrs,P$90,0)*IF(Variables!$Y$23=1,$V117,$W117) -> 0 | AG117: Mining Plant | AH117: P | AI117: 0 | AJ117: 0 | AK117: =VLOOKUP($AH117,Func_Ftrs,I$90,0)*IF(Variables!$Y$23=1,$AI117,$AJ117) -> 0 | AL117: =VLOOKUP($AH117,Func_Ftrs,J$90,0)*IF(Variables!$Y$23=1,$AI117,$AJ117) -> 0 | AM117: =VLOOKUP($AH117,Func_Ftrs,K$90,0)*IF(Variables!$Y$23=1,$AI117,$AJ117) -> 0 | AN117: =VLOOKUP($AH117,Func_Ftrs,L$90,0)*IF(Variables!$Y$23=1,$AI117,$AJ117) -> 0 | AO117: =VLOOKUP($AH117,Func_Ftrs,M$90,0)*IF(Variables!$Y$23=1,$AI117,$AJ117) -> 0 | AP117: =VLOOKUP($AH117,Func_Ftrs,N$90,0)*IF(Variables!$Y$23=1,$AI117,$AJ117) -> 0 | AQ117: =VLOOKUP($AH117,Func_Ftrs,O$90,0)*IF(Variables!$Y$23=1,$AI117,$AJ117) -> 0 | AR117: =VLOOKUP($AH117,Func_Ftrs,P$90,0)*IF(Variables!$Y$23=1,$AI117,$AJ117) -> 0
A118: 2 | E118: General Business Revenues | H118: =H198+H199 -> 0 | I118: 0 | J118: 0 | K118: 0 | L118: 0 | M118: 0 | N118: =N198+N199 -> 0 | O118: =O198+O199 -> 0 | P118: =P198+P199 -> 0
A119: 3 | E119: Interdepartmental | H119: =H217 ->  | K119: =K217 ->  | N119: =N217 ->  | O119: =O217 ->  | P119: =P217 ->  | T119: Total Pacific Division | V119: =SUM(V114:V117) -> 0 | W119: 0 | X119: 0 | Y119: 0 | Z119: 0 | AA119: 0 | AB119: 0 | AC119: 0 | AD119: 0 | AE119: 0 | AG119: Total Pacific Division | AI119: =SUM(AI114:AI117) -> 0 | AJ119: 0 | AK119: 0 | AL119: 0 | AM119: 0 | AN119: 0 | AO119: 0 | AP119: 0 | AQ119: 0 | AR119: 0
A120: 4 | E120: Special Sales | H120: =H233 -> 89133786.14 | I120: 70894381.64 | J120: 18239404.5 | K120: =K233 -> 0 | L120: 0 | M120: 0 | N120: =N233 -> 0 | O120: =O233 -> 0 | P120: =P233 -> 0
A121: 5 | E121: Other Operating Revenues | H121: =H276+H240 -> 77124120.84 | T121: Utah Division | AG121: Utah Division
A122: 6 | E122: Total Operating Revenues | H122: =SUM(H117:H121) ->  | N122: =SUM(N117:N121) ->  | O122: =SUM(O117:O121) ->  | P122: =SUM(P117:P121) ->  | T122: Production | U122: P | V122: =Factors!C393 -> 0 | W122: =IF(Variables!$AO$3=12,Factors!H393+Factors!K393,CHOOSE(Variables!AO$3,Factors!D393,Factors!E393,Factors!F393,Factors!G393,Factors!H393,Factors!I393,Factors!J393,Factors!K393,Factors!L393,Factors!M393,Factors!N393)) -> 0 | X122: =VLOOKUP($U122,Func_Ftrs,I$90,0)*IF(Variables!$Y$23=1,$V122,$W122) -> 0 | Y122: =VLOOKUP($U122,Func_Ftrs,J$90,0)*IF(Variables!$Y$23=1,$V122,$W122) -> 0 | Z122: =VLOOKUP($U122,Func_Ftrs,K$90,0)*IF(Variables!$Y$23=1,$V122,$W122) -> 0 | AA122: =VLOOKUP($U122,Func_Ftrs,L$90,0)*IF(Variables!$Y$23=1,$V122,$W122) -> 0 | AB122: =VLOOKUP($U122,Func_Ftrs,M$90,0)*IF(Variables!$Y$23=1,$V122,$W122) -> 0 | AC122: =VLOOKUP($U122,Func_Ftrs,N$90,0)*IF(Variables!$Y$23=1,$V122,$W122) -> 0 | AD122: =VLOOKUP($U122,Func_Ftrs,O$90,0)*IF(Variables!$Y$23=1,$V122,$W122) -> 0 | AE122: =VLOOKUP($U122,Func_Ftrs,P$90,0)*IF(Variables!$Y$23=1,$V122,$W122) -> 0 | AG122: Production | AH122: P | AI122: =V122 -> 0 | AJ122: 0 | AK122: =VLOOKUP($AH122,Func_Ftrs,I$90,0)*IF(Variables!$Y$23=1,$AI122,$AJ122) -> 0 | AL122: =VLOOKUP($AH122,Func_Ftrs,J$90,0)*IF(Variables!$Y$23=1,$AI122,$AJ122) -> 0 | AM122: =VLOOKUP($AH122,Func_Ftrs,K$90,0)*IF(Variables!$Y$23=1,$AI122,$AJ122) -> 0 | AN122: =VLOOKUP($AH122,Func_Ftrs,L$90,0)*IF(Variables!$Y$23=1,$AI122,$AJ122) -> 0 | AO122: =VLOOKUP($AH122,Func_Ftrs,M$90,0)*IF(Variables!$Y$23=1,$AI122,$AJ122) -> 0 | AP122: =VLOOKUP($AH122,Func_Ftrs,N$90,0)*IF(Variables!$Y$23=1,$AI122,$AJ122) -> 0 | AQ122: =VLOOKUP($AH122,Func_Ftrs,O$90,0)*IF(Variables!$Y$23=1,$AI122,$AJ122) -> 0 | AR122: =VLOOKUP($AH122,Func_Ftrs,P$90,0)*IF(Variables!$Y$23=1,$AI122,$AJ122) -> 0
A123: 7 | T123: Transmission | U123: T | V123: =Factors!C394 -> 0 | W123: =IF(Variables!$AO$3=12,Factors!H394+Factors!K394,CHOOSE(Variables!AO$3,Factors!D394,Factors!E394,Factors!F394,Factors!G394,Factors!H394,Factors!I394,Factors!J394,Factors!K394,Factors!L394,Factors!M394,Factors!N394)) -> 0 | X123: =VLOOKUP($U123,Func_Ftrs,I$90,0)*IF(Variables!$Y$23=1,$V123,$W123) -> 0 | Y123: =VLOOKUP($U123,Func_Ftrs,J$90,0)*IF(Variables!$Y$23=1,$V123,$W123) -> 0 | Z123: =VLOOKUP($U123,Func_Ftrs,K$90,0)*IF(Variables!$Y$23=1,$V123,$W123) -> 0 | AA123: =VLOOKUP($U123,Func_Ftrs,L$90,0)*IF(Variables!$Y$23=1,$V123,$W123) -> 0 | AB123: =VLOOKUP($U123,Func_Ftrs,M$90,0)*IF(Variables!$Y$23=1,$V123,$W123) -> 0 | AC123: =VLOOKUP($U123,Func_Ftrs,N$90,0)*IF(Variables!$Y$23=1,$V123,$W123) -> 0 | AD123: =VLOOKUP($U123,Func_Ftrs,O$90,0)*IF(Variables!$Y$23=1,$V123,$W123) -> 0 | AE123: =VLOOKUP($U123,Func_Ftrs,P$90,0)*IF(Variables!$Y$23=1,$V123,$W123) -> 0 | AG123: Transmission | AH123: T | AI123: 0 | AJ123: 0 | AK123: =VLOOKUP($AH123,Func_Ftrs,I$90,0)*IF(Variables!$Y$23=1,$AI123,$AJ123) -> 0 | AL123: =VLOOKUP($AH123,Func_Ftrs,J$90,0)*IF(Variables!$Y$23=1,$AI123,$AJ123) -> 0 | AM123: =VLOOKUP($AH123,Func_Ftrs,K$90,0)*IF(Variables!$Y$23=1,$AI123,$AJ123) -> 0 | AN123: =VLOOKUP($AH123,Func_Ftrs,L$90,0)*IF(Variables!$Y$23=1,$AI123,$AJ123) -> 0 | AO123: =VLOOKUP($AH123,Func_Ftrs,M$90,0)*IF(Variables!$Y$23=1,$AI123,$AJ123) -> 0 | AP123: =VLOOKUP($AH123,Func_Ftrs,N$90,0)*IF(Variables!$Y$23=1,$AI123,$AJ123) -> 0 | AQ123: =VLOOKUP($AH123,Func_Ftrs,O$90,0)*IF(Variables!$Y$23=1,$AI123,$AJ123) -> 0 | AR123: =VLOOKUP($AH123,Func_Ftrs,P$90,0)*IF(Variables!$Y$23=1,$AI123,$AJ123) -> 0
A124: 8 | C124: Operating Expenses: | T124: Distribution | U124: D_SPLIT | V124: =Factors!C395 -> 0 | W124: =IF(Variables!$AO$3=12,Factors!H395+Factors!K395,CHOOSE(Variables!AO$3,Factors!D395,Factors!E395,Factors!F395,Factors!G395,Factors!H395,Factors!I395,Factors!J395,Factors!K395,Factors!L395,Factors!M395,Factors!N395)) -> 0 | X124: =VLOOKUP($U124,Func_Ftrs,I$90,0)*IF(Variables!$Y$23=1,$V124,$W124) -> 0 | Y124: =VLOOKUP($U124,Func_Ftrs,J$90,0)*IF(Variables!$Y$23=1,$V124,$W124) -> 0 | Z124: =VLOOKUP($U124,Func_Ftrs,K$90,0)*IF(Variables!$Y$23=1,$V124,$W124) -> 0 | AA124: =VLOOKUP($U124,Func_Ftrs,L$90,0)*IF(Variables!$Y$23=1,$V124,$W124) -> 0 | AB124: =VLOOKUP($U124,Func_Ftrs,M$90,0)*IF(Variables!$Y$23=1,$V124,$W124) -> 0 | AC124: =VLOOKUP($U124,Func_Ftrs,N$90,0)*IF(Variables!$Y$23=1,$V124,$W124) -> 0 | AD124: =VLOOKUP($U124,Func_Ftrs,O$90,0)*IF(Variables!$Y$23=1,$V124,$W124) -> 0 | AE124: =VLOOKUP($U124,Func_Ftrs,P$90,0)*IF(Variables!$Y$23=1,$V124,$W124) -> 0 | AG124: Distribution | AH124: D_SPLIT | AI124: 0 | AJ124: 0 | AK124: =VLOOKUP($AH124,Func_Ftrs,I$90,0)*IF(Variables!$Y$23=1,$AI124,$AJ124) -> 0 | AL124: =VLOOKUP($AH124,Func_Ftrs,J$90,0)*IF(Variables!$Y$23=1,$AI124,$AJ124) -> 0 | AM124: =VLOOKUP($AH124,Func_Ftrs,K$90,0)*IF(Variables!$Y$23=1,$AI124,$AJ124) -> 0 | AN124: =VLOOKUP($AH124,Func_Ftrs,L$90,0)*IF(Variables!$Y$23=1,$AI124,$AJ124) -> 0 | AO124: =VLOOKUP($AH124,Func_Ftrs,M$90,0)*IF(Variables!$Y$23=1,$AI124,$AJ124) -> 0 | AP124: =VLOOKUP($AH124,Func_Ftrs,N$90,0)*IF(Variables!$Y$23=1,$AI124,$AJ124) -> 0 | AQ124: =VLOOKUP($AH124,Func_Ftrs,O$90,0)*IF(Variables!$Y$23=1,$AI124,$AJ124) -> 0 | AR124: =VLOOKUP($AH124,Func_Ftrs,P$90,0)*IF(Variables!$Y$23=1,$AI124,$AJ124) -> 0
A125: 9 | D125: Steam Production | H125: =H413 -> 456745109.9 | I125: 456745109.9 | J125: 0 | K125: 0 | L125: 0 | M125: 0 | N125: =N413 -> 0 | O125: =O413 -> 0 | P125: =P413 -> 0 | T125: General | U125: G | V125: =Factors!C396 -> 0 | W125: =IF(Variables!$AO$3=12,Factors!H396+Factors!K396,CHOOSE(Variables!AO$3,Factors!D396,Factors!E396,Factors!F396,Factors!G396,Factors!H396,Factors!I396,Factors!J396,Factors!K396,Factors!L396,Factors!M396,Factors!N396)) -> 0 | X125: =VLOOKUP($U125,Func_Ftrs,I$90,0)*IF(Variables!$Y$23=1,$V125,$W125) -> 0 | Y125: =VLOOKUP($U125,Func_Ftrs,J$90,0)*IF(Variables!$Y$23=1,$V125,$W125) -> 0 | Z125: =VLOOKUP($U125,Func_Ftrs,K$90,0)*IF(Variables!$Y$23=1,$V125,$W125) -> 0 | AA125: =VLOOKUP($U125,Func_Ftrs,L$90,0)*IF(Variables!$Y$23=1,$V125,$W125) -> 0 | AB125: =VLOOKUP($U125,Func_Ftrs,M$90,0)*IF(Variables!$Y$23=1,$V125,$W125) -> 0 | AC125: =VLOOKUP($U125,Func_Ftrs,N$90,0)*IF(Variables!$Y$23=1,$V125,$W125) -> 0 | AD125: =VLOOKUP($U125,Func_Ftrs,O$90,0)*IF(Variables!$Y$23=1,$V125,$W125) -> 0 | AE125: =VLOOKUP($U125,Func_Ftrs,P$90,0)*IF(Variables!$Y$23=1,$V125,$W125) -> 0 | AG125: General | AH125: G | AI125: 0 | AJ125: 0 | AK125: =VLOOKUP($AH125,Func_Ftrs,I$90,0)*IF(Variables!$Y$23=1,$AI125,$AJ125) -> 0 | AL125: =VLOOKUP($AH125,Func_Ftrs,J$90,0)*IF(Variables!$Y$23=1,$AI125,$AJ125) -> 0 | AM125: =VLOOKUP($AH125,Func_Ftrs,K$90,0)*IF(Variables!$Y$23=1,$AI125,$AJ125) -> 0 | AN125: =VLOOKUP($AH125,Func_Ftrs,L$90,0)*IF(Variables!$Y$23=1,$AI125,$AJ125) -> 0 | AO125: =VLOOKUP($AH125,Func_Ftrs,M$90,0)*IF(Variables!$Y$23=1,$AI125,$AJ125) -> 0 | AP125: =VLOOKUP($AH125,Func_Ftrs,N$90,0)*IF(Variables!$Y$23=1,$AI125,$AJ125) -> 0 | AQ125: =VLOOKUP($AH125,Func_Ftrs,O$90,0)*IF(Variables!$Y$23=1,$AI125,$AJ125) -> 0 | AR125: =VLOOKUP($AH125,Func_Ftrs,P$90,0)*IF(Variables!$Y$23=1,$AI125,$AJ125) -> 0
A126: 10 | D126: Nuclear Production | H126: =H461 -> 0 | I126: 0 | J126: 0 | K126: 0 | L126: 0 | M126: 0 | N126: =N461 -> 0 | O126: =O461 -> 0 | P126: =P461 -> 0 | T126: Mining Plant | U126: P | V126: =Factors!C397 -> 0 | W126: =IF(Variables!$AO$3=12,Factors!H397+Factors!K397,CHOOSE(Variables!AO$3,Factors!D397,Factors!E397,Factors!F397,Factors!G397,Factors!H397,Factors!I397,Factors!J397,Factors!K397,Factors!L397,Factors!M397,Factors!N397)) -> 0 | X126: =VLOOKUP($U126,Func_Ftrs,I$90,0)*IF(Variables!$Y$23=1,$V126,$W126) -> 0 | Y126: =VLOOKUP($U126,Func_Ftrs,J$90,0)*IF(Variables!$Y$23=1,$V126,$W126) -> 0 | Z126: =VLOOKUP($U126,Func_Ftrs,K$90,0)*IF(Variables!$Y$23=1,$V126,$W126) -> 0 | AA126: =VLOOKUP($U126,Func_Ftrs,L$90,0)*IF(Variables!$Y$23=1,$V126,$W126) -> 0 | AB126: =VLOOKUP($U126,Func_Ftrs,M$90,0)*IF(Variables!$Y$23=1,$V126,$W126) -> 0 | AC126: =VLOOKUP($U126,Func_Ftrs,N$90,0)*IF(Variables!$Y$23=1,$V126,$W126) -> 0 | AD126: =VLOOKUP($U126,Func_Ftrs,O$90,0)*IF(Variables!$Y$23=1,$V126,$W126) -> 0 | AE126: =VLOOKUP($U126,Func_Ftrs,P$90,0)*IF(Variables!$Y$23=1,$V126,$W126) -> 0 | AG126: Mining Plant | AH126: P | AI126: 0 | AJ126: 0 | AK126: =VLOOKUP($AH126,Func_Ftrs,I$90,0)*IF(Variables!$Y$23=1,$AI126,$AJ126) -> 0 | AL126: =VLOOKUP($AH126,Func_Ftrs,J$90,0)*IF(Variables!$Y$23=1,$AI126,$AJ126) -> 0 | AM126: =VLOOKUP($AH126,Func_Ftrs,K$90,0)*IF(Variables!$Y$23=1,$AI126,$AJ126) -> 0 | AN126: =VLOOKUP($AH126,Func_Ftrs,L$90,0)*IF(Variables!$Y$23=1,$AI126,$AJ126) -> 0 | AO126: =VLOOKUP($AH126,Func_Ftrs,M$90,0)*IF(Variables!$Y$23=1,$AI126,$AJ126) -> 0 | AP126: =VLOOKUP($AH126,Func_Ftrs,N$90,0)*IF(Variables!$Y$23=1,$AI126,$AJ126) -> 0 | AQ126: =VLOOKUP($AH126,Func_Ftrs,O$90,0)*IF(Variables!$Y$23=1,$AI126,$AJ126) -> 0 | AR126: =VLOOKUP($AH126,Func_Ftrs,P$90,0)*IF(Variables!$Y$23=1,$AI126,$AJ126) -> 0
A127: 11 | D127: Hydro Production | H127: =H544 -> 19180512 | I127: 19180512 | J127: 0 | K127: 0 | L127: 0 | M127: 0 | N127: =N544 -> 0 | O127: =O544 -> 0 | P127: =P544 -> 0
A128: 12 | D128: Other Power Supply | H128: =H600+H644 -> 153456153.2 | I128: 153456153.2 | J128: 0 | K128: 0 | L128: 0 | M128: 0 | N128: 0 | O128: 0 | P128: 0 | T128: Total Utah Division | V128: =SUM(V122:V126) -> 0 | W128: 0 | X128: 0 | Y128: 0 | Z128: 0 | AA128: 0 | AB128: 0 | AC128: 0 | AD128: 0 | AE128: 0 | AG128: Total Utah Division | AI128: =SUM(AI122:AI126) -> 0 | AJ128: 0 | AK128: 0 | AL128: 0 | AM128: 0 | AN128: 0 | AO128: 0 | AP128: 0 | AQ128: 0 | AR128: 0
A129: 13 | D129: Transmission | H129: =H748 -> 92647063.53 | I129: 415328.8115 | J129: 92231734.72 | K129: 0 | L129: 0 | M129: 0 | N129: =N748 -> 0 | O129: =O748 -> 0 | P129: =P748 -> 0
A130: 14 | D130: Distribution | H130: =H849 -> 82286354.69 | I130: 0 | J130: 0 | K130: 81212856.89 | L130: 0 | M130: 0 | N130: =N849 -> 1073497.807 | O130: =O849 -> 0 | P130: =P849 -> 0 | T130: PACIFICORP | AG130: PACIFICORP
A131: 15 | D131: Customer Accounts | H131: =H884 -> 33682020.74 | I131: 6144421.33 | J131: 6144421.33 | K131: 6144421.33 | L131: 6144421.33 | M131: 19144666.94 | N131: =N884 -> 11855769.12 | O131: =O884 -> 14970427.34 | P131: =P884 -> 6144421.33 | T131: Production | U131: P | V131: =Factors!C403 -> 0 | W131: =IF(Variables!$AO$3=12,Factors!H403+Factors!K403,CHOOSE(Variables!AO$3,Factors!D403,Factors!E403,Factors!F403,Factors!G403,Factors!H403,Factors!I403,Factors!J403,Factors!K403,Factors!L403,Factors!M403,Factors!N403)) -> 0 | X131: =VLOOKUP($U131,Func_Ftrs,I$90,0)*IF(Variables!$Y$23=1,$V131,$W131) -> 0 | Y131: =VLOOKUP($U131,Func_Ftrs,J$90,0)*IF(Variables!$Y$23=1,$V131,$W131) -> 0 | Z131: =VLOOKUP($U131,Func_Ftrs,K$90,0)*IF(Variables!$Y$23=1,$V131,$W131) -> 0 | AA131: =VLOOKUP($U131,Func_Ftrs,L$90,0)*IF(Variables!$Y$23=1,$V131,$W131) -> 0 | AB131: =VLOOKUP($U131,Func_Ftrs,M$90,0)*IF(Variables!$Y$23=1,$V131,$W131) -> 0 | AC131: =VLOOKUP($U131,Func_Ftrs,N$90,0)*IF(Variables!$Y$23=1,$V131,$W131) -> 0 | AD131: =VLOOKUP($U131,Func_Ftrs,O$90,0)*IF(Variables!$Y$23=1,$V131,$W131) -> 0 | AE131: =VLOOKUP($U131,Func_Ftrs,P$90,0)*IF(Variables!$Y$23=1,$V131,$W131) -> 0 | AG131: Production | AH131: P | AI131: =V131 -> 0 | AJ131: =W131 -> 0 | AK131: =VLOOKUP($AH131,Func_Ftrs,I$90,0)*IF(Variables!$Y$23=1,$AI131,$AJ131) -> 0 | AL131: =VLOOKUP($AH131,Func_Ftrs,J$90,0)*IF(Variables!$Y$23=1,$AI131,$AJ131) -> 0 | AM131: =VLOOKUP($AH131,Func_Ftrs,K$90,0)*IF(Variables!$Y$23=1,$AI131,$AJ131) -> 0 | AN131: =VLOOKUP($AH131,Func_Ftrs,L$90,0)*IF(Variables!$Y$23=1,$AI131,$AJ131) -> 0 | AO131: =VLOOKUP($AH131,Func_Ftrs,M$90,0)*IF(Variables!$Y$23=1,$AI131,$AJ131) -> 0 | AP131: =VLOOKUP($AH131,Func_Ftrs,N$90,0)*IF(Variables!$Y$23=1,$AI131,$AJ131) -> 0 | AQ131: =VLOOKUP($AH131,Func_Ftrs,O$90,0)*IF(Variables!$Y$23=1,$AI131,$AJ131) -> 0 | AR131: =VLOOKUP($AH131,Func_Ftrs,P$90,0)*IF(Variables!$Y$23=1,$AI131,$AJ131) -> 0
A132: 16 | D132: Customer Service | H132: =H915 -> 6015790.871 | I132: 0 | J132: 0 | K132: 2961804.11 | L132: 0 | M132: 0 | N132: =N915 -> 0 | O132: =O915 -> 3053986.761 | P132: =P915 -> 0 | T132: Hydro - P | U132: P | V132: =Factors!C404 -> 0 | W132: =IF(Variables!$AO$3=12,Factors!H404+Factors!K404,CHOOSE(Variables!AO$3,Factors!D404,Factors!E404,Factors!F404,Factors!G404,Factors!H404,Factors!I404,Factors!J404,Factors!K404,Factors!L404,Factors!M404,Factors!N404)) -> 0 | X132: =VLOOKUP($U132,Func_Ftrs,I$90,0)*IF(Variables!$Y$23=1,$V132,$W132) -> 0 | Y132: =VLOOKUP($U132,Func_Ftrs,J$90,0)*IF(Variables!$Y$23=1,$V132,$W132) -> 0 | Z132: =VLOOKUP($U132,Func_Ftrs,K$90,0)*IF(Variables!$Y$23=1,$V132,$W132) -> 0 | AA132: =VLOOKUP($U132,Func_Ftrs,L$90,0)*IF(Variables!$Y$23=1,$V132,$W132) -> 0 | AB132: =VLOOKUP($U132,Func_Ftrs,M$90,0)*IF(Variables!$Y$23=1,$V132,$W132) -> 0 | AC132: =VLOOKUP($U132,Func_Ftrs,N$90,0)*IF(Variables!$Y$23=1,$V132,$W132) -> 0 | AD132: =VLOOKUP($U132,Func_Ftrs,O$90,0)*IF(Variables!$Y$23=1,$V132,$W132) -> 0 | AE132: =VLOOKUP($U132,Func_Ftrs,P$90,0)*IF(Variables!$Y$23=1,$V132,$W132) -> 0 | AG132: Hydro - P | AH132: P | AI132: 0 | AJ132: 0 | AK132: =VLOOKUP($AH132,Func_Ftrs,I$90,0)*IF(Variables!$Y$23=1,$AI132,$AJ132) -> 0 | AL132: =VLOOKUP($AH132,Func_Ftrs,J$90,0)*IF(Variables!$Y$23=1,$AI132,$AJ132) -> 0 | AM132: =VLOOKUP($AH132,Func_Ftrs,K$90,0)*IF(Variables!$Y$23=1,$AI132,$AJ132) -> 0 | AN132: =VLOOKUP($AH132,Func_Ftrs,L$90,0)*IF(Variables!$Y$23=1,$AI132,$AJ132) -> 0 | AO132: =VLOOKUP($AH132,Func_Ftrs,M$90,0)*IF(Variables!$Y$23=1,$AI132,$AJ132) -> 0 | AP132: =VLOOKUP($AH132,Func_Ftrs,N$90,0)*IF(Variables!$Y$23=1,$AI132,$AJ132) -> 0 | AQ132: =VLOOKUP($AH132,Func_Ftrs,O$90,0)*IF(Variables!$Y$23=1,$AI132,$AJ132) -> 0 | AR132: =VLOOKUP($AH132,Func_Ftrs,P$90,0)*IF(Variables!$Y$23=1,$AI132,$AJ132) -> 0
A133: 17 | D133: Sales | H133: =H945 -> 0 | I133: 0 | J133: 0 | K133: 0 | L133: 0 | M133: 0 | N133: =N945 -> 0 | O133: =O945 -> 0 | P133: =P945 -> 0 | T133: Hydro - U | U133: P | V133: =Factors!C405 -> 0 | W133: =IF(Variables!$AO$3=12,Factors!H405+Factors!K405,CHOOSE(Variables!AO$3,Factors!D405,Factors!E405,Factors!F405,Factors!G405,Factors!H405,Factors!I405,Factors!J405,Factors!K405,Factors!L405,Factors!M405,Factors!N405)) -> 0 | X133: =VLOOKUP($U133,Func_Ftrs,I$90,0)*IF(Variables!$Y$23=1,$V133,$W133) -> 0 | Y133: =VLOOKUP($U133,Func_Ftrs,J$90,0)*IF(Variables!$Y$23=1,$V133,$W133) -> 0 | Z133: =VLOOKUP($U133,Func_Ftrs,K$90,0)*IF(Variables!$Y$23=1,$V133,$W133) -> 0 | AA133: =VLOOKUP($U133,Func_Ftrs,L$90,0)*IF(Variables!$Y$23=1,$V133,$W133) -> 0 | AB133: =VLOOKUP($U133,Func_Ftrs,M$90,0)*IF(Variables!$Y$23=1,$V133,$W133) -> 0 | AC133: =VLOOKUP($U133,Func_Ftrs,N$90,0)*IF(Variables!$Y$23=1,$V133,$W133) -> 0 | AD133: =VLOOKUP($U133,Func_Ftrs,O$90,0)*IF(Variables!$Y$23=1,$V133,$W133) -> 0 | AE133: =VLOOKUP($U133,Func_Ftrs,P$90,0)*IF(Variables!$Y$23=1,$V133,$W133) -> 0 | AG133: Hydro - U | AH133: P | AI133: 0 | AJ133: 0 | AK133: =VLOOKUP($AH133,Func_Ftrs,I$90,0)*IF(Variables!$Y$23=1,$AI133,$AJ133) -> 0 | AL133: =VLOOKUP($AH133,Func_Ftrs,J$90,0)*IF(Variables!$Y$23=1,$AI133,$AJ133) -> 0 | AM133: =VLOOKUP($AH133,Func_Ftrs,K$90,0)*IF(Variables!$Y$23=1,$AI133,$AJ133) -> 0 | AN133: =VLOOKUP($AH133,Func_Ftrs,L$90,0)*IF(Variables!$Y$23=1,$AI133,$AJ133) -> 0 | AO133: =VLOOKUP($AH133,Func_Ftrs,M$90,0)*IF(Variables!$Y$23=1,$AI133,$AJ133) -> 0 | AP133: =VLOOKUP($AH133,Func_Ftrs,N$90,0)*IF(Variables!$Y$23=1,$AI133,$AJ133) -> 0 | AQ133: =VLOOKUP($AH133,Func_Ftrs,O$90,0)*IF(Variables!$Y$23=1,$AI133,$AJ133) -> 0 | AR133: =VLOOKUP($AH133,Func_Ftrs,P$90,0)*IF(Variables!$Y$23=1,$AI133,$AJ133) -> 0
A134: 18 | D134: Administrative & General | H134: =H1028 -> 65190019.11 | N134: =N1028 ->  | O134: =O1028 ->  | P134: =P1028 ->  | T134: Transmission | U134: T | V134: =Factors!C415 -> 0 | W134: =IF(Variables!$AO$3=12,Factors!H415+Factors!K415,CHOOSE(Variables!AO$3,Factors!D415,Factors!E415,Factors!F415,Factors!G415,Factors!H415,Factors!I415,Factors!J415,Factors!K415,Factors!L415,Factors!M415,Factors!N415)) -> 0 | X134: =VLOOKUP($U134,Func_Ftrs,I$90,0)*IF(Variables!$Y$23=1,$V134,$W134) -> 0 | Y134: =VLOOKUP($U134,Func_Ftrs,J$90,0)*IF(Variables!$Y$23=1,$V134,$W134) -> 0 | Z134: =VLOOKUP($U134,Func_Ftrs,K$90,0)*IF(Variables!$Y$23=1,$V134,$W134) -> 0 | AA134: =VLOOKUP($U134,Func_Ftrs,L$90,0)*IF(Variables!$Y$23=1,$V134,$W134) -> 0 | AB134: =VLOOKUP($U134,Func_Ftrs,M$90,0)*IF(Variables!$Y$23=1,$V134,$W134) -> 0 | AC134: =VLOOKUP($U134,Func_Ftrs,N$90,0)*IF(Variables!$Y$23=1,$V134,$W134) -> 0 | AD134: =VLOOKUP($U134,Func_Ftrs,O$90,0)*IF(Variables!$Y$23=1,$V134,$W134) -> 0 | AE134: =VLOOKUP($U134,Func_Ftrs,P$90,0)*IF(Variables!$Y$23=1,$V134,$W134) -> 0 | AG134: Transmission | AH134: T | AI134: 0 | AJ134: 0 | AK134: =VLOOKUP($AH134,Func_Ftrs,I$90,0)*IF(Variables!$Y$23=1,$AI134,$AJ134) -> 0 | AL134: =VLOOKUP($AH134,Func_Ftrs,J$90,0)*IF(Variables!$Y$23=1,$AI134,$AJ134) -> 0 | AM134: =VLOOKUP($AH134,Func_Ftrs,K$90,0)*IF(Variables!$Y$23=1,$AI134,$AJ134) -> 0 | AN134: =VLOOKUP($AH134,Func_Ftrs,L$90,0)*IF(Variables!$Y$23=1,$AI134,$AJ134) -> 0 | AO134: =VLOOKUP($AH134,Func_Ftrs,M$90,0)*IF(Variables!$Y$23=1,$AI134,$AJ134) -> 0 | AP134: =VLOOKUP($AH134,Func_Ftrs,N$90,0)*IF(Variables!$Y$23=1,$AI134,$AJ134) -> 0 | AQ134: =VLOOKUP($AH134,Func_Ftrs,O$90,0)*IF(Variables!$Y$23=1,$AI134,$AJ134) -> 0 | AR134: =VLOOKUP($AH134,Func_Ftrs,P$90,0)*IF(Variables!$Y$23=1,$AI134,$AJ134) -> 0
A135: 19 | T135: Distribution | U135: D_SPLIT | V135: =Factors!C416 -> 0 | W135: =IF(Variables!$AO$3=12,Factors!H416+Factors!K416,CHOOSE(Variables!AO$3,Factors!D416,Factors!E416,Factors!F416,Factors!G416,Factors!H416,Factors!I416,Factors!J416,Factors!K416,Factors!L416,Factors!M416,Factors!N416)) -> 0 | X135: =VLOOKUP($U135,Func_Ftrs,I$90,0)*IF(Variables!$Y$23=1,$V135,$W135) -> 0 | Y135: =VLOOKUP($U135,Func_Ftrs,J$90,0)*IF(Variables!$Y$23=1,$V135,$W135) -> 0 | Z135: =VLOOKUP($U135,Func_Ftrs,K$90,0)*IF(Variables!$Y$23=1,$V135,$W135) -> 0 | AA135: =VLOOKUP($U135,Func_Ftrs,L$90,0)*IF(Variables!$Y$23=1,$V135,$W135) -> 0 | AB135: =VLOOKUP($U135,Func_Ftrs,M$90,0)*IF(Variables!$Y$23=1,$V135,$W135) -> 0 | AC135: =VLOOKUP($U135,Func_Ftrs,N$90,0)*IF(Variables!$Y$23=1,$V135,$W135) -> 0 | AD135: =VLOOKUP($U135,Func_Ftrs,O$90,0)*IF(Variables!$Y$23=1,$V135,$W135) -> 0 | AE135: =VLOOKUP($U135,Func_Ftrs,P$90,0)*IF(Variables!$Y$23=1,$V135,$W135) -> 0 | AG135: Distribution | AH135: D_SPLIT | AI135: 0 | AJ135: 0 | AK135: =VLOOKUP($AH135,Func_Ftrs,I$90,0)*IF(Variables!$Y$23=1,$AI135,$AJ135) -> 0 | AL135: =VLOOKUP($AH135,Func_Ftrs,J$90,0)*IF(Variables!$Y$23=1,$AI135,$AJ135) -> 0 | AM135: =VLOOKUP($AH135,Func_Ftrs,K$90,0)*IF(Variables!$Y$23=1,$AI135,$AJ135) -> 0 | AN135: =VLOOKUP($AH135,Func_Ftrs,L$90,0)*IF(Variables!$Y$23=1,$AI135,$AJ135) -> 0 | AO135: =VLOOKUP($AH135,Func_Ftrs,M$90,0)*IF(Variables!$Y$23=1,$AI135,$AJ135) -> 0 | AP135: =VLOOKUP($AH135,Func_Ftrs,N$90,0)*IF(Variables!$Y$23=1,$AI135,$AJ135) -> 0 | AQ135: =VLOOKUP($AH135,Func_Ftrs,O$90,0)*IF(Variables!$Y$23=1,$AI135,$AJ135) -> 0 | AR135: =VLOOKUP($AH135,Func_Ftrs,P$90,0)*IF(Variables!$Y$23=1,$AI135,$AJ135) -> 0
A136: 20 | D136: Total O & M Expenses | H136: =SUM(H125:H134) -> 909203024 | N136: =SUM(N125:N134) ->  | O136: =SUM(O125:O134) ->  | P136: =SUM(P125:P134) ->  | T136: General | U136: G | V136: =Factors!C417 -> 0 | W136: =IF(Variables!$AO$3=12,Factors!H417+Factors!K417,CHOOSE(Variables!AO$3,Factors!D417,Factors!E417,Factors!F417,Factors!G417,Factors!H417,Factors!I417,Factors!J417,Factors!K417,Factors!L417,Factors!M417,Factors!N417)) -> 0 | X136: =VLOOKUP($U136,Func_Ftrs,I$90,0)*IF(Variables!$Y$23=1,$V136,$W136) -> 0 | Y136: =VLOOKUP($U136,Func_Ftrs,J$90,0)*IF(Variables!$Y$23=1,$V136,$W136) -> 0 | Z136: =VLOOKUP($U136,Func_Ftrs,K$90,0)*IF(Variables!$Y$23=1,$V136,$W136) -> 0 | AA136: =VLOOKUP($U136,Func_Ftrs,L$90,0)*IF(Variables!$Y$23=1,$V136,$W136) -> 0 | AB136: =VLOOKUP($U136,Func_Ftrs,M$90,0)*IF(Variables!$Y$23=1,$V136,$W136) -> 0 | AC136: =VLOOKUP($U136,Func_Ftrs,N$90,0)*IF(Variables!$Y$23=1,$V136,$W136) -> 0 | AD136: =VLOOKUP($U136,Func_Ftrs,O$90,0)*IF(Variables!$Y$23=1,$V136,$W136) -> 0 | AE136: =VLOOKUP($U136,Func_Ftrs,P$90,0)*IF(Variables!$Y$23=1,$V136,$W136) -> 0 | AG136: General | AH136: G | AI136: 0 | AJ136: 0 | AK136: =VLOOKUP($AH136,Func_Ftrs,I$90,0)*IF(Variables!$Y$23=1,$AI136,$AJ136) -> 0 | AL136: =VLOOKUP($AH136,Func_Ftrs,J$90,0)*IF(Variables!$Y$23=1,$AI136,$AJ136) -> 0 | AM136: =VLOOKUP($AH136,Func_Ftrs,K$90,0)*IF(Variables!$Y$23=1,$AI136,$AJ136) -> 0 | AN136: =VLOOKUP($AH136,Func_Ftrs,L$90,0)*IF(Variables!$Y$23=1,$AI136,$AJ136) -> 0 | AO136: =VLOOKUP($AH136,Func_Ftrs,M$90,0)*IF(Variables!$Y$23=1,$AI136,$AJ136) -> 0 | AP136: =VLOOKUP($AH136,Func_Ftrs,N$90,0)*IF(Variables!$Y$23=1,$AI136,$AJ136) -> 0 | AQ136: =VLOOKUP($AH136,Func_Ftrs,O$90,0)*IF(Variables!$Y$23=1,$AI136,$AJ136) -> 0 | AR136: =VLOOKUP($AH136,Func_Ftrs,P$90,0)*IF(Variables!$Y$23=1,$AI136,$AJ136) -> 0
A137: 21 | T137: Mining Plant | U137: P | V137: =Factors!C418 -> 0 | W137: =IF(Variables!$AO$3=12,Factors!H418+Factors!K418,CHOOSE(Variables!AO$3,Factors!D418,Factors!E418,Factors!F418,Factors!G418,Factors!H418,Factors!I418,Factors!J418,Factors!K418,Factors!L418,Factors!M418,Factors!N418)) -> 0 | X137: =VLOOKUP($U137,Func_Ftrs,I$90,0)*IF(Variables!$Y$23=1,$V137,$W137) -> 0 | Y137: =VLOOKUP($U137,Func_Ftrs,J$90,0)*IF(Variables!$Y$23=1,$V137,$W137) -> 0 | Z137: =VLOOKUP($U137,Func_Ftrs,K$90,0)*IF(Variables!$Y$23=1,$V137,$W137) -> 0 | AA137: =VLOOKUP($U137,Func_Ftrs,L$90,0)*IF(Variables!$Y$23=1,$V137,$W137) -> 0 | AB137: =VLOOKUP($U137,Func_Ftrs,M$90,0)*IF(Variables!$Y$23=1,$V137,$W137) -> 0 | AC137: =VLOOKUP($U137,Func_Ftrs,N$90,0)*IF(Variables!$Y$23=1,$V137,$W137) -> 0 | AD137: =VLOOKUP($U137,Func_Ftrs,O$90,0)*IF(Variables!$Y$23=1,$V137,$W137) -> 0 | AE137: =VLOOKUP($U137,Func_Ftrs,P$90,0)*IF(Variables!$Y$23=1,$V137,$W137) -> 0 | AG137: Mining Plant | AH137: P | AI137: 0 | AJ137: 0 | AK137: =VLOOKUP($AH137,Func_Ftrs,I$90,0)*IF(Variables!$Y$23=1,$AI137,$AJ137) -> 0 | AL137: =VLOOKUP($AH137,Func_Ftrs,J$90,0)*IF(Variables!$Y$23=1,$AI137,$AJ137) -> 0 | AM137: =VLOOKUP($AH137,Func_Ftrs,K$90,0)*IF(Variables!$Y$23=1,$AI137,$AJ137) -> 0 | AN137: =VLOOKUP($AH137,Func_Ftrs,L$90,0)*IF(Variables!$Y$23=1,$AI137,$AJ137) -> 0 | AO137: =VLOOKUP($AH137,Func_Ftrs,M$90,0)*IF(Variables!$Y$23=1,$AI137,$AJ137) -> 0 | AP137: =VLOOKUP($AH137,Func_Ftrs,N$90,0)*IF(Variables!$Y$23=1,$AI137,$AJ137) -> 0 | AQ137: =VLOOKUP($AH137,Func_Ftrs,O$90,0)*IF(Variables!$Y$23=1,$AI137,$AJ137) -> 0 | AR137: =VLOOKUP($AH137,Func_Ftrs,P$90,0)*IF(Variables!$Y$23=1,$AI137,$AJ137) -> 0
A138: 22 | D138: Depreciation | H138: =H1117 -> 303397660.3 | I138: 183685895.1 | J138: 53553465.72 | K138: 60961962.91 | L138: 0 | M138: 359533.5442 | N138: =N1117 -> 4464916.196 | O138: =O1117 -> 371886.8085 | P138: =P1117 -> 0
A139: 23 | D139: Amortization Expense | H139: =H1197 -> 253870969 | N139: =N1197 ->  | O139: =O1197 ->  | P139: =P1197 ->  | T139: Total PC (Post Merger) | V139: =SUM(V131:V137) -> 0 | W139: 0 | X139: 0 | Y139: 0 | Z139: 0 | AA139: 0 | AB139: 0 | AC139: 0 | AD139: 0 | AE139: 0 | AG139: Total PC (Post Merger) | AI139: =SUM(AI131:AI137) -> 0 | AJ139: 0 | AK139: 0 | AL139: 0 | AM139: 0 | AN139: 0 | AO139: 0 | AP139: 0 | AQ139: 0 | AR139: 0
A140: 24 | D140: Taxes Other Than Income | H140: =H1225 -> 75476662.05 | N140: =N1225 ->  | O140: =O1225 ->  | P140: =P1225 -> 
A141: 25 | D141: Income Taxes - Federal | H141: =H1434 ->  | N141: =N1434 ->  | O141: =O1434 ->  | P141: =P1434 ->  | T141: Total Deferred Taxes | V141: =V119+V128+V139 -> 0 | W141: 0 | X141: 0 | Y141: 0 | Z141: 0 | AA141: 0 | AB141: 0 | AC141: 0 | AD141: 0 | AE141: 0 | AG141: Total Deferred Taxes | AI141: =AI119+AI128+AI139 -> 0 | AJ141: 0 | AK141: 0 | AL141: 0 | AM141: 0 | AN141: 0 | AO141: 0 | AP141: 0 | AQ141: 0 | AR141: 0
A142: 26 | D142: Income Taxes - State | H142: =H1401 ->  | J142: 16403903.92 | K142: 16403903.92 | L142: 16403903.92 | M142: 16403903.92 | N142: =N1401 -> 16403903.92 | O142: =O1401 -> 16403903.92 | P142: =P1401 -> 16403903.92
A143: 27 | D143: Income Taxes - Def Net | H143: =H1323 -> -90642246.62 | N143: =N1323 ->  | O143: =O1323 ->  | P143: =P1323 ->  | T143: DITEXPRL FACTOR | V143: =V141/V141 ->  | W143: =W141/W141 ->  | X143: =X141/IF(Variables!$Y$23=2,$W141,$V141) ->  | Y143: =Y141/IF(Variables!$Y$23=2,$W141,$V141) ->  | Z143: =Z141/IF(Variables!$Y$23=2,$W141,$V141) ->  | AA143: =AA141/IF(Variables!$Y$23=2,$W141,$V141) ->  | AB143: =AB141/IF(Variables!$Y$23=2,$W141,$V141) ->  | AC143: =AC141/IF(Variables!$Y$23=2,$W141,$V141) ->  | AD143: =AD141/IF(Variables!$Y$23=2,$W141,$V141) ->  | AE143: =AE141/IF(Variables!$Y$23=2,$W141,$V141) ->  | AG143: DITEXPMA FACTOR | AI143: =AI141/AI141 ->  | AJ143: =AJ141/AJ141 ->  | AK143: =AK141/IF(Variables!$Y$23=2,$AJ141,$AI141) ->  | AL143: =AL141/IF(Variables!$Y$23=2,$AJ141,$AI141) ->  | AM143: =AM141/IF(Variables!$Y$23=2,$AJ141,$AI141) ->  | AN143: =AN141/IF(Variables!$Y$23=2,$AJ141,$AI141) ->  | AO143: =AO141/IF(Variables!$Y$23=2,$AJ141,$AI141) ->  | AP143: =AP141/IF(Variables!$Y$23=2,$AJ141,$AI141) ->  | AQ143: =AQ141/IF(Variables!$Y$23=2,$AJ141,$AI141) ->  | AR143: =AR141/IF(Variables!$Y$23=2,$AJ141,$AI141) -> 
A144: 28 | D144: Investment Tax Credit Adj. | H144: =H1238 -> -1915009.093 | I144: -898881.6164 | J144: -487419.425 | K144: -512758.9863 | L144: 0 | M144: 0 | N144: =N1238 -> -15949.06535 | O144: =O1238 -> 0 | P144: =P1238 -> 0
A145: 29 | D145: Misc Revenue & Expense | H145: =H332 -> 85175.11655 | I145: -497755.6956 | J145: 177.8100298 | K145: -149.4461283 | L145: 0 | M145: 582896.63 | N145: =N332 -> 5.818200177 | O145: =O332 -> 0 | P145: =P332 -> 0
A146: 30
A147: 31 | D147: Total Operating Expenses | H147: =SUM(H136:H145) ->  | N147: =SUM(N136:N145) ->  | O147: =SUM(O136:O145) ->  | P147: =SUM(P136:P145) -> 
A148: 32
A149: 33 | C149: Operating Revenue for Return | H149: =H122-H147 ->  | N149: =N122-N147 ->  | O149: =O122-O147 ->  | P149: =P122-P147 -> 
A150: 34
A151: 35 | C151: Rate Base:
A152: 36 | D152: Electric Plant in Service | H152: =H2059 ->  | N152: =N2059 ->  | O152: =O2059 ->  | P152: =P2059 -> 
A153: 37 | D153: Plant Held for Future Use | H153: =H2082 -> 7083397.087 | I153: 0 | J153: 1352868.437 | K153: 5557660.891 | L153: 0 | M153: 0 | N153: =N2082 -> 172867.7588 | O153: =O2082 -> 0 | P153: =P2082 -> 0
A154: 38 | D154: Misc Deferred Debits | H154: =H2190+H2201 -> 153436804.8
A155: 39 | D155: Elec Plant Acq Adj | H155: =H2088+H2094 -> 14980451.75 | I155: 14980451.75 | J155: 0 | K155: 0 | L155: 0 | M155: 0 | N155: 0 | O155: 0 | P155: 0
A156: 40 | D156: Nuclear Fuel | H156: =H2098 -> 0 | I156: 0 | J156: 0 | K156: 0 | L156: 0 | M156: 0 | N156: =N2098 -> 0 | O156: =O2098 -> 0 | P156: =P2098 -> 0
A157: 41 | D157: Prepayments | H157: =H2180 -> 18822446.31 | N157: =N2180 ->  | O157: =O2180 ->  | P157: =P2180 -> 
A158: 42 | D158: Fuel Stock | H158: =H2145 -> 86286777.62 | I158: 86286777.62 | J158: 0 | K158: 0 | L158: 0 | M158: 0 | N158: =N2145 -> 0 | O158: =O2145 -> 0 | P158: =P2145 -> 0
A159: 43 | D159: Material & Supplies | H159: =H2172 -> 111097795.7 | I159: 89246187.33 | J159: 7504952.14 | K159: 13860254.11 | L159: 0 | M159: 0 | N159: =N2172 -> 486402.1284 | O159: =O2172 -> 0 | P159: =P2172 -> 0
A160: 44 | D160: Working Capital | H160: =H2228 -> 19905476.69 | N160: =N2228 ->  | O160: =O2228 ->  | P160: =P2228 -> 
A161: 45 | D161: Weatherization Loans | H161: =H2120 -> -3785.41146 | I161: 0 | J161: 0 | K161: -3785.41146 | L161: 0 | M161: 0 | N161: =N2120 -> 0 | O161: =O2120 -> 0 | P161: =P2120 -> 0
A162: 46 | D162: Miscellaneous Rate Base | H162: =H2248 -> 0 | I162: 0 | J162: 0 | K162: 0 | L162: 0 | M162: 0 | N162: =N2248 -> 0 | O162: =O2248 -> 0 | P162: =P2248 -> 0
A163: 47
A164: 48 | D164: Total Electric Plant | H164: =SUM(H152:H163) ->  | N164: =SUM(N152:N163) ->  | O164: =SUM(O152:O163) ->  | P164: =SUM(P152:P163) -> 
A165: 49
A166: 50 | C166: Rate Base Deductions:
A167: 51 | D167: Accum Prov For Depr | H167: =H2548 -> -3997476679 | I167: -2014862735 | J167: -829897227.6 | K167: -1089249630 | L167: 0 | M167: -5096996.288 | N167: =N2548 -> -54843892.09 | O167: =O2548 -> -3526198.586 | P167: =P2548 -> 0
A168: 52 | D168: Accum Prov For Amort | H168: =H2597 -> -266601656 | I168: -88941840.06 | J168: -10399161.38 | K168: -59497743.72 | L168: 0 | M168: -48825268.98 | N168: =N2597 -> -29973096.56 | O168: =O2597 -> -28964545.27 | P168: =P2597 -> 0
A169: 53 | D169: Accum Def Income Taxes | H169: =H2345 -> -1091629022 | N169: =N2345 ->  | O169: =O2345 ->  | P169: =P2345 -> 
A170: 54 | D170: Unamortized ITC | H170: =H2355 -> -1744300.348 | I170: -705123.3934 | J170: -83947.97262 | K170: -593073.2333 | L170: 0 | M170: -94914.86957 | N170: =N2355 -> -170762.5429 | O170: =O2355 -> -96478.33645 | P170: =P2355 -> 0
A171: 55 | D171: Customer Adv for Const | H171: =H2280 -> -54583372.4 | I171: 0 | J171: -41497248.03 | K171: -12691366.9 | L171: 0 | M171: 0 | N171: =N2280 -> -394757.4699 | O171: =O2280 -> 0 | P171: =P2280 -> 0
A172: 56 | D172: Customer Service Deposits | H172: =H2254 -> -14791514.62 | I172: 0 | J172: 0 | K172: 0 | L172: 0 | M172: -14791514.62 | N172: =N2254 -> 0 | O172: =O2254 -> 0 | P172: =P2254 -> 0
A173: 57 | D173: Misc. Rate Base Deductions | H173: =H2261+H2266+H2272+H2291+H2284 -> -770644110.5 | I173: =I2261+I2266+I2272+I2291+I2284 -> -737863660.6 | J173: -2577405.52 | K173: -19057586.55 | L173: 0 | M173: -2914115.745 | N173: -5269224.117 | O173: -2962117.954 | P173: 0
A174: 58
A175: 59 | D175: Total Rate Base Deductions | H175: =SUM(H167:H173) -> -6197470655 | N175: =SUM(N167:N173) ->  | O175: =SUM(O167:O173) ->  | P175: =SUM(P167:P173) -> 
A176: 60 | R176: Functional Retail Revenue Spread
A177: 61 | C177: Total Rate Base | H177: =H164+H175 ->  | L177: =MAX(L164+L175,1) ->  | N177: =N164+N175 ->  | O177: =O164+O175 ->  | P177: =P164+P175 ->  | S177: =$I$115 -> Production | T177: =$J$115 -> Transmission | U177: =$K$115 -> Distribution | V177: =$L$115 -> Ancillary | W177: =$M$115 -> C_Billing | X177: =$N$115 -> C_Metering | Y177: =$O$115 -> C_Service | Z177: =$P$115 -> DSM
A178: 62 | R178: California
A179: 63 | C179: Return on Rate Base | H179: =H149/H177 ->  | P179: 0 | R179: Washington
A180: 64 | R180: Montana
A181: 65 | C181: Return on Equity | H181: =(+H179-Variables!$AT$3-Variables!$AT$4)/Variables!$AT$5 ->  | I181: =(+I179-Variables!$AT$3-Variables!$AT$4)/Variables!$AT$5 ->  | J181: =(+J179-Variables!$AT$3-Variables!$AT$4)/Variables!$AT$5 ->  | K181: =(+K179-Variables!$AT$3-Variables!$AT$4)/Variables!$AT$5 ->  | L181: =(+L179-Variables!$AT$3-Variables!$AT$4)/Variables!$AT$5 ->  | M181: =(+M179-Variables!$AT$3-Variables!$AT$4)/Variables!$AT$5 ->  | N181: =(+N179-Variables!$AT$3-Variables!$AT$4)/Variables!$AT$5 ->  | O181: =(+O179-Variables!$AT$3-Variables!$AT$4)/Variables!$AT$5 ->  | P181: 0 | R181: Wyoming - East | S181: 127802829 | T181: 31696874 | U181: 50094096.44 | V181: 46928984 | W181: 1555189 | X181: 1610923.44
A182: 66 | R182: Utah | S182: 366003980 | T182: 104207074 | U182: 215005203.7 | V182: 197478510 | W182: 11984031 | X182: 5542662.72
A183: 67 | C183: 100 Basis Points in Equity: | H183: =(H177*(Variables!$AT5*(H181+0.01)+Variables!$AT3+Variables!$AT4))-H149 ->  | I183: =(I177*(Variables!AT5*(I181+0.01)+Variables!AT3+Variables!AT4))-I149 ->  | J183: =(J177*(Variables!AU5*(J181+0.01)+Variables!AU3+Variables!AU4))-J149 ->  | K183: =(K177*(Variables!$AV5*(K181+0.01)+Variables!$AV3+Variables!$AV4))-K149 ->  | L183: =(L177*(Variables!$AV5*(L181+0.01)+Variables!$AV3+Variables!$AV4))-L149 ->  | M183: =(M177*(Variables!$AV5*(M181+0.01)+Variables!$AV3+Variables!$AV4))-M149 ->  | N183: =(N177*(Variables!$AV5*(N181+0.01)+Variables!$AV3+Variables!$AV4))-N149 ->  | O183: =(O177*(Variables!$AV5*(O181+0.01)+Variables!$AV3+Variables!$AV4))-O149 ->  | P183: =(P177*(Variables!$AV5*(P181+0.01)+Variables!$AV3+Variables!$AV4))-P149 ->  | R183: Idaho | S183: 55561275 | T183: 14318016 | U183: 30397767.02 | V183: 27273473 | W183: 2038247 | X183: 1086047.02
A184: 68 | D184: Revenue Requirement Impact | H184: =H183*(1/(1-(INDEX(Variables!$F$15:$Q$15,1,Variables!$AO$3)))) ->  | I184: =I183*(1/(1-(INDEX(Variables!$F$15:$Q$15,1,Variables!$AO$3)))) ->  | J184: =J183*(1/(1-(INDEX(Variables!$F$15:$Q$15,1,Variables!$AO$3)))) ->  | K184: =K183*(1/(1-(INDEX(Variables!$F$15:$Q$15,1,Variables!$AO$3)))) ->  | L184: =L183*(1/(1-(INDEX(Variables!$F$15:$Q$15,1,Variables!$AO$3)))) ->  | M184: =M183*(1/(1-(INDEX(Variables!$F$15:$Q$15,1,Variables!$AO$3)))) ->  | N184: =N183*(1/(1-(INDEX(Variables!$F$15:$Q$15,1,Variables!$AO$3)))) ->  | O184: =O183*(1/(1-(INDEX(Variables!$F$15:$Q$15,1,Variables!$AO$3)))) ->  | P184: =P183*(1/(1-(INDEX(Variables!$F$15:$Q$15,1,Variables!$AO$3)))) ->  | R184: Wyoming - West | S184: 19756255.66 | T184: 5006765.992 | U184: 9963427.118 | V184: 8733400.13 | W184: 996768.2125 | X184: 233258.5417
A185: 69 | D185: Rate Base Decrease | H185: =(H149/(Variables!$AT5*(H181+0.01)+UTCR!$J7+UTCR!$J12))-H177 ->  | I185: =(I149/(Variables!$AT5*(I181+0.01)+UTCR!$J7+UTCR!$J12))-I177 ->  | J185: =(J149/(Variables!$AU5*(J181+0.01)+UTCR!$J7+UTCR!$J12))-J177 ->  | K185: =(K149/(Variables!$AV5*(K181+0.01)+UTCR!$J7+UTCR!$J12))-K177 ->  | L185: =(L149/(Variables!$AV5*(L181+0.01)+UTCR!$J7+UTCR!$J12))-L177 ->  | M185: =(M149/(Variables!$AV5*(M181+0.01)+UTCR!$J7+UTCR!$J12))-M177 ->  | N185: =(N149/(Variables!$AV5*(N181+0.01)+UTCR!$J7+UTCR!$J12))-N177 ->  | O185: =(O149/(Variables!$AV5*(O181+0.01)+UTCR!$J7+UTCR!$J12))-O177 ->  | P185: =(P149/(Variables!$AV5*(P181+0.01)+UTCR!$J7+UTCR!$J12))-P177 ->  | R185: Total Company | S185: 1110556694 | T185: 308995072.2 | U185: 611877930.3 | V185: 566002564.9 | W185: 14881002.1 | X185: 30994363.59
C186: =$C$111 -> RESULTS OF OPERATIONS SUMMARY | AA186: Check Total
C187: =+$C$114 -> 2020 PROTOCOL | S187: =($H179-I179)*I177*(1/(1-Variables!$F$15)) ->  | T187: =($H179-J179)*J177*(1/(1-Variables!$F$15)) ->  | U187: =($H179-K179)*K177*(1/(1-Variables!$F$15)) ->  | V187: =($H179-L179)*L177*(1/(1-Variables!$F$15)) ->  | W187: =($H179-M179)*M177*(1/(1-Variables!$F$15)) ->  | X187: =($H179-N179)*N177*(1/(1-Variables!$F$15)) ->  | Y187: =($H179-O179)*O177*(1/(1-Variables!$F$15)) ->  | Z187: =($H179-P179)*P177*(1/(1-Variables!$F$15)) ->  | AA187: =ABS(SUM(S187:Z187)) -> 
C188: FERC | F188: BUSINESS | G188: PITA | H188: =$H$114 -> UTAH | S188: =S187+I192 ->  | AA188: =SUM(S188:Z188) -> 
C189: ACCT | E189: DESCRIPTION | F189: FUNCTION | G189: FACTOR | H189: =$H$115 -> Normalized | I189: =$I$115 -> Production | J189: =$J$115 -> Transmission | K189: =$K$115 -> Distribution | L189: =$L$115 -> Ancillary | M189: =$M$115 -> C_Billing | N189: =$N$115 -> C_Metering | O189: =$O$115 -> C_Service | P189: =$P$115 -> DSM | Q189: Check | S189: =$I$115 -> Production | T189: =$J$115 -> Transmission | U189: =$K$115 -> Distribution | V189: =$L$115 -> Ancillary | W189: Customer | X189: DSM
A190: 70 | C190: Sales to Ultimate Customers | Q190: Figure | R190: Variance
A191: 71 | C191: 440 | D191: Residential Sales | I191: =($H179-I179)*I177*(1/(1-Variables!$F$15)) ->  | J191: =($H179-J179)*J177*(1/(1-Variables!$F$15)) ->  | K191: =($H179-K179)*K177*(1/(1-Variables!$F$15)) ->  | L191: =($H179-L179)*L177*(1/(1-Variables!$F$15)) ->  | M191: =($H179-M179)*M177*(1/(1-Variables!$F$15)) ->  | N191: =($H179-N179)*N177*(1/(1-Variables!$F$15)) ->  | O191: =($H179-O179)*O177*(1/(1-Variables!$F$15)) ->  | P191: =($H179-P179)*P177*(1/(1-Variables!$F$15)) ->  | Q191: =H117 -> 
A192: 72 | G192: =UTCR!H192 -> S | H192: =IF(Variables!$Y$23=2,Report!P192,NRO!I192) -> 860915571.9 | I192: 652206238.2 | J192: 43324568.75 | K192: 194817363.5 | L192: 6949653.101 | M192: 20138960.93 | N192: 25075718.33 | O192: 6828800.312 | P192: 4.705277175e-299 | Q192: =SUM(I192:P192) -> 949341303.1 | R192: =ROUND(Q191-Q192,0) ->  | S192: =IF($F192=0,0,INDEX($I192:$P192,1,1)) -> 0 | T192: =IF($F192=0,0,INDEX($I192:$P192,1,2)) -> 0 | U192: =IF($F192=0,0,INDEX($I192:$P192,1,3)) -> 0 | V192: =IF($F192=0,0,INDEX($I192:$P192,1,4)) -> 0 | W192: =IF($F192=0,0,INDEX($I192:$P192,1,5)) -> 0 | X192: =IF($F192=0,0,INDEX($I192:$P192,1,6)) -> 0
A193: 73 | S193: 0 | T193: 0 | U193: 0 | V193: 0 | W193: 0 | X193: 0
A194: 74 | H194: =SUBTOTAL(9,H192:H193) -> 860915571.9 | S194: 0 | T194: 0 | U194: 0 | V194: 0 | W194: 0 | X194: 0
A195: 75 | S195: 0 | T195: 0 | U195: 0 | V195: 0 | W195: 0 | X195: 0
A196: 76 | C196: 442 | D196: Commercial & Industrial Sales | S196: 0 | T196: 0 | U196: 0 | V196: 0 | W196: 0 | X196: 0
A197: 77 | G197: =UTCR!H197 -> S | H197: =IF(Variables!$Y$23=2,Report!P197,NRO!I197) -> 1304804191 | S197: 0 | T197: 0 | U197: 0 | V197: 0 | W197: 0 | X197: 0
A198: 78 | F198: P | G198: =UTCR!H198 -> SE | H198: =IF(Variables!$Y$23=2,Report!P198,NRO!I198) -> 0 | I198: =IF(F198=(VLOOKUP(F198,Func_Ftrs,1)),VLOOKUP(F198,Func_Ftrs,5),"#N/A")*H198 -> 0 | J198: =IF(F198=(VLOOKUP(F198,Func_Ftrs,1)),VLOOKUP(F198,Func_Ftrs,6),"#N/A")*H198 -> 0 | K198: =IF(F198=(VLOOKUP(F198,Func_Ftrs,1)),VLOOKUP(F198,Func_Ftrs,7),"#N/A")*H198 -> 0 | L198: =IF(F198=(VLOOKUP(F198,Func_Ftrs,1)),VLOOKUP(F198,Func_Ftrs,8),"#N/A")*H198 -> 0 | M198: =IF(F198=(VLOOKUP(F198,Func_Ftrs,1)),VLOOKUP(F198,Func_Ftrs,9),"#N/A")*H198 -> 0 | N198: =IF($F198=(VLOOKUP($F198,Func_Ftrs,1)),VLOOKUP($F198,Func_Ftrs,10),"#N/A")*$H198 -> 0 | O198: =IF($F198=(VLOOKUP($F198,Func_Ftrs,1)),VLOOKUP($F198,Func_Ftrs,11),"#N/A")*$H198 -> 0 | P198: =IF($F198=(VLOOKUP($F198,Func_Ftrs,1)),VLOOKUP($F198,Func_Ftrs,12),"#N/A")*$H198 -> 0 | S198: 0 | T198: 0 | U198: 0 | V198: 0 | W198: 0 | X198: 0
A199: 79 | F199: PT | G199: =UTCR!H199 -> SG | H199: =IF(Variables!$Y$23=2,Report!P199,NRO!I199) -> 0 | I199: =IF(F199=(VLOOKUP(F199,Func_Ftrs,1,0)),VLOOKUP(F199,Func_Ftrs,5,0),"#N/A")*H199 -> 0 | J199: =IF(F199=(VLOOKUP(F199,Func_Ftrs,1,0)),VLOOKUP(F199,Func_Ftrs,6,0),"#N/A")*H199 -> 0 | K199: =IF(F199=(VLOOKUP(F199,Func_Ftrs,1,0)),VLOOKUP(F199,Func_Ftrs,7,0),"#N/A")*H199 -> 0 | L199: =IF(F199=(VLOOKUP(F199,Func_Ftrs,1,0)),VLOOKUP(F199,Func_Ftrs,8,0),"#N/A")*H199 -> 0 | M199: =IF(F199=(VLOOKUP(F199,Func_Ftrs,1,0)),VLOOKUP(F199,Func_Ftrs,9,0),"#N/A")*H199 -> 0 | N199: =IF($F199=(VLOOKUP($F199,Func_Ftrs,1,0)),VLOOKUP($F199,Func_Ftrs,10,0),"#N/A")*$H199 -> 0 | O199: =IF($F199=(VLOOKUP($F199,Func_Ftrs,1,0)),VLOOKUP($F199,Func_Ftrs,11,0),"#N/A")*$H199 -> 0 | P199: =IF($F199=(VLOOKUP($F199,Func_Ftrs,1,0)),VLOOKUP($F199,Func_Ftrs,12,0),"#N/A")*$H199 -> 0 | S199: 0 | T199: 0 | U199: 0 | V199: 0 | W199: 0 | X199: 0
A200: 80 | S200: 0 | T200: 0 | U200: 0 | V200: 0 | W200: 0 | X200: 0
A201: 81 | S201: 0 | T201: 0 | U201: 0 | V201: 0 | W201: 0 | X201: 0
A202: 82 | H202: =SUBTOTAL(9,H197:H200) -> 1304804191 | I202: 0 | J202: 0 | K202: 0 | L202: 0 | M202: 0 | N202: =SUBTOTAL(9,N197:N200) -> 0 | O202: =SUBTOTAL(9,O197:O200) -> 0 | P202: =SUBTOTAL(9,P197:P200) -> 0 | S202: 0 | T202: 0 | U202: 0 | V202: 0 | W202: 0 | X202: 0
A203: 83 | S203: 0 | T203: 0 | U203: 0 | V203: 0 | W203: 0 | X203: 0
A204: 84 | C204: 444 | D204: Public Street & Highway Lighting | S204: 0 | T204: 0 | U204: 0 | V204: 0 | W204: 0 | X204: 0
A205: 85 | G205: =UTCR!H205 -> S | H205: =IF(Variables!$Y$23=2,Report!P205,NRO!I205) -> 8103971.25 | S205: 0 | T205: 0 | U205: 0 | V205: 0 | W205: 0 | X205: 0
... 2399 more rows

Sheet Results
A1: =VLOOKUP(VLOOKUP(Variables!$AO$3,Variables!$AL$3:'Variables'!$AL$14,1,FALSE),Variables!$AL$3:'Variables'!$AP$14,5,FALSE) -> Rocky Mountain Power | G1: Page 1.1
A2: =Report!I56 -> UTAH
A3: ="Normalized Results of Operations - "&Variables!AE27 -> Normalized Results of Operations - 2020 PROTOCOL
A4: =PROPER(Report!I57) -> 12 Months Ended December 2020
A7: (1) | B7: ="Test Period "& PROPER(Variables!AE27)&" Revenue Requirement" -> Test Period 2020 Protocol Revenue Requirement | E7: =E43 -> 2172694986 | F7: Page 1.2
A9: (2) | B9: Normalized General Business Revenues | E9: =C43 -> 2173823735 | F9: Page 1.2
A11: (3) | B11: =PROPER(Variables!AE27)&" Price Change" -> 2020 Protocol Price Change | E11: =D43 -> -1128748.775 | F11: Page 1.2
A34: =VLOOKUP(VLOOKUP(Variables!$AO$3,Variables!$AL$3:'Variables'!$AL$14,1,FALSE),Variables!$AL$3:'Variables'!$AP$14,5,FALSE) -> Rocky Mountain Power | G34: Page 1.2
A35: =Report!I56 -> UTAH
A36: ="Normalized Results of Operations - "&Variables!AE27 -> Normalized Results of Operations - 2020 PROTOCOL
A37: =A4 -> 12 Months Ended December 2020
C39: (1) | D39: (2) | E39: (3)
C40: Total Adjusted | E40: Results with | L40: PREVIOUS | M40: ADJUSTED
C41: Results | D41: Price Change | E41: Price Change | L41: RESULTS | M41: RESULTS | N41: DIFFERENCE
A42: 1 | B42: Operating Revenues: | J42: 1 | K42: Operating Revenues:
A43: 2 | B43: General Business Revenues | C43: =Report!P118 -> 2173823735 | D43: =-(C74-(C102*Report!J96))*(1/NetToGross) -> -1128748.775 | E43: =SUM(C43:D43) -> 2172694986 | J43: 2 | K43: General Business Revenues | L43: 2173823735 | M43: =C43 -> 2173823735 | N43: =M43-L43 -> 0
A44: 3 | B44: Interdepartmental | C44: =Report!P119 -> 0 | J44: 3 | K44: Interdepartmental | L44: 0 | M44: =C44 -> 0 | N44: =M44-L44 -> 0
A45: 4 | B45: Special Sales | C45: =Report!P120 -> 89133786.14 | J45: 4 | K45: Special Sales | L45: 89133786.14 | M45: =C45 -> 89133786.14 | N45: =M45-L45 -> 0
A46: 5 | B46: Other Operating Revenues | C46: =Report!P121 -> 77124120.84 | J46: 5 | K46: Other Operating Revenues | L46: 77124120.84 | M46: =C46 -> 77124120.84 | N46: =M46-L46 -> 0
A47: 6 | B47: Total Operating Revenues | C47: =SUM(C43:C46) -> 2340081641 | J47: 6 | K47: Total Operating Revenues | L47: 2340081641 | M47: =C47 -> 2340081641 | N47: =M47-L47 -> 0
A48: 7 | J48: 7
A49: 8 | B49: Operating Expenses: | J49: 8 | K49: Operating Expenses:
A50: 9 | B50: Steam Production | C50: =Report!P125 -> 456745109.9 | J50: 9 | K50: Steam Production | L50: 456745109.9 | M50: =C50 -> 456745109.9 | N50: =M50-L50 -> 0
A51: 10 | B51: Nuclear Production | C51: =Report!P126 -> 0 | J51: 10 | K51: Nuclear Production | L51: 0 | M51: 0 | N51: 0
A52: 11 | B52: Hydro Production | C52: =Report!P127 -> 19180512 | J52: 11 | K52: Hydro Production | L52: 19180512 | M52: 19180512 | N52: 0
A53: 12 | B53: Other Power Supply | C53: =Report!P128 -> 464435961.8 | J53: 12 | K53: Other Power Supply | L53: 464435961.8 | M53: 464435961.8 | N53: 0
A54: 13 | B54: Transmission | C54: =Report!P129 -> 92647063.53 | J54: 13 | K54: Transmission | L54: 92647063.53 | M54: 92647063.53 | N54: 0
A55: 14 | B55: Distribution | C55: =Report!P130 -> 82286354.69 | J55: 14 | K55: Distribution | L55: 82286354.69 | M55: =C55 -> 82286354.69 | N55: 0
A56: 15 | B56: Customer Accounting | C56: =Report!P131 -> 33682020.74 | D56: =D43*UncollectibleAccounts -> -3134.434229 | E56: =SUM(C56:D56) -> 33678886.3 | J56: 15 | K56: Customer Accounting | L56: 33682020.74 | M56: 33682020.74 | N56: 0
A57: 16 | B57: Customer Service & Info | C57: =Report!P132 -> 6015790.871 | J57: 16 | K57: Customer Service & Info | L57: 6015790.871 | M57: 6015790.871 | N57: 0
A58: 17 | B58: Sales | C58: =Report!P133 -> 0 | J58: 17 | K58: Sales | L58: 0 | M58: 0 | N58: 0
A59: 18 | B59: Administrative & General | C59: =Report!P134 -> 67342255.11 | J59: 18 | K59: Administrative & General | L59: 67342255.11 | M59: 67342255.11 | N59: 0
A60: 19 | J60: 19
A61: 20 | B61: Total O&M Expenses | C61: =Report!P136 -> 1222335069 | J61: 20 | K61: Total O&M Expenses | L61: 1222335069 | M61: =C61 -> 1222335069 | N61: =M61-L61 -> 0
A62: 21 | J62: 21
A63: 22 | B63: Depreciation | C63: =Report!P138 -> 303397660.3 | J63: 22 | K63: Depreciation | L63: 303397660.3 | M63: =C63 -> 303397660.3 | N63: =M63-L63 -> 0
A64: 23 | B64: Amortization | C64: =Report!P139 -> 253870969 | J64: 23 | K64: Amortization | L64: 253870969 | M64: 253870969 | N64: 0
A65: 24 | B65: Taxes Other Than Income | C65: =Report!P140 -> 75476662.05 | D65: =((D43)*(FranchiseTax+RevenueTax+ResourceSupplier+PUCFees)) -> -3386.246326 | E65: =SUM(C65:D65) -> 75473275.8 | J65: 24 | K65: Taxes Other Than Income | L65: 75476662.05 | M65: 75476662.05 | N65: 0
A66: 25 | B66: Income Taxes - Federal | C66: =Report!P141 -> 33390470.55 | D66: =(D43-D56-D65-D67)*Report!J78 -> -224968.5772 | E66: =SUM(C66:D66) -> 33165501.97 | J66: 25 | K66: Income Taxes - Federal | L66: 33390470.55 | M66: 33390470.55 | N66: 0
A67: 26 | B67: Income Taxes - State | C67: =Report!P142 -> 16403903.92 | D67: =(D43-D56-D65)*Report!J79 -> -50949.1555 | E67: =SUM(C67:D67) -> 16352954.76 | J67: 26 | K67: Income Taxes - State | L67: 16403903.92 | M67: 16403903.92 | N67: 0
A68: 27 | B68: Income Taxes - Def Net | C68: =Report!P143 -> -59397551.69 | J68: 27 | K68: Income Taxes - Def Net | L68: -59397551.69 | M68: -59397551.69 | N68: 0
A69: 28 | B69: Investment Tax Credit Adj. | C69: =Report!P144 -> -1915009.093 | J69: 28 | K69: Investment Tax Credit Adj. | L69: -1915009.093 | M69: -1915009.093 | N69: 0
A70: 29 | B70: Misc Revenue & Expense | C70: =Report!P145 -> 85175.11655 | J70: 29 | K70: Misc Revenue & Expense | L70: 85175.11655 | M70: =C70 -> 85175.11655 | N70: 0
A71: 30 | J71: 30
A72: 31 | B72: Total Operating Expenses: | C72: =Report!P147 -> 1843647349 | D72: =SUM(D56,D65:D67) -> -282438.4133 | E72: =C72+D72 -> 1843364910 | J72: 31 | K72: Total Operating Expenses: | L72: 1843647349 | M72: =C72 -> 1843647349 | N72: =M72-L72 -> 0
A73: 32 | J73: 32
A74: 33 | B74: Operating Rev For Return: | C74: =C47-C72 -> 496434292.7 | D74: =D43-D72 -> -846310.3619 | E74: =(C74+D43-D56-D65-D66-D67) -> 495587982.3 | J74: 33 | K74: Operating Rev For Return: | L74: 496434292.7 | M74: =C74 -> 496434292.7 | N74: =M74-L74 -> 0
A75: 34 | J75: 34
A76: 35 | B76: Rate Base: | J76: 35 | K76: Rate Base:
A77: 36 | B77: Electric Plant In Service | C77: =Report!P152 -> 1.247737616e+10 | J77: 36 | K77: Electric Plant In Service | L77: 1.247737616e+10 | M77: =C77 -> 1.247737616e+10 | N77: =M77-L77 -> 0
A78: 37 | B78: Plant Held for Future Use | C78: =Report!P153 -> 7083397.087 | J78: 37 | K78: Plant Held for Future Use | L78: 7083397.087 | M78: 7083397.087 | N78: 0
A79: 38 | B79: Misc Deferred Debits | C79: =Report!P154 -> 153436804.8 | J79: 38 | K79: Misc Deferred Debits | L79: 153436804.8 | M79: 153436804.8 | N79: 0
A80: 39 | B80: Elec Plant Acq Adj | C80: =Report!P155 -> 14980451.75 | J80: 39 | K80: Elec Plant Acq Adj | L80: 14980451.75 | M80: 14980451.75 | N80: 0
A81: 40 | B81: Pensions | C81: =Report!P156 -> 0 | J81: 40 | K81: Pensions | L81: 0 | M81: =C81 -> 0 | N81: 0
A82: 41 | B82: Prepayments | C82: =Report!P157 -> 18822446.31 | J82: 41 | K82: Prepayments | L82: 18822446.31 | M82: 18822446.31 | N82: 0
A83: 42 | B83: Fuel Stock | C83: =Report!P158 -> 86286777.62 | J83: 42 | K83: Fuel Stock | L83: 86286777.62 | M83: 86286777.62 | N83: 0
A84: 43 | B84: Material & Supplies | C84: =Report!P159 -> 111097795.7 | J84: 43 | K84: Material & Supplies | L84: 111097795.7 | M84: 111097795.7 | N84: 0
A85: 44 | B85: Working Capital | C85: =Report!P160 -> 19905476.69 | J85: 44 | K85: Working Capital | L85: 19905476.69 | M85: 19905476.69 | N85: 0
A86: 45 | B86: Weatherization Loans | C86: =Report!P161 -> -3785.41146 | J86: 45 | K86: Weatherization Loans | L86: -3785.41146 | M86: -3785.41146 | N86: 0
A87: 46 | B87: Misc Rate Base | C87: =Report!P162 -> 0 | J87: 46 | K87: Misc Rate Base | L87: 0 | M87: 0 | N87: 0
A88: 47 | J88: 47
A89: 48 | B89: Total Electric Plant: | C89: =Report!P164 -> 1.288898553e+10 | D89: 0 | E89: =SUM(C89:D89) -> 1.288898553e+10 | J89: 48 | K89: Total Electric Plant: | L89: 1.288898553e+10 | M89: =C89 -> 1.288898553e+10 | N89: =M89-L89 -> 0
A90: 49 | J90: 49
A91: 50 | B91: Rate Base Deductions: | J91: 50 | K91: Rate Base Deductions:
A92: 51 | B92: Accum Prov For Deprec | C92: =Report!P167 -> -3997476679 | J92: 51 | K92: Accum Prov For Deprec | L92: -3997476679 | M92: =C92 -> -3997476679 | N92: =M92-L92 -> 0
A93: 52 | B93: Accum Prov For Amort | C93: =Report!P168 -> -266601656 | J93: 52 | K93: Accum Prov For Amort | L93: -266601656 | M93: -266601656 | N93: 0
A94: 53 | B94: Accum Def Income Tax | C94: =Report!P169 -> -1092239626 | J94: 53 | K94: Accum Def Income Tax | L94: -1092239626 | M94: -1092239626 | N94: 0
A95: 54 | B95: Unamortized ITC | C95: =Report!P170 -> -1744300.348 | J95: 54 | K95: Unamortized ITC | L95: -1744300.348 | M95: -1744300.348 | N95: 0
A96: 55 | B96: Customer Adv For Const | C96: =Report!P171 -> -54583372.4 | J96: 55 | K96: Customer Adv For Const | L96: -54583372.4 | M96: -54583372.4 | N96: 0
A97: 56 | B97: Customer Service Deposits | C97: =Report!P172 -> -14791514.62 | J97: 56 | K97: Customer Service Deposits | L97: -14791514.62 | M97: -14791514.62 | N97: 0
A98: 57 | B98: Misc Rate Base Deductions | C98: =Report!P173 -> -770644110.5 | J98: 57 | K98: Misc Rate Base Deductions | L98: -770644110.5 | M98: -770644110.5 | N98: 0
A99: 58 | J99: 58
A100: 59 | B100: Total Rate Base Deductions | C100: =Report!P175 -> -6198081259 | D100: 0 | E100: =SUM(C100:D100) -> -6198081259 | J100: 59 | K100: Total Rate Base Deductions | L100: -6198081259 | M100: =C100 -> -6198081259 | N100: =M100-L100 -> 0
A101: 60 | J101: 60
A102: 61 | B102: Total Rate Base: | C102: =SUM(C89,C100) -> 6690904268 | D102: 0 | E102: =SUM(C102:D102) -> 6690904268 | J102: 61 | K102: Total Rate Base: | L102: 6690904268 | M102: =C102 -> 6690904268 | N102: =M102-L102 -> 0
A103: 62 | J103: 62
A104: 63 | B104: Return on Rate Base | C104: =C74/C102 -> 0.07419539614 | E104: =E74/E102 -> 0.07406890944 | J104: 63 | K104: Return on Rate Base | L104: 0.07419539614 | M104: =C104 -> 0.07419539614 | N104: =M104-L104 -> 0
A105: 64 | J105: 64
A106: 65 | B106: Return on Equity | C106: =(+C104-Report!$J$93-Report!$J$94)/Report!$G$95 -> 0.09824560523 | E106: =(+E104-Report!$J$93-Report!$J$94)/Report!$G$95 -> 0.098 | J106: 65 | K106: Return on Equity | L106: 0.09824560523 | M106: =C106 -> 0.09824560523 | N106: =M106-L106 -> 0
A107: 66 | J107: 66
A108: 67 | B108: TAX CALCULATION: | J108: 67 | K108: TAX CALCULATION:
A109: 68 | B109: Operating Revenue | C109: =C47-C61-C63-C64-C65-C70 -> 484916106.4 | D109: =D43-D56-D65 -> -1122228.095 | E109: =SUM(C109:D109) -> 483793878.3 | J109: 68 | K109: Operating Revenue | L109: 484916106.4 | M109: =C109 -> 484916106.4 | N109: =M109-L109 -> 0
A110: 69 | B110: Other Deductions | J110: 69 | K110: Other Deductions
A111: 70 | B111: Interest (AFUDC) | C111: =Report!P1292 -> -43171049.78 | D111: 0 | E111: =SUM(C111:D111) -> -43171049.78 | J111: 70 | K111: Interest (AFUDC) | L111: -43171049.78 | M111: =C111 -> -43171049.78 | N111: =M111-L111 -> 0
A112: 71 | B112: Interest | C112: =Report!P1276 -> 149567380.4 | D112: 0 | E112: =SUM(C112:D112) -> 149567380.4 | J112: 71 | K112: Interest | L112: 149567380.4 | M112: =C112 -> 149567380.4 | N112: =M112-L112 -> 0
A113: 72 | B113: Schedule "M" Additions | C113: =Report!P1371 -> 653706214.1 | D113: 0 | E113: =SUM(C113:D113) -> 653706214.1 | J113: 72 | K113: Schedule "M" Additions | L113: 653706214.1 | M113: =C113 -> 653706214.1 | N113: =M113-L113 -> 0
A114: 73 | B114: Schedule "M" Deductions | C114: =Report!P1402 -> 670906520.3 | D114: 0 | E114: =SUM(C114:D114) -> 670906520.3 | J114: 73 | K114: Schedule "M" Deductions | L114: 670906520.3 | M114: =C114 -> 670906520.3 | N114: =M114-L114 -> 0
A115: 74 | B115: Income Before Tax | C115: =C109-C111-C112+C113-C114 -> 361319469.5 | D115: =D109-D111-D112+D113-D114 -> -1122228.095 | E115: =E109-E111-E112+E113-E114 -> 360197241.4 | J115: 74 | K115: Income Before Tax | L115: 361319469.5 | M115: =C115 -> 361319469.5 | N115: =M115-L115 -> 0
A116: 75 | J116: 75
A117: 76 | B117: State Income Taxes | C117: =C67 -> 16403903.92 | D117: =D67 -> -50949.1555 | E117: =SUM(C117:D117) -> 16352954.76 | J117: 76 | K117: State Income Taxes | L117: 16403903.92 | M117: =C117 -> 16403903.92 | N117: =M117-L117 -> 0
A118: 77 | B118: Taxable Income | C118: =C115-C117 -> 344915565.6 | D118: =D115-D117 -> -1071278.939 | E118: =E115-E117 -> 343844286.7 | J118: 77 | K118: Taxable Income | L118: 344915565.6 | M118: =C118 -> 344915565.6 | N118: =M118-L118 -> 0
A119: 78 | J119: 78
A120: 79 | B120: Federal Income Taxes + Other | C120: =C66 -> 33390470.55 | D120: =D66 -> -224968.5772 | E120: =SUM(C120:D120) -> 33165501.97 | J120: 79 | K120: Federal Income Taxes + Other | L120: 33390470.55 | M120: =C120 -> 33390470.55 | N120: =M120-L120 -> 0
C122: Ref. Page 2.2 | K122: PRICE CHANGE | L122: -1128748.775 | M122: =D43 -> -1128748.775 | N122: =M122-L122 -> 0
A124: =A34 -> Rocky Mountain Power | G124: Page 1.3
A125: =+A35 -> UTAH
A126: =A36 -> Normalized Results of Operations - 2020 PROTOCOL
A127: =A4 -> 12 Months Ended December 2020
B131: Net Rate Base | D131: =C102 -> 6690904268 | E131: Ref. Page 1.1
B132: Return on Rate Base Requested | D132: =Report!J96 -> 0.07406890944 | E132: Ref. Page 2.1
B134: Revenues Required to Earn Requested Return | D134: =E74 -> 495587982.3
B135: Less Current Operating Revenues | D135: =-C74 -> -496434292.7
B137: Increase to Current Revenues | D137: =D134+D135 -> -846310.3619
B138: Net to Gross Bump-up | D138: =1/NetToGross -> 1.333729121
B140: Price Change Required for Requested Return | D140: =D43 -> -1128748.775
B143: Requested Price Change | D143: =D140 -> -1128748.775
B144: Uncollectible Percent | D144: =UncollectibleAccounts -> 0.002776910414 | E144: Ref. Page 1.3
B145: Increased Uncollectible Expense | D145: =D143*D144 -> -3134.434229
B148: Requested Price Change | D148: =D140 -> -1128748.775
B149: Franchise Tax | D149: =FranchiseTax -> 0 | E149: Ref. Page 1.3
B150: Revenue Tax | D150: =RevenueTax -> 0 | E150: Ref. Page 1.3
B151: Resource Supplier Tax | D151: =ResourceSupplier -> 0 | E151: Ref. Page 1.3
B152: PUC Fees Based on General Business Revenues | D152: =PUCFees -> 0.003 | E152: Ref. Page 1.3
B153: Increase Taxes Other Than Income | D153: =SUM(D149:D152)*D148 -> -3386.246326
B156: Requested Price Change | D156: =D140 -> -1128748.775
B157: Uncollectible Expense | D157: =-D145 -> 3134.434229
B158: Taxes Other Than Income | D158: =-D153 -> 3386.246326
B159: Income Before Taxes | D159: =SUM(D156:D158) -> -1122228.095
B161: State Effective Tax Rate | D161: =+Report!J79 -> 0.0454 | E161: Ref. Page 2.1
B162: State Income Taxes | D162: =D159*D161 -> -50949.1555
B164: Taxable Income | D164: =D159-D162 -> -1071278.939
B165: Federal Income Tax Rate | D165: =+Report!J78 -> 0.21 | E165: Ref. Page 2.1
B166: Federal Income Taxes | D166: =D164*D165 -> -224968.5772
B169: Operating Income | D169: 1
B170: Net Operating Income | D170: =D200 -> 0.7497774354 | E170: Ref. Page 1.3
B171: Net to Gross Bump-Up | D171: =D169/D170 -> 1.333729121
A176: =A$34 -> Rocky Mountain Power | G176: Page 1.4
A177: =A$35 -> UTAH
A178: =A$36 -> Normalized Results of Operations - 2020 PROTOCOL
A179: =A4 -> 12 Months Ended December 2020
A183: Operating Revenue | D183: 1
A185: Operating Deductions
A186: Uncollectible Accounts | D186: =UncollectibleAccounts -> 0.002776910414 | E186: See Note (1) Below
A187: Taxes Other - Franchise Tax | D187: =FranchiseTax -> 0
A188: Taxes Other - Revenue Tax | D188: =RevenueTax -> 0
A189: Taxes Other - Resource Supplier | D189: =ResourceSupplier -> 0
A190: PUC Fees Based on General Business Revenues | D190: =PUCFees -> 0.003
A192: Sub-Total | D192: =D183-SUM(D185:D190) -> 0.9942230896
A194: State Income Tax @ 4.54% | D194: =D192*Report!J79 -> 0.04513772827
A196: Sub-Total | D196: =D192-D194 -> 0.9490853613
A198: Federal Income Tax @ 35.00% | D198: =D196*Report!J78 -> 0.1993079259
A200: Net Operating Income | D200: =D196-D198 -> 0.7497774354
B203: (1) Uncollectible Accounts = | C203: =Report!N882 -> 6036513.768 | D203: =+"Pg 2.12, "& Report!I56&" Situs from Account 904" -> Pg 2.12, UTAH Situs from Account 904
C204: =Report!N118 -> 2173823735 | D204: Pg. 2.2, General Business Revenues

Sheet Report
C50: =VLOOKUP(VLOOKUP(Variables!$AO$3,Variables!$AL$3:'Variables'!$AL$14,1,FALSE),Variables!$AL$3:'Variables'!$AP$14,5,FALSE) -> Rocky Mountain Power
C51: RESULTS OF OPERATIONS
C54: USER SPECIFIC INFORMATION
F56: STATE: | I56: =VLOOKUP(VLOOKUP(Variables!$AO$3,Variables!$AL$3:'Variables'!$AM$14,1,FALSE),Variables!$AL$3:'Variables'!$AM$14,2,FALSE) -> UTAH
F57: PERIOD: | I57: =UPPER(TEXT(Variables!A5,"MMMM yyyy")) -> 12 MONTHS ENDED DECEMBER 2020
F59: FILE: | I59: =+Variables!A2 -> UT JAM December 2020 ROO
F60: PREPARED BY: | I60: Revenue Requirement Department
F61: DATE: | I61: =NOW() -> 2021-04-30T10:08:48.520
F62: TIME: | I62: =NOW() -> 44316.42278
F64: TYPE OF RATE BASE: | I64: =Variables!AO19 -> 13-Month Average
F65: ALLOCATION METHOD: | I65: =Variables!AE27&"" -> 2020 PROTOCOL
F67: FERC JURISDICTION: | I67: =IF(Variables!AD16=1,Variables!AC16,Variables!AC17) -> Separate Jurisdiction
F69: 8 OR 12 CP: | I69: =IF(Variables!AD20=1,Variables!AC20,Variables!AC21) -> 12 Coincident Peaks
F71: DEMAND % | I71: =VLOOKUP(Variables!Y16,Variables!W16:X20,2) -> 75% Demand
F72: ENERGY % | I72: =VLOOKUP(Variables!Y16,Variables!T16:U20,2) -> 25% Energy
C75: TAX INFORMATION
F77: TAX RATE ASSUMPTIONS: | J77: TAX RATE
F78: FEDERAL RATE | J78: =IF(Variables!AO3=12,INDEX(Variables!F12:N12,5),INDEX(Variables!F12:N12,Variables!$AO$3)) -> 0.21
F79: STATE EFFECTIVE RATE | J79: =IF(Variables!AO3=12,INDEX(Variables!F14:N14,5),INDEX(Variables!F14:N14,Variables!$AO$3)) -> 0.0454
F80: TAX GROSS UP FACTOR | J80: =1/(1-J81) -> 1.326024287
F81: FEDERAL/STATE COMBINED RATE | J81: =IF(Variables!AO3=12,INDEX(Variables!$F15:$N15,5),INDEX(Variables!$F15:$N15,Variables!$AO$3)) -> 0.245866
C85: CAPITAL STRUCTURE INFORMATION
G89: CAPITAL | I89: EMBEDDED | J89: WEIGHTED
G90: STRUCTURE | I90: COST | J90: COST
D93: DEBT | G93: =IF(Variables!AO3=12,INDEX(Variables!F3:N3,5),INDEX(Variables!F3:N3,Variables!$AO$3)) -> 0.4849 | I93: =IF(Variables!AO3=12,INDEX(Variables!F7:N7,5),INDEX(Variables!F7:N7,Variables!$AO$3)) -> 0.04865365389 | J93: =G93*I93 -> 0.02359215677
D94: PREFERRED | G94: =IF(Variables!AO3=12,INDEX(Variables!F4:N4,5),INDEX(Variables!F4:N4,Variables!$AO$3)) -> 0.0001 | I94: =IF(Variables!AO3=12,INDEX(Variables!F8:N8,5),INDEX(Variables!F8:N8,Variables!$AO$3)) -> 0.06752669336 | J94: =G94*I94 -> 6.752669336e-06
D95: COMMON | G95: =IF(Variables!AO3=12,INDEX(Variables!F5:N5,5),INDEX(Variables!F5:N5,Variables!$AO$3)) -> 0.515 | I95: =IF(Variables!AO3=12,INDEX(Variables!F9:N9,5),INDEX(Variables!F9:N9,Variables!$AO$3)) -> 0.098 | J95: =G95*I95 -> 0.05047
G96: =SUM(G93:G95) -> 1 | J96: =SUM(J93:J95) -> 0.07406890944
C99: OTHER INFORMATION
B109: =Variables!AE29 -> 2020 PROTOCOL
B110: =Variables!AO19 -> 13-Month Average
C111: RESULTS OF OPERATIONS SUMMARY
I113: DECEMBER 2020 | L113: =I113 -> DECEMBER 2020
I114: UNADJUSTED RESULTS | L114: NORMALIZED RESULTS | O114: =N115 -> UTAH
C115: Description of Account Summary: | H115: Ref | I115: TOTAL | J115: UTAH | L115: TOTAL | M115: OTHER | N115: =VLOOKUP(Variables!$AO$3,Variables!$AL$3:$AM$14,2) -> UTAH | O115: ADJUSTMENTS | P115: ADJ TOTAL
A117: 1 | C117: Operating Revenues
A118: 2 | D118: General Business Revenues | H118: 2.3 | I118: 4939332097 | J118: 2222117194 | L118: =L219-L217 -> 4891038638 | M118: =M219-M217 -> 2717214903 | N118: =N219-N217 -> 2173823735 | O118: =O219-O217 -> 0 | P118: =P219-P217 -> 2173823735
A119: 3 | D119: Interdepartmental | H119: 2.3 | I119: 0 | J119: 0 | L119: =L217 -> 0 | M119: =M217 -> 0 | N119: =N217 -> 0 | O119: =O217 -> 0 | P119: =P217 -> 0
A120: 4 | D120: Special Sales | H120: 2.3 | I120: 189250873.8 | J120: 78538042.88 | L120: =L233 -> 189250873.8 | M120: =M233 -> 100117087.7 | N120: =N233 -> 89133786.14 | O120: =O233 -> 0 | P120: =P233 -> 89133786.14
A121: 5 | D121: Other Operating Revenues | H121: 2.4 | I121: 204356020.1 | J121: 76838080.03 | L121: =L277+L240 -> 205219113.8 | M121: =M277+M240 -> 128094993 | N121: =N277+N240 -> 77124120.84 | O121: =O277+O240 -> 0 | P121: =P277+P240 -> 77124120.84
A122: 6 | E122: Total Operating Revenues | H122: 2.4 | I122: 5332938991 | J122: 2377493317 | L122: =SUM(L118:L121) -> 5285508625 | M122: =SUM(M118:M121) -> 2945426984 | N122: =SUM(N118:N121) -> 2340081641 | O122: =SUM(O118:O121) -> 0 | P122: =SUM(P118:P121) -> 2340081641
A123: 7
A124: 8 | C124: Operating Expenses:
A125: 9 | D125: Steam Production | H125: 2.5 | I125: 969597381 | J125: 430917628.3 | L125: =L414 -> 989665794.8 | M125: =M414 -> 532920684.9 | N125: =N414 -> 456745109.9 | O125: =O414 -> 0 | P125: =P414 -> 456745109.9
A126: 10 | D126: Nuclear Production | H126: 2.6 | I126: 0 | J126: 0 | L126: =L462 -> 0 | M126: =M462 -> 0 | N126: =N462 -> 0 | O126: =O462 -> 0 | P126: =P462 -> 0
A127: 11 | D127: Hydro Production | H127: 2.7 | I127: 76929943.25 | J127: 34280150.19 | L127: =L545 -> 43929943.25 | M127: =M545 -> 24749431.25 | N127: =N545 -> 19180512 | O127: =O545 -> 0 | P127: =P545 -> 19180512
A128: 12 | D128: Other Power Supply | H128: 2.8, .9 | I128: 1058543495 | J128: 450276656.5 | L128: =L603+L655 -> 1114659790 | M128: =M603+M655 -> 650223828.1 | N128: =N603+N655 -> 464435961.8 | O128: =O603+O655 -> 0 | P128: =P603+P655 -> 464435961.8
A129: 13 | D129: Transmission | H129: 2.1 | I129: 210891669.4 | J129: 93998554.62 | L129: =L756 -> 212065030.4 | M129: =M756 -> 119417966.9 | N129: =N756 -> 92647063.53 | O129: =O756 -> 0 | P129: =P756 -> 92647063.53
A130: 14 | D130: Distribution | H130: 2.12 | I130: 215230639.3 | J130: 82286354.69 | L130: =L857 -> 215230639.3 | M130: =M857 -> 132944284.6 | N130: =N857 -> 82286354.69 | O130: =O857 -> 0 | P130: =P857 -> 82286354.69
A131: 15 | D131: Customer Accounting | H131: 2.12 | I131: 76370056.06 | J131: 33738835.96 | L131: =L892 -> 76295787.12 | M131: =M892 -> 42613766.38 | N131: =N892 -> 33682020.74 | O131: =O892 -> 0 | P131: =P892 -> 33682020.74
A132: 16 | D132: Customer Service & Infor | H132: 2.13 | I132: 110203872.9 | J132: 6050613.974 | L132: =L923 -> 110228854.1 | M132: =M923 -> 104213063.3 | N132: =N923 -> 6015790.871 | O132: =O923 -> 0 | P132: =P923 -> 6015790.871
A133: 17 | D133: Sales | H133: 2.13 | I133: 0 | J133: 0 | L133: =L953 -> 0 | M133: =M953 -> 0 | N133: =N953 -> 0 | O133: =O953 -> 0 | P133: =P953 -> 0
A134: 18 | D134: Administrative & General | H134: 2.14 | I134: 291922574.1 | J134: 125443980.8 | L134: =L1038 -> 160832931.2 | M134: =M1038 -> 93490676.04 | N134: =N1038 -> 67342255.11 | O134: =O1038 -> 0 | P134: =P1038 -> 67342255.11
A135: 19
A136: 20 | E136: Total O & M Expenses | H136: 2.14 | I136: 3009689631 | J136: 1256992775 | L136: =SUM(L125:L134) -> 2922908770 | M136: =SUM(M125:M134) -> 1700573701 | N136: =SUM(N125:N134) -> 1222335069 | O136: =SUM(O125:O134) -> 0 | P136: =SUM(P125:P134) -> 1222335069
A137: 21
A138: 22 | D138: Depreciation | H138: 2.16 | I138: 924723704.1 | J138: 312548182 | L138: =L1129 -> 915082277.2 | M138: =M1129 -> 611684616.9 | N138: =N1129 -> 303397660.3 | O138: =O1129 -> 0 | P138: =P1129 -> 303397660.3
A139: 23 | D139: Amortization | H139: 2.17 | I139: 55194215.86 | J139: 22918791 | L139: =L1209 -> 288044476.5 | M139: =M1209 -> 34173507.45 | N139: =N1209 -> 253870969 | O139: =O1209 -> 0 | P139: =P1209 -> 253870969
A140: 24 | D140: Taxes Other Than Income | H140: 2.17 | I140: 208904338 | J140: 76480999.74 | L140: =L1237 -> 208904338 | M140: =M1237 -> 133427676 | N140: =N1237 -> 75476662.05 | O140: =O1237 -> 0 | P140: =P1237 -> 75476662.05
A141: 25 | D141: Income Taxes - Federal | H141: 2.2 | I141: 50235367.82 | J141: 64131589.91 | L141: =L1446 -> -2708600.198 | M141: =M1446 -> -36099070.74 | N141: =N1446 -> 33390470.55 | O141: =O1446 -> 0 | P141: =P1446 -> 33390470.55
A142: 26 | D142: Income Taxes - State | H142: 2.2 | I142: 31627775 | J142: 23547870.98 | L142: =L1413 -> 19637431.76 | M142: =M1413 -> 3233527.848 | N142: =N1413 -> 16403903.92 | O142: =O1413 -> 0 | P142: =P1413 -> 16403903.92
A143: 27 | D143: Income Taxes - Def Net | H143: 2.19 | I143: -105444083.1 | J143: -47659299.16 | L143: =L1335 -> -76820781.14 | M143: =M1335 -> -17423229.45 | N143: =N1335 -> -59397551.69 | O143: =O1335 -> 0 | P143: =P1335 -> -59397551.69
A144: 28 | D144: Investment Tax Credit Adj. | H144: 2.17 | I144: -2252575.26 | J144: -1912715.743 | L144: =L1250 -> -2252575.26 | M144: =M1250 -> -337566.1669 | N144: =N1250 -> -1915009.093 | O144: =O1250 -> 0 | P144: =P1250 -> -1915009.093
A145: 29 | D145: Misc Revenue & Expense | H145: 2.4 | I145: -2112492.09 | J145: -1127741.109 | L145: =L333 -> -289936.44 | M145: =M333 -> -375111.5566 | N145: =N333 -> 85175.11655 | O145: =O333 -> 0 | P145: =P333 -> 85175.11655
A146: 30
A147: 31 | E147: Total Operating Expenses | H147: 2.2 | I147: 4170565881 | J147: 1705920453 | L147: =SUM(L136:L145) -> 4272505401 | M147: =SUM(M136:M145) -> 2428858052 | N147: =SUM(N136:N145) -> 1843647349 | O147: =SUM(O136:O145) -> 0 | P147: =SUM(P136:P145) -> 1843647349
A148: 32
A149: 33 | C149: Operating Revenue for Return | I149: 1162373110 | J149: 671572864.2 | L149: =L122-L147 -> 1013003225 | M149: =M122-M147 -> 516568931.9 | N149: =N122-N147 -> 496434292.7 | O149: =O122-O147 -> 0 | P149: =P122-P147 -> 496434292.7
A150: 34
A151: 35 | C151: Rate Base:
A152: 36 | D152: Electric Plant in Service | H152: 2.3 | I152: 2.880334587e+10 | J152: 1.261674121e+10 | L152: =L2076 -> 2.886131898e+10 | M152: =M2076 -> 1.638394282e+10 | N152: =N2076 -> 1.247737616e+10 | O152: =O2076 -> 0 | P152: =P2076 -> 1.247737616e+10
A153: 37 | D153: Plant Held for Future Use | H153: 2.31 | I153: 25585811.09 | J153: 11201002.44 | L153: =L2099 -> 16407756.5 | M153: =M2099 -> 9324359.413 | N153: =N2099 -> 7083397.087 | O153: =O2099 -> 0 | P153: =P2099 -> 7083397.087
A154: 38 | D154: Misc Deferred Debits | H154: 2.33 | I154: 860629422.9 | J154: 326309292 | L154: =L2207+L2218 -> 471605592.7 | M154: =M2207+M2218 -> 318168787.9 | N154: =N2207+N2218 -> 153436804.8 | O154: =O2207+O2218 -> 0 | P154: =P2207+P2218 -> 153436804.8
A155: 39 | D155: Elec Plant Acq Adj | H155: 2.31 | I155: 21462625.87 | J155: 15083845.81 | L155: =L2105+L2111 -> 21462625.87 | M155: =M2105+M2111 -> 6482174.116 | N155: =N2105+N2111 -> 14980451.75 | O155: =O2105+O2111 -> 0 | P155: =P2105+P2111 -> 14980451.75
A156: 40 | D156: Pensions | H156: 2.31 | I156: 31377412.55 | J156: 13744260.68 | L156: =L2115 -> 0 | M156: =M2115 -> 0 | N156: =N2115 -> 0 | O156: =O2115 -> 0 | P156: =P2115 -> 0
A157: 41 | D157: Prepayments | H157: 2.32 | I157: 64542631.81 | J157: 19043451.09 | L157: =L2197 -> 64542631.81 | M157: =M2197 -> 45720185.5 | N157: =N2197 -> 18822446.31 | O157: =O2197 -> 0 | P157: =P2197 -> 18822446.31
A158: 42 | D158: Fuel Stock | H158: 2.32 | I158: 195466379.9 | J158: 87516605.22 | L158: =L2162 -> 195466379.9 | M158: =M2162 -> 109179602.3 | N158: =N2162 -> 86286777.62 | O158: =O2162 -> 0 | P158: =P2162 -> 86286777.62
A159: 43 | D159: Material & Supplies | H159: 2.32 | I159: 260673229.8 | J159: 112286310.3 | L159: =L2189 -> 260673229.8 | M159: =M2189 -> 149575434.1 | N159: =N2189 -> 111097795.7 | O159: =O2189 -> 0 | P159: =P2189 -> 111097795.7
A160: 44 | D160: Working Capital | H160: 2.33 | I160: 38108947.31 | J160: 20774154.2 | L160: =L2245 -> 36892533.14 | M160: =M2245 -> 16987056.45 | N160: =N2245 -> 19905476.69 | O160: =O2245 -> 0 | P160: =P2245 -> 19905476.69
A161: 45 | D161: Weatherization Loans | H161: 2.31 | I161: 13562340.43 | J161: -3811.800947 | L161: =L2137 -> 13562340.43 | M161: =M2137 -> 13566125.85 | N161: =N2137 -> -3785.41146 | O161: =O2137 -> 0 | P161: =P2137 -> -3785.41146
A162: 46 | D162: Miscellaneous Rate Base | H162: 2.34 | I162: 0 | J162: 0 | L162: =L2265 -> 0 | M162: =M2265 -> 0 | N162: =N2265 -> 0 | O162: =O2265 -> 0 | P162: =P2265 -> 0
A163: 47
A164: 48 | E164: Total Electric Plant | I164: 3.031475467e+10 | J164: 1.322269632e+10 | L164: =SUM(L152:L163) -> 2.994193207e+10 | M164: =SUM(M152:M163) -> 1.705294654e+10 | N164: =SUM(N152:N163) -> 1.288898553e+10 | O164: =SUM(O152:O163) -> 0 | P164: =SUM(P152:P163) -> 1.288898553e+10
A165: 49
A166: 50 | C166: Rate Base Deductions:
A167: 51 | D167: Accum Prov For Depr | H167: 2.38 | I167: -9429197994 | J167: -3876335516 | L167: =L2568 -> -9583632816 | M167: =M2568 -> -5586156137 | N167: =N2568 -> -3997476679 | O167: =O2568 -> 0 | P167: =P2568 -> -3997476679
A168: 52 | D168: Accum Prov For Amort | H168: 2.39 | I168: -649984128.3 | J168: -270508990.5 | L168: =L2617 -> -611186711.4 | M168: =M2617 -> -344585055.5 | N168: =N2617 -> -266601656 | O168: =O2617 -> 0 | P168: =P2617 -> -266601656
A169: 53 | D169: Accum Def Income Taxes | H169: 2.35 | I169: -2443434671 | J169: -1091218077 | L169: =L2365 -> -2412807614 | M169: =M2365 -> -1320567988 | N169: =N2365 -> -1092239626 | O169: =O2365 -> 0 | P169: =P2365 -> -1092239626
A170: 54 | D170: Unamortized ITC | H170: 2.35 | I170: -1899800.556 | J170: -1746141.025 | L170: =L2375 -> -1899800.556 | M170: =M2375 -> -155500.2079 | N170: =N2375 -> -1744300.348 | O170: =O2375 -> 0 | P170: =P2375 -> -1744300.348
A171: 55 | D171: Customer Adv for Const | H171: 2.34 | I171: -112103244.6 | J171: -42306941.87 | L171: =L2298 -> -112103244.6 | M171: =M2298 -> -57519872.22 | N171: =N2298 -> -54583372.4 | O171: =O2298 -> 0 | P171: =P2298 -> -54583372.4
A172: 56 | D172: Customer Service Deposits | H172: 2.34 | I172: 0 | J172: 0 | L172: =L2271 -> -14791514.62 | M172: =M2271 -> 0 | N172: =N2271 -> -14791514.62 | O172: =O2271 -> 0 | P172: =P2271 -> -14791514.62
A173: 57 | D173: Misc. Rate Base Deductions | H173: 2.34 | I173: -2351652881 | J173: -935394600.4 | L173: =L2279+L2284+L2290+L2302+L2309 -> -2054334172 | M173: =M2279+M2284+M2290+M2302+M2309 -> -1283690061 | N173: =N2279+N2284+N2290+N2302+N2309 -> -770644110.5 | O173: =O2279+O2284+O2290+O2302+O2309 -> 0 | P173: =P2279+P2284+P2290+P2302+P2309 -> -770644110.5
A174: 58
A175: 59 | E175: Total Rate Base Deductions | I175: -1.498827272e+10 | J175: -6217510267 | L175: =SUM(L167:L173) -> -1.479075587e+10 | M175: =SUM(M167:M173) -> -8592674614 | N175: =SUM(N167:N173) -> -6198081259 | O175: =SUM(O167:O173) -> 0 | P175: =SUM(P167:P173) -> -6198081259
A176: 60
A177: 61 | C177: Total Rate Base | I177: 1.532648195e+10 | J177: 7005186053 | L177: =L164+L175 -> 1.51511762e+10 | M177: =M164+M175 -> 8460271928 | N177: =N164+N175 -> 6690904268 | O177: =O164+O175 -> 0 | P177: =P164+P175 -> 6690904268
A178: 62
A179: 63 | C179: Return on Rate Base | L179: =L149/L177 -> 0.06685970855 | N179: =N149/N177 -> 0.07419539614 | P179: =P149/P177 -> 0.07419539614
A180: 64
A181: 65 | C181: Return on Equity | L181: =(+L179-Report!$J$93-Report!$J$94)/Report!$G$95 -> 0.08400155166 | N181: =(+N179-Report!$J$93-Report!$J$94)/Report!$G$95 -> 0.09824560523 | P181: =(+P179-Report!$J$93-Report!$J$94)/Report!$G$95 -> 0.09824560523
A182: 66 | C182: Net Power Costs | L182: =-L231+L354+L369+L560+L616+L712 -> 1576007175 | N182: =-N231+N354+N369+N560+N616+N712 -> 695348901.5 | P182: =-P231+P354+P369+P560+P616+P712 -> 695348901.5
A183: 67 | C183: 100 Basis Points in Equity: | L183: =(L177*(Report!$G$95*(L181+0.01)+Report!$J$93+Report!$J$94))-L149 -> 78028557.41 | N183: =(N177*(Report!$G$95*(N181+0.01)+Report!$J$93+Report!$J$94))-N149 -> 34458156.98 | P183: =(P177*(Report!$G$95*(P181+0.01)+Report!$J$93+Report!$J$94))-P149 -> 34458156.98
A184: 68 | D184: Revenue Requirement Impact | L184: =L183*(1/(1-(INDEX(Variables!$F$15:$N$15,1,IF(Variables!$AO$3=12,5,Variables!$AO$3))))) -> 103467762.2 | N184: =N183*(1/(1-(INDEX(Variables!$F$15:$N$15,1,IF(Variables!$AO$3=12,5,Variables!$AO$3))))) -> 45692353.06 | P184: =P183*(1/(1-(INDEX(Variables!$F$15:$N$15,1,IF(Variables!$AO$3=12,5,Variables!$AO$3))))) -> 45692353.06
A185: 69 | D185: Rate Base Decrease | L185: =(L149/(Report!$G$95*(L181+0.01)+Report!$J$93+Report!$J$94))-L177 -> -1083583853 | N185: =(N149/(Report!$G$95*(N181+0.01)+(Report!$I$93*Report!$G$93)+(Report!$I$94*Report!$G$94)))-N177 -> -434280483.3 | P185: =(P149/(Report!$G$95*(P181+0.01)+(Report!I$93*Report!$G$93)+(Report!$I$94*Report!$G$94)))-P177 -> -434280483.3
C186: =$B$109 -> 2020 PROTOCOL
C187: =$B$110 -> 13-Month Average | I187: =I113 -> DECEMBER 2020 | L187: =+L113 -> DECEMBER 2020
C188: FERC | F188: BUS | I188: UNADJUSTED RESULTS | L188: =+L114 -> NORMALIZED RESULTS | O188: =$N$115 -> UTAH
C189: ACCT | D189: DESCRIP | F189: FUNC | G189: FACTOR | H189: Ref | I189: TOTAL | J189: UTAH | L189: TOTAL | M189: OTHER | N189: =$N$115 -> UTAH | O189: ADJUSTMENT | P189: ADJ TOTAL
A190: 70 | C190: Sales to Ultimate Customers
A191: 71 | C191: 440 | D191: Residential Sales
A192: 72 | F192: =+Function!F192 -> 0 | G192: =UTCR!H192 -> S | I192: 1961692056 | J192: 885217874.4 | L192: =IF(VLOOKUP(Variables!$AO$3,Variables!$AL$3:$AN$14,3)=2,UTCR!J192,UTCR!AF192) -> 1937389754 | M192: =L192-N192 -> 1076474182 | N192: =IF(Variables!$AO$3=12,IF(VLOOKUP(Variables!$AO$3,Variables!$AL$3:$AN$14,3)=2,INDEX(UTCR!K192:U192,1,5)+INDEX(UTCR!K192:U192,1,8),INDEX(UTCR!AG192:AQ192,1,5)+INDEX(UTCR!AG192:AQ192,1,8)),IF(VLOOKUP(Variables!$AO$3,Variables!$AL$3:$AN$14,3)=2,INDEX(UTCR!K192:U192,1,Variables!$AO$3),INDEX(UTCR!AG192:AQ192,1,Variables!$AO$3))) -> 860915571.9 | O192: =P192-N192 -> 0 | P192: =IF(Variables!$AO$3=12,INDEX(NRO!J192:T192,1,5)+INDEX(NRO!J192:T192,1,8),INDEX(NRO!J192:T192,1,Variables!$AO$3)) -> 860915571.9
A193: 73
A194: 74 | H194: B1 | I194: 1961692056 | J194: 885217874.4 | L194: =SUBTOTAL(9,L192:L193) -> 1937389754 | M194: =SUBTOTAL(9,M192:M193) -> 1076474182 | N194: =SUBTOTAL(9,N192:N193) -> 860915571.9 | O194: =SUBTOTAL(9,O192:O193) -> 0 | P194: =SUBTOTAL(9,P192:P193) -> 860915571.9
A195: 75
A196: 76 | C196: 442 | D196: Commercial & Industrial Sales
A197: 77 | F197: =+Function!F197 -> 0 | G197: =UTCR!H197 -> S | I197: 2959889999 | J197: 1328722781 | L197: =IF(VLOOKUP(Variables!$AO$3,Variables!$AL$3:$AN$14,3)=2,UTCR!J197,UTCR!AF197) -> 2935971409 | M197: =L197-N197 -> 1631167218 | N197: =IF(Variables!$AO$3=12,IF(VLOOKUP(Variables!$AO$3,Variables!$AL$3:$AN$14,3)=2,INDEX(UTCR!K197:U197,1,5)+INDEX(UTCR!K197:U197,1,8),INDEX(UTCR!AG197:AQ197,1,5)+INDEX(UTCR!AG197:AQ197,1,8)),IF(VLOOKUP(Variables!$AO$3,Variables!$AL$3:$AN$14,3)=2,INDEX(UTCR!K197:U197,1,Variables!$AO$3),INDEX(UTCR!AG197:AQ197,1,Variables!$AO$3))) -> 1304804191 | O197: =P197-N197 -> 0 | P197: =IF(Variables!$AO$3=12,INDEX(NRO!J197:T197,1,5)+INDEX(NRO!J197:T197,1,8),INDEX(NRO!J197:T197,1,Variables!$AO$3)) -> 1304804191
A198: 78 | F198: =+Function!F198 -> P | G198: =UTCR!H198 -> SE | I198: 0 | J198: 0 | L198: =IF(VLOOKUP(Variables!$AO$3,Variables!$AL$3:$AN$14,3)=2,UTCR!J198,UTCR!AF198) -> 0 | M198: =L198-N198 -> 0 | N198: =IF(Variables!$AO$3=12,IF(VLOOKUP(Variables!$AO$3,Variables!$AL$3:$AN$14,3)=2,INDEX(UTCR!K198:U198,1,5)+INDEX(UTCR!K198:U198,1,8),INDEX(UTCR!AG198:AQ198,1,5)+INDEX(UTCR!AG198:AQ198,1,8)),IF(VLOOKUP(Variables!$AO$3,Variables!$AL$3:$AN$14,3)=2,INDEX(UTCR!K198:U198,1,Variables!$AO$3),INDEX(UTCR!AG198:AQ198,1,Variables!$AO$3))) -> 0 | O198: =P198-N198 -> 0 | P198: =IF(Variables!$AO$3=12,INDEX(NRO!J198:T198,1,5)+INDEX(NRO!J198:T198,1,8),INDEX(NRO!J198:T198,1,Variables!$AO$3)) -> 0
A199: 79 | F199: =+Function!F199 -> PT | G199: =UTCR!H199 -> SG | I199: 0 | J199: 0 | L199: =IF(VLOOKUP(Variables!$AO$3,Variables!$AL$3:$AN$14,3)=2,UTCR!J199,UTCR!AF199) -> 0 | M199: =L199-N199 -> 0 | N199: =IF(Variables!$AO$3=12,IF(VLOOKUP(Variables!$AO$3,Variables!$AL$3:$AN$14,3)=2,INDEX(UTCR!K199:U199,1,5)+INDEX(UTCR!K199:U199,1,8),INDEX(UTCR!AG199:AQ199,1,5)+INDEX(UTCR!AG199:AQ199,1,8)),IF(VLOOKUP(Variables!$AO$3,Variables!$AL$3:$AN$14,3)=2,INDEX(UTCR!K199:U199,1,Variables!$AO$3),INDEX(UTCR!AG199:AQ199,1,Variables!$AO$3))) -> 0 | O199: =P199-N199 -> 0 | P199: =IF(Variables!$AO$3=12,INDEX(NRO!J199:T199,1,5)+INDEX(NRO!J199:T199,1,8),INDEX(NRO!J199:T199,1,Variables!$AO$3)) -> 0
A200: 80
A201: 81
A202: 82 | H202: B1 | I202: 2959889999 | J202: 1328722781 | L202: =SUBTOTAL(9,L197:L201) -> 2935971409 | M202: =SUBTOTAL(9,M197:M201) -> 1631167218 | N202: =SUBTOTAL(9,N197:N201) -> 1304804191 | O202: =SUBTOTAL(9,O197:O201) -> 0 | P202: =SUBTOTAL(9,P197:P201) -> 1304804191
A203: 83
A204: 84 | C204: 444 | D204: Public Street & Highway Lighting
A205: 85 | F205: =+Function!F205 -> 0 | G205: =UTCR!H205 -> S | I205: 17750041.77 | J205: 8176538.3 | L205: =IF(VLOOKUP(Variables!$AO$3,Variables!$AL$3:$AN$14,3)=2,UTCR!J205,UTCR!AF205) -> 17677474.72 | M205: =L205-N205 -> 9573503.47 | N205: =IF(Variables!$AO$3=12,IF(VLOOKUP(Variables!$AO$3,Variables!$AL$3:$AN$14,3)=2,INDEX(UTCR!K205:U205,1,5)+INDEX(UTCR!K205:U205,1,8),INDEX(UTCR!AG205:AQ205,1,5)+INDEX(UTCR!AG205:AQ205,1,8)),IF(VLOOKUP(Variables!$AO$3,Variables!$AL$3:$AN$14,3)=2,INDEX(UTCR!K205:U205,1,Variables!$AO$3),INDEX(UTCR!AG205:AQ205,1,Variables!$AO$3))) -> 8103971.25 | O205: =P205-N205 -> 0 | P205: =IF(Variables!$AO$3=12,INDEX(NRO!J205:T205,1,5)+INDEX(NRO!J205:T205,1,8),INDEX(NRO!J205:T205,1,Variables!$AO$3)) -> 8103971.25
A206: 86 | F206: =+Function!F206 -> 0 | G206: =UTCR!H206 -> SO | I206: 0 | J206: 0 | L206: =IF(VLOOKUP(Variables!$AO$3,Variables!$AL$3:$AN$14,3)=2,UTCR!J206,UTCR!AF206) -> 0 | M206: =L206-N206 -> 0 | N206: =IF(Variables!$AO$3=12,IF(VLOOKUP(Variables!$AO$3,Variables!$AL$3:$AN$14,3)=2,INDEX(UTCR!K206:U206,1,5)+INDEX(UTCR!K206:U206,1,8),INDEX(UTCR!AG206:AQ206,1,5)+INDEX(UTCR!AG206:AQ206,1,8)),IF(VLOOKUP(Variables!$AO$3,Variables!$AL$3:$AN$14,3)=2,INDEX(UTCR!K206:U206,1,Variables!$AO$3),INDEX(UTCR!AG206:AQ206,1,Variables!$AO$3))) -> 0 | O206: =P206-N206 -> 0 | P206: =IF(Variables!$AO$3=12,INDEX(NRO!J206:T206,1,5)+INDEX(NRO!J206:T206,1,8),INDEX(NRO!J206:T206,1,Variables!$AO$3)) -> 0
A207: 87 | H207: B1 | I207: 17750041.77 | J207: 8176538.3 | L207: =SUBTOTAL(9,L205:L206) -> 17677474.72 | M207: =SUBTOTAL(9,M205:M206) -> 9573503.47 | N207: =SUBTOTAL(9,N205:N206) -> 8103971.25 | O207: =SUBTOTAL(9,O205:O206) -> 0 | P207: =SUBTOTAL(9,P205:P206) -> 8103971.25
A208: 88
A209: 89 | C209: 445 | D209: Other Sales to Public Authority
A210: 90 | F210: =+Function!F210 -> 0 | G210: =UTCR!H210 -> S | I210: 0 | J210: 0 | L210: =IF(VLOOKUP(Variables!$AO$3,Variables!$AL$3:$AN$14,3)=2,UTCR!J210,UTCR!AF210) -> 0 | M210: =L210-N210 -> 0 | N210: =IF(Variables!$AO$3=12,IF(VLOOKUP(Variables!$AO$3,Variables!$AL$3:$AN$14,3)=2,INDEX(UTCR!K210:U210,1,5)+INDEX(UTCR!K210:U210,1,8),INDEX(UTCR!AG210:AQ210,1,5)+INDEX(UTCR!AG210:AQ210,1,8)),IF(VLOOKUP(Variables!$AO$3,Variables!$AL$3:$AN$14,3)=2,INDEX(UTCR!K210:U210,1,Variables!$AO$3),INDEX(UTCR!AG210:AQ210,1,Variables!$AO$3))) -> 0 | O210: =P210-N210 -> 0 | P210: =IF(Variables!$AO$3=12,INDEX(NRO!J210:T210,1,5)+INDEX(NRO!J210:T210,1,8),INDEX(NRO!J210:T210,1,Variables!$AO$3)) -> 0
A211: 91
A212: 92 | H212: B1 | I212: 0 | J212: 0 | L212: =SUBTOTAL(9,L210:L211) -> 0 | M212: =SUBTOTAL(9,M210:M211) -> 0 | N212: =SUBTOTAL(9,N210:N211) -> 0 | O212: =SUBTOTAL(9,O210:O211) -> 0 | P212: =SUBTOTAL(9,P210:P211) -> 0
A213: 93
A214: 94 | C214: 448 | D214: Interdepartmental
A215: 95 | F215: =+Function!F215 -> DPW | G215: =UTCR!H215 -> S | I215: 0 | J215: 0 | L215: =IF(VLOOKUP(Variables!$AO$3,Variables!$AL$3:$AN$14,3)=2,UTCR!J215,UTCR!AF215) -> 0 | M215: =L215-N215 -> 0 | N215: =IF(Variables!$AO$3=12,IF(VLOOKUP(Variables!$AO$3,Variables!$AL$3:$AN$14,3)=2,INDEX(UTCR!K215:U215,1,5)+INDEX(UTCR!K215:U215,1,8),INDEX(UTCR!AG215:AQ215,1,5)+INDEX(UTCR!AG215:AQ215,1,8)),IF(VLOOKUP(Variables!$AO$3,Variables!$AL$3:$AN$14,3)=2,INDEX(UTCR!K215:U215,1,Variables!$AO$3),INDEX(UTCR!AG215:AQ215,1,Variables!$AO$3))) -> 0 | O215: =P215-N215 -> 0 | P215: =IF(Variables!$AO$3=12,INDEX(NRO!J215:T215,1,5)+INDEX(NRO!J215:T215,1,8),INDEX(NRO!J215:T215,1,Variables!$AO$3)) -> 0
A216: 96 | F216: =+Function!F216 -> GP | G216: =UTCR!H216 -> SO | I216: 0 | J216: 0 | L216: =IF(VLOOKUP(Variables!$AO$3,Variables!$AL$3:$AN$14,3)=2,UTCR!J216,UTCR!AF216) -> 0 | M216: =L216-N216 -> 0 | N216: =IF(Variables!$AO$3=12,IF(VLOOKUP(Variables!$AO$3,Variables!$AL$3:$AN$14,3)=2,INDEX(UTCR!K216:U216,1,5)+INDEX(UTCR!K216:U216,1,8),INDEX(UTCR!AG216:AQ216,1,5)+INDEX(UTCR!AG216:AQ216,1,8)),IF(VLOOKUP(Variables!$AO$3,Variables!$AL$3:$AN$14,3)=2,INDEX(UTCR!K216:U216,1,Variables!$AO$3),INDEX(UTCR!AG216:AQ216,1,Variables!$AO$3))) -> 0 | O216: =P216-N216 -> 0 | P216: =IF(Variables!$AO$3=12,INDEX(NRO!J216:T216,1,5)+INDEX(NRO!J216:T216,1,8),INDEX(NRO!J216:T216,1,Variables!$AO$3)) -> 0
A217: 97 | H217: B1 | I217: 0 | J217: 0 | L217: =SUBTOTAL(9,L215:L216) -> 0 | M217: =SUBTOTAL(9,M215:M216) -> 0 | N217: =SUBTOTAL(9,N215:N216) -> 0 | O217: =SUBTOTAL(9,O215:O216) -> 0 | P217: =SUBTOTAL(9,P215:P216) -> 0
A218: 98
A219: 99 | C219: Total Sales to Ultimate Customers | H219: B1 | I219: 4939332097 | J219: 2222117194 | L219: =SUBTOTAL(9,L192:L217) -> 4891038638 | M219: =SUBTOTAL(9,M192:M217) -> 2717214903 | N219: =SUBTOTAL(9,N192:N217) -> 2173823735 | O219: 0 | P219: 2173823735
A220: 100
A221: 101
A222: 102
A223: 103 | C223: 447 | D223: Sales for Resale-Non NPC
A224: 104 | F224: =+Function!F224 -> P | G224: =UTCR!H224 -> S | I224: 12868683.95 | J224: -52573.5 | L224: =IF(VLOOKUP(Variables!$AO$3,Variables!$AL$3:$AN$14,3)=2,UTCR!J224,UTCR!AF224) -> 12868683.95 | M224: =L224-N224 -> 733321.93 | N224: =IF(Variables!$AO$3=12,IF(VLOOKUP(Variables!$AO$3,Variables!$AL$3:$AN$14,3)=2,INDEX(UTCR!K224:U224,1,5)+INDEX(UTCR!K224:U224,1,8),INDEX(UTCR!AG224:AQ224,1,5)+INDEX(UTCR!AG224:AQ224,1,8)),IF(VLOOKUP(Variables!$AO$3,Variables!$AL$3:$AN$14,3)=2,INDEX(UTCR!K224:U224,1,Variables!$AO$3),INDEX(UTCR!AG224:AQ224,1,Variables!$AO$3))) -> 12135362.02 | O224: =P224-N224 -> 0 | P224: =IF(Variables!$AO$3=12,INDEX(NRO!J224:T224,1,5)+INDEX(NRO!J224:T224,1,8),INDEX(NRO!J224:T224,1,Variables!$AO$3)) -> 12135362.02
A225: 105 | H225: B1 | I225: 12868683.95 | J225: -52573.5 | L225: =SUBTOTAL(9,L224:L224) -> 12868683.95 | M225: =SUBTOTAL(9,M224:M224) -> 733321.93 | N225: =SUBTOTAL(9,N224:N224) -> 12135362.02 | O225: =SUBTOTAL(9,O224:O224) -> 0 | P225: =SUBTOTAL(9,P224:P224) -> 12135362.02
A226: 106
A227: 107 | C227: 447NPC | D227: Sales for Resale-NPC
A228: 108 | F228: =+Function!F228 -> P | G228: =UTCR!H228 -> SG | I228: 179044715.3 | J228: 79782714.93 | L228: =IF(VLOOKUP(Variables!$AO$3,Variables!$AL$3:$AN$14,3)=2,UTCR!J228,UTCR!AF228) -> 179044715.3 | M228: =L228-N228 -> 100870944.6 | N228: =IF(Variables!$AO$3=12,IF(VLOOKUP(Variables!$AO$3,Variables!$AL$3:$AN$14,3)=2,INDEX(UTCR!K228:U228,1,5)+INDEX(UTCR!K228:U228,1,8),INDEX(UTCR!AG228:AQ228,1,5)+INDEX(UTCR!AG228:AQ228,1,8)),IF(VLOOKUP(Variables!$AO$3,Variables!$AL$3:$AN$14,3)=2,INDEX(UTCR!K228:U228,1,Variables!$AO$3),INDEX(UTCR!AG228:AQ228,1,Variables!$AO$3))) -> 78173770.7 | O228: =P228-N228 -> 0 | P228: =IF(Variables!$AO$3=12,INDEX(NRO!J228:T228,1,5)+INDEX(NRO!J228:T228,1,8),INDEX(NRO!J228:T228,1,Variables!$AO$3)) -> 78173770.7
A229: 109 | F229: =+Function!F229 -> P | G229: =UTCR!H229 -> SE | I229: -2662525.44 | J229: -1192098.549 | L229: =IF(VLOOKUP(Variables!$AO$3,Variables!$AL$3:$AN$14,3)=2,UTCR!J229,UTCR!AF229) -> -2662525.44 | M229: =L229-N229 -> -1487178.863 | N229: =IF(Variables!$AO$3=12,IF(VLOOKUP(Variables!$AO$3,Variables!$AL$3:$AN$14,3)=2,INDEX(UTCR!K229:U229,1,5)+INDEX(UTCR!K229:U229,1,8),INDEX(UTCR!AG229:AQ229,1,5)+INDEX(UTCR!AG229:AQ229,1,8)),IF(VLOOKUP(Variables!$AO$3,Variables!$AL$3:$AN$14,3)=2,INDEX(UTCR!K229:U229,1,Variables!$AO$3),INDEX(UTCR!AG229:AQ229,1,Variables!$AO$3))) -> -1175346.577 | O229: =P229-N229 -> 0 | P229: =IF(Variables!$AO$3=12,INDEX(NRO!J229:T229,1,5)+INDEX(NRO!J229:T229,1,8),INDEX(NRO!J229:T229,1,Variables!$AO$3)) -> -1175346.577
A230: 110 | F230: =+Function!F230 -> P | G230: =UTCR!H230 -> SG | I230: 0 | J230: 0 | L230: =IF(VLOOKUP(Variables!$AO$3,Variables!$AL$3:$AN$14,3)=2,UTCR!J230,UTCR!AF230) -> 0 | M230: =L230-N230 -> 0 | N230: =IF(Variables!$AO$3=12,IF(VLOOKUP(Variables!$AO$3,Variables!$AL$3:$AN$14,3)=2,INDEX(UTCR!K230:U230,1,5)+INDEX(UTCR!K230:U230,1,8),INDEX(UTCR!AG230:AQ230,1,5)+INDEX(UTCR!AG230:AQ230,1,8)),IF(VLOOKUP(Variables!$AO$3,Variables!$AL$3:$AN$14,3)=2,INDEX(UTCR!K230:U230,1,Variables!$AO$3),INDEX(UTCR!AG230:AQ230,1,Variables!$AO$3))) -> 0 | O230: =P230-N230 -> 0 | P230: =IF(Variables!$AO$3=12,INDEX(NRO!J230:T230,1,5)+INDEX(NRO!J230:T230,1,8),INDEX(NRO!J230:T230,1,Variables!$AO$3)) -> 0
A231: 111 | H231: B1 | I231: 176382189.9 | J231: 78590616.38 | L231: =SUBTOTAL(9,L228:L230) -> 176382189.9 | M231: =SUBTOTAL(9,M228:M230) -> 99383765.74 | N231: =SUBTOTAL(9,N228:N230) -> 76998424.12 | O231: =SUBTOTAL(9,O228:O230) -> 0 | P231: =SUBTOTAL(9,P228:P230) -> 76998424.12
A232: 112
A233: 113 | D233: Total Sales for Resale | H233: B1 | I233: 189250873.8 | J233: 78538042.88 | L233: =SUBTOTAL(9,L224:L230) -> 189250873.8 | M233: =SUBTOTAL(9,M224:M230) -> 100117087.7 | N233: =SUBTOTAL(9,N224:N230) -> 89133786.14 | O233: =SUBTOTAL(9,O224:O231) -> 0 | P233: =SUBTOTAL(9,P224:P231) -> 89133786.14
A234: 114
A235: 115 | C235: 449 | D235: Provision for Rate Refund
A236: 116 | F236: =+Function!F236 -> P | G236: =UTCR!H236 -> S | I236: 0 | J236: 0 | L236: =IF(VLOOKUP(Variables!$AO$3,Variables!$AL$3:$AN$14,3)=2,UTCR!J236,UTCR!AF236) -> 0 | M236: =L236-N236 -> 0 | N236: =IF(Variables!$AO$3=12,IF(VLOOKUP(Variables!$AO$3,Variables!$AL$3:$AN$14,3)=2,INDEX(UTCR!K236:U236,1,5)+INDEX(UTCR!K236:U236,1,8),INDEX(UTCR!AG236:AQ236,1,5)+INDEX(UTCR!AG236:AQ236,1,8)),IF(VLOOKUP(Variables!$AO$3,Variables!$AL$3:$AN$14,3)=2,INDEX(UTCR!K236:U236,1,Variables!$AO$3),INDEX(UTCR!AG236:AQ236,1,Variables!$AO$3))) -> 0 | O236: =P236-N236 -> 0 | P236: =IF(Variables!$AO$3=12,INDEX(NRO!J236:T236,1,5)+INDEX(NRO!J236:T236,1,8),INDEX(NRO!J236:T236,1,Variables!$AO$3)) -> 0
A237: 117 | F237: =+Function!F237 -> P | G237: =UTCR!H237 -> SG | I237: -3239918 | J237: -1443714.514 | L237: =IF(VLOOKUP(Variables!$AO$3,Variables!$AL$3:$AN$14,3)=2,UTCR!J237,UTCR!AF237) -> -3239918 | M237: =L237-N237 -> -1825318.265 | N237: =IF(Variables!$AO$3=12,IF(VLOOKUP(Variables!$AO$3,Variables!$AL$3:$AN$14,3)=2,INDEX(UTCR!K237:U237,1,5)+INDEX(UTCR!K237:U237,1,8),INDEX(UTCR!AG237:AQ237,1,5)+INDEX(UTCR!AG237:AQ237,1,8)),IF(VLOOKUP(Variables!$AO$3,Variables!$AL$3:$AN$14,3)=2,INDEX(UTCR!K237:U237,1,Variables!$AO$3),INDEX(UTCR!AG237:AQ237,1,Variables!$AO$3))) -> -1414599.735 | O237: =P237-N237 -> 0 | P237: =IF(Variables!$AO$3=12,INDEX(NRO!J237:T237,1,5)+INDEX(NRO!J237:T237,1,8),INDEX(NRO!J237:T237,1,Variables!$AO$3)) -> -1414599.735
A238: 118
A239: 119
A240: 120 | H240: B1 | I240: -3239918 | J240: -1443714.514 | L240: =SUBTOTAL(9,L236:L239) -> -3239918 | M240: =SUBTOTAL(9,M236:M239) -> -1825318.265 | N240: -1414599.735 | O240: 0 | P240: -1414599.735
A241: 121
A242: 122 | C242: Total Sales from Electricity | H242: B1 | I242: 5125343053 | J242: 2299211522 | L242: =SUBTOTAL(9,L224:L240)+L219 -> 5077049593 | M242: =SUBTOTAL(9,M224:M240)+M219 -> 2815506672 | N242: 2261542921 | O242: 0 | P242: 2261542921
A243: 123 | C243: 450 | D243: Forfeited Discounts & Interest
A244: 124 | F244: =+Function!F244 -> CUST | G244: =UTCR!H244 -> S | I244: 7348688.14 | J244: 4488185.39 | L244: =IF(VLOOKUP(Variables!$AO$3,Variables!$AL$3:$AN$14,3)=2,UTCR!J244,UTCR!AF244) -> 7348688.14 | M244: =L244-N244 -> 2860502.75 | N244: =IF(Variables!$AO$3=12,IF(VLOOKUP(Variables!$AO$3,Variables!$AL$3:$AN$14,3)=2,INDEX(UTCR!K244:U244,1,5)+INDEX(UTCR!K244:U244,1,8),INDEX(UTCR!AG244:AQ244,1,5)+INDEX(UTCR!AG244:AQ244,1,8)),IF(VLOOKUP(Variables!$AO$3,Variables!$AL$3:$AN$14,3)=2,INDEX(UTCR!K244:U244,1,Variables!$AO$3),INDEX(UTCR!AG244:AQ244,1,Variables!$AO$3))) -> 4488185.39 | O244: =P244-N244 -> 0 | P244: =IF(Variables!$AO$3=12,INDEX(NRO!J244:T244,1,5)+INDEX(NRO!J244:T244,1,8),INDEX(NRO!J244:T244,1,Variables!$AO$3)) -> 4488185.39
A245: 125 | F245: =+Function!F245 -> CUST | G245: =UTCR!H245 -> SO | I245: 0 | J245: 0 | L245: =IF(VLOOKUP(Variables!$AO$3,Variables!$AL$3:$AN$14,3)=2,UTCR!J245,UTCR!AF245) -> 0 | M245: =L245-N245 -> 0 | N245: =IF(Variables!$AO$3=12,IF(VLOOKUP(Variables!$AO$3,Variables!$AL$3:$AN$14,3)=2,INDEX(UTCR!K245:U245,1,5)+INDEX(UTCR!K245:U245,1,8),INDEX(UTCR!AG245:AQ245,1,5)+INDEX(UTCR!AG245:AQ245,1,8)),IF(VLOOKUP(Variables!$AO$3,Variables!$AL$3:$AN$14,3)=2,INDEX(UTCR!K245:U245,1,Variables!$AO$3),INDEX(UTCR!AG245:AQ245,1,Variables!$AO$3))) -> 0 | O245: =P245-N245 -> 0 | P245: =IF(Variables!$AO$3=12,INDEX(NRO!J245:T245,1,5)+INDEX(NRO!J245:T245,1,8),INDEX(NRO!J245:T245,1,Variables!$AO$3)) -> 0
A246: 126 | H246: B1 | I246: 7348688.14 | J246: 4488185.39 | L246: =SUBTOTAL(9,L244:L245) -> 7348688.14 | M246: =SUBTOTAL(9,M244:M245) -> 2860502.75 | N246: =SUBTOTAL(9,N244:N245) -> 4488185.39 | O246: =SUBTOTAL(9,O244:O245) -> 0 | P246: =SUBTOTAL(9,P244:P245) -> 4488185.39
A247: 127
A248: 128 | C248: 451 | D248: Misc Electric Revenue
A249: 129 | F249: =+Function!F249 -> CUST | G249: =UTCR!H249 -> S | I249: 6909714.32 | J249: 4366771.48 | L249: =IF(VLOOKUP(Variables!$AO$3,Variables!$AL$3:$AN$14,3)=2,UTCR!J249,UTCR!AF249) -> 6909714.32 | M249: =L249-N249 -> 2542942.84 | N249: =IF(Variables!$AO$3=12,IF(VLOOKUP(Variables!$AO$3,Variables!$AL$3:$AN$14,3)=2,INDEX(UTCR!K249:U249,1,5)+INDEX(UTCR!K249:U249,1,8),INDEX(UTCR!AG249:AQ249,1,5)+INDEX(UTCR!AG249:AQ249,1,8)),IF(VLOOKUP(Variables!$AO$3,Variables!$AL$3:$AN$14,3)=2,INDEX(UTCR!K249:U249,1,Variables!$AO$3),INDEX(UTCR!AG249:AQ249,1,Variables!$AO$3))) -> 4366771.48 | O249: =P249-N249 -> 0 | P249: =IF(Variables!$AO$3=12,INDEX(NRO!J249:T249,1,5)+INDEX(NRO!J249:T249,1,8),INDEX(NRO!J249:T249,1,Variables!$AO$3)) -> 4366771.48
A250: 130 | F250: =+Function!F250 -> GP | G250: =UTCR!H250 -> SG | I250: 0 | J250: 0 | L250: =IF(VLOOKUP(Variables!$AO$3,Variables!$AL$3:$AN$14,3)=2,UTCR!J250,UTCR!AF250) -> 0 | M250: =L250-N250 -> 0 | N250: =IF(Variables!$AO$3=12,IF(VLOOKUP(Variables!$AO$3,Variables!$AL$3:$AN$14,3)=2,INDEX(UTCR!K250:U250,1,5)+INDEX(UTCR!K250:U250,1,8),INDEX(UTCR!AG250:AQ250,1,5)+INDEX(UTCR!AG250:AQ250,1,8)),IF(VLOOKUP(Variables!$AO$3,Variables!$AL$3:$AN$14,3)=2,INDEX(UTCR!K250:U250,1,Variables!$AO$3),INDEX(UTCR!AG250:AQ250,1,Variables!$AO$3))) -> 0 | O250: =P250-N250 -> 0 | P250: =IF(Variables!$AO$3=12,INDEX(NRO!J250:T250,1,5)+INDEX(NRO!J250:T250,1,8),INDEX(NRO!J250:T250,1,Variables!$AO$3)) -> 0
A251: 131 | F251: =+Function!F251 -> GP | G251: =UTCR!H251 -> SO | I251: 42706.45 | J251: 18706.72352 | L251: =IF(VLOOKUP(Variables!$AO$3,Variables!$AL$3:$AN$14,3)=2,UTCR!J251,UTCR!AF251) -> 42706.45 | M251: =L251-N251 -> 24243.52245 | N251: =IF(Variables!$AO$3=12,IF(VLOOKUP(Variables!$AO$3,Variables!$AL$3:$AN$14,3)=2,INDEX(UTCR!K251:U251,1,5)+INDEX(UTCR!K251:U251,1,8),INDEX(UTCR!AG251:AQ251,1,5)+INDEX(UTCR!AG251:AQ251,1,8)),IF(VLOOKUP(Variables!$AO$3,Variables!$AL$3:$AN$14,3)=2,INDEX(UTCR!K251:U251,1,Variables!$AO$3),INDEX(UTCR!AG251:AQ251,1,Variables!$AO$3))) -> 18462.92755 | O251: =P251-N251 -> 0 | P251: =IF(Variables!$AO$3=12,INDEX(NRO!J251:T251,1,5)+INDEX(NRO!J251:T251,1,8),INDEX(NRO!J251:T251,1,Variables!$AO$3)) -> 18462.92755
A252: 132 | H252: B1 | I252: 6952420.77 | J252: 4385478.204 | L252: =SUBTOTAL(9,L249:L251) -> 6952420.77 | M252: =SUBTOTAL(9,M249:M251) -> 2567186.362 | N252: =SUBTOTAL(9,N249:N251) -> 4385234.408 | O252: =SUBTOTAL(9,O249:O251) -> 0 | P252: =SUBTOTAL(9,P249:P251) -> 4385234.408
A253: 133
A254: 134 | C254: 453 | D254: Water Sales
A255: 135 | F255: =+Function!F255 -> P | G255: =UTCR!H255 -> SG | I255: 7350 | J255: 3275.176001 | L255: =IF(VLOOKUP(Variables!$AO$3,Variables!$AL$3:$AN$14,3)=2,UTCR!J255,UTCR!AF255) -> 7350 | M255: =L255-N255 -> 4140.873086 | N255: =IF(Variables!$AO$3=12,IF(VLOOKUP(Variables!$AO$3,Variables!$AL$3:$AN$14,3)=2,INDEX(UTCR!K255:U255,1,5)+INDEX(UTCR!K255:U255,1,8),INDEX(UTCR!AG255:AQ255,1,5)+INDEX(UTCR!AG255:AQ255,1,8)),IF(VLOOKUP(Variables!$AO$3,Variables!$AL$3:$AN$14,3)=2,INDEX(UTCR!K255:U255,1,Variables!$AO$3),INDEX(UTCR!AG255:AQ255,1,Variables!$AO$3))) -> 3209.126914 | O255: =P255-N255 -> 0 | P255: =IF(Variables!$AO$3=12,INDEX(NRO!J255:T255,1,5)+INDEX(NRO!J255:T255,1,8),INDEX(NRO!J255:T255,1,Variables!$AO$3)) -> 3209.126914
A256: 136 | H256: B1 | I256: 7350 | J256: 3275.176001 | L256: =SUBTOTAL(9,L255) -> 7350 | M256: =SUBTOTAL(9,M255) -> 4140.873086 | N256: =SUBTOTAL(9,N255) -> 3209.126914 | O256: =SUBTOTAL(9,O255) -> 0 | P256: =SUBTOTAL(9,P255) -> 3209.126914
A257: 137
A258: 138 | C258: 454 | D258: Rent of Electric Property
A259: 139 | F259: =+Function!F259 -> DPW | G259: =UTCR!H259 -> S | I259: 9959168.91 | J259: 3576392.13 | L259: =IF(VLOOKUP(Variables!$AO$3,Variables!$AL$3:$AN$14,3)=2,UTCR!J259,UTCR!AF259) -> 9959168.91 | M259: =L259-N259 -> 6382776.78 | N259: =IF(Variables!$AO$3=12,IF(VLOOKUP(Variables!$AO$3,Variables!$AL$3:$AN$14,3)=2,INDEX(UTCR!K259:U259,1,5)+INDEX(UTCR!K259:U259,1,8),INDEX(UTCR!AG259:AQ259,1,5)+INDEX(UTCR!AG259:AQ259,1,8)),IF(VLOOKUP(Variables!$AO$3,Variables!$AL$3:$AN$14,3)=2,INDEX(UTCR!K259:U259,1,Variables!$AO$3),INDEX(UTCR!AG259:AQ259,1,Variables!$AO$3))) -> 3576392.13 | O259: =P259-N259 -> 0 | P259: =IF(Variables!$AO$3=12,INDEX(NRO!J259:T259,1,5)+INDEX(NRO!J259:T259,1,8),INDEX(NRO!J259:T259,1,Variables!$AO$3)) -> 3576392.13
A260: 140 | F260: =+Function!F260 -> T | G260: =UTCR!H260 -> SG | I260: 4888114.23 | J260: 2178154.343 | L260: =IF(VLOOKUP(Variables!$AO$3,Variables!$AL$3:$AN$14,3)=2,UTCR!J260,UTCR!AF260) -> 4888114.23 | M260: =L260-N260 -> 2753885.804 | N260: =IF(Variables!$AO$3=12,IF(VLOOKUP(Variables!$AO$3,Variables!$AL$3:$AN$14,3)=2,INDEX(UTCR!K260:U260,1,5)+INDEX(UTCR!K260:U260,1,8),INDEX(UTCR!AG260:AQ260,1,5)+INDEX(UTCR!AG260:AQ260,1,8)),IF(VLOOKUP(Variables!$AO$3,Variables!$AL$3:$AN$14,3)=2,INDEX(UTCR!K260:U260,1,Variables!$AO$3),INDEX(UTCR!AG260:AQ260,1,Variables!$AO$3))) -> 2134228.426 | O260: =P260-N260 -> 0 | P260: =IF(Variables!$AO$3=12,INDEX(NRO!J260:T260,1,5)+INDEX(NRO!J260:T260,1,8),INDEX(NRO!J260:T260,1,Variables!$AO$3)) -> 2134228.426
A261: 141 | F261: =+Function!F261 -> T | G261: =UTCR!H261 -> SG | I261: 0 | J261: 0 | L261: =IF(VLOOKUP(Variables!$AO$3,Variables!$AL$3:$AN$14,3)=2,UTCR!J261,UTCR!AF261) -> 0 | M261: =L261-N261 -> 0 | N261: =IF(Variables!$AO$3=12,IF(VLOOKUP(Variables!$AO$3,Variables!$AL$3:$AN$14,3)=2,INDEX(UTCR!K261:U261,1,5)+INDEX(UTCR!K261:U261,1,8),INDEX(UTCR!AG261:AQ261,1,5)+INDEX(UTCR!AG261:AQ261,1,8)),IF(VLOOKUP(Variables!$AO$3,Variables!$AL$3:$AN$14,3)=2,INDEX(UTCR!K261:U261,1,Variables!$AO$3),INDEX(UTCR!AG261:AQ261,1,Variables!$AO$3))) -> 0 | O261: =P261-N261 -> 0 | P261: =IF(Variables!$AO$3=12,INDEX(NRO!J261:T261,1,5)+INDEX(NRO!J261:T261,1,8),INDEX(NRO!J261:T261,1,Variables!$AO$3)) -> 0
A262: 142 | F262: =+Function!F262 -> GP | G262: =UTCR!H262 -> SO | I262: 3447271.74 | J262: 1510009.831 | L262: =IF(VLOOKUP(Variables!$AO$3,Variables!$AL$3:$AN$14,3)=2,UTCR!J262,UTCR!AF262) -> 3447271.74 | M262: =L262-N262 -> 1956941.161 | N262: =IF(Variables!$AO$3=12,IF(VLOOKUP(Variables!$AO$3,Variables!$AL$3:$AN$14,3)=2,INDEX(UTCR!K262:U262,1,5)+INDEX(UTCR!K262:U262,1,8),INDEX(UTCR!AG262:AQ262,1,5)+INDEX(UTCR!AG262:AQ262,1,8)),IF(VLOOKUP(Variables!$AO$3,Variables!$AL$3:$AN$14,3)=2,INDEX(UTCR!K262:U262,1,Variables!$AO$3),INDEX(UTCR!AG262:AQ262,1,Variables!$AO$3))) -> 1490330.579 | O262: =P262-N262 -> 0 | P262: =IF(Variables!$AO$3=12,INDEX(NRO!J262:T262,1,5)+INDEX(NRO!J262:T262,1,8),INDEX(NRO!J262:T262,1,Variables!$AO$3)) -> 1490330.579
A263: 143 | H263: B1 | I263: 18294554.88 | J263: 7264556.303 | L263: =SUBTOTAL(9,L259:L262) -> 18294554.88 | M263: =SUBTOTAL(9,M259:M262) -> 11093603.74 | N263: =SUBTOTAL(9,N259:N262) -> 7200951.136 | O263: =SUBTOTAL(9,O259:O262) -> 0 | P263: =SUBTOTAL(9,P259:P262) -> 7200951.136
A264: 144
A265: 145
A266: 146
A267: 147 | C267: 456 | D267: Other Electric Revenue
A268: 148 | F268: =+Function!F268 -> DMSC | G268: =UTCR!H268 -> S | I268: 37859633.64 | J268: 994696.2 | L268: =IF(VLOOKUP(Variables!$AO$3,Variables!$AL$3:$AN$14,3)=2,UTCR!J268,UTCR!AF268) -> 36001714.53 | M268: =L268-N268 -> 34690865.64 | N268: =IF(Variables!$AO$3=12,IF(VLOOKUP(Variables!$AO$3,Variables!$AL$3:$AN$14,3)=2,INDEX(UTCR!K268:U268,1,5)+INDEX(UTCR!K268:U268,1,8),INDEX(UTCR!AG268:AQ268,1,5)+INDEX(UTCR!AG268:AQ268,1,8)),IF(VLOOKUP(Variables!$AO$3,Variables!$AL$3:$AN$14,3)=2,INDEX(UTCR!K268:U268,1,Variables!$AO$3),INDEX(UTCR!AG268:AQ268,1,Variables!$AO$3))) -> 1310848.891 | O268: =P268-N268 -> 0 | P268: =IF(Variables!$AO$3=12,INDEX(NRO!J268:T268,1,5)+INDEX(NRO!J268:T268,1,8),INDEX(NRO!J268:T268,1,Variables!$AO$3)) -> 1310848.891
A269: 149 | F269: =+Function!F269 -> CUST | G269: =UTCR!H269 -> CN | I269: 0 | J269: 0 | L269: =IF(VLOOKUP(Variables!$AO$3,Variables!$AL$3:$AN$14,3)=2,UTCR!J269,UTCR!AF269) -> 0 | M269: =L269-N269 -> 0 | N269: =IF(Variables!$AO$3=12,IF(VLOOKUP(Variables!$AO$3,Variables!$AL$3:$AN$14,3)=2,INDEX(UTCR!K269:U269,1,5)+INDEX(UTCR!K269:U269,1,8),INDEX(UTCR!AG269:AQ269,1,5)+INDEX(UTCR!AG269:AQ269,1,8)),IF(VLOOKUP(Variables!$AO$3,Variables!$AL$3:$AN$14,3)=2,INDEX(UTCR!K269:U269,1,Variables!$AO$3),INDEX(UTCR!AG269:AQ269,1,Variables!$AO$3))) -> 0 | O269: =P269-N269 -> 0 | P269: =IF(Variables!$AO$3=12,INDEX(NRO!J269:T269,1,5)+INDEX(NRO!J269:T269,1,8),INDEX(NRO!J269:T269,1,Variables!$AO$3)) -> 0
A270: 150 | F270: =+Function!F270 -> OTHSE | G270: =UTCR!H270 -> SE | I270: 18173139.15 | J270: 8136700.772 | L270: =IF(VLOOKUP(Variables!$AO$3,Variables!$AL$3:$AN$14,3)=2,UTCR!J270,UTCR!AF270) -> 18173139.15 | M270: =L270-N270 -> 10150779.41 | N270: =IF(Variables!$AO$3=12,IF(VLOOKUP(Variables!$AO$3,Variables!$AL$3:$AN$14,3)=2,INDEX(UTCR!K270:U270,1,5)+INDEX(UTCR!K270:U270,1,8),INDEX(UTCR!AG270:AQ270,1,5)+INDEX(UTCR!AG270:AQ270,1,8)),IF(VLOOKUP(Variables!$AO$3,Variables!$AL$3:$AN$14,3)=2,INDEX(UTCR!K270:U270,1,Variables!$AO$3),INDEX(UTCR!AG270:AQ270,1,Variables!$AO$3))) -> 8022359.738 | O270: =P270-N270 -> 0 | P270: =IF(Variables!$AO$3=12,INDEX(NRO!J270:T270,1,5)+INDEX(NRO!J270:T270,1,8),INDEX(NRO!J270:T270,1,Variables!$AO$3)) -> 8022359.738
A271: 151 | F271: =+Function!F271 -> OTHSO | G271: =UTCR!H271 -> SO | I271: 0 | J271: 0 | L271: =IF(VLOOKUP(Variables!$AO$3,Variables!$AL$3:$AN$14,3)=2,UTCR!J271,UTCR!AF271) -> 0 | M271: =L271-N271 -> 0 | N271: =IF(Variables!$AO$3=12,IF(VLOOKUP(Variables!$AO$3,Variables!$AL$3:$AN$14,3)=2,INDEX(UTCR!K271:U271,1,5)+INDEX(UTCR!K271:U271,1,8),INDEX(UTCR!AG271:AQ271,1,5)+INDEX(UTCR!AG271:AQ271,1,8)),IF(VLOOKUP(Variables!$AO$3,Variables!$AL$3:$AN$14,3)=2,INDEX(UTCR!K271:U271,1,Variables!$AO$3),INDEX(UTCR!AG271:AQ271,1,Variables!$AO$3))) -> 0 | O271: =P271-N271 -> 0 | P271: =IF(Variables!$AO$3=12,INDEX(NRO!J271:T271,1,5)+INDEX(NRO!J271:T271,1,8),INDEX(NRO!J271:T271,1,Variables!$AO$3)) -> 0
A272: 152 | F272: =+Function!F272 -> OTHSGR | G272: =UTCR!H272 -> SG | I272: 118960151.5 | J272: 53008902.5 | L272: =IF(VLOOKUP(Variables!$AO$3,Variables!$AL$3:$AN$14,3)=2,UTCR!J272,UTCR!AF272) -> 121681164.3 | M272: =L272-N272 -> 68553232.45 | N272: =IF(Variables!$AO$3=12,IF(VLOOKUP(Variables!$AO$3,Variables!$AL$3:$AN$14,3)=2,INDEX(UTCR!K272:U272,1,5)+INDEX(UTCR!K272:U272,1,8),INDEX(UTCR!AG272:AQ272,1,5)+INDEX(UTCR!AG272:AQ272,1,8)),IF(VLOOKUP(Variables!$AO$3,Variables!$AL$3:$AN$14,3)=2,INDEX(UTCR!K272:U272,1,Variables!$AO$3),INDEX(UTCR!AG272:AQ272,1,Variables!$AO$3))) -> 53127931.88 | O272: =P272-N272 -> 0 | P272: =IF(Variables!$AO$3=12,INDEX(NRO!J272:T272,1,5)+INDEX(NRO!J272:T272,1,8),INDEX(NRO!J272:T272,1,Variables!$AO$3)) -> 53127931.88
A273: 153
A274: 154
A275: 155 | H275: B1 | I275: 174992924.3 | J275: 62140299.48 | L275: =SUBTOTAL(9,L268:L274) -> 175856018 | M275: =SUBTOTAL(9,M268:M274) -> 113394877.5 | N275: =SUBTOTAL(9,N268:N274) -> 62461140.51 | O275: =SUBTOTAL(9,O268:O274) -> 0 | P275: =SUBTOTAL(9,P268:P274) -> 62461140.51
A276: 156
A277: 157 | C277: Total Other Electric Revenues | H277: B1 | I277: 207595938.1 | J277: 78281794.55 | L277: =SUBTOTAL(9,L244:L275) -> 208459031.8 | M277: =SUBTOTAL(9,M244:M275) -> 129920311.2 | N277: 78538720.57 | O277: 0 | P277: 78538720.57
A278: 158
A279: 159 | C279: Total Electric Operating Revenues | H279: B1 | I279: 5332938991 | J279: 2377493317 | L279: =L277+L242 -> 5285508625 | M279: =M277+M242 -> 2945426984 | N279: =N277+N242 -> 2340081641 | O279: =O277+O242 -> 0 | P279: =P277+P242 -> 2340081641
A280: 160
A281: 161 | C281: Summary of Revenues by Factor
... 2353 more rows

Sheet NRO
C110: =Variables!AE29 -> 2020 PROTOCOL
C111: BALANCE BASED ON JURISDICTION
C112: RESULTS OF OPERATIONS SUMMARY
C115: Description of Account Summary: | I115: Total | J115: California | K115: Oregon | L115: Washington | M115: Montana | N115: Wyo-PPL | O115: Utah | P115: Idaho | Q115: Wyo-UPL | R115: FERC | S115: OTHER | T115: NON-UTILITY
A117: 1 | C117: Operating Revenues
A118: 2 | E118: General Business Revenues | G118: 2.3 | I118: =I219-I217 -> 4891038638 | J118: =J219-J217 -> 93593382.91 | K118: =K219-K217 -> 1293711531 | L118: 333393111.4 | M118: 0 | N118: 506805906.7 | O118: 2173823735 | P118: 291171039.3 | Q118: 98857762.59 | R118: 0 | S118: 99682168.96 | T118: 0
A119: 3 | E119: Interdepartmental | G119: 2.3 | I119: =I217 -> 0 | J119: 0 | K119: 0 | L119: 0 | M119: 0 | N119: 0 | O119: 0 | P119: 0 | Q119: 0 | R119: 0 | S119: 0 | T119: 0
A120: 4 | E120: Special Sales | G120: 2.3 | I120: =I233 -> 189250873.8 | J120: 2660807.724 | K120: 47925497.32 | L120: 14346803.64 | M120: 0 | N120: 20904436.06 | O120: 89133786.14 | P120: 10203752.58 | Q120: 3277031.676 | R120: 798758.6721 | S120: 0 | T120: 0
A121: 5 | E121: Other Operating Revenues | G121: 2.4 | I121: =I277+I240 -> 205219113.8 | J121: 3191280.36 | K121: 68032402.8 | L121: 12476264.37 | M121: 0 | N121: 18937748.39 | O121: 77124120.84 | P121: 9273146.083 | Q121: 3211775.13 | R121: 53082.5932 | S121: 12919293.23 | T121: 0
A122: 6 | E122: Total Operating Revenues | G122: 2.4 | I122: =SUM(I118:I121) -> 5285508625 | J122: =SUM(J118:J121) -> 99445470.99 | K122: =SUM(K118:K121) -> 1409669431 | L122: 360216179.5 | M122: 0 | N122: 546648091.1 | O122: 2340081641 | P122: 310647937.9 | Q122: 105346569.4 | R122: 851841.2653 | S122: 112601462.2 | T122: 0
A123: 7
A124: 8 | C124: Operating Expenses:
A125: 9 | D125: Steam Production | G125: 2.5 | I125: =I414 -> 989665794.8 | J125: 13814684.31 | K125: 245820050.4 | L125: 73409776.29 | M125: 0 | N125: 119074376.9 | O125: 456745109.9 | P125: 61159791.59 | Q125: 19303644.32 | R125: 338361.0932 | S125: 0 | T125: 0
A126: 10 | D126: Nuclear Production | G126: 2.6 | I126: =I462 -> 0 | J126: 0 | K126: 0 | L126: 0 | M126: 0 | N126: 0 | O126: 0 | P126: 0 | Q126: 0 | R126: 0 | S126: 0 | T126: 0
A127: 11 | D127: Hydro Production | G127: 2.7 | I127: =I545 -> 43929943.25 | J127: 662324.2249 | K127: 11921780.35 | L127: 3570129.402 | M127: 0 | N127: 5214173.16 | O127: 19180512 | P127: 2546781.268 | Q127: 817955.7805 | R127: 16287.06249 | S127: 0 | T127: 0
A128: 12 | D128: Other Power Supply | G128: 2.8, .9 | I128: =I603+I655 -> 1114659790 | J128: 15632723.66 | K128: 283787198.6 | L128: 83855702.43 | M128: 0 | N128: 127210409.6 | O128: 464435961.8 | P128: 66508430.23 | Q128: 20230305.32 | R128: 383896.0469 | S128: 52615162.21 | T128: 0
A129: 13 | D129: Transmission | G129: 2.1 | I129: =I756 -> 212065030.4 | J129: 3190614.068 | K129: 57294610.07 | L129: 17179869.22 | M129: 0 | N129: 25305476.49 | O129: 92647063.53 | P129: 12389288.58 | Q129: 3979672.53 | R129: 78435.93331 | S129: 0 | T129: 0
A130: 14 | D130: Distribution | G130: 2.12 | I130: =I857 -> 215230639.3 | J130: 10280271.49 | K130: 82254511.51 | L130: 13575931.34 | M130: 0 | N130: 15236408.97 | O130: 82286354.69 | P130: 9550490.246 | Q130: 2046671.086 | R130: 0 | S130: 0 | T130: 0
A131: 15 | D131: Customer Accounting | G131: 2.12 | I131: =I892 -> 76295787.12 | J131: 2225615.503 | K131: 22785865.46 | L131: 6677870.117 | M131: 0 | N131: 5852174.5 | O131: 33682020.74 | P131: 4481874.889 | Q131: 590365.9081 | R131: 0 | S131: 0 | T131: 0
A132: 16 | D132: Customer Service & Info | G132: 2.13 | I132: =I923 -> 110228854.1 | J132: 385880.253 | K132: 5293124.433 | L132: 864050.924 | M132: 0 | N132: 1748317.25 | O132: 6015790.871 | P132: 347459.0174 | Q132: 37933.53223 | R132: 0 | S132: 95536297.86 | T132: 0
A133: 17 | D133: Sales | G133: 2.13 | I133: =I953 -> 0 | J133: 0 | K133: 0 | L133: 0 | M133: 0 | N133: 0 | O133: 0 | P133: 0 | Q133: 0 | R133: 0 | S133: 0 | T133: 0
A134: 18 | D134: Administrative & General | G134: 2.14 | I134: =I1038 -> 160832931.1 | J134: 5556408.193 | K134: 50682006.97 | L134: 10375708.62 | M134: 0 | N134: 16413350.22 | O134: 67342255.11 | P134: 8056811.764 | Q134: 2375467.263 | R134: 30923.01048 | S134: 0 | T134: 0
A135: 19
A136: 20 | D136: Total O & M Expenses | G136: 2.14 | I136: =SUM(I125:I134) -> 2922908770 | J136: =SUM(J125:J134) -> 51748521.7 | K136: 759839147.8 | L136: 209509038.3 | M136: 0 | N136: 316054687.1 | O136: 1222335069 | P136: 165040927.6 | Q136: 49382015.74 | R136: 847903.1464 | S136: 148151460.1 | T136: 0
A137: 21
A138: 22 | D138: Depreciation | G138: 2.16 | I138: =I1129 -> 915082277.2 | J138: 16408866.85 | K138: 211015668.6 | L138: 60725631.15 | M138: 0 | N138: 84374714.74 | O138: 303397660.3 | P138: 40302640.5 | Q138: 14525866.52 | R138: 200673.1087 | S138: 184130555.4 | T138: 0
A139: 23 | D139: Amortization | G139: 2.17 | I139: =I1209 -> 288044476.5 | J139: 913937.576 | K139: 13961626.07 | L139: 3818256.158 | M139: 0 | N139: 7169421.735 | O139: 253870969 | P139: 3155476.576 | Q139: 771127.2072 | R139: 11964.77052 | S139: 4371697.35 | T139: 0
A140: 24 | D140: Taxes Other Than Income | G140: 2.17 | I140: =I1237 -> 208904338 | J140: 4981593.194 | K140: 80177447.73 | L140: 13820555.66 | M140: 0 | N140: 21251110.18 | O140: 75476662.05 | P140: 9860621.079 | Q140: 3290480.998 | R140: 45867.14731 | S140: 0 | T140: 0
A141: 25 | D141: Income Taxes - Federal | G141: 2.2 | I141: =I1446 -> -2708600.198 | J141: 1310186.453 | K141: 28121872.47 | L141: -2609442.952 | M141: 0 | N141: =N1446 -> -6077344.323 | O141: 33390470.55 | P141: 6620488.336 | Q141: 2222467.642 | R141: -147673.655 | S141: -65030314.11 | T141: -509310.6018
A142: 26 | D142: Income Taxes - State | G142: 2.2 | I142: =I1413 -> 19637431.76 | J142: 602037.0093 | K142: 11864343.82 | L142: 1054751.607 | M142: 0 | N142: 1027382.841 | O142: 16403903.92 | P142: 2673446.459 | Q142: 880413.0966 | R142: -25936.15879 | S142: -14727566.07 | T142: -115344.7533
A143: 27 | D143: Income Taxes - Def Net | G143: 2.19 | I143: =I1335 -> -76820781.14 | J143: -1481256.801 | K143: -49782161.15 | L143: 8028170.304 | M143: 0 | N143: 6561292.099 | O143: -59397551.69 | P143: -13386657.12 | Q143: 3588230.51 | R143: -125654.3305 | S143: 28550119.8 | T143: 624687.2446
A144: 28 | D144: Investment Tax Credit Adj. | G144: 2.17 | I144: =I1250 -> -2252575.26 | J144: 0 | K144: 0 | L144: 0 | M144: 0 | N144: 0 | O144: -1915009.093 | P144: -254274.1969 | Q144: -81665.84695 | R144: -1626.123055 | S144: 0 | T144: 0
A145: 29 | D145: Misc Revenue & Expense | G145: 2.4 | I145: =I333 -> -289936.44 | J145: -17164.34876 | K145: -16806.33653 | L145: -89222.91137 | M145: 0 | N145: -135224.9426 | O145: 85175.11655 | P145: -95059.94389 | Q145: -21210.55034 | R145: -422.5230684 | S145: 0 | T145: 0
A146: 30
A147: 31 | D147: Total Operating Expenses | G147: 2.2 | I147: =SUM(I136:I145) -> 4272505401 | J147: =SUM(J136:J145) -> 74466721.63 | K147: 1055181139 | L147: 294257737.4 | M147: 0 | N147: 430226039.4 | O147: 1843647349 | P147: 213917609.3 | Q147: 74557725.32 | R147: 805095.3825 | S147: 285445952.4 | T147: 31.88948077
A148: 32
A149: 33 | C149: Operating Revenue for Return | I149: =I122-I147 -> 1013003225 | J149: =J122-J147 -> 24978749.36 | K149: 354488292.2 | L149: 65958442.1 | M149: 0 | N149: 116422051.7 | O149: 496434292.7 | P149: 96730328.66 | Q149: 30788844.07 | R149: 46745.88276 | S149: -172844490.2 | T149: -31.88948077
A150: 34
A151: 35 | C151: Rate Base:
A152: 36 | D152: Electric Plant in Service | G152: 2.3 | I152: =I2076 -> 2.886131898e+10 | J152: 624800497.8 | K152: 8111388981 | L152: 2280878117 | M152: 0 | N152: 3186812217 | O152: 1.247737616e+10 | P152: 1628656366 | Q152: 543876853.8 | R152: 7529784.528 | S152: 0 | T152: 0
A153: 37 | D153: Plant Held for Future Use | G153: 2.31 | I153: =I2099 -> 16407756.5 | J153: 730034.0286 | K153: 7735661.726 | L153: 251813.6837 | M153: 0 | N153: 368374.5464 | O153: 7083397.087 | P153: 179633.3691 | Q153: 57693.27524 | R153: 1148.783347 | S153: 0 | T153: 0
A154: 38 | D154: Misc Deferred Debits | G154: 2.33 | I154: =I2207+I2218 -> 471605592.7 | J154: 5000332.071 | K154: 78409025.49 | L154: 18752138.8 | M154: 0 | N154: 54576340.09 | O154: 153436804.8 | P154: 18391866.14 | Q154: -4145289.368 | R154: 118744.8122 | S154: 147065629.8 | T154: 0
A155: 39 | D155: Elec Plant Acq Adj | G155: 2.31 | I155: =I2105+I2111 -> 21462625.87 | J155: 173470.6912 | K155: 3122457.855 | L155: 935059.8875 | M155: 0 | N155: 1365654.748 | O155: 14980451.75 | P155: 667032.6864 | Q155: 214232.47 | R155: 4265.777821 | S155: 0 | T155: 0
A156: 40 | D156: Pensions | G156: 2.31 | I156: =I2115 -> 0 | J156: 0 | K156: 0 | L156: 0 | M156: 0 | N156: 0 | O156: 0 | P156: 0 | Q156: 0 | R156: 0 | S156: 0 | T156: 0
A157: 41 | D157: Prepayments | G157: 2.32 | I157: =I2197 -> 64542631.81 | J157: 739586.7623 | K157: 12456193.04 | L157: 2836164.054 | M157: 0 | N157: 4135805.679 | O157: 18822446.31 | P157: 2303461.817 | Q157: 672434.0358 | R157: 9895.400732 | S157: 22566644.72 | T157: 0
A158: 42 | D158: Fuel Stock | G158: 2.32 | I158: =I2162 -> 195466379.9 | J158: 2835153.886 | K158: 48743336.51 | L158: 14971128.82 | M158: 0 | N158: 25467552.68 | O158: 86286777.62 | P158: 12930514.79 | Q158: 4162595.803 | R158: 69319.82458 | S158: 0 | T158: 0
A159: 43 | D159: Material & Supplies | G159: 2.32 | I159: =I2189 -> 260673229.8 | J159: 4259435.296 | K159: 81324471.65 | L159: 20084108.81 | M159: 0 | N159: 26377400 | O159: 111097795.7 | P159: 13842690.06 | Q159: 3638324.713 | R159: 49003.58972 | S159: 0 | T159: 0
A160: 44 | D160: Working Capital | G160: 2.33 | I160: =I2245 -> 36892533.14 | J160: 498156.688 | K160: 11948274.75 | L160: 4621559.115 | M160: 0 | N160: 1840209.418 | O160: 19905476.69 | P160: 885550.643 | Q160: 327495.4953 | R160: 2670.02019 | S160: -3136859.683 | T160: 0
A161: 45 | D161: Weatherization Loans | G161: 2.31 | I161: =I2137 -> 13562340.43 | J161: 23947.77866 | K161: -1299.045828 | L161: 2946.404385 | M161: 0 | N161: -510.4323329 | O161: -3785.41146 | P161: 1687060.158 | Q161: -87.11286151 | R161: -1.206047053 | S161: 11854069.3 | T161: 0
A162: 46 | D162: Miscellaneous Rate Base | G162: 2.34 | I162: =I2265 -> 0 | J162: 0 | K162: 0 | L162: 0 | M162: 0 | N162: 0 | O162: 0 | P162: 0 | Q162: 0 | R162: 0 | S162: 0 | T162: 0
A163: 47
A164: 48 | D164: Total Electric Plant | I164: =SUM(I152:I163) -> 2.994193207e+10 | J164: =SUM(J152:J163) -> 639060615 | K164: 8355127103 | L164: 2343333036 | M164: 0 | N164: 3300943044 | O164: 1.288898553e+10 | P164: 1679544175 | Q164: 548804253.1 | R164: 7784831.53 | S164: 178349484.2 | T164: 0
A165: 49
A166: 50 | C166: Rate Base Deductions:
A167: 51 | D167: Accum Prov For Depr | G167: 2.38 | I167: =I2568 -> -9583632816 | J167: -246078699.2 | K167: -2813878752 | L167: -787629194 | M167: 0 | N167: -1030742294 | O167: -3997476679 | P167: -527027244.3 | Q167: -182038235.9 | R167: -2269159.15 | S167: 3507441.105 | T167: 0
A168: 52 | D168: Accum Prov For Amort | G168: 2.39 | I168: =I2617 -> -611186711.4 | J168: -12816691.47 | K168: -175793418.3 | L168: -47841854.81 | M168: 0 | N168: -65191621.46 | O168: -266601656 | P168: -33165976.36 | Q168: -9642433.164 | R168: -133059.9109 | S168: 0 | T168: 0
A169: 53 | D169: Accum Def Income Taxes | G169: 2.35 | I169: =I2365 -> -2412807614 | J169: -53792590.27 | K169: -614028262.9 | L169: -142541643.6 | M169: 0 | N169: -351287554.3 | O169: -1092239626 | P169: -137089457.6 | Q169: 10008685.86 | R169: 3811.112338 | S169: -31835531.53 | T169: -5444.776437
A170: 54 | D170: Unamortized ITC | G170: 2.35 | I170: =I2375 -> -1899800.556 | J170: -3295.964012 | K170: -57787.81013 | L170: -17186.71154 | M170: 0 | N170: -24837.46716 | O170: -1744300.348 | P170: -46579.96522 | Q170: -5683.055199 | R170: -75.94166223 | S170: 0 | T170: -53.29294154
A171: 55 | D171: Customer Adv for Const | G171: 2.34 | I171: =I2298 -> -112103244.6 | J171: -1529125.94 | K171: -27796066.62 | L171: -8032297.454 | M171: 0 | N171: -12439206.89 | O171: -54583372.4 | P171: -5918281.784 | Q171: -1769656.3 | R171: -35237.23829 | S171: 0 | T171: 0
A172: 56 | D172: Customer Service Deposits | G172: 2.34 | I172: =I2271 -> -14791514.62 | J172: =J2271 -> 0 | K172: 0 | L172: 0 | M172: 0 | N172: 0 | O172: -14791514.62 | P172: 0 | Q172: 0 | R172: 0 | S172: 0 | T172: 0
A173: 57 | D173: Misc. Rate Base Deductions | G173: 2.34 | I173: =I2279+I2284+I2290+I2302+I2309 -> -2054334172 | J173: =J2279+J2284+J2290+J2302+J2309 -> -37958596.33 | K173: -432836644.1 | L173: -154934860 | M173: 0 | N173: -295940736.8 | O173: -770644110.5 | P173: -124403670.9 | Q173: -40087500.63 | R173: -51959.88022 | S173: -197476092.5 | T173: 0
A174: 58
A175: 59 | D175: Total Rate Base Deductions | I175: =SUM(I167:I173) -> -1.479075587e+10 | J175: =SUM(J167:J173) -> -352178999.2 | K175: -4064390932 | L175: -1140997037 | M175: 0 | N175: -1755626251 | O175: -6198081259 | P175: -827651210.8 | Q175: -223534823.2 | R175: -2485681.009 | S175: -225804183 | T175: -5498.069378
A176: 60
A177: 61 | C177: Total Rate Base | I177: =I164+I175 -> 1.51511762e+10 | J177: =J164+J175 -> 286881615.8 | K177: 4290736171 | L177: 1202336000 | M177: 0 | N177: 1545316793 | O177: 6690904268 | P177: 851892964.5 | Q177: 325269429.9 | R177: 5299150.522 | S177: -47454698.79 | T177: -5498.069378
A178: 62
A179: 63 | C179: Return on Rate Base | I179: =I149/I177 -> 0.06685970855 | J179: 0.08706988522 | K179: 0.08261712631 | L179: 0.05485857706 | N179: 0.07533863104 | O179: 0.07419539614 | P179: 0.1135475144 | Q179: 0.09465643323 | R179: 0.008821391763
A180: 64
A181: 65 | C181: Return on Equity | I181: =(+I179-UTCR!J7-UTCR!J12)/UTCR!J15 -> 0.08400155166 | J181: =(+J179-UTCR!K7-UTCR!K12)/UTCR!K15 -> 0.1232446132 | K181: =(+K179-UTCR!L7-UTCR!L12)/UTCR!L15 -> 0.1145984794 | L181: =(+L179-UTCR!M7-UTCR!M12)/UTCR!M15 -> 0.06069838373 | M181: =(+M179-UTCR!N7-UTCR!N12)/UTCR!N15 ->  | N181: =(+N179-UTCR!O7-UTCR!O12)/UTCR!O15 -> 0.1004654788 | O181: =(+O179-UTCR!P7-UTCR!P12)/UTCR!P15 -> 0.09824560523 | P181: =(+P179-UTCR!Q7-UTCR!Q12)/UTCR!Q15 -> 0.1746574854 | Q181: =(+Q179-UTCR!R7-UTCR!R12)/UTCR!R15 -> 0.1379757743 | R181: =(+R179-UTCR!S7-UTCR!S12)/UTCR!S15 -> -0.02869420909
A182: 66
A183: 67 | C183: 100 Basis Points in Equity: | I183: =(I177*(UTCR!J15*(I181+0.01)+UTCR!J7+UTCR!J12))-I149 -> 78028557.41 | J183: =(J177*(UTCR!K15*(J181+0.01)+UTCR!K7+UTCR!K12))-J149 -> 1477440.322 | K183: =(K177*(UTCR!L15*(K181+0.01)+UTCR!L7+UTCR!L12))-K149 -> 22097291.28 | L183: =(L177*(UTCR!M15*(L181+0.01)+UTCR!M7+UTCR!M12))-L149 -> 6192030.399 | M183: =(M177*(UTCR!N15*(M181+0.01)+UTCR!N7+UTCR!N12))-M149 ->  | N183: =(N177*(UTCR!O15*(N181+0.01)+UTCR!O7+UTCR!O12))-N149 -> 7958381.483 | O183: =(O177*(UTCR!P15*(O181+0.01)+UTCR!P7+UTCR!P12))-O149 -> 34458156.98 | P183: =(P177*(UTCR!Q15*(P181+0.01)+UTCR!Q7+UTCR!Q12))-P149 -> 4387248.767 | Q183: =(Q177*(UTCR!R15*(Q181+0.01)+UTCR!R7+UTCR!R12))-Q149 -> 1675137.564 | R183: =(R177*(UTCR!S15*(R181+0.01)+UTCR!S7+UTCR!S12))-R149 -> 27290.62519
A184: 68 | D184: Revenue Requirement Impact | I184: =I183*(1/(1-Variables!$E15)) -> 103467762.2 | J184: =J183*(1/(1-Variables!$F15)) -> 1959121.75 | K184: =K183*(1/(1-Variables!$G15)) -> 29301544.93 | L184: =L183*(1/(1-Variables!$H15)) -> 8210782.698 | M184: =M183*(1/(1-Variables!$I15)) ->  | N184: =N183*(1/(1-Variables!$J15)) -> 10553007.14 | O184: =O183*(1/(1-Variables!$K15)) -> 45692353.06 | P184: =P183*(1/(1-Variables!$L15)) -> 5817598.42 | Q184: =Q183*(1/(1-Variables!$M15)) -> 2221273.095 | R184: =R183*(1/(1-Variables!$N15)) -> 36188.03182
A185: 69 | D185: Rate Base Decrease | I185: =(I149/(UTCR!J15*(I181+0.01)+UTCR!J7+UTCR!J12))-I177 -> -1083583853 | J185: =(J149/(UTCR!K15*(J181+0.01)+UTCR!K7+UTCR!K12))-J177 -> -16020843.21 | K185: =(K149/(UTCR!L15*(K181+0.01)+UTCR!L7+UTCR!L12))-K177 -> -251771844.5 | L185: =(L149/(UTCR!M15*(L181+0.01)+UTCR!M7+UTCR!M12))-L177 -> -103185756.1 | M185: =(M149/(UTCR!N15*(M181+0.01)+UTCR!N7+UTCR!N12))-M177 ->  | N185: =(N149/(UTCR!O15*(N181+0.01)+UTCR!O7+UTCR!O12))-N177 -> -98875845.95 | O185: =(O149/(UTCR!P15*(O181+0.01)+UTCR!P7+UTCR!P12))-O177 -> -434280483.3 | P185: =(P149/(UTCR!Q15*(P181+0.01)+UTCR!Q7+UTCR!Q12))-P177 -> -36961589.2 | Q185: =(Q149/(UTCR!R15*(Q181+0.01)+UTCR!R7+UTCR!R12))-Q177 -> -16783863.62 | R185: =(R149/(UTCR!S15*(R181+0.01)+UTCR!S7+UTCR!S12))-R177 -> -1953321.877
C186: =Variables!AE29 -> 2020 PROTOCOL | H186: ELECTRIC REVENUES
C187: =Variables!AO19 -> 13-Month Average | I187: ELECTRIC REVENUES
C188: FERC | I188: NORMALIZED RESULTS
C189: ACCT | E189: DESCRIPTION | G189: FACTOR | H189: Ref | I189: TOTAL | J189: CALIFORNIA | K189: OREGON | L189: WASHINGTON | M189: MONTANA | N189: WY-PPL | O189: UTAH | P189: Idaho | Q189: WY-UPL | R189: FERC | S189: OTH | T189: NUTIL
A190: 70 | C190: Sales to Ultimate Customers
A191: 71 | C191: 440 | D191: Residential Sales
A192: 72 | G192: =UTCR!H192 -> S | I192: =SUM(J192:T192) -> 1937389754 | J192: =+URO!J192+ADJ!N192 -> 42129278.79 | K192: =URO!K192+ADJ!R192 -> 652536437.2 | L192: =URO!L192+ADJ!V192 -> 144911955.4 | M192: =URO!M192+ADJ!Z192 -> 0 | N192: =URO!N192+ADJ!AD192 -> 94148677.47 | O192: =URO!O192+ADJ!AH192 -> 860915571.9 | P192: =URO!P192+ADJ!AL192 -> 81215008.81 | Q192: =URO!Q192+ADJ!AP192 -> 14394478.89 | R192: =URO!R192+ADJ!AT192 -> 0 | S192: =URO!S192+ADJ!AX192 -> 47138345.31 | T192: =URO!T192+ADJ!BB192 -> 0
A193: 73
A194: 74 | H194: B1.1 | I194: =SUBTOTAL(9,I192:I193) -> 1937389754 | J194: =SUBTOTAL(9,J192:J193) -> 42129278.79 | K194: 652536437.2 | L194: 144911955.4 | M194: 0 | N194: 94148677.47 | O194: 860915571.9 | P194: 81215008.81 | Q194: 14394478.89 | R194: 0 | S194: 47138345.31 | T194: 0
A195: 75
A196: 76 | C196: 442 | D196: Commercial & Industrial Sales
A197: 77 | G197: =UTCR!H197 -> S | I197: =SUM(J197:T197) -> 2935971409 | J197: =+URO!J197+ADJ!N197 -> 51103808.92 | K197: =URO!K197+ADJ!R197 -> 635288979.8 | L197: =URO!L197+ADJ!V197 -> 187723976.9 | M197: =URO!M197+ADJ!Z197 -> 0 | N197: =URO!N197+ADJ!AD197 -> 411317878.3 | O197: =URO!O197+ADJ!AH197 -> 1304804191 | P197: =URO!P197+ADJ!AL197 -> 209432974.9 | Q197: =URO!Q197+ADJ!AP197 -> 84093785.33 | R197: =URO!R197+ADJ!AT197 -> 0 | S197: =URO!S197+ADJ!AX197 -> 52205813.58 | T197: =URO!T197+ADJ!BB197 -> 0
A198: 78 | G198: =UTCR!H198 -> SE | I198: =SUM(J198:T198) -> 0 | J198: =+URO!J198+ADJ!N198 -> 0 | K198: =URO!K198+ADJ!R198 -> 0 | L198: =URO!L198+ADJ!V198 -> 0 | M198: =URO!M198+ADJ!Z198 -> 0 | N198: =URO!N198+ADJ!AD198 -> 0 | O198: =URO!O198+ADJ!AH198 -> 0 | P198: =URO!P198+ADJ!AL198 -> 0 | Q198: =URO!Q198+ADJ!AP198 -> 0 | R198: =URO!R198+ADJ!AT198 -> 0 | S198: =URO!S198+ADJ!AX198 -> 0 | T198: =URO!T198+ADJ!BB198 -> 0
A199: 79 | G199: =UTCR!H199 -> SG | I199: =SUM(J199:T199) -> 0 | J199: =+URO!J199+ADJ!N199 -> 0 | K199: =URO!K199+ADJ!R199 -> 0 | L199: =URO!L199+ADJ!V199 -> 0 | M199: =URO!M199+ADJ!Z199 -> 0 | N199: =URO!N199+ADJ!AD199 -> 0 | O199: =URO!O199+ADJ!AH199 -> 0 | P199: =URO!P199+ADJ!AL199 -> 0 | Q199: =URO!Q199+ADJ!AP199 -> 0 | R199: =URO!R199+ADJ!AT199 -> 0 | S199: =URO!S199+ADJ!AX199 -> 0 | T199: =URO!T199+ADJ!BB199 -> 0
A200: 80
A201: 81
A202: 82 | H202: B1.2 | I202: =SUBTOTAL(9,I197:I200) -> 2935971409 | J202: =SUBTOTAL(9,J197:J200) -> 51103808.92 | K202: 635288979.8 | L202: 187723976.9 | M202: 0 | N202: 411317878.3 | O202: 1304804191 | P202: 209432974.9 | Q202: 84093785.33 | R202: 0 | S202: 52205813.58 | T202: 0
A203: 83
A204: 84 | C204: 444 | D204: Public Street & Highway Lighting
A205: 85 | G205: =UTCR!H205 -> S | I205: =SUM(J205:T205) -> 17677474.72 | J205: =+URO!J205+ADJ!N205 -> 360295.2 | K205: =URO!K205+ADJ!R205 -> 5886114.17 | L205: =URO!L205+ADJ!V205 -> 757179.2 | M205: =URO!M205+ADJ!Z205 -> 0 | N205: =URO!N205+ADJ!AD205 -> 1339350.85 | O205: =URO!O205+ADJ!AH205 -> 8103971.25 | P205: =URO!P205+ADJ!AL205 -> 523055.61 | Q205: =URO!Q205+ADJ!AP205 -> 369498.37 | R205: =URO!R205+ADJ!AT205 -> 0 | S205: =URO!S205+ADJ!AX205 -> 338010.07 | T205: =URO!T205+ADJ!BB205 -> 0
A206: 86 | G206: =UTCR!H206 -> SO | I206: =SUM(J206:T206) -> 0 | J206: =+URO!J206+ADJ!N206 -> 0 | K206: =URO!K206+ADJ!R206 -> 0 | L206: =URO!L206+ADJ!V206 -> 0 | M206: =URO!M206+ADJ!Z206 -> 0 | N206: =URO!N206+ADJ!AD206 -> 0 | O206: =URO!O206+ADJ!AH206 -> 0 | P206: =URO!P206+ADJ!AL206 -> 0 | Q206: =URO!Q206+ADJ!AP206 -> 0 | R206: =URO!R206+ADJ!AT206 -> 0 | S206: =URO!S206+ADJ!AX206 -> 0 | T206: =URO!T206+ADJ!BB206 -> 0
A207: 87 | H207: B1.3 | I207: =SUBTOTAL(9,I205:I206) -> 17677474.72 | J207: =SUBTOTAL(9,J205:J206) -> 360295.2 | K207: 5886114.17 | L207: 757179.2 | M207: 0 | N207: 1339350.85 | O207: 8103971.25 | P207: 523055.61 | Q207: 369498.37 | R207: 0 | S207: 338010.07 | T207: 0
A208: 88
A209: 89 | C209: 445 | D209: Other Sales to Public Authority
A210: 90 | G210: =UTCR!H210 -> S | I210: =SUM(J210:T210) -> 0 | J210: =+URO!J210+ADJ!N210 -> 0 | K210: =URO!K210+ADJ!R210 -> 0 | L210: =URO!L210+ADJ!V210 -> 0 | M210: =URO!M210+ADJ!Z210 -> 0 | N210: =URO!N210+ADJ!AD210 -> 0 | O210: =URO!O210+ADJ!AH210 -> 0 | P210: =URO!P210+ADJ!AL210 -> 0 | Q210: =URO!Q210+ADJ!AP210 -> 0 | R210: =URO!R210+ADJ!AT210 -> 0 | S210: =URO!S210+ADJ!AX210 -> 0 | T210: =URO!T210+ADJ!BB210 -> 0
A211: 91
A212: 92 | H212: B1.3 | I212: =SUBTOTAL(9,I210) -> 0 | J212: =SUBTOTAL(9,J210) -> 0 | K212: 0 | L212: 0 | M212: 0 | N212: 0 | O212: 0 | P212: 0 | Q212: 0 | R212: 0 | S212: 0 | T212: 0
A213: 93
A214: 94 | C214: 448 | D214: Interdepartmental
A215: 95 | G215: =UTCR!H215 -> S | I215: =SUM(J215:T215) -> 0 | J215: =+URO!J215+ADJ!N215 -> 0 | K215: =URO!K215+ADJ!R215 -> 0 | L215: =URO!L215+ADJ!V215 -> 0 | M215: =URO!M215+ADJ!Z215 -> 0 | N215: =URO!N215+ADJ!AD215 -> 0 | O215: =URO!O215+ADJ!AH215 -> 0 | P215: =URO!P215+ADJ!AL215 -> 0 | Q215: =URO!Q215+ADJ!AP215 -> 0 | R215: =URO!R215+ADJ!AT215 -> 0 | S215: =URO!S215+ADJ!AX215 -> 0 | T215: =URO!T215+ADJ!BB215 -> 0
A216: 96 | G216: =UTCR!H216 -> SO | I216: =SUM(J216:T216) -> 0 | J216: =+URO!J216+ADJ!N216 -> 0 | K216: =URO!K216+ADJ!R216 -> 0 | L216: =URO!L216+ADJ!V216 -> 0 | M216: =URO!M216+ADJ!Z216 -> 0 | N216: =URO!N216+ADJ!AD216 -> 0 | O216: =URO!O216+ADJ!AH216 -> 0 | P216: =URO!P216+ADJ!AL216 -> 0 | Q216: =URO!Q216+ADJ!AP216 -> 0 | R216: =URO!R216+ADJ!AT216 -> 0 | S216: =URO!S216+ADJ!AX216 -> 0 | T216: =URO!T216+ADJ!BB216 -> 0
A217: 97 | H217: B1.3 | I217: =SUBTOTAL(9,I215:I216) -> 0 | J217: 0 | K217: 0 | L217: 0 | M217: 0 | N217: 0 | O217: 0 | P217: 0 | Q217: 0 | R217: 0 | S217: 0 | T217: 0
A218: 98
A219: 99 | C219: Total Sales to Ultimate Customers | I219: =SUBTOTAL(9,I192:I217) -> 4891038638 | J219: =SUBTOTAL(9,J192:J217) -> 93593382.91 | K219: 1293711531 | L219: 333393111.4 | M219: 0 | N219: 506805906.7 | O219: 2173823735 | P219: 291171039.3 | Q219: 98857762.59 | R219: 0 | S219: 99682168.96 | T219: 0
A220: 100 | C220: =$C$187 -> 13-Month Average | I220: ELECTRIC REVENUES
A221: 101 | C221: FERC | I221: NORMALIZED RESULTS
A222: 102 | C222: ACCT | E222: DESCRIPTION | G222: FACTOR | I222: TOTAL | J222: CALIFORNIA | K222: OREGON | L222: WASHINGTON | M222: MONTANA | N222: WY-PPL | O222: UTAH | P222: Idaho | Q222: WY-UPL | R222: FERC | S222: OTHER | T222: NON-UTILITY
A223: 103 | C223: 447 | D223: Sales for Resale-Non NPC
A224: 104 | G224: =UTCR!H224 -> S | I224: =SUM(J224:T224) -> 12868683.95 | J224: =+URO!J224+ADJ!N224 -> 0 | K224: =URO!K224+ADJ!R224 -> 0 | L224: =URO!L224+ADJ!V224 -> 0 | M224: =URO!M224+ADJ!Z224 -> 0 | N224: =URO!N224+ADJ!AD224 -> 0 | O224: =URO!O224+ADJ!AH224 -> 12135362.02 | P224: =URO!P224+ADJ!AL224 -> 0 | Q224: =URO!Q224+ADJ!AP224 -> 0 | R224: =URO!R224+ADJ!AT224 -> 733321.93 | S224: =URO!S224+ADJ!AX224 -> 0 | T224: =URO!T224+ADJ!BB224 -> 0
A225: 105 | I225: =SUBTOTAL(9,I224:I224) -> 12868683.95 | J225: =SUBTOTAL(9,J224:J224) -> 0 | K225: 0 | L225: 0 | M225: 0 | N225: 0 | O225: 12135362.02 | P225: 0 | Q225: 0 | R225: 733321.93 | S225: 0 | T225: 0
A226: 106
A227: 107 | C227: 447NPC | D227: Sales for Resale-NPC
A228: 108 | G228: =UTCR!H228 -> SG | I228: =SUM(J228:T228) -> 179044715.3 | J228: =+URO!J228+ADJ!N228 -> 2699426.485 | K228: =URO!K228+ADJ!R228 -> 48589449.73 | L228: =URO!L228+ADJ!V228 -> 14550731.35 | M228: =URO!M228+ADJ!Z228 -> 0 | N228: =URO!N228+ADJ!AD228 -> 21251339.74 | O228: =URO!O228+ADJ!AH228 -> 78173770.7 | P228: =URO!P228+ADJ!AL228 -> 10379884.27 | Q228: =URO!Q228+ADJ!AP228 -> 3333732.052 | R228: =URO!R228+ADJ!AT228 -> 66380.97505 | S228: =URO!S228+ADJ!AX228 -> 0 | T228: =URO!T228+ADJ!BB228 -> 0
A229: 109 | G229: =UTCR!H229 -> SE | I229: =SUM(J229:T229) -> -2662525.44 | J229: =+URO!J229+ADJ!N229 -> -38618.76068 | K229: =URO!K229+ADJ!R229 -> -663952.4072 | L229: =URO!L229+ADJ!V229 -> -203927.7106 | M229: =URO!M229+ADJ!Z229 -> 0 | N229: =URO!N229+ADJ!AD229 -> -346903.6819 | O229: =URO!O229+ADJ!AH229 -> -1175346.577 | P229: =URO!P229+ADJ!AL229 -> -176131.6937 | Q229: =URO!Q229+ADJ!AP229 -> -56700.37593 | R229: =URO!R229+ADJ!AT229 -> -944.2329495 | S229: =URO!S229+ADJ!AX229 -> 0 | T229: =URO!T229+ADJ!BB229 -> 0
A230: 110 | G230: =UTCR!H230 -> SG | I230: =SUM(J230:T230) -> 0 | J230: =+URO!J230+ADJ!N230 -> 0 | K230: =URO!K230+ADJ!R230 -> 0 | L230: =URO!L230+ADJ!V230 -> 0 | M230: =URO!M230+ADJ!Z230 -> 0 | N230: =URO!N230+ADJ!AD230 -> 0 | O230: =URO!O230+ADJ!AH230 -> 0 | P230: =URO!P230+ADJ!AL230 -> 0 | Q230: =URO!Q230+ADJ!AP230 -> 0 | R230: =URO!R230+ADJ!AT230 -> 0 | S230: =URO!S230+ADJ!AX230 -> 0 | T230: =URO!T230+ADJ!BB230 -> 0
A231: 111 | I231: =SUBTOTAL(9,I228:I230) -> 176382189.9 | J231: =SUBTOTAL(9,J228:J230) -> 2660807.724 | K231: 47925497.32 | L231: 14346803.64 | M231: 0 | N231: 20904436.06 | O231: 76998424.12 | P231: 10203752.58 | Q231: 3277031.676 | R231: 65436.7421 | S231: 0 | T231: 0
A232: 112
A233: 113 | D233: Total Sales for Resale | H233: B1.3 | I233: =SUBTOTAL(9,I224:I231) -> 189250873.8 | J233: =SUBTOTAL(9,J224:J231) -> 2660807.724 | K233: 47925497.32 | L233: 14346803.64 | M233: 0 | N233: 20904436.06 | O233: 89133786.14 | P233: 10203752.58 | Q233: 3277031.676 | R233: 798758.6721 | S233: 0 | T233: 0
A234: 114
A235: 115 | C235: 449 | D235: Provision for Rate Refund
A236: 116 | G236: =UTCR!H236 -> S | I236: =SUM(J236:T236) -> 0 | J236: =+URO!J236+ADJ!N236 -> 0 | K236: =URO!K236+ADJ!R236 -> 0 | L236: =URO!L236+ADJ!V236 -> 0 | M236: =URO!M236+ADJ!Z236 -> 0 | N236: =URO!N236+ADJ!AD236 -> 0 | O236: =URO!O236+ADJ!AH236 -> 0 | P236: =URO!P236+ADJ!AL236 -> 0 | Q236: =URO!Q236+ADJ!AP236 -> 0 | R236: =URO!R236+ADJ!AT236 -> 0 | S236: =URO!S236+ADJ!AX236 -> 0 | T236: =URO!T236+ADJ!BB236 -> 0
A237: 117 | G237: =UTCR!H237 -> SG | I237: =SUM(J237:T237) -> -3239918 | J237: =+URO!J237+ADJ!N237 -> -48847.68837 | K237: =URO!K237+ADJ!R237 -> -879254.283 | L237: =URO!L237+ADJ!V237 -> -263303.9257 | M237: =URO!M237+ADJ!Z237 -> 0 | N237: =URO!N237+ADJ!AD237 -> -384555.3221 | O237: =URO!O237+ADJ!AH237 -> -1414599.735 | P237: =URO!P237+ADJ!AL237 -> -187830.028 | Q237: =URO!Q237+ADJ!AP237 -> -60325.81561 | R237: =URO!R237+ADJ!AT237 -> -1201.202256 | S237: =URO!S237+ADJ!AX237 -> 0 | T237: =URO!T237+ADJ!BB237 -> 0
A238: 118
A239: 119
A240: 120 | H240: B1.3 | I240: =SUBTOTAL(9,I236:I237) -> -3239918 | J240: =SUBTOTAL(9,J236:J237) -> -48847.68837 | K240: -879254.283 | L240: -263303.9257 | M240: 0 | N240: -384555.3221 | O240: -1414599.735 | P240: -187830.028 | Q240: -60325.81561 | R240: -1201.202256 | S240: 0 | T240: 0
A241: 121
A242: 122 | C242: Total Sales from Electricity | I242: =SUBTOTAL(9,I224:I240)+I219 -> 5077049593 | J242: =SUBTOTAL(9,J224:J240)+J219 -> 96205342.95 | K242: 1340757774 | L242: 347476611.2 | M242: 0 | N242: 527325787.4 | O242: 2261542921 | P242: 301186961.8 | Q242: 102074468.5 | R242: 797557.4698 | S242: 99682168.96 | T242: 0
A243: 123 | C243: 450 | D243: Forfeited Discounts & Interest
A244: 124 | G244: =UTCR!H244 -> S | I244: =SUM(J244:T244) -> 7348688.14 | J244: =+URO!J244+ADJ!N244 -> 57256.67 | K244: =URO!K244+ADJ!R244 -> 969128.74 | L244: =URO!L244+ADJ!V244 -> 182957.46 | M244: =URO!M244+ADJ!Z244 -> 0 | N244: =URO!N244+ADJ!AD244 -> 777450 | O244: =URO!O244+ADJ!AH244 -> 4488185.39 | P244: =URO!P244+ADJ!AL244 -> 451083.86 | Q244: =URO!Q244+ADJ!AP244 -> 422626.02 | R244: =URO!R244+ADJ!AT244 -> 0 | S244: =URO!S244+ADJ!AX244 -> 0 | T244: =URO!T244+ADJ!BB244 -> 0
A245: 125 | G245: =UTCR!H245 -> SO | I245: =SUM(J245:T245) -> 0 | J245: =+URO!J245+ADJ!N245 -> 0 | K245: =URO!K245+ADJ!R245 -> 0 | L245: =URO!L245+ADJ!V245 -> 0 | M245: =URO!M245+ADJ!Z245 -> 0 | N245: =URO!N245+ADJ!AD245 -> 0 | O245: =URO!O245+ADJ!AH245 -> 0 | P245: =URO!P245+ADJ!AL245 -> 0 | Q245: =URO!Q245+ADJ!AP245 -> 0 | R245: =URO!R245+ADJ!AT245 -> 0 | S245: =URO!S245+ADJ!AX245 -> 0 | T245: =URO!T245+ADJ!BB245 -> 0
A246: 126 | H246: B1.4 | I246: =SUBTOTAL(9,I244:I245) -> 7348688.14 | J246: =SUBTOTAL(9,J244:J245) -> 57256.67 | K246: 969128.74 | L246: 182957.46 | M246: 0 | N246: 777450 | O246: 4488185.39 | P246: 451083.86 | Q246: 422626.02 | R246: 0 | S246: 0 | T246: 0
A247: 127
A248: 128 | C248: 451 | D248: Misc Electric Revenue
A249: 129 | G249: =UTCR!H249 -> S | I249: =SUM(J249:T249) -> 6909714.32 | J249: =+URO!J249+ADJ!N249 -> 490460.36 | K249: =URO!K249+ADJ!R249 -> 1623762.77 | L249: =URO!L249+ADJ!V249 -> 108292.14 | M249: =URO!M249+ADJ!Z249 -> 0 | N249: =URO!N249+ADJ!AD249 -> 203721.8 | O249: =URO!O249+ADJ!AH249 -> 4366771.48 | P249: =URO!P249+ADJ!AL249 -> 95126.85 | Q249: =URO!Q249+ADJ!AP249 -> 21578.92 | R249: =URO!R249+ADJ!AT249 -> 0 | S249: =URO!S249+ADJ!AX249 -> 0 | T249: =URO!T249+ADJ!BB249 -> 0
A250: 130 | G250: =UTCR!H250 -> SG | I250: =SUM(J250:T250) -> 0 | J250: =+URO!J250+ADJ!N250 -> 0 | K250: =URO!K250+ADJ!R250 -> 0 | L250: =URO!L250+ADJ!V250 -> 0 | M250: =URO!M250+ADJ!Z250 -> 0 | N250: =URO!N250+ADJ!AD250 -> 0 | O250: =URO!O250+ADJ!AH250 -> 0 | P250: =URO!P250+ADJ!AL250 -> 0 | Q250: =URO!Q250+ADJ!AP250 -> 0 | R250: =URO!R250+ADJ!AT250 -> 0 | S250: =URO!S250+ADJ!AX250 -> 0 | T250: =URO!T250+ADJ!BB250 -> 0
A251: 131 | G251: =UTCR!H251 -> SO | I251: =SUM(J251:T251) -> 42706.45 | J251: =+URO!J251+ADJ!N251 -> 924.52501 | K251: =URO!K251+ADJ!R251 -> 12002.52241 | L251: =URO!L251+ADJ!V251 -> 3375.043508 | M251: =URO!M251+ADJ!Z251 -> 0 | N251: =URO!N251+ADJ!AD251 -> 4715.56538 | O251: =URO!O251+ADJ!AH251 -> 18462.92755 | P251: =URO!P251+ADJ!AL251 -> 2409.942931 | Q251: =URO!Q251+ADJ!AP251 -> 804.781295 | R251: =URO!R251+ADJ!AT251 -> 11.14191512 | S251: =URO!S251+ADJ!AX251 -> 0 | T251: =URO!T251+ADJ!BB251 -> 0
A252: 132 | H252: B1.5 | I252: =SUBTOTAL(9,I249:I251) -> 6952420.77 | J252: =SUBTOTAL(9,J249:J251) -> 491384.885 | K252: 1635765.292 | L252: 111667.1835 | M252: 0 | N252: 208437.3654 | O252: 4385234.408 | P252: 97536.79293 | Q252: 22383.7013 | R252: 11.14191512 | S252: 0 | T252: 0
A253: 133
A254: 134 | C254: 453 | D254: Water Sales
A255: 135 | G255: =UTCR!H255 -> SG | I255: =SUM(J255:T255) -> 7350 | J255: =+URO!J255+ADJ!N255 -> 110.8146902 | K255: =URO!K255+ADJ!R255 -> 1994.655106 | L255: =URO!L255+ADJ!V255 -> 597.3249488 | M255: =URO!M255+ADJ!Z255 -> 0 | N255: =URO!N255+ADJ!AD255 -> 872.3929486 | O255: =URO!O255+ADJ!AH255 -> 3209.126914 | P255: =URO!P255+ADJ!AL255 -> 426.1066811 | Q255: =URO!Q255+ADJ!AP255 -> 136.8536934 | R255: =URO!R255+ADJ!AT255 -> 2.725018528 | S255: =URO!S255+ADJ!AX255 -> 0 | T255: =URO!T255+ADJ!BB255 -> 0
A256: 136 | I256: =SUBTOTAL(9,I255) -> 7350 | J256: =SUBTOTAL(9,J255) -> 110.8146902 | K256: 1994.655106 | L256: 597.3249488 | M256: 0 | N256: 872.3929486 | O256: 3209.126914 | P256: 426.1066811 | Q256: 136.8536934 | R256: 2.725018528 | S256: 0 | T256: 0
A257: 137
A258: 138 | C258: 454 | D258: Rent of Electric Property
A259: 139 | G259: =UTCR!H259 -> S | I259: =SUM(J259:T259) -> 9959168.91 | J259: =+URO!J259+ADJ!N259 -> 542906.76 | K259: =URO!K259+ADJ!R259 -> 4424753.81 | L259: =URO!L259+ADJ!V259 -> 865288.39 | M259: =URO!M259+ADJ!Z259 -> 0 | N259: =URO!N259+ADJ!AD259 -> 353997.03 | O259: =URO!O259+ADJ!AH259 -> 3576392.13 | P259: =URO!P259+ADJ!AL259 -> 177517.59 | Q259: =URO!Q259+ADJ!AP259 -> 18313.2 | R259: =URO!R259+ADJ!AT259 -> 0 | S259: =URO!S259+ADJ!AX259 -> 0 | T259: =URO!T259+ADJ!BB259 -> 0
A260: 140 | G260: =UTCR!H260 -> SG | I260: =SUM(J260:T260) -> 4888114.23 | J260: =+URO!J260+ADJ!N260 -> 73697.26043 | K260: =URO!K260+ADJ!R260 -> 1326544.491 | L260: =URO!L260+ADJ!V260 -> 397250.6915 | M260: =URO!M260+ADJ!Z260 -> 0 | N260: =URO!N260+ADJ!AD260 -> 580184.5423 | O260: =URO!O260+ADJ!AH260 -> 2134228.426 | P260: =URO!P260+ADJ!AL260 -> 283382.0587 | Q260: =URO!Q260+ADJ!AP260 -> 91014.48794 | R260: =URO!R260+ADJ!AT260 -> 1812.27236 | S260: =URO!S260+ADJ!AX260 -> 0 | T260: =URO!T260+ADJ!BB260 -> 0
A261: 141 | G261: =UTCR!H261 -> SG | I261: =SUM(J261:T261) -> 0 | J261: =+URO!J261+ADJ!N261 -> 0 | K261: =URO!K261+ADJ!R261 -> 0 | L261: =URO!L261+ADJ!V261 -> 0 | M261: =URO!M261+ADJ!Z261 -> 0 | N261: =URO!N261+ADJ!AD261 -> 0 | O261: =URO!O261+ADJ!AH261 -> 0 | P261: =URO!P261+ADJ!AL261 -> 0 | Q261: =URO!Q261+ADJ!AP261 -> 0 | R261: =URO!R261+ADJ!AT261 -> 0 | S261: =URO!S261+ADJ!AX261 -> 0 | T261: =URO!T261+ADJ!BB261 -> 0
A262: 142 | G262: =UTCR!H262 -> SO | I262: =SUM(J262:T262) -> 3447271.74 | J262: =+URO!J262+ADJ!N262 -> 74627.81243 | K262: =URO!K262+ADJ!R262 -> 968845.6036 | L262: =URO!L262+ADJ!V262 -> 272434.0728 | M262: =URO!M262+ADJ!Z262 -> 0 | N262: =URO!N262+ADJ!AD262 -> 380641.221 | O262: =URO!O262+ADJ!AH262 -> 1490330.579 | P262: =URO!P262+ADJ!AL262 -> 194530.9938 | Q262: =URO!Q262+ADJ!AP262 -> 64962.07985 | R262: =URO!R262+ADJ!AT262 -> 899.3772402 | S262: =URO!S262+ADJ!AX262 -> 0 | T262: =URO!T262+ADJ!BB262 -> 0
A263: 143 | H263: B1.7 | I263: =SUBTOTAL(9,I259:I262) -> 18294554.88 | J263: =SUBTOTAL(9,J259:J262) -> 691231.8329 | K263: 6720143.904 | L263: 1534973.154 | M263: 0 | N263: 1314822.793 | O263: 7200951.136 | P263: 655430.6425 | Q263: 174289.7678 | R263: 2711.6496 | S263: 0 | T263: 0
A264: 144 | C264: =$C$187 -> 13-Month Average | I264: ELECTRIC REVENUES
A265: 145 | C265: FERC | I265: NORMALIZED RESULTS
A266: 146 | C266: ACCT | E266: DESCRIPTION | G266: FACTOR | I266: TOTAL | J266: CALIFORNIA | K266: OREGON | L266: WASHINGTON | M266: MONTANA | N266: WY-PPL | O266: UTAH | P266: Idaho | Q266: WY-UPL | R266: FERC | S266: OTHER | T266: NON-UTILITY
A267: 147 | C267: 456 | D267: Other Electric Revenue
A268: 148 | G268: =UTCR!H268 -> S | I268: =SUM(J268:T268) -> 36001714.53 | J268: =+URO!J268+ADJ!N268 -> -98015.60509 | K268: =URO!K268+ADJ!R268 -> 22030764.66 | L268: =URO!L268+ADJ!V268 -> -371411.0119 | M268: =URO!M268+ADJ!Z268 -> 0 | N268: =URO!N268+ADJ!AD268 -> 210228.25 | O268: =URO!O268+ADJ!AH268 -> 1310848.891 | P268: =URO!P268+ADJ!AL268 -> 0 | Q268: =URO!Q268+ADJ!AP268 -> 6.12 | R268: =URO!R268+ADJ!AT268 -> 0 | S268: =URO!S268+ADJ!AX268 -> 12919293.23 | T268: =URO!T268+ADJ!BB268 -> 0
A269: 149 | G269: =UTCR!H269 -> CN | I269: =SUM(J269:T269) -> 0 | J269: =+URO!J269+ADJ!N269 -> 0 | K269: =URO!K269+ADJ!R269 -> 0 | L269: =URO!L269+ADJ!V269 -> 0 | M269: =URO!M269+ADJ!Z269 -> 0 | N269: =URO!N269+ADJ!AD269 -> 0 | O269: =URO!O269+ADJ!AH269 -> 0 | P269: =URO!P269+ADJ!AL269 -> 0 | Q269: =URO!Q269+ADJ!AP269 -> 0 | R269: =URO!R269+ADJ!AT269 -> 0 | S269: =URO!S269+ADJ!AX269 -> 0 | T269: =URO!T269+ADJ!BB269 -> 0
A270: 150 | G270: =UTCR!H270 -> SE | I270: =SUM(J270:T270) -> 18173139.15 | J270: =+URO!J270+ADJ!N270 -> 263593.3918 | K270: =URO!K270+ADJ!R270 -> 4531825.05 | L270: =URO!L270+ADJ!V270 -> 1391914.085 | M270: =URO!M270+ADJ!Z270 -> 0 | N270: =URO!N270+ADJ!AD270 -> 2367800.431 | O270: =URO!O270+ADJ!AH270 -> 8022359.738 | P270: =URO!P270+ADJ!AL270 -> 1202191.623 | Q270: =URO!Q270+ADJ!AP270 -> 387009.944 | R270: =URO!R270+ADJ!AT270 -> 6444.887445 | S270: =URO!S270+ADJ!AX270 -> 0 | T270: =URO!T270+ADJ!BB270 -> 0
A271: 151 | G271: =UTCR!H271 -> SO | I271: =SUM(J271:T271) -> 0 | J271: =+URO!J271+ADJ!N271 -> 0 | K271: =URO!K271+ADJ!R271 -> 0 | L271: =URO!L271+ADJ!V271 -> 0 | M271: =URO!M271+ADJ!Z271 -> 0 | N271: =URO!N271+ADJ!AD271 -> 0 | O271: =URO!O271+ADJ!AH271 -> 0 | P271: =URO!P271+ADJ!AL271 -> 0 | Q271: =URO!Q271+ADJ!AP271 -> 0 | R271: =URO!R271+ADJ!AT271 -> 0 | S271: =URO!S271+ADJ!AX271 -> 0 | T271: =URO!T271+ADJ!BB271 -> 0
A272: 152 | G272: =UTCR!H272 -> SG | I272: =SUM(J272:T272) -> 121681164.3 | J272: =+URO!J272+ADJ!N272 -> 1834566.059 | K272: =URO!K272+ADJ!R272 -> 33022034.79 | L272: =URO!L272+ADJ!V272 -> 9888870.103 | M272: =URO!M272+ADJ!Z272 -> 0 | N272: =URO!N272+ADJ!AD272 -> 14442692.48 | O272: =URO!O272+ADJ!AH272 -> 53127931.88 | P272: =URO!P272+ADJ!AL272 -> 7054307.086 | Q272: =URO!Q272+ADJ!AP272 -> 2265648.539 | R272: =URO!R272+ADJ!AT272 -> 45113.39148 | S272: =URO!S272+ADJ!AX272 -> 0 | T272: =URO!T272+ADJ!BB272 -> 0
A273: 153
A274: 154
A275: 155 | H275: B1.7 | I275: =SUBTOTAL(9,I268:I274) -> 175856018 | J275: =SUBTOTAL(9,J268:J274) -> 2000143.845 | K275: 59584624.49 | L275: 10909373.18 | M275: 0 | N275: 17020721.16 | O275: 62461140.51 | P275: 8256498.709 | Q275: 2652664.603 | R275: 51558.27892 | S275: 12919293.23 | T275: 0
A276: 156
A277: 157 | D277: Total Other Electric Revenues | I277: =SUBTOTAL(9,I244:I275) -> 208459031.8 | J277: =SUBTOTAL(9,J244:J275) -> 3240128.048 | K277: 68911657.09 | L277: 12739568.3 | M277: 0 | N277: 19322303.71 | O277: 78538720.57 | P277: 9460976.111 | Q277: 3272100.946 | R277: 54283.79546 | S277: 12919293.23 | T277: 0
A278: 158
A279: 159 | C279: Total Electric Operating Revenues | H279: B1.8 | I279: =I277+I242 -> 5285508625 | J279: 99445470.99 | K279: 1409669431 | L279: 360216179.5 | M279: 0 | N279: 546648091.1 | O279: 2340081641 | P279: 310647937.9 | Q279: 105346569.4 | R279: 851841.2653 | S279: 112601462.2 | T279: 0
A280: 160
A281: 161 | C281: Summary of Revenues by Factor
A282: 162 | D282: S | I282: =SUM(J282:T282) -> 4964126607 | J282: =SUMIF($G$192:$G$279,$D282,J$192:J$279) -> 94585991.09 | K282: 1322759941 | L282: 334178238.4 | M282: 0 | N282: 508351303.7 | O282: 2199701294 | P282: 291894767.6 | Q282: 99320286.85 | R282: 733321.93 | S282: 112601462.2 | T282: 0
A283: 163 | D283: CN | I283: 0 | J283: 0 | K283: 0 | L283: 0 | M283: 0 | N283: 0 | O283: 0 | P283: 0 | Q283: 0 | R283: 0 | S283: 0 | T283: 0
A284: 164 | D284: SE | I284: 15510613.71 | J284: 224974.6312 | K284: 3867872.643 | L284: 1187986.374 | M284: 0 | N284: 2020896.749 | O284: 6847013.161 | P284: 1026059.929 | Q284: 330309.5681 | R284: 5500.654496 | S284: 0 | T284: 0
A285: 165 | D285: SO | I285: 3489978.19 | J285: 75552.33744 | K285: 980848.126 | L285: 275809.1163 | M285: 0 | N285: 385356.7864 | O285: 1508793.507 | P285: 196940.9367 | Q285: 65766.86115 | R285: 910.5191553 | S285: 0 | T285: 0
A286: 166 | D286: SG | I286: 302381425.9 | J286: 4558952.93 | K286: 82060769.38 | L286: 24574145.54 | M286: 0 | N286: 35890533.84 | O286: 132024540.4 | P286: 17530169.5 | Q286: 5630206.117 | R286: 112108.1616 | S286: 0 | T286: 0
A287: 167 | D287: DGP | I287: 0 | J287: 0 | K287: 0 | L287: 0 | M287: 0 | N287: 0 | O287: 0 | P287: 0 | Q287: 0 | R287: 0 | S287: 0 | T287: 0
A288: 168
A289: 169 | C289: Total Electric Operating Revenues | I289: =SUM(I282:I287) -> 5285508625 | J289: =SUM(J282:J287) -> 99445470.99 | K289: 1409669431 | L289: =SUM(L282:L287) -> 360216179.5 | M289: 0 | N289: 546648091.1 | O289: 2340081641 | P289: 310647937.9 | Q289: 105346569.4 | R289: 851841.2653 | S289: 112601462.2 | T289: 0
A290: 170 | C290: Miscellaneous Revenues
A291: 171 | C291: 41160 | D291: Gain on Sale of Utility Plant - CR
A292: 172 | G292: =UTCR!H292 -> S | I292: =SUM(J292:T292) -> 0 | J292: =+URO!J292+ADJ!N292 -> 0 | K292: =URO!K292+ADJ!R292 -> 0 | L292: =URO!L292+ADJ!V292 -> 0 | M292: =URO!M292+ADJ!Z292 -> 0 | N292: =URO!N292+ADJ!AD292 -> 0 | O292: =URO!O292+ADJ!AH292 -> 0 | P292: =URO!P292+ADJ!AL292 -> 0 | Q292: =URO!Q292+ADJ!AP292 -> 0 | R292: =URO!R292+ADJ!AT292 -> 0 | S292: =URO!S292+ADJ!AX292 -> 0 | T292: =URO!T292+ADJ!BB292 -> 0
A293: 173 | G293: =UTCR!H293 -> SG | I293: =SUM(J293:T293) -> 0 | J293: =+URO!J293+ADJ!N293 -> 0 | K293: =URO!K293+ADJ!R293 -> 0 | L293: =URO!L293+ADJ!V293 -> 0 | M293: =URO!M293+ADJ!Z293 -> 0 | N293: =URO!N293+ADJ!AD293 -> 0 | O293: =URO!O293+ADJ!AH293 -> 0 | P293: =URO!P293+ADJ!AL293 -> 0 | Q293: =URO!Q293+ADJ!AP293 -> 0 | R293: =URO!R293+ADJ!AT293 -> 0 | S293: =URO!S293+ADJ!AX293 -> 0 | T293: =URO!T293+ADJ!BB293 -> 0
A294: 174 | G294: =UTCR!H294 -> SO | I294: =SUM(J294:T294) -> 0 | J294: =+URO!J294+ADJ!N294 -> 0 | K294: =URO!K294+ADJ!R294 -> 0 | L294: =URO!L294+ADJ!V294 -> 0 | M294: =URO!M294+ADJ!Z294 -> 0 | N294: =URO!N294+ADJ!AD294 -> 0 | O294: =URO!O294+ADJ!AH294 -> 0 | P294: =URO!P294+ADJ!AL294 -> 0 | Q294: =URO!Q294+ADJ!AP294 -> 0 | R294: =URO!R294+ADJ!AT294 -> 0 | S294: =URO!S294+ADJ!AX294 -> 0 | T294: =URO!T294+ADJ!BB294 -> 0
A295: 175 | G295: =UTCR!H295 -> SG | I295: =SUM(J295:T295) -> 0 | J295: =+URO!J295+ADJ!N295 -> 0 | K295: =URO!K295+ADJ!R295 -> 0 | L295: =URO!L295+ADJ!V295 -> 0 | M295: =URO!M295+ADJ!Z295 -> 0 | N295: =URO!N295+ADJ!AD295 -> 0 | O295: =URO!O295+ADJ!AH295 -> 0 | P295: =URO!P295+ADJ!AL295 -> 0 | Q295: =URO!Q295+ADJ!AP295 -> 0 | R295: =URO!R295+ADJ!AT295 -> 0 | S295: =URO!S295+ADJ!AX295 -> 0 | T295: =URO!T295+ADJ!BB295 -> 0
A296: 176 | G296: =UTCR!H296 -> SG | I296: =SUM(J296:T296) -> 0 | J296: =+URO!J296+ADJ!N296 -> 0 | K296: =URO!K296+ADJ!R296 -> 0 | L296: =URO!L296+ADJ!V296 -> 0 | M296: =URO!M296+ADJ!Z296 -> 0 | N296: =URO!N296+ADJ!AD296 -> 0 | O296: =URO!O296+ADJ!AH296 -> 0 | P296: =URO!P296+ADJ!AL296 -> 0 | Q296: =URO!Q296+ADJ!AP296 -> 0 | R296: =URO!R296+ADJ!AT296 -> 0 | S296: =URO!S296+ADJ!AX296 -> 0 | T296: =URO!T296+ADJ!BB296 -> 0
A297: 177 | I297: =SUBTOTAL(9,I292:I296) -> 0 | J297: =SUBTOTAL(9,J292:J296) -> 0 | K297: 0 | L297: 0 | M297: 0 | N297: 0 | O297: 0 | P297: 0 | Q297: 0 | R297: 0 | S297: 0 | T297: 0
A298: 178
A299: 179 | C299: 41170 | D299: Loss on Sale of Utility Plant
A300: 180 | G300: =UTCR!H300 -> S | I300: =SUM(J300:T300) -> 0 | J300: =+URO!J300+ADJ!N300 -> 0 | K300: =URO!K300+ADJ!R300 -> 0 | L300: =URO!L300+ADJ!V300 -> 0 | M300: =URO!M300+ADJ!Z300 -> 0 | N300: =URO!N300+ADJ!AD300 -> 0 | O300: =URO!O300+ADJ!AH300 -> 0 | P300: =URO!P300+ADJ!AL300 -> 0 | Q300: =URO!Q300+ADJ!AP300 -> 0 | R300: =URO!R300+ADJ!AT300 -> 0 | S300: =URO!S300+ADJ!AX300 -> 0 | T300: =URO!T300+ADJ!BB300 -> 0
A301: 181 | G301: =UTCR!H301 -> SG | I301: =SUM(J301:T301) -> 0 | J301: =+URO!J301+ADJ!N301 -> 0 | K301: =URO!K301+ADJ!R301 -> 0 | L301: =URO!L301+ADJ!V301 -> 0 | M301: =URO!M301+ADJ!Z301 -> 0 | N301: =URO!N301+ADJ!AD301 -> 0 | O301: =URO!O301+ADJ!AH301 -> 0 | P301: =URO!P301+ADJ!AL301 -> 0 | Q301: =URO!Q301+ADJ!AP301 -> 0 | R301: =URO!R301+ADJ!AT301 -> 0 | S301: =URO!S301+ADJ!AX301 -> 0 | T301: =URO!T301+ADJ!BB301 -> 0
